Workbook

Sheet Cover
A1: =RIGHT(CELL("filename", $A$1), LEN(CELL("filename", $A$1)) - SEARCH("]", CELL("filename", $A$1))) -> Cover
B3: Demand-side improvements
B5: Model code: | C5: PR24CA38
B6: Version number: | C6: 1
B7: File name: | C7: =MID(CELL("filename"), FIND("[", CELL("filename"), 1) + 1, FIND("]", CELL("filename"), 1) - FIND("[", CELL("filename"), 1) - 1) -> PR24CA38 - W - Demand-side Improvements.xlsm
B8: Date: | C8: December 2024
B10: For enquiries please contact: | C10: PR24@ofwat.gov.uk
B22: Contents:
B24: Tab name | C24: Description
B25: Cover | C25: Cover
B26: Conceptual model | C26: Flow diagram of the high-level enhancement assessment process and data flow in model.
B27: Inputs >>
B28: Water_totex | C28: Water price control net totex data import from central database used for materiality assessment.
B29: Inputs APR | C29: Submitted company APR data import from central database.
B30: Inputs APR Override | C30: Record of data overrides to APR inputs
B31: APR Override explanations | C31: Supporting evidence for APR overrides.
B32: Inputs APR Final | C32: Final APR data used for the enhancement assessment against business plan data.
B33: F_Inputs WRMP | C33: Submitted company WRMP data import from central database.
B34: F_Inputs WRMP Override | C34: Record of data overrides to WRMP inputs
B35: WRMP Override explanations | C35: Supporting evidence for WRMP overrides.
B36: F_Inputs WRMP Final | C36: Final WRMP data used for the enhancement assessment against business plan data.
B37: Inputs CW8 | C37: Submitted scheme level data import from business plans.
B38: Inputs CW8 Demand Options | C38: Submitted scheme level demand data import from business plans.
B39: Consolidated inputs >>
B40: Consolidated Input | C40: Combined input data taking account of any other contributing data, where applicable.
B41: F_Input Override | C41: Record of data overrides to business plan inputs
B42: Final Input | C42: Final business plan data used for the enhancement assessment.
B43: Analysis >>
B44: APR Data | C44: Submitted outturn data from the APR
B45: APR Data Final Input | C45: Final APR data used for the enhancement assessment against business plan data.
B46: SPF validation | C46: Validating WRMP and PR24 business plan costs
B47: Unit Costs | C47: Table showing unit cost data using APR and business plan data
B48: Materiality & base adjustment | C48: Table showing bespoke base adjustments prioir to modelling | F48: TRUE | G48: Visible
B49: Modelled costs | C49: Analysis undertaken using a modelled assessment approach. | F49: TRUE | G49: Visible
B50: Deep dives >> | C50: Detailed assessment per company of the requested expenditure where costs are material and / or a modelled approach is not appropriate. | F50: TRUE | G50: Visible
B51: WSH | F51: TRUE | G51: Visible
B52: SRN | F52: TRUE | G52: Visible
B53: YKY | F53: TRUE | G53: Visible
B54: SEW
B55: SSC
B56: Outputs >> | F56: TRUE | G56: Visible
B57: Allowance | C57: Summary of our assessed allowances per company before other adjustments (eg frontier shift). | F57: TRUE | G57: Visible
B58: Outputs to aggregator | C58: Summary of submitted and assessed costs profiled over the 2023-30 period (including transitional and accelerated process expenditure). | F58: TRUE | G58: Visible
B59: F_Outputs | C59: Allowance data export to central database. | F59: TRUE | G59: Visible
B60: Post Adj & FS Allowances | C60: Summary of imported, post-adjusted allowances per company per enhancement line per year. | F60: TRUE | G60: Visible
B61: PCD | C61: Price control deliverable assessment and calculation of PCD rate(s). | F61: TRUE | G61: Visible
F62: TRUE | G62: Visible
F63: TRUE | G63: Visible
B64: Error log | G64: Visible
G65: Visible
B66: Company | C66: Description of change to be made | D66: Sheet(s) in current model | F66: Model link(s) | G66: Visible
B67: N/A | C67: N/A | D67: N/A | F67: TRUE | G67: Visible
F68: TRUE | G68: Visible
F69: TRUE | G69: Visible
F70: TRUE | G70: Visible
F71: TRUE | G71: Visible
F72: TRUE | G72: Visible
F73: TRUE | G73: Visible
F74: TRUE | G74: Visible
F75: TRUE | G75: Visible
F76: TRUE | G76: Visible
F77: TRUE | G77: Visible
F78: TRUE | G78: Visible
F79: TRUE | G79: Visible
C90: FAST_INT
C91: Excel_INT
C92: DROPDOWN LISTS

Sheet Conceptual model
A1: =RIGHT(CELL("filename", A1), LEN(CELL("filename", A1)) - SEARCH("]", CELL("filename", A1))) -> Conceptual model
A53: End of sheet

Sheet Inputs >>

Sheet Water_totex
A1: =RIGHT(CELL("filename", $A$1), LEN(CELL("filename", $A$1)) - SEARCH("]", CELL("filename", $A$1))) -> Water_totex
C3: PR24 WATER TOTEX FD V2 | E3: Run on 03 Sep 2024 16:48
A5: Company Acronym | B5: Item Code | C5: Item Description | D5: Item Unit | E5: Item Table Suite | F5: Constant
A6: Company Acronym | B6: Item Code | C6: Item Description | D6: Item Unit | E6: Item Table Suite | F6: Price Review 2024
A7: Company Acronym | B7: Item Code | C7: Item Description | D7: Item Unit | E7: Item Table Suite | F7: Run 11 - PR24 FD Data
A8: Company Acronym | B8: Item Code | C8: Item Description | D8: Item Unit | E8: Item Table Suite | F8: Latest
A9: ANH | B9: PR24_NETTOTEX_WATER | C9: PR24 BP Net totex - Total inc. accelerated & transition costs | D9: £m | E9: Price Review 2024 | F9: 4187.353839
A10: WSH | B10: PR24_NETTOTEX_WATER | C10: PR24 BP Net totex - Total inc. accelerated & transition costs | D10: £m | E10: Price Review 2024 | F10: 2365.636
A11: HDD | B11: PR24_NETTOTEX_WATER | C11: PR24 BP Net totex - Total inc. accelerated & transition costs | D11: £m | E11: Price Review 2024 | F11: 202.9929059
A12: NES | B12: PR24_NETTOTEX_WATER | C12: PR24 BP Net totex - Total inc. accelerated & transition costs | D12: £m | E12: Price Review 2024 | F12: 3081.858466
A13: SVE | B13: PR24_NETTOTEX_WATER | C13: PR24 BP Net totex - Total inc. accelerated & transition costs | D13: £m | E13: Price Review 2024 | F13: 5623.042444
A14: SWB | B14: PR24_NETTOTEX_WATER | C14: PR24 BP Net totex - Total inc. accelerated & transition costs | D14: £m | E14: Price Review 2024 | F14: 1570.211528
A15: SRN | B15: PR24_NETTOTEX_WATER | C15: PR24 BP Net totex - Total inc. accelerated & transition costs | D15: £m | E15: Price Review 2024 | F15: 3614.763
A16: TMS | B16: PR24_NETTOTEX_WATER | C16: PR24 BP Net totex - Total inc. accelerated & transition costs | D16: £m | E16: Price Review 2024 | F16: 10162.16273
A17: NWT | B17: PR24_NETTOTEX_WATER | C17: PR24 BP Net totex - Total inc. accelerated & transition costs | D17: £m | E17: Price Review 2024 | F17: 4204.144554
A18: WSX | B18: PR24_NETTOTEX_WATER | C18: PR24 BP Net totex - Total inc. accelerated & transition costs | D18: £m | E18: Price Review 2024 | F18: 1136.356395
A19: YKY | B19: PR24_NETTOTEX_WATER | C19: PR24 BP Net totex - Total inc. accelerated & transition costs | D19: £m | E19: Price Review 2024 | F19: 3120.05052
A20: AFW | B20: PR24_NETTOTEX_WATER | C20: PR24 BP Net totex - Total inc. accelerated & transition costs | D20: £m | E20: Price Review 2024 | F20: 2157.018576
A21: BRL | B21: PR24_NETTOTEX_WATER | C21: PR24 BP Net totex - Total inc. accelerated & transition costs | D21: £m | E21: Price Review 2024 | F21: 688.9547248
A22: PRT | B22: PR24_NETTOTEX_WATER | C22: PR24 BP Net totex - Total inc. accelerated & transition costs | D22: £m | E22: Price Review 2024 | F22: 341.6692826
A23: SEW | B23: PR24_NETTOTEX_WATER | C23: PR24 BP Net totex - Total inc. accelerated & transition costs | D23: £m | E23: Price Review 2024 | F23: 1862.837225
A24: SSC | B24: PR24_NETTOTEX_WATER | C24: PR24 BP Net totex - Total inc. accelerated & transition costs | D24: £m | E24: Price Review 2024 | F24: 737.9594339
A25: SES | B25: PR24_NETTOTEX_WATER | C25: PR24 BP Net totex - Total inc. accelerated & transition costs | D25: £m | E25: Price Review 2024 | F25: 377.6353912

Sheet Inputs APR
A1: =RIGHT(CELL("filename", $A$1), LEN(CELL("filename", $A$1)) - SEARCH("]", CELL("filename", $A$1))) -> Inputs APR
A4: Scheme.ID | B4: Company | C4: Activity | D4: Classification | E4: Delivery year | F4: capex yr1 (£m) | G4: capex yr2 (£m) | H4: capex yr3 (£m) | I4: capex yr4 (£m) | J4: capex yr5 (£m) | K4: capex yr6 and onwards (£m) | L4: opex yr1 (£m) | M4: opex yr2 (£m) | N4: opex yr3 (£m) | O4: opex yr4 (£m) | P4: opex yr5 (£m) | Q4: opex yr6 and onwards (£m) | R4: benefits y1 (Ml/d) | S4: benefits y2 (Ml/d) | T4: benefits y3 (Ml/d) | U4: benefits y4 (Ml/d) | V4: benefits y5 (Ml/d) | W4: benefits y6 and onwards (Ml/d)
A5: 1 | B5: AFW | C5: Customer side demand mangement | D5: Demand side | E5: 2020-25 | F5: 1.641 | G5: 5.191 | H5: 5.471 | I5: 6.045 | J5: 3.981 | K5: 0 | L5: 0.024 | M5: 1.045 | N5: 1.42 | O5: 1.407 | P5: 1.407 | Q5: 0 | R5: 0.56 | S5: 21.72 | T5: 47.35 | U5: 87.63 | V5: 112.74 | W5: 112.74
A6: 2 | B6: ANH | C6: Demand Side Improvements - Water Efficiency Measures | D6: Demand side | E6: 2020-21 | F6: 0 | G6: 0 | H6: 0 | I6: 0 | J6: 0 | K6: 0 | L6: 0.248 | M6: 0.762 | N6: 0.379 | O6: 1.051 | P6: 1.051 | Q6: 1.051 | R6: 0.2 | S6: 1 | T6: 1.25 | U6: 1.72 | V6: 2.15 | W6: 2.15
A7: 3 | B7: BRL | C7: WRMP scheme 1 | D7: Demand side | E7: 2020-21 | F7: 0.031 | G7: 0.149 | H7: 0.06 | I7: 0.045 | J7: 0.045 | K7: 0 | L7: 0 | M7: 0 | N7: 0 | O7: 0 | P7: 0 | Q7: 0 | R7: 0.11 | S7: 0.12 | T7: 0.32 | U7: 0.83 | V7: 1.34 | W7: 0
A8: 4 | B8: NES | C8: WRMP scheme 1 | D8: Demand side | E8: 2023-24 | F8: 0 | G8: 0 | H8: 0 | I8: 0 | J8: 0 | K8: 0 | L8: 0.62 | M8: 1.137 | N8: 1.181 | O8: 1.563 | P8: 1.643 | Q8: 0 | R8: 0.33 | S8: 1.01 | T8: 2.3 | U8: 3.65 | V8: 5.26
A9: 5 | B9: PRT | C9: Household water efficiency programme | D9: Demand side | E9: 2020-21 | F9: 0 | G9: 0 | H9: 0 | I9: 0 | J9: 0 | K9: 0 | L9: 0.032 | M9: 0.076 | N9: 0.12 | O9: 0.054 | P9: 0.054 | Q9: 0 | R9: 0 | S9: 0 | T9: 0 | U9: 0.01 | V9: 0.07 | W9: 0.07
A10: 6 | B10: PRT | C10: Metering on change of occupancy | D10: Demand side | E10: 2021-22 | F10: 0 | G10: 0 | H10: 0.307 | I10: 1 | J10: 1 | K10: 0 | L10: 0 | M10: 0 | N10: 0 | O10: 0 | P10: 0 | Q10: -5 | R10: 0 | S10: 2.131913408 | T10: 4.98603352 | U10: 5 | V10: 5 | W10: 5
A11: 7 | B11: PRT | C11: Voids Metering | D11: Demand side | E11: 2022-23 | F11: 0 | G11: 0 | H11: 0 | I11: 0 | J11: 0 | K11: 0 | L11: 0 | M11: 0 | N11: 0 | O11: 0 | P11: 0 | Q11: -0.291 | R11: 0 | S11: 0 | T11: 0.09964912281 | U11: 0.1998245614 | V11: 0.3 | W11: 0.3
A12: 8 | B12: PRT | C12: Water saving devices - Spray taps | D12: Demand side | E12: 2020-21 | F12: 0 | G12: 0 | H12: 0 | I12: 0 | J12: 0 | K12: 0 | L12: 0.014 | M12: 0.025 | N12: 0.025 | O12: 0.015 | P12: 0.015 | Q12: 0 | R12: 0 | S12: 0 | T12: 0 | U12: 0 | V12: 0 | W12: 0
A13: 9 | B13: PRT | C13: Water saving devices - trigger nozzles for hoses | D13: Demand side | E13: 2022-23 | F13: 0 | G13: 0 | H13: 0 | I13: 0 | J13: 0 | K13: 0 | L13: 0 | M13: 0 | N13: 0 | O13: 0 | P13: 0 | Q13: 0 | R13: 0 | S13: 0 | T13: 0 | U13: 0 | V13: 0 | W13: 0
A14: 10 | B14: PRT | C14: Smart Meter MNFR Trial | D14: Demand side | E14: 2020-21 | F14: 0 | G14: 0.01 | H14: 0.002 | I14: 0 | J14: 0 | K14: 6.184 | L14: 0 | M14: 0 | N14: 0 | O14: 0 | P14: 0 | Q14: 0 | R14: 0.0007233273056 | S14: 0.001265822785 | T14: 0.001446654611 | U14: 0.02572332731 | V14: 0.05 | W14: 0.05
A15: 11 | B15: PRT | C15: Mandatory Restraint | D15: Demand side | E15: 2022-23 | F15: 0 | G15: 0 | H15: 0 | I15: 0 | J15: 0.374 | K15: 0.343 | L15: 0 | M15: 0 | N15: 0 | O15: 0 | P15: 0.167 | Q15: 0.001 | R15: 0 | S15: 0 | T15: 0 | U15: 0 | V15: 8.3 | W15: 8.3
A16: 12 | B16: PRT | C16: Imposition of Drought Direction Restrictions | D16: Demand side | E16: 2022-23 | F16: 0 | G16: 0 | H16: 0 | I16: 0 | J16: 0.187 | K16: 0.037 | L16: 0 | M16: 0 | N16: 0 | O16: 0 | P16: 0.143 | Q16: 0.002 | R16: 0 | S16: 0 | T16: 0 | U16: 0 | V16: 8.1 | W16: 8.1
A17: 13 | B17: PRT | C17: Subsidy to customers that purchase water efficient appliances | D17: Demand side | E17: 2022-23 | F17: 0 | G17: 0 | H17: 0 | I17: 0 | J17: 0 | K17: 0 | L17: 0 | M17: 0 | N17: 0 | O17: 0 | P17: 0 | Q17: 0 | R17: 0 | S17: 0 | T17: 0 | U17: 0 | V17: 0 | W17: 0
A18: 14 | B18: PRT | C18: Water saving devices - Retrofitting existing toilets | D18: Demand side | E18: 2022-23 | F18: 0 | G18: 0 | H18: 0 | I18: 0 | J18: 0 | K18: 0 | L18: 0 | M18: 0 | N18: 0 | O18: 0 | P18: 0 | Q18: 0 | R18: 0 | S18: 0 | T18: 0 | U18: 0 | V18: 0 | W18: 0
A19: 15 | B19: SEW | C19: Water Efficiency | D19: Demand side | E19: 2021 | F19: 0 | G19: 0 | H19: 0 | I19: 0 | J19: 0 | K19: 0 | L19: 0.475 | M19: 0.422 | N19: 1.108 | O19: 0.551 | P19: 1.31 | Q19: 1.31 | R19: 1.03 | S19: 3.34 | T19: 6.13 | U19: 7.15 | V19: 14 | W19: 56.09
A20: 16 | B20: SRN | C20: Target 100 | D20: Demand side | E20: 2022-23 | F20: 0 | G20: 0 | H20: 0 | I20: 0 | J20: 0 | K20: 0 | L20: 0.18 | M20: 2.841 | N20: 2.283 | O20: 3.015 | P20: 2.944 | Q20: 0 | R20: 0 | S20: 0 | T20: -1.67 | U20: -3.33 | V20: -5.02 | W20: 0
A21: 17 | B21: SSC | C21: Developer Incentive - SST | D21: Demand side | E21: 2021-22 | F21: 0 | G21: 0 | H21: 0 | I21: 0 | R21: 0.01 | S21: 0.04 | T21: 0.05 | U21: 0.08
A22: 18 | B22: SSC | C22: Water saving devices - SST | D22: Demand side | E22: 2021-22 | F22: 0.117 | G22: 0.066 | H22: 0.134 | I22: 0.086 | R22: 0.16 | S22: 0.25 | T22: 0.74 | U22: 0.87
A23: 19 | B23: SSC | C23: Water saving devices - CAM | D23: Demand side | E23: 2021-22 | F23: 0.066 | G23: 0.023 | H23: 0.069 | I23: 0.037 | R23: 0.05 | S23: 0.08 | T23: 0.18 | U23: 0.5
A24: 20 | B24: SVE | C24: Demand Water efficiency | D24: Demand side | E24: 2020-2021 | F24: 0 | G24: 0 | H24: 0 | I24: 0 | J24: 0 | K24: 0 | L24: 0 | M24: 1.49 | N24: 3.152 | O24: 2.281 | P24: 2.285 | Q24: 0 | R24: 2.98 | S24: 7.61 | T24: 14.34 | U24: 18.98 | V24: 23.68 | W24: 0
A25: 21 | B25: SVE | C25: Demand Water efficiency - NHH | D25: Supply demand balance from 2026 | E25: 2022-2023 | F25: 0 | G25: 0 | H25: 0 | I25: 0 | J25: 0 | K25: 0 | L25: 0 | M25: 0.06 | N25: 0.56 | O25: 0.697 | P25: 1.594 | Q25: 0 | R25: 0 | S25: 0 | T25: 0.13 | U25: 0.49 | V25: 1 | W25: 0
A26: 22 | B26: SWB | C26: Water Efficiency | D26: Demand side | E26: 2020-21 | F26: 0 | G26: 0 | H26: 0.383 | I26: 0.229 | J26: 0.229 | K26: 0 | L26: 0 | M26: 0 | N26: 0.383 | O26: 0 | P26: 0 | Q26: 0 | R26: 0 | S26: 1.27 | T26: 4.44 | U26: 4.88 | V26: 5.31 | W26: 0
A27: 23 | B27: SWB | C27: Drought Plan: demand schemes | D27: Demand side | E27: 2022-23 | F27: 0 | G27: 0 | H27: 0 | I27: 0 | J27: 0 | K27: 0 | L27: 0 | M27: 0 | N27: 0.798 | O27: 1.638 | P27: 1.638 | Q27: 0 | R27: 0 | S27: 0 | T27: 4.32 | U27: 7.45 | V27: 17.57 | W27: 0
A28: 24 | B28: SWB | C28: WWTW consumption reduction | D28: Demand side | E28: 2020-21 | F28: 0 | G28: 0 | H28: 0 | I28: 0 | J28: 0 | K28: 0 | L28: 0 | M28: 0 | N28: 0 | O28: 0 | P28: 0 | Q28: 0 | R28: 2.31 | S28: 2.65 | T28: 2.8 | U28: 2.8 | V28: 2.8 | W28: 0
A29: 25 | B29: TMS | C29: Smarter Home Visits (SHV) | D29: Demand side | E29: 2021 | F29: 0 | G29: 0 | H29: 0 | I29: 0 | J29: 0 | K29: 0 | L29: 0.83 | M29: 1.637 | N29: 0.242 | O29: 0.373 | P29: 0.291 | Q29: 6.03 | R29: 0.8 | S29: 2.6 | T29: 2.77 | U29: 3.09 | V29: 3.46 | W29: 15.58
A30: 26 | B30: TMS | C30: Smarter Business Visits (SBV) incl. wastage fixes | D30: Demand side | E30: 2021 | F30: 0 | G30: 0 | H30: 0 | I30: 0 | J30: 0 | K30: 0 | L30: 1.226 | M30: 1.445 | N30: 0.265 | O30: 0.85 | P30: 0.946 | Q30: 0.62 | R30: 7.15 | S30: 19.26 | T30: 21.49 | U30: 31.91 | V30: 41.91 | W30: 15.38
A31: 27 | B31: TMS | C31: Wastage Fixes - households | D31: Demand side | E31: 2021 | F31: 0 | G31: 0 | H31: 0 | I31: 0 | J31: 0 | K31: 0 | L31: 0.064 | M31: 0.334 | N31: 0 | O31: 0 | P31: 0 | Q31: 1.359 | R31: 0.2 | S31: 1.37 | T31: 1.56 | U31: 1.99 | V31: 2.12 | W31: 18.95
A32: 28 | B32: TMS | C32: GreenRedeem / household incentive scheme | D32: Demand side | E32: 2021 | F32: 0 | G32: 0 | H32: 0 | I32: 0 | J32: 0 | K32: 0 | L32: 0.18 | M32: 0.18 | N32: 0.145 | O32: 0.145 | P32: 0.145 | Q32: 0.005 | R32: 0.06 | S32: 0.14 | T32: 0.16 | U32: 0.18 | V32: 0.21 | W32: 1.4
A33: 29 | B33: TMS | C33: Non-potable | D33: Demand side | E33: 2021 | F33: 0 | G33: 0 | H33: 0 | I33: 0 | J33: 0 | K33: 0 | L33: 0 | M33: 0 | N33: 0 | O33: 0 | P33: 0 | Q33: 0.436 | R33: 0 | S33: 0 | T33: 0 | U33: 0 | V33: 0 | W33: 2.12
A34: 30 | B34: TMS | C34: Housing Association | D34: Demand side | E34: 2021 | F34: 0 | G34: 0 | H34: 0 | I34: 0 | J34: 0 | K34: 0 | L34: 0.019 | M34: 0.003 | N34: 0 | O34: 0 | P34: 0 | Q34: 0.197 | R34: 0.02 | S34: 0.02 | T34: 0.02 | U34: 0.02 | V34: 0.02 | W34: 0.69
A35: 31 | B35: TMS | C35: Innovation savings | D35: Demand side | E35: 2021 | F35: 0 | G35: 0 | H35: 0 | I35: 0 | J35: 0 | K35: 0 | L35: 0 | M35: 0 | N35: 0 | O35: 0 | P35: 0 | Q35: 0.451 | R35: 0 | S35: 0 | T35: 0 | U35: 0 | V35: 0 | W35: 42.04
A36: 32 | B36: TMS | C36: Green Economic Recovery (WEF element only) | D36: Demand side | E36: 2023 | F36: 0 | G36: 0 | H36: 0 | I36: 0 | J36: 0 | K36: 0 | L36: 0 | M36: 0 | N36: 0 | O36: 0 | P36: 0 | Q36: 6.557 | R36: 0 | S36: 0 | T36: 0 | U36: 0 | V36: 0 | W36: 3
A37: 33 | B37: NWT | C37: West Cumbria Future Strategy | D37: Demand side | E37: 2022-23 | F37: 13.972 | G37: 31.09 | H37: 26.522 | I37: 0.62 | J37: 5.639 | K37: 0.266 | L37: 0 | M37: 0 | N37: 0 | O37: 0 | P37: 0 | Q37: 0 | R37: 0 | S37: 0 | T37: 0 | U37: 0 | V37: 0 | W37: 0
A38: 34 | B38: NWT | C38: Southport DMZ | D38: Demand side | E38: 2020-21 | F38: 2.531 | G38: 1.472 | H38: 0.108 | I38: 0.006 | J38: -0.02 | K38: 0 | L38: 0 | M38: 0 | N38: 0 | O38: 0 | P38: 0 | Q38: 0 | R38: 0 | S38: 0 | T38: 0 | U38: 0 | V38: 0 | W38: 0
A39: 35 | B39: NWT | C39: Springfield Bickerstaffe AMP7 works | D39: Demand side | E39: N/A | F39: 0.546 | G39: 0 | H39: 0 | I39: 0 | J39: 0 | K39: 0 | L39: 0 | M39: 0 | N39: 0 | O39: 0 | P39: 0 | Q39: 0 | R39: 0 | S39: 0 | T39: 0 | U39: 0 | V39: 0 | W39: 0
A40: 36 | B40: NWT | C40: Water Efficiency Opex | D40: Demand side | E40: N/A | F40: 0 | G40: 0 | H40: 0 | I40: 0 | J40: 0 | K40: 0 | L40: 0.228 | M40: 0.204 | N40: 0.133 | O40: 0 | P40: 0 | Q40: 0 | R40: 0.49 | S40: 0.51 | T40: 0.48 | U40: 0.37 | V40: 0.28 | W40: 0.21
A41: 37 | B41: WSH | C41: Cartref | D41: Demand side | E41: 2020-21 | F41: 2.131 | G41: 1.591 | H41: 1.641 | I41: 1.437 | J41: 0.035 | K41: 0 | L41: 0 | M41: 0 | N41: 0 | O41: 0 | P41: 0 | Q41: 0 | R41: 0.01 | S41: 0.44 | T41: 1.22 | U41: 1.86 | V41: 2.56 | W41: 0
A42: 38 | B42: WSX | C42: Digital Engagement | D42: Demand side | E42: 2020 | F42: 0.03 | G42: 0.028 | H42: 0 | I42: 0 | J42: 0 | K42: 0 | L42: 0 | M42: 0 | N42: 0.017 | O42: 0.013 | P42: 0.04 | Q42: 0 | R42: 0.07 | S42: 0.23 | T42: 0.45 | U42: 0.52 | V42: 0.59 | W42: 0
A43: 39 | B43: WSX | C43: Home Check | D43: Demand side | E43: 2020 | F43: 0.003 | G43: 0.023 | H43: 0 | I43: 0 | J43: 0 | K43: 0 | L43: 0 | M43: 0 | N43: 0.454 | O43: 0.387 | P43: 0.575 | Q43: 7.5 | R43: 0 | S43: 0.04 | T43: 1.16 | U43: 1.93 | V43: 2.71 | W43: 11.31
A44: 40 | B44: YKY
A45: 41 | B45: YKY

Sheet Inputs APR Override
A1: =RIGHT(CELL("filename", $A$1), LEN(CELL("filename", $A$1)) - SEARCH("]", CELL("filename", $A$1))) -> Inputs APR Override
A4: Scheme.ID | B4: Company | C4: Activity | D4: Classification | E4: Delivery year | F4: capex yr1 (£m) | G4: capex yr2 (£m) | H4: capex yr3 (£m) | I4: capex yr4 (£m) | J4: capex yr5 (£m) | K4: capex yr6 and onwards (£m) | L4: opex yr1 (£m) | M4: opex yr2 (£m) | N4: opex yr3 (£m) | O4: opex yr4 (£m) | P4: opex yr5 (£m) | Q4: opex yr6 and onwards (£m) | R4: benefits y1 (Ml/d) | S4: benefits y2 (Ml/d) | T4: benefits y3 (Ml/d) | U4: benefits y4 (Ml/d) | V4: benefits y5 (Ml/d) | W4: benefits y6 and onwards (Ml/d)
A5: 1 | B5: AFW
A6: 2 | B6: ANH
A7: 3 | B7: BRL | W7: ='Inputs APR'!V7 -> 1.34
A8: 4 | B8: NES | W8: ='Inputs APR'!V8 -> 5.26
A9: 5 | B9: PRT
A10: 6 | B10: PRT
A11: 7 | B11: PRT
A12: 8 | B12: PRT
A13: 9 | B13: PRT
A14: 10 | B14: PRT
A15: 11 | B15: PRT
A16: 12 | B16: PRT
A17: 13 | B17: PRT
A18: 14 | B18: PRT
A19: 15 | B19: SEW
A20: 16 | B20: SRN | T20: =-'Inputs APR'!T20 -> 1.67 | U20: =-'Inputs APR'!U20 -> 3.33 | V20: =-'Inputs APR'!V20 -> 5.02 | W20: =-'Inputs APR'!V20 -> 5.02
A21: 17 | B21: SSC | J21: 0 | K21: 0 | L21: 0 | M21: 0 | N21: 0 | O21: 0 | P21: 0 | Q21: 0 | V21: ='Inputs APR'!U21 -> 0.08 | W21: ='Inputs APR'!U21 -> 0.08
A22: 18 | B22: SSC | J22: 0 | K22: 0 | L22: 0 | M22: 0 | N22: 0 | O22: 0 | P22: 0 | Q22: 0 | V22: ='Inputs APR'!U22 -> 0.87 | W22: ='Inputs APR'!U22 -> 0.87
A23: 19 | B23: SSC | J23: 0 | K23: 0 | L23: 0 | M23: 0 | N23: 0 | O23: 0 | P23: 0 | Q23: 0 | V23: ='Inputs APR'!U23 -> 0.5 | W23: ='Inputs APR'!U23 -> 0.5
A24: 20 | B24: SVE | W24: ='Inputs APR'!V24 -> 23.68
A25: 21 | B25: SVE | W25: ='Inputs APR'!V25 -> 1
A26: 22 | B26: SWB | W26: ='Inputs APR'!V26 -> 5.31
A27: 23 | B27: SWB | W27: ='Inputs APR'!V27 -> 17.57
A28: 24 | B28: SWB | W28: ='Inputs APR'!V28 -> 2.8
A29: 25 | B29: TMS
A30: 26 | B30: TMS | W30: ='Inputs APR'!W30+'Inputs APR'!V30 -> 57.29
A31: 27 | B31: TMS
A32: 28 | B32: TMS
A33: 29 | B33: TMS
A34: 30 | B34: TMS
A35: 31 | B35: TMS
A36: 32 | B36: TMS
A37: 33 | B37: NWT
A38: 34 | B38: NWT
A39: 35 | B39: NWT | F39: 0
A40: 36 | B40: NWT | S40: ='Inputs APR'!R40+0.14 -> 0.63 | T40: ='Inputs APR'!R40+0.14+0.1 -> 0.73 | U40: =T40 -> 0.73 | V40: =U40 -> 0.73 | W40: =V40 -> 0.73
A41: 37 | B41: WSH | W41: ='Inputs APR'!V41 -> 2.56
A42: 38 | B42: WSX | W42: ='Inputs APR'!V42 -> 0.59
A43: 39 | B43: WSX
A44: 40 | B44: YKY
A45: 41 | B45: YKY

Sheet APR Override explanations
A1: =RIGHT(CELL("filename", $A$1), LEN(CELL("filename", $A$1)) - SEARCH("]", CELL("filename", $A$1))) -> APR Override explanations
A4: Scheme.ID | B4: Company | C4: Activity | D4: Classification | E4: Delivery year | F4: capex yr1 (£m) | G4: capex yr2 (£m) | H4: capex yr3 (£m) | I4: capex yr4 (£m) | J4: capex yr5 (£m) | K4: capex yr6 and onwards (£m) | L4: opex yr1 (£m) | M4: opex yr2 (£m) | N4: opex yr3 (£m) | O4: opex yr4 (£m) | P4: opex yr5 (£m) | Q4: opex yr6 and onwards (£m) | R4: benefits y1 (Ml/d) | S4: benefits y2 (Ml/d) | T4: benefits y3 (Ml/d) | U4: benefits y4 (Ml/d) | V4: benefits y5 (Ml/d) | W4: benefits y6 and onwards (Ml/d) | Y4: Excel file reference | Z4: Word document reference
A5: 1 | B5: AFW | Z5: AFW-APR-CA-007
A6: 2 | B6: ANH | Z6: ANH-APR-CA-009
A7: 3 | B7: BRL | W7: Populating zero value cell with previous year's cumulitive benefit | Z7: BRL-APR-CA-006
A8: 4 | B8: NES | W8: Populating empty cell with previous year's cumulitive benefit | Z8: NES-APR-CA-009
A9: 5 | B9: PRT | Z9: PRT-APR-CA-008
A10: 6 | B10: PRT | Z10: PRT-APR-CA-008
A11: 7 | B11: PRT | Z11: PRT-APR-CA-008
A12: 8 | B12: PRT | Z12: PRT-APR-CA-008
A13: 9 | B13: PRT | Z13: PRT-APR-CA-008
A14: 10 | B14: PRT | Z14: PRT-APR-CA-008
A15: 11 | B15: PRT | Z15: PRT-APR-CA-008
A16: 12 | B16: PRT | Z16: PRT-APR-CA-008
A17: 13 | B17: PRT | Z17: PRT-APR-CA-008
A18: 14 | B18: PRT | Z18: PRT-APR-CA-008
A19: 15 | B19: SEW | Z19: SEW-APR-CA-007
A20: 16 | B20: SRN | T20: Correct benefits to positive query response has confirmed | W20: Populating zero value cell with previous year's cumulitive benefit | Z20: SRN-APR-CA-008 and OFW-OBQ-SRN-147
A21: 17 | B21: SSC | J21: Populating empty cell with zero | V21: Populating zero value cell with previous year's cumulitive benefit | Y21: SSC-SAPR-CA-008 - Table 6F.xlsx | Z21: SSC-APR-CA-008
A22: 18 | B22: SSC | J22: Populating empty cell with zero | V22: Populating zero value cell with previous year's cumulitive benefit | Y22: SSC-SAPR-CA-008 - Table 6F.xlsx | Z22: SSC-APR-CA-008
A23: 19 | B23: SSC | J23: Populating empty cell with zero | V23: Populating zero value cell with previous year's cumulitive benefit | Y23: SSC-SAPR-CA-008 - Table 6F.xlsx | Z23: SSC-APR-CA-008
A24: 20 | B24: SVE | W24: Populating zero value cell with previous year's cumulitive benefit | Z24: SVE-APR-CA-010
A25: 21 | B25: SVE | W25: Populating zero value cell with previous year's cumulitive benefit | Z25: SVE-APR-CA-010
A26: 22 | B26: SWB | W26: Populating zero value cell with previous year's cumulitive benefit | Z26: SWB-APR-CA-007
A27: 23 | B27: SWB | W27: Populating zero value cell with previous year's cumulitive benefit | Z27: SWB-APR-CA-007
A28: 24 | B28: SWB | W28: Populating zero value cell with previous year's cumulitive benefit | Z28: SWB-APR-CA-007
A29: 25 | B29: TMS | Z29: TMS-APR-CA-009
A30: 26 | B30: TMS | W30: Populating value cell with this year and previous year's cumulitive benefit | Z30: TMS-APR-CA-009
A31: 27 | B31: TMS | Z31: TMS-APR-CA-009
A32: 28 | B32: TMS | Z32: TMS-APR-CA-009
A33: 29 | B33: TMS | Z33: TMS-APR-CA-009
A34: 30 | B34: TMS | Z34: TMS-APR-CA-009
A35: 31 | B35: TMS | Z35: TMS-APR-CA-009
A36: 32 | B36: TMS | Z36: TMS-APR-CA-009
A37: 33 | B37: NWT | Z37: UUW-APR-CA-009
A38: 34 | B38: NWT | Z38: UUW-APR-CA-009
A39: 35 | B39: NWT | F39: Already in baseline of WRMP19 plan so no benefit | Y39: UUW Table 6F 181023.xlsx | Z39: UUW-APR-CA-009
A40: 36 | B40: NWT | S40: Cumulative savings as per query response. | Z40: UUW-APR-CA-009
A41: 37 | B41: WSH | W41: Populating zero value cell with previous year's cumulitive benefit | Y41: WSH APR 2022-23 table 6F updated v2.xlsx | Z41: WSH-APR-CA-010
A42: 38 | B42: WSX | W42: Populating zero value cell with previous year's cumulitive benefit | Y42: WSX 6F.xlsx | Z42: WSX-APR-CA-008
A43: 39 | B43: WSX | Z43: WSX-APR-CA-008
A44: 40 | B44: YKY | C44: Project dropped by company
A45: 41 | B45: YKY | C45: Project dropped by company

Sheet Inputs APR Final
A1: =RIGHT(CELL("filename", $A$1), LEN(CELL("filename", $A$1)) - SEARCH("]", CELL("filename", $A$1))) -> Inputs APR Final
A4: Scheme.ID | B4: Company | C4: Activity | D4: Classification | E4: Delivery year | F4: capex yr1 (£m) | G4: capex yr2 (£m) | H4: capex yr3 (£m) | I4: capex yr4 (£m) | J4: capex yr5 (£m) | K4: capex yr6 and onwards (£m) | L4: opex yr1 (£m) | M4: opex yr2 (£m) | N4: opex yr3 (£m) | O4: opex yr4 (£m) | P4: opex yr5 (£m) | Q4: opex yr6 and onwards (£m) | R4: benefits y1 (Ml/d) | S4: benefits y2 (Ml/d) | T4: benefits y3 (Ml/d) | U4: benefits y4 (Ml/d) | V4: benefits y5 (Ml/d) | W4: benefits y6 and onwards (Ml/d)
A5: 1 | B5: AFW | C5: =IF('Inputs APR Override'!C5="",'Inputs APR'!C5,'Inputs APR Override'!C5) -> Customer side demand mangement | D5: =IF('Inputs APR Override'!D5="",'Inputs APR'!D5,'Inputs APR Override'!D5) -> Demand side | E5: =IF('Inputs APR Override'!E5="",'Inputs APR'!E5,'Inputs APR Override'!E5) -> 2020-25 | F5: =IF('Inputs APR Override'!F5="",'Inputs APR'!F5,'Inputs APR Override'!F5) -> 1.641 | G5: =IF('Inputs APR Override'!G5="",'Inputs APR'!G5,'Inputs APR Override'!G5) -> 5.191 | H5: =IF('Inputs APR Override'!H5="",'Inputs APR'!H5,'Inputs APR Override'!H5) -> 5.471 | I5: =IF('Inputs APR Override'!I5="",'Inputs APR'!I5,'Inputs APR Override'!I5) -> 6.045 | J5: =IF('Inputs APR Override'!J5="",'Inputs APR'!J5,'Inputs APR Override'!J5) -> 3.981 | K5: =IF('Inputs APR Override'!K5="",'Inputs APR'!K5,'Inputs APR Override'!K5) -> 0 | L5: =IF('Inputs APR Override'!L5="",'Inputs APR'!L5,'Inputs APR Override'!L5) -> 0.024 | M5: =IF('Inputs APR Override'!M5="",'Inputs APR'!M5,'Inputs APR Override'!M5) -> 1.045 | N5: =IF('Inputs APR Override'!N5="",'Inputs APR'!N5,'Inputs APR Override'!N5) -> 1.42 | O5: =IF('Inputs APR Override'!O5="",'Inputs APR'!O5,'Inputs APR Override'!O5) -> 1.407 | P5: =IF('Inputs APR Override'!P5="",'Inputs APR'!P5,'Inputs APR Override'!P5) -> 1.407 | Q5: =IF('Inputs APR Override'!Q5="",'Inputs APR'!Q5,'Inputs APR Override'!Q5) -> 0 | R5: =IF('Inputs APR Override'!R5="",'Inputs APR'!R5,'Inputs APR Override'!R5) -> 0.56 | S5: =IF('Inputs APR Override'!S5="",'Inputs APR'!S5,'Inputs APR Override'!S5) -> 21.72 | T5: =IF('Inputs APR Override'!T5="",'Inputs APR'!T5,'Inputs APR Override'!T5) -> 47.35 | U5: =IF('Inputs APR Override'!U5="",'Inputs APR'!U5,'Inputs APR Override'!U5) -> 87.63 | V5: =IF('Inputs APR Override'!V5="",'Inputs APR'!V5,'Inputs APR Override'!V5) -> 112.74 | W5: =IF('Inputs APR Override'!W5="",'Inputs APR'!W5,'Inputs APR Override'!W5) -> 112.74
A6: 2 | B6: ANH | C6: =IF('Inputs APR Override'!C6="",'Inputs APR'!C6,'Inputs APR Override'!C6) -> Demand Side Improvements - Water Efficiency Measures | D6: =IF('Inputs APR Override'!D6="",'Inputs APR'!D6,'Inputs APR Override'!D6) -> Demand side | E6: =IF('Inputs APR Override'!E6="",'Inputs APR'!E6,'Inputs APR Override'!E6) -> 2020-21 | F6: =IF('Inputs APR Override'!F6="",'Inputs APR'!F6,'Inputs APR Override'!F6) -> 0 | G6: =IF('Inputs APR Override'!G6="",'Inputs APR'!G6,'Inputs APR Override'!G6) -> 0 | H6: =IF('Inputs APR Override'!H6="",'Inputs APR'!H6,'Inputs APR Override'!H6) -> 0 | I6: =IF('Inputs APR Override'!I6="",'Inputs APR'!I6,'Inputs APR Override'!I6) -> 0 | J6: =IF('Inputs APR Override'!J6="",'Inputs APR'!J6,'Inputs APR Override'!J6) -> 0 | K6: =IF('Inputs APR Override'!K6="",'Inputs APR'!K6,'Inputs APR Override'!K6) -> 0 | L6: =IF('Inputs APR Override'!L6="",'Inputs APR'!L6,'Inputs APR Override'!L6) -> 0.248 | M6: =IF('Inputs APR Override'!M6="",'Inputs APR'!M6,'Inputs APR Override'!M6) -> 0.762 | N6: =IF('Inputs APR Override'!N6="",'Inputs APR'!N6,'Inputs APR Override'!N6) -> 0.379 | O6: =IF('Inputs APR Override'!O6="",'Inputs APR'!O6,'Inputs APR Override'!O6) -> 1.051 | P6: =IF('Inputs APR Override'!P6="",'Inputs APR'!P6,'Inputs APR Override'!P6) -> 1.051 | Q6: =IF('Inputs APR Override'!Q6="",'Inputs APR'!Q6,'Inputs APR Override'!Q6) -> 1.051 | R6: =IF('Inputs APR Override'!R6="",'Inputs APR'!R6,'Inputs APR Override'!R6) -> 0.2 | S6: =IF('Inputs APR Override'!S6="",'Inputs APR'!S6,'Inputs APR Override'!S6) -> 1 | T6: =IF('Inputs APR Override'!T6="",'Inputs APR'!T6,'Inputs APR Override'!T6) -> 1.25 | U6: =IF('Inputs APR Override'!U6="",'Inputs APR'!U6,'Inputs APR Override'!U6) -> 1.72 | V6: =IF('Inputs APR Override'!V6="",'Inputs APR'!V6,'Inputs APR Override'!V6) -> 2.15 | W6: =IF('Inputs APR Override'!W6="",'Inputs APR'!W6,'Inputs APR Override'!W6) -> 2.15
A7: 3 | B7: BRL | C7: =IF('Inputs APR Override'!C7="",'Inputs APR'!C7,'Inputs APR Override'!C7) -> WRMP scheme 1 | D7: =IF('Inputs APR Override'!D7="",'Inputs APR'!D7,'Inputs APR Override'!D7) -> Demand side | E7: =IF('Inputs APR Override'!E7="",'Inputs APR'!E7,'Inputs APR Override'!E7) -> 2020-21 | F7: =IF('Inputs APR Override'!F7="",'Inputs APR'!F7,'Inputs APR Override'!F7) -> 0.031 | G7: =IF('Inputs APR Override'!G7="",'Inputs APR'!G7,'Inputs APR Override'!G7) -> 0.149 | H7: =IF('Inputs APR Override'!H7="",'Inputs APR'!H7,'Inputs APR Override'!H7) -> 0.06 | I7: =IF('Inputs APR Override'!I7="",'Inputs APR'!I7,'Inputs APR Override'!I7) -> 0.045 | J7: =IF('Inputs APR Override'!J7="",'Inputs APR'!J7,'Inputs APR Override'!J7) -> 0.045 | K7: =IF('Inputs APR Override'!K7="",'Inputs APR'!K7,'Inputs APR Override'!K7) -> 0 | L7: =IF('Inputs APR Override'!L7="",'Inputs APR'!L7,'Inputs APR Override'!L7) -> 0 | M7: =IF('Inputs APR Override'!M7="",'Inputs APR'!M7,'Inputs APR Override'!M7) -> 0 | N7: =IF('Inputs APR Override'!N7="",'Inputs APR'!N7,'Inputs APR Override'!N7) -> 0 | O7: =IF('Inputs APR Override'!O7="",'Inputs APR'!O7,'Inputs APR Override'!O7) -> 0 | P7: =IF('Inputs APR Override'!P7="",'Inputs APR'!P7,'Inputs APR Override'!P7) -> 0 | Q7: =IF('Inputs APR Override'!Q7="",'Inputs APR'!Q7,'Inputs APR Override'!Q7) -> 0 | R7: =IF('Inputs APR Override'!R7="",'Inputs APR'!R7,'Inputs APR Override'!R7) -> 0.11 | S7: =IF('Inputs APR Override'!S7="",'Inputs APR'!S7,'Inputs APR Override'!S7) -> 0.12 | T7: =IF('Inputs APR Override'!T7="",'Inputs APR'!T7,'Inputs APR Override'!T7) -> 0.32 | U7: =IF('Inputs APR Override'!U7="",'Inputs APR'!U7,'Inputs APR Override'!U7) -> 0.83 | V7: =IF('Inputs APR Override'!V7="",'Inputs APR'!V7,'Inputs APR Override'!V7) -> 1.34 | W7: =IF('Inputs APR Override'!W7="",'Inputs APR'!W7,'Inputs APR Override'!W7) -> 1.34
A8: 4 | B8: NES | C8: =IF('Inputs APR Override'!C8="",'Inputs APR'!C8,'Inputs APR Override'!C8) -> WRMP scheme 1 | D8: =IF('Inputs APR Override'!D8="",'Inputs APR'!D8,'Inputs APR Override'!D8) -> Demand side | E8: =IF('Inputs APR Override'!E8="",'Inputs APR'!E8,'Inputs APR Override'!E8) -> 2023-24 | F8: =IF('Inputs APR Override'!F8="",'Inputs APR'!F8,'Inputs APR Override'!F8) -> 0 | G8: =IF('Inputs APR Override'!G8="",'Inputs APR'!G8,'Inputs APR Override'!G8) -> 0 | H8: =IF('Inputs APR Override'!H8="",'Inputs APR'!H8,'Inputs APR Override'!H8) -> 0 | I8: =IF('Inputs APR Override'!I8="",'Inputs APR'!I8,'Inputs APR Override'!I8) -> 0 | J8: =IF('Inputs APR Override'!J8="",'Inputs APR'!J8,'Inputs APR Override'!J8) -> 0 | K8: =IF('Inputs APR Override'!K8="",'Inputs APR'!K8,'Inputs APR Override'!K8) -> 0 | L8: =IF('Inputs APR Override'!L8="",'Inputs APR'!L8,'Inputs APR Override'!L8) -> 0.62 | M8: =IF('Inputs APR Override'!M8="",'Inputs APR'!M8,'Inputs APR Override'!M8) -> 1.137 | N8: =IF('Inputs APR Override'!N8="",'Inputs APR'!N8,'Inputs APR Override'!N8) -> 1.181 | O8: =IF('Inputs APR Override'!O8="",'Inputs APR'!O8,'Inputs APR Override'!O8) -> 1.563 | P8: =IF('Inputs APR Override'!P8="",'Inputs APR'!P8,'Inputs APR Override'!P8) -> 1.643 | Q8: =IF('Inputs APR Override'!Q8="",'Inputs APR'!Q8,'Inputs APR Override'!Q8) -> 0 | R8: =IF('Inputs APR Override'!R8="",'Inputs APR'!R8,'Inputs APR Override'!R8) -> 0.33 | S8: =IF('Inputs APR Override'!S8="",'Inputs APR'!S8,'Inputs APR Override'!S8) -> 1.01 | T8: =IF('Inputs APR Override'!T8="",'Inputs APR'!T8,'Inputs APR Override'!T8) -> 2.3 | U8: =IF('Inputs APR Override'!U8="",'Inputs APR'!U8,'Inputs APR Override'!U8) -> 3.65 | V8: =IF('Inputs APR Override'!V8="",'Inputs APR'!V8,'Inputs APR Override'!V8) -> 5.26 | W8: =IF('Inputs APR Override'!W8="",'Inputs APR'!W8,'Inputs APR Override'!W8) -> 5.26
A9: 5 | B9: PRT | C9: =IF('Inputs APR Override'!C9="",'Inputs APR'!C9,'Inputs APR Override'!C9) -> Household water efficiency programme | D9: =IF('Inputs APR Override'!D9="",'Inputs APR'!D9,'Inputs APR Override'!D9) -> Demand side | E9: =IF('Inputs APR Override'!E9="",'Inputs APR'!E9,'Inputs APR Override'!E9) -> 2020-21 | F9: =IF('Inputs APR Override'!F9="",'Inputs APR'!F9,'Inputs APR Override'!F9) -> 0 | G9: =IF('Inputs APR Override'!G9="",'Inputs APR'!G9,'Inputs APR Override'!G9) -> 0 | H9: =IF('Inputs APR Override'!H9="",'Inputs APR'!H9,'Inputs APR Override'!H9) -> 0 | I9: =IF('Inputs APR Override'!I9="",'Inputs APR'!I9,'Inputs APR Override'!I9) -> 0 | J9: =IF('Inputs APR Override'!J9="",'Inputs APR'!J9,'Inputs APR Override'!J9) -> 0 | K9: =IF('Inputs APR Override'!K9="",'Inputs APR'!K9,'Inputs APR Override'!K9) -> 0 | L9: =IF('Inputs APR Override'!L9="",'Inputs APR'!L9,'Inputs APR Override'!L9) -> 0.032 | M9: =IF('Inputs APR Override'!M9="",'Inputs APR'!M9,'Inputs APR Override'!M9) -> 0.076 | N9: =IF('Inputs APR Override'!N9="",'Inputs APR'!N9,'Inputs APR Override'!N9) -> 0.12 | O9: =IF('Inputs APR Override'!O9="",'Inputs APR'!O9,'Inputs APR Override'!O9) -> 0.054 | P9: =IF('Inputs APR Override'!P9="",'Inputs APR'!P9,'Inputs APR Override'!P9) -> 0.054 | Q9: =IF('Inputs APR Override'!Q9="",'Inputs APR'!Q9,'Inputs APR Override'!Q9) -> 0 | R9: =IF('Inputs APR Override'!R9="",'Inputs APR'!R9,'Inputs APR Override'!R9) -> 0 | S9: =IF('Inputs APR Override'!S9="",'Inputs APR'!S9,'Inputs APR Override'!S9) -> 0 | T9: =IF('Inputs APR Override'!T9="",'Inputs APR'!T9,'Inputs APR Override'!T9) -> 0 | U9: =IF('Inputs APR Override'!U9="",'Inputs APR'!U9,'Inputs APR Override'!U9) -> 0.01 | V9: =IF('Inputs APR Override'!V9="",'Inputs APR'!V9,'Inputs APR Override'!V9) -> 0.07 | W9: =IF('Inputs APR Override'!W9="",'Inputs APR'!W9,'Inputs APR Override'!W9) -> 0.07
A10: 6 | B10: PRT | C10: =IF('Inputs APR Override'!C10="",'Inputs APR'!C10,'Inputs APR Override'!C10) -> Metering on change of occupancy | D10: =IF('Inputs APR Override'!D10="",'Inputs APR'!D10,'Inputs APR Override'!D10) -> Demand side | E10: =IF('Inputs APR Override'!E10="",'Inputs APR'!E10,'Inputs APR Override'!E10) -> 2021-22 | F10: =IF('Inputs APR Override'!F10="",'Inputs APR'!F10,'Inputs APR Override'!F10) -> 0 | G10: =IF('Inputs APR Override'!G10="",'Inputs APR'!G10,'Inputs APR Override'!G10) -> 0 | H10: =IF('Inputs APR Override'!H10="",'Inputs APR'!H10,'Inputs APR Override'!H10) -> 0.307 | I10: =IF('Inputs APR Override'!I10="",'Inputs APR'!I10,'Inputs APR Override'!I10) -> 1 | J10: =IF('Inputs APR Override'!J10="",'Inputs APR'!J10,'Inputs APR Override'!J10) -> 1 | K10: =IF('Inputs APR Override'!K10="",'Inputs APR'!K10,'Inputs APR Override'!K10) -> 0 | L10: =IF('Inputs APR Override'!L10="",'Inputs APR'!L10,'Inputs APR Override'!L10) -> 0 | M10: =IF('Inputs APR Override'!M10="",'Inputs APR'!M10,'Inputs APR Override'!M10) -> 0 | N10: =IF('Inputs APR Override'!N10="",'Inputs APR'!N10,'Inputs APR Override'!N10) -> 0 | O10: =IF('Inputs APR Override'!O10="",'Inputs APR'!O10,'Inputs APR Override'!O10) -> 0 | P10: =IF('Inputs APR Override'!P10="",'Inputs APR'!P10,'Inputs APR Override'!P10) -> 0 | Q10: =IF('Inputs APR Override'!Q10="",'Inputs APR'!Q10,'Inputs APR Override'!Q10) -> -5 | R10: =IF('Inputs APR Override'!R10="",'Inputs APR'!R10,'Inputs APR Override'!R10) -> 0 | S10: =IF('Inputs APR Override'!S10="",'Inputs APR'!S10,'Inputs APR Override'!S10) -> 2.131913408 | T10: =IF('Inputs APR Override'!T10="",'Inputs APR'!T10,'Inputs APR Override'!T10) -> 4.98603352 | U10: =IF('Inputs APR Override'!U10="",'Inputs APR'!U10,'Inputs APR Override'!U10) -> 5 | V10: =IF('Inputs APR Override'!V10="",'Inputs APR'!V10,'Inputs APR Override'!V10) -> 5 | W10: =IF('Inputs APR Override'!W10="",'Inputs APR'!W10,'Inputs APR Override'!W10) -> 5
A11: 7 | B11: PRT | C11: =IF('Inputs APR Override'!C11="",'Inputs APR'!C11,'Inputs APR Override'!C11) -> Voids Metering | D11: =IF('Inputs APR Override'!D11="",'Inputs APR'!D11,'Inputs APR Override'!D11) -> Demand side | E11: =IF('Inputs APR Override'!E11="",'Inputs APR'!E11,'Inputs APR Override'!E11) -> 2022-23 | F11: =IF('Inputs APR Override'!F11="",'Inputs APR'!F11,'Inputs APR Override'!F11) -> 0 | G11: =IF('Inputs APR Override'!G11="",'Inputs APR'!G11,'Inputs APR Override'!G11) -> 0 | H11: =IF('Inputs APR Override'!H11="",'Inputs APR'!H11,'Inputs APR Override'!H11) -> 0 | I11: =IF('Inputs APR Override'!I11="",'Inputs APR'!I11,'Inputs APR Override'!I11) -> 0 | J11: =IF('Inputs APR Override'!J11="",'Inputs APR'!J11,'Inputs APR Override'!J11) -> 0 | K11: =IF('Inputs APR Override'!K11="",'Inputs APR'!K11,'Inputs APR Override'!K11) -> 0 | L11: =IF('Inputs APR Override'!L11="",'Inputs APR'!L11,'Inputs APR Override'!L11) -> 0 | M11: =IF('Inputs APR Override'!M11="",'Inputs APR'!M11,'Inputs APR Override'!M11) -> 0 | N11: =IF('Inputs APR Override'!N11="",'Inputs APR'!N11,'Inputs APR Override'!N11) -> 0 | O11: =IF('Inputs APR Override'!O11="",'Inputs APR'!O11,'Inputs APR Override'!O11) -> 0 | P11: =IF('Inputs APR Override'!P11="",'Inputs APR'!P11,'Inputs APR Override'!P11) -> 0 | Q11: =IF('Inputs APR Override'!Q11="",'Inputs APR'!Q11,'Inputs APR Override'!Q11) -> -0.291 | R11: =IF('Inputs APR Override'!R11="",'Inputs APR'!R11,'Inputs APR Override'!R11) -> 0 | S11: =IF('Inputs APR Override'!S11="",'Inputs APR'!S11,'Inputs APR Override'!S11) -> 0 | T11: =IF('Inputs APR Override'!T11="",'Inputs APR'!T11,'Inputs APR Override'!T11) -> 0.09964912281 | U11: =IF('Inputs APR Override'!U11="",'Inputs APR'!U11,'Inputs APR Override'!U11) -> 0.1998245614 | V11: =IF('Inputs APR Override'!V11="",'Inputs APR'!V11,'Inputs APR Override'!V11) -> 0.3 | W11: =IF('Inputs APR Override'!W11="",'Inputs APR'!W11,'Inputs APR Override'!W11) -> 0.3
A12: 8 | B12: PRT | C12: =IF('Inputs APR Override'!C12="",'Inputs APR'!C12,'Inputs APR Override'!C12) -> Water saving devices - Spray taps | D12: =IF('Inputs APR Override'!D12="",'Inputs APR'!D12,'Inputs APR Override'!D12) -> Demand side | E12: =IF('Inputs APR Override'!E12="",'Inputs APR'!E12,'Inputs APR Override'!E12) -> 2020-21 | F12: =IF('Inputs APR Override'!F12="",'Inputs APR'!F12,'Inputs APR Override'!F12) -> 0 | G12: =IF('Inputs APR Override'!G12="",'Inputs APR'!G12,'Inputs APR Override'!G12) -> 0 | H12: =IF('Inputs APR Override'!H12="",'Inputs APR'!H12,'Inputs APR Override'!H12) -> 0 | I12: =IF('Inputs APR Override'!I12="",'Inputs APR'!I12,'Inputs APR Override'!I12) -> 0 | J12: =IF('Inputs APR Override'!J12="",'Inputs APR'!J12,'Inputs APR Override'!J12) -> 0 | K12: =IF('Inputs APR Override'!K12="",'Inputs APR'!K12,'Inputs APR Override'!K12) -> 0 | L12: =IF('Inputs APR Override'!L12="",'Inputs APR'!L12,'Inputs APR Override'!L12) -> 0.014 | M12: =IF('Inputs APR Override'!M12="",'Inputs APR'!M12,'Inputs APR Override'!M12) -> 0.025 | N12: =IF('Inputs APR Override'!N12="",'Inputs APR'!N12,'Inputs APR Override'!N12) -> 0.025 | O12: =IF('Inputs APR Override'!O12="",'Inputs APR'!O12,'Inputs APR Override'!O12) -> 0.015 | P12: =IF('Inputs APR Override'!P12="",'Inputs APR'!P12,'Inputs APR Override'!P12) -> 0.015 | Q12: =IF('Inputs APR Override'!Q12="",'Inputs APR'!Q12,'Inputs APR Override'!Q12) -> 0 | R12: =IF('Inputs APR Override'!R12="",'Inputs APR'!R12,'Inputs APR Override'!R12) -> 0 | S12: =IF('Inputs APR Override'!S12="",'Inputs APR'!S12,'Inputs APR Override'!S12) -> 0 | T12: =IF('Inputs APR Override'!T12="",'Inputs APR'!T12,'Inputs APR Override'!T12) -> 0 | U12: =IF('Inputs APR Override'!U12="",'Inputs APR'!U12,'Inputs APR Override'!U12) -> 0 | V12: =IF('Inputs APR Override'!V12="",'Inputs APR'!V12,'Inputs APR Override'!V12) -> 0 | W12: =IF('Inputs APR Override'!W12="",'Inputs APR'!W12,'Inputs APR Override'!W12) -> 0
A13: 9 | B13: PRT | C13: =IF('Inputs APR Override'!C13="",'Inputs APR'!C13,'Inputs APR Override'!C13) -> Water saving devices - trigger nozzles for hoses | D13: =IF('Inputs APR Override'!D13="",'Inputs APR'!D13,'Inputs APR Override'!D13) -> Demand side | E13: =IF('Inputs APR Override'!E13="",'Inputs APR'!E13,'Inputs APR Override'!E13) -> 2022-23 | F13: =IF('Inputs APR Override'!F13="",'Inputs APR'!F13,'Inputs APR Override'!F13) -> 0 | G13: =IF('Inputs APR Override'!G13="",'Inputs APR'!G13,'Inputs APR Override'!G13) -> 0 | H13: =IF('Inputs APR Override'!H13="",'Inputs APR'!H13,'Inputs APR Override'!H13) -> 0 | I13: =IF('Inputs APR Override'!I13="",'Inputs APR'!I13,'Inputs APR Override'!I13) -> 0 | J13: =IF('Inputs APR Override'!J13="",'Inputs APR'!J13,'Inputs APR Override'!J13) -> 0 | K13: =IF('Inputs APR Override'!K13="",'Inputs APR'!K13,'Inputs APR Override'!K13) -> 0 | L13: =IF('Inputs APR Override'!L13="",'Inputs APR'!L13,'Inputs APR Override'!L13) -> 0 | M13: =IF('Inputs APR Override'!M13="",'Inputs APR'!M13,'Inputs APR Override'!M13) -> 0 | N13: =IF('Inputs APR Override'!N13="",'Inputs APR'!N13,'Inputs APR Override'!N13) -> 0 | O13: =IF('Inputs APR Override'!O13="",'Inputs APR'!O13,'Inputs APR Override'!O13) -> 0 | P13: =IF('Inputs APR Override'!P13="",'Inputs APR'!P13,'Inputs APR Override'!P13) -> 0 | Q13: =IF('Inputs APR Override'!Q13="",'Inputs APR'!Q13,'Inputs APR Override'!Q13) -> 0 | R13: =IF('Inputs APR Override'!R13="",'Inputs APR'!R13,'Inputs APR Override'!R13) -> 0 | S13: =IF('Inputs APR Override'!S13="",'Inputs APR'!S13,'Inputs APR Override'!S13) -> 0 | T13: =IF('Inputs APR Override'!T13="",'Inputs APR'!T13,'Inputs APR Override'!T13) -> 0 | U13: =IF('Inputs APR Override'!U13="",'Inputs APR'!U13,'Inputs APR Override'!U13) -> 0 | V13: =IF('Inputs APR Override'!V13="",'Inputs APR'!V13,'Inputs APR Override'!V13) -> 0 | W13: =IF('Inputs APR Override'!W13="",'Inputs APR'!W13,'Inputs APR Override'!W13) -> 0
A14: 10 | B14: PRT | C14: =IF('Inputs APR Override'!C14="",'Inputs APR'!C14,'Inputs APR Override'!C14) -> Smart Meter MNFR Trial | D14: =IF('Inputs APR Override'!D14="",'Inputs APR'!D14,'Inputs APR Override'!D14) -> Demand side | E14: =IF('Inputs APR Override'!E14="",'Inputs APR'!E14,'Inputs APR Override'!E14) -> 2020-21 | F14: =IF('Inputs APR Override'!F14="",'Inputs APR'!F14,'Inputs APR Override'!F14) -> 0 | G14: =IF('Inputs APR Override'!G14="",'Inputs APR'!G14,'Inputs APR Override'!G14) -> 0.01 | H14: =IF('Inputs APR Override'!H14="",'Inputs APR'!H14,'Inputs APR Override'!H14) -> 0.002 | I14: =IF('Inputs APR Override'!I14="",'Inputs APR'!I14,'Inputs APR Override'!I14) -> 0 | J14: =IF('Inputs APR Override'!J14="",'Inputs APR'!J14,'Inputs APR Override'!J14) -> 0 | K14: =IF('Inputs APR Override'!K14="",'Inputs APR'!K14,'Inputs APR Override'!K14) -> 6.184 | L14: =IF('Inputs APR Override'!L14="",'Inputs APR'!L14,'Inputs APR Override'!L14) -> 0 | M14: =IF('Inputs APR Override'!M14="",'Inputs APR'!M14,'Inputs APR Override'!M14) -> 0 | N14: =IF('Inputs APR Override'!N14="",'Inputs APR'!N14,'Inputs APR Override'!N14) -> 0 | O14: =IF('Inputs APR Override'!O14="",'Inputs APR'!O14,'Inputs APR Override'!O14) -> 0 | P14: =IF('Inputs APR Override'!P14="",'Inputs APR'!P14,'Inputs APR Override'!P14) -> 0 | Q14: =IF('Inputs APR Override'!Q14="",'Inputs APR'!Q14,'Inputs APR Override'!Q14) -> 0 | R14: =IF('Inputs APR Override'!R14="",'Inputs APR'!R14,'Inputs APR Override'!R14) -> 0.0007233273056 | S14: =IF('Inputs APR Override'!S14="",'Inputs APR'!S14,'Inputs APR Override'!S14) -> 0.001265822785 | T14: =IF('Inputs APR Override'!T14="",'Inputs APR'!T14,'Inputs APR Override'!T14) -> 0.001446654611 | U14: =IF('Inputs APR Override'!U14="",'Inputs APR'!U14,'Inputs APR Override'!U14) -> 0.02572332731 | V14: =IF('Inputs APR Override'!V14="",'Inputs APR'!V14,'Inputs APR Override'!V14) -> 0.05 | W14: =IF('Inputs APR Override'!W14="",'Inputs APR'!W14,'Inputs APR Override'!W14) -> 0.05
A15: 11 | B15: PRT | C15: =IF('Inputs APR Override'!C15="",'Inputs APR'!C15,'Inputs APR Override'!C15) -> Mandatory Restraint | D15: =IF('Inputs APR Override'!D15="",'Inputs APR'!D15,'Inputs APR Override'!D15) -> Demand side | E15: =IF('Inputs APR Override'!E15="",'Inputs APR'!E15,'Inputs APR Override'!E15) -> 2022-23 | F15: =IF('Inputs APR Override'!F15="",'Inputs APR'!F15,'Inputs APR Override'!F15) -> 0 | G15: =IF('Inputs APR Override'!G15="",'Inputs APR'!G15,'Inputs APR Override'!G15) -> 0 | H15: =IF('Inputs APR Override'!H15="",'Inputs APR'!H15,'Inputs APR Override'!H15) -> 0 | I15: =IF('Inputs APR Override'!I15="",'Inputs APR'!I15,'Inputs APR Override'!I15) -> 0 | J15: =IF('Inputs APR Override'!J15="",'Inputs APR'!J15,'Inputs APR Override'!J15) -> 0.374 | K15: =IF('Inputs APR Override'!K15="",'Inputs APR'!K15,'Inputs APR Override'!K15) -> 0.343 | L15: =IF('Inputs APR Override'!L15="",'Inputs APR'!L15,'Inputs APR Override'!L15) -> 0 | M15: =IF('Inputs APR Override'!M15="",'Inputs APR'!M15,'Inputs APR Override'!M15) -> 0 | N15: =IF('Inputs APR Override'!N15="",'Inputs APR'!N15,'Inputs APR Override'!N15) -> 0 | O15: =IF('Inputs APR Override'!O15="",'Inputs APR'!O15,'Inputs APR Override'!O15) -> 0 | P15: =IF('Inputs APR Override'!P15="",'Inputs APR'!P15,'Inputs APR Override'!P15) -> 0.167 | Q15: =IF('Inputs APR Override'!Q15="",'Inputs APR'!Q15,'Inputs APR Override'!Q15) -> 0.001 | R15: =IF('Inputs APR Override'!R15="",'Inputs APR'!R15,'Inputs APR Override'!R15) -> 0 | S15: =IF('Inputs APR Override'!S15="",'Inputs APR'!S15,'Inputs APR Override'!S15) -> 0 | T15: =IF('Inputs APR Override'!T15="",'Inputs APR'!T15,'Inputs APR Override'!T15) -> 0 | U15: =IF('Inputs APR Override'!U15="",'Inputs APR'!U15,'Inputs APR Override'!U15) -> 0 | V15: =IF('Inputs APR Override'!V15="",'Inputs APR'!V15,'Inputs APR Override'!V15) -> 8.3 | W15: =IF('Inputs APR Override'!W15="",'Inputs APR'!W15,'Inputs APR Override'!W15) -> 8.3
A16: 12 | B16: PRT | C16: =IF('Inputs APR Override'!C16="",'Inputs APR'!C16,'Inputs APR Override'!C16) -> Imposition of Drought Direction Restrictions | D16: =IF('Inputs APR Override'!D16="",'Inputs APR'!D16,'Inputs APR Override'!D16) -> Demand side | E16: =IF('Inputs APR Override'!E16="",'Inputs APR'!E16,'Inputs APR Override'!E16) -> 2022-23 | F16: =IF('Inputs APR Override'!F16="",'Inputs APR'!F16,'Inputs APR Override'!F16) -> 0 | G16: =IF('Inputs APR Override'!G16="",'Inputs APR'!G16,'Inputs APR Override'!G16) -> 0 | H16: =IF('Inputs APR Override'!H16="",'Inputs APR'!H16,'Inputs APR Override'!H16) -> 0 | I16: =IF('Inputs APR Override'!I16="",'Inputs APR'!I16,'Inputs APR Override'!I16) -> 0 | J16: =IF('Inputs APR Override'!J16="",'Inputs APR'!J16,'Inputs APR Override'!J16) -> 0.187 | K16: =IF('Inputs APR Override'!K16="",'Inputs APR'!K16,'Inputs APR Override'!K16) -> 0.037 | L16: =IF('Inputs APR Override'!L16="",'Inputs APR'!L16,'Inputs APR Override'!L16) -> 0 | M16: =IF('Inputs APR Override'!M16="",'Inputs APR'!M16,'Inputs APR Override'!M16) -> 0 | N16: =IF('Inputs APR Override'!N16="",'Inputs APR'!N16,'Inputs APR Override'!N16) -> 0 | O16: =IF('Inputs APR Override'!O16="",'Inputs APR'!O16,'Inputs APR Override'!O16) -> 0 | P16: =IF('Inputs APR Override'!P16="",'Inputs APR'!P16,'Inputs APR Override'!P16) -> 0.143 | Q16: =IF('Inputs APR Override'!Q16="",'Inputs APR'!Q16,'Inputs APR Override'!Q16) -> 0.002 | R16: =IF('Inputs APR Override'!R16="",'Inputs APR'!R16,'Inputs APR Override'!R16) -> 0 | S16: =IF('Inputs APR Override'!S16="",'Inputs APR'!S16,'Inputs APR Override'!S16) -> 0 | T16: =IF('Inputs APR Override'!T16="",'Inputs APR'!T16,'Inputs APR Override'!T16) -> 0 | U16: =IF('Inputs APR Override'!U16="",'Inputs APR'!U16,'Inputs APR Override'!U16) -> 0 | V16: =IF('Inputs APR Override'!V16="",'Inputs APR'!V16,'Inputs APR Override'!V16) -> 8.1 | W16: =IF('Inputs APR Override'!W16="",'Inputs APR'!W16,'Inputs APR Override'!W16) -> 8.1
A17: 13 | B17: PRT | C17: =IF('Inputs APR Override'!C17="",'Inputs APR'!C17,'Inputs APR Override'!C17) -> Subsidy to customers that purchase water efficient appliances | D17: =IF('Inputs APR Override'!D17="",'Inputs APR'!D17,'Inputs APR Override'!D17) -> Demand side | E17: =IF('Inputs APR Override'!E17="",'Inputs APR'!E17,'Inputs APR Override'!E17) -> 2022-23 | F17: =IF('Inputs APR Override'!F17="",'Inputs APR'!F17,'Inputs APR Override'!F17) -> 0 | G17: =IF('Inputs APR Override'!G17="",'Inputs APR'!G17,'Inputs APR Override'!G17) -> 0 | H17: =IF('Inputs APR Override'!H17="",'Inputs APR'!H17,'Inputs APR Override'!H17) -> 0 | I17: =IF('Inputs APR Override'!I17="",'Inputs APR'!I17,'Inputs APR Override'!I17) -> 0 | J17: =IF('Inputs APR Override'!J17="",'Inputs APR'!J17,'Inputs APR Override'!J17) -> 0 | K17: =IF('Inputs APR Override'!K17="",'Inputs APR'!K17,'Inputs APR Override'!K17) -> 0 | L17: =IF('Inputs APR Override'!L17="",'Inputs APR'!L17,'Inputs APR Override'!L17) -> 0 | M17: =IF('Inputs APR Override'!M17="",'Inputs APR'!M17,'Inputs APR Override'!M17) -> 0 | N17: =IF('Inputs APR Override'!N17="",'Inputs APR'!N17,'Inputs APR Override'!N17) -> 0 | O17: =IF('Inputs APR Override'!O17="",'Inputs APR'!O17,'Inputs APR Override'!O17) -> 0 | P17: =IF('Inputs APR Override'!P17="",'Inputs APR'!P17,'Inputs APR Override'!P17) -> 0 | Q17: =IF('Inputs APR Override'!Q17="",'Inputs APR'!Q17,'Inputs APR Override'!Q17) -> 0 | R17: =IF('Inputs APR Override'!R17="",'Inputs APR'!R17,'Inputs APR Override'!R17) -> 0 | S17: =IF('Inputs APR Override'!S17="",'Inputs APR'!S17,'Inputs APR Override'!S17) -> 0 | T17: =IF('Inputs APR Override'!T17="",'Inputs APR'!T17,'Inputs APR Override'!T17) -> 0 | U17: =IF('Inputs APR Override'!U17="",'Inputs APR'!U17,'Inputs APR Override'!U17) -> 0 | V17: =IF('Inputs APR Override'!V17="",'Inputs APR'!V17,'Inputs APR Override'!V17) -> 0 | W17: =IF('Inputs APR Override'!W17="",'Inputs APR'!W17,'Inputs APR Override'!W17) -> 0
A18: 14 | B18: PRT | C18: =IF('Inputs APR Override'!C18="",'Inputs APR'!C18,'Inputs APR Override'!C18) -> Water saving devices - Retrofitting existing toilets | D18: =IF('Inputs APR Override'!D18="",'Inputs APR'!D18,'Inputs APR Override'!D18) -> Demand side | E18: =IF('Inputs APR Override'!E18="",'Inputs APR'!E18,'Inputs APR Override'!E18) -> 2022-23 | F18: =IF('Inputs APR Override'!F18="",'Inputs APR'!F18,'Inputs APR Override'!F18) -> 0 | G18: =IF('Inputs APR Override'!G18="",'Inputs APR'!G18,'Inputs APR Override'!G18) -> 0 | H18: =IF('Inputs APR Override'!H18="",'Inputs APR'!H18,'Inputs APR Override'!H18) -> 0 | I18: =IF('Inputs APR Override'!I18="",'Inputs APR'!I18,'Inputs APR Override'!I18) -> 0 | J18: =IF('Inputs APR Override'!J18="",'Inputs APR'!J18,'Inputs APR Override'!J18) -> 0 | K18: =IF('Inputs APR Override'!K18="",'Inputs APR'!K18,'Inputs APR Override'!K18) -> 0 | L18: =IF('Inputs APR Override'!L18="",'Inputs APR'!L18,'Inputs APR Override'!L18) -> 0 | M18: =IF('Inputs APR Override'!M18="",'Inputs APR'!M18,'Inputs APR Override'!M18) -> 0 | N18: =IF('Inputs APR Override'!N18="",'Inputs APR'!N18,'Inputs APR Override'!N18) -> 0 | O18: =IF('Inputs APR Override'!O18="",'Inputs APR'!O18,'Inputs APR Override'!O18) -> 0 | P18: =IF('Inputs APR Override'!P18="",'Inputs APR'!P18,'Inputs APR Override'!P18) -> 0 | Q18: =IF('Inputs APR Override'!Q18="",'Inputs APR'!Q18,'Inputs APR Override'!Q18) -> 0 | R18: =IF('Inputs APR Override'!R18="",'Inputs APR'!R18,'Inputs APR Override'!R18) -> 0 | S18: =IF('Inputs APR Override'!S18="",'Inputs APR'!S18,'Inputs APR Override'!S18) -> 0 | T18: =IF('Inputs APR Override'!T18="",'Inputs APR'!T18,'Inputs APR Override'!T18) -> 0 | U18: =IF('Inputs APR Override'!U18="",'Inputs APR'!U18,'Inputs APR Override'!U18) -> 0 | V18: =IF('Inputs APR Override'!V18="",'Inputs APR'!V18,'Inputs APR Override'!V18) -> 0 | W18: =IF('Inputs APR Override'!W18="",'Inputs APR'!W18,'Inputs APR Override'!W18) -> 0
A19: 15 | B19: SEW | C19: =IF('Inputs APR Override'!C19="",'Inputs APR'!C19,'Inputs APR Override'!C19) -> Water Efficiency | D19: =IF('Inputs APR Override'!D19="",'Inputs APR'!D19,'Inputs APR Override'!D19) -> Demand side | E19: =IF('Inputs APR Override'!E19="",'Inputs APR'!E19,'Inputs APR Override'!E19) -> 2021 | F19: =IF('Inputs APR Override'!F19="",'Inputs APR'!F19,'Inputs APR Override'!F19) -> 0 | G19: =IF('Inputs APR Override'!G19="",'Inputs APR'!G19,'Inputs APR Override'!G19) -> 0 | H19: =IF('Inputs APR Override'!H19="",'Inputs APR'!H19,'Inputs APR Override'!H19) -> 0 | I19: =IF('Inputs APR Override'!I19="",'Inputs APR'!I19,'Inputs APR Override'!I19) -> 0 | J19: =IF('Inputs APR Override'!J19="",'Inputs APR'!J19,'Inputs APR Override'!J19) -> 0 | K19: =IF('Inputs APR Override'!K19="",'Inputs APR'!K19,'Inputs APR Override'!K19) -> 0 | L19: =IF('Inputs APR Override'!L19="",'Inputs APR'!L19,'Inputs APR Override'!L19) -> 0.475 | M19: =IF('Inputs APR Override'!M19="",'Inputs APR'!M19,'Inputs APR Override'!M19) -> 0.422 | N19: =IF('Inputs APR Override'!N19="",'Inputs APR'!N19,'Inputs APR Override'!N19) -> 1.108 | O19: =IF('Inputs APR Override'!O19="",'Inputs APR'!O19,'Inputs APR Override'!O19) -> 0.551 | P19: =IF('Inputs APR Override'!P19="",'Inputs APR'!P19,'Inputs APR Override'!P19) -> 1.31 | Q19: =IF('Inputs APR Override'!Q19="",'Inputs APR'!Q19,'Inputs APR Override'!Q19) -> 1.31 | R19: =IF('Inputs APR Override'!R19="",'Inputs APR'!R19,'Inputs APR Override'!R19) -> 1.03 | S19: =IF('Inputs APR Override'!S19="",'Inputs APR'!S19,'Inputs APR Override'!S19) -> 3.34 | T19: =IF('Inputs APR Override'!T19="",'Inputs APR'!T19,'Inputs APR Override'!T19) -> 6.13 | U19: =IF('Inputs APR Override'!U19="",'Inputs APR'!U19,'Inputs APR Override'!U19) -> 7.15 | V19: =IF('Inputs APR Override'!V19="",'Inputs APR'!V19,'Inputs APR Override'!V19) -> 14 | W19: =IF('Inputs APR Override'!W19="",'Inputs APR'!W19,'Inputs APR Override'!W19) -> 56.09
A20: 16 | B20: SRN | C20: =IF('Inputs APR Override'!C20="",'Inputs APR'!C20,'Inputs APR Override'!C20) -> Target 100 | D20: =IF('Inputs APR Override'!D20="",'Inputs APR'!D20,'Inputs APR Override'!D20) -> Demand side | E20: =IF('Inputs APR Override'!E20="",'Inputs APR'!E20,'Inputs APR Override'!E20) -> 2022-23 | F20: =IF('Inputs APR Override'!F20="",'Inputs APR'!F20,'Inputs APR Override'!F20) -> 0 | G20: =IF('Inputs APR Override'!G20="",'Inputs APR'!G20,'Inputs APR Override'!G20) -> 0 | H20: =IF('Inputs APR Override'!H20="",'Inputs APR'!H20,'Inputs APR Override'!H20) -> 0 | I20: =IF('Inputs APR Override'!I20="",'Inputs APR'!I20,'Inputs APR Override'!I20) -> 0 | J20: =IF('Inputs APR Override'!J20="",'Inputs APR'!J20,'Inputs APR Override'!J20) -> 0 | K20: =IF('Inputs APR Override'!K20="",'Inputs APR'!K20,'Inputs APR Override'!K20) -> 0 | L20: =IF('Inputs APR Override'!L20="",'Inputs APR'!L20,'Inputs APR Override'!L20) -> 0.18 | M20: =IF('Inputs APR Override'!M20="",'Inputs APR'!M20,'Inputs APR Override'!M20) -> 2.841 | N20: =IF('Inputs APR Override'!N20="",'Inputs APR'!N20,'Inputs APR Override'!N20) -> 2.283 | O20: =IF('Inputs APR Override'!O20="",'Inputs APR'!O20,'Inputs APR Override'!O20) -> 3.015 | P20: =IF('Inputs APR Override'!P20="",'Inputs APR'!P20,'Inputs APR Override'!P20) -> 2.944 | Q20: =IF('Inputs APR Override'!Q20="",'Inputs APR'!Q20,'Inputs APR Override'!Q20) -> 0 | R20: =IF('Inputs APR Override'!R20="",'Inputs APR'!R20,'Inputs APR Override'!R20) -> 0 | S20: =IF('Inputs APR Override'!S20="",'Inputs APR'!S20,'Inputs APR Override'!S20) -> 0 | T20: =IF('Inputs APR Override'!T20="",'Inputs APR'!T20,'Inputs APR Override'!T20) -> 1.67 | U20: =IF('Inputs APR Override'!U20="",'Inputs APR'!U20,'Inputs APR Override'!U20) -> 3.33 | V20: =IF('Inputs APR Override'!V20="",'Inputs APR'!V20,'Inputs APR Override'!V20) -> 5.02 | W20: =IF('Inputs APR Override'!W20="",'Inputs APR'!W20,'Inputs APR Override'!W20) -> 5.02
A21: 17 | B21: SSC | C21: =IF('Inputs APR Override'!C21="",'Inputs APR'!C21,'Inputs APR Override'!C21) -> Developer Incentive - SST | D21: =IF('Inputs APR Override'!D21="",'Inputs APR'!D21,'Inputs APR Override'!D21) -> Demand side | E21: =IF('Inputs APR Override'!E21="",'Inputs APR'!E21,'Inputs APR Override'!E21) -> 2021-22 | F21: =IF('Inputs APR Override'!F21="",'Inputs APR'!F21,'Inputs APR Override'!F21) -> 0 | G21: =IF('Inputs APR Override'!G21="",'Inputs APR'!G21,'Inputs APR Override'!G21) -> 0 | H21: =IF('Inputs APR Override'!H21="",'Inputs APR'!H21,'Inputs APR Override'!H21) -> 0 | I21: =IF('Inputs APR Override'!I21="",'Inputs APR'!I21,'Inputs APR Override'!I21) -> 0 | J21: =IF('Inputs APR Override'!J21="",'Inputs APR'!J21,'Inputs APR Override'!J21) -> 0 | K21: =IF('Inputs APR Override'!K21="",'Inputs APR'!K21,'Inputs APR Override'!K21) -> 0 | L21: =IF('Inputs APR Override'!L21="",'Inputs APR'!L21,'Inputs APR Override'!L21) -> 0 | M21: =IF('Inputs APR Override'!M21="",'Inputs APR'!M21,'Inputs APR Override'!M21) -> 0 | N21: =IF('Inputs APR Override'!N21="",'Inputs APR'!N21,'Inputs APR Override'!N21) -> 0 | O21: =IF('Inputs APR Override'!O21="",'Inputs APR'!O21,'Inputs APR Override'!O21) -> 0 | P21: =IF('Inputs APR Override'!P21="",'Inputs APR'!P21,'Inputs APR Override'!P21) -> 0 | Q21: =IF('Inputs APR Override'!Q21="",'Inputs APR'!Q21,'Inputs APR Override'!Q21) -> 0 | R21: =IF('Inputs APR Override'!R21="",'Inputs APR'!R21,'Inputs APR Override'!R21) -> 0.01 | S21: =IF('Inputs APR Override'!S21="",'Inputs APR'!S21,'Inputs APR Override'!S21) -> 0.04 | T21: =IF('Inputs APR Override'!T21="",'Inputs APR'!T21,'Inputs APR Override'!T21) -> 0.05 | U21: =IF('Inputs APR Override'!U21="",'Inputs APR'!U21,'Inputs APR Override'!U21) -> 0.08 | V21: =IF('Inputs APR Override'!V21="",'Inputs APR'!V21,'Inputs APR Override'!V21) -> 0.08 | W21: =IF('Inputs APR Override'!W21="",'Inputs APR'!W21,'Inputs APR Override'!W21) -> 0.08
A22: 18 | B22: SSC | C22: =IF('Inputs APR Override'!C22="",'Inputs APR'!C22,'Inputs APR Override'!C22) -> Water saving devices - SST | D22: =IF('Inputs APR Override'!D22="",'Inputs APR'!D22,'Inputs APR Override'!D22) -> Demand side | E22: =IF('Inputs APR Override'!E22="",'Inputs APR'!E22,'Inputs APR Override'!E22) -> 2021-22 | F22: =IF('Inputs APR Override'!F22="",'Inputs APR'!F22,'Inputs APR Override'!F22) -> 0.117 | G22: =IF('Inputs APR Override'!G22="",'Inputs APR'!G22,'Inputs APR Override'!G22) -> 0.066 | H22: =IF('Inputs APR Override'!H22="",'Inputs APR'!H22,'Inputs APR Override'!H22) -> 0.134 | I22: =IF('Inputs APR Override'!I22="",'Inputs APR'!I22,'Inputs APR Override'!I22) -> 0.086 | J22: =IF('Inputs APR Override'!J22="",'Inputs APR'!J22,'Inputs APR Override'!J22) -> 0 | K22: =IF('Inputs APR Override'!K22="",'Inputs APR'!K22,'Inputs APR Override'!K22) -> 0 | L22: =IF('Inputs APR Override'!L22="",'Inputs APR'!L22,'Inputs APR Override'!L22) -> 0 | M22: =IF('Inputs APR Override'!M22="",'Inputs APR'!M22,'Inputs APR Override'!M22) -> 0 | N22: =IF('Inputs APR Override'!N22="",'Inputs APR'!N22,'Inputs APR Override'!N22) -> 0 | O22: =IF('Inputs APR Override'!O22="",'Inputs APR'!O22,'Inputs APR Override'!O22) -> 0 | P22: =IF('Inputs APR Override'!P22="",'Inputs APR'!P22,'Inputs APR Override'!P22) -> 0 | Q22: =IF('Inputs APR Override'!Q22="",'Inputs APR'!Q22,'Inputs APR Override'!Q22) -> 0 | R22: =IF('Inputs APR Override'!R22="",'Inputs APR'!R22,'Inputs APR Override'!R22) -> 0.16 | S22: =IF('Inputs APR Override'!S22="",'Inputs APR'!S22,'Inputs APR Override'!S22) -> 0.25 | T22: =IF('Inputs APR Override'!T22="",'Inputs APR'!T22,'Inputs APR Override'!T22) -> 0.74 | U22: =IF('Inputs APR Override'!U22="",'Inputs APR'!U22,'Inputs APR Override'!U22) -> 0.87 | V22: =IF('Inputs APR Override'!V22="",'Inputs APR'!V22,'Inputs APR Override'!V22) -> 0.87 | W22: =IF('Inputs APR Override'!W22="",'Inputs APR'!W22,'Inputs APR Override'!W22) -> 0.87
A23: 19 | B23: SSC | C23: =IF('Inputs APR Override'!C23="",'Inputs APR'!C23,'Inputs APR Override'!C23) -> Water saving devices - CAM | D23: =IF('Inputs APR Override'!D23="",'Inputs APR'!D23,'Inputs APR Override'!D23) -> Demand side | E23: =IF('Inputs APR Override'!E23="",'Inputs APR'!E23,'Inputs APR Override'!E23) -> 2021-22 | F23: =IF('Inputs APR Override'!F23="",'Inputs APR'!F23,'Inputs APR Override'!F23) -> 0.066 | G23: =IF('Inputs APR Override'!G23="",'Inputs APR'!G23,'Inputs APR Override'!G23) -> 0.023 | H23: =IF('Inputs APR Override'!H23="",'Inputs APR'!H23,'Inputs APR Override'!H23) -> 0.069 | I23: =IF('Inputs APR Override'!I23="",'Inputs APR'!I23,'Inputs APR Override'!I23) -> 0.037 | J23: =IF('Inputs APR Override'!J23="",'Inputs APR'!J23,'Inputs APR Override'!J23) -> 0 | K23: =IF('Inputs APR Override'!K23="",'Inputs APR'!K23,'Inputs APR Override'!K23) -> 0 | L23: =IF('Inputs APR Override'!L23="",'Inputs APR'!L23,'Inputs APR Override'!L23) -> 0 | M23: =IF('Inputs APR Override'!M23="",'Inputs APR'!M23,'Inputs APR Override'!M23) -> 0 | N23: =IF('Inputs APR Override'!N23="",'Inputs APR'!N23,'Inputs APR Override'!N23) -> 0 | O23: =IF('Inputs APR Override'!O23="",'Inputs APR'!O23,'Inputs APR Override'!O23) -> 0 | P23: =IF('Inputs APR Override'!P23="",'Inputs APR'!P23,'Inputs APR Override'!P23) -> 0 | Q23: =IF('Inputs APR Override'!Q23="",'Inputs APR'!Q23,'Inputs APR Override'!Q23) -> 0 | R23: =IF('Inputs APR Override'!R23="",'Inputs APR'!R23,'Inputs APR Override'!R23) -> 0.05 | S23: =IF('Inputs APR Override'!S23="",'Inputs APR'!S23,'Inputs APR Override'!S23) -> 0.08 | T23: =IF('Inputs APR Override'!T23="",'Inputs APR'!T23,'Inputs APR Override'!T23) -> 0.18 | U23: =IF('Inputs APR Override'!U23="",'Inputs APR'!U23,'Inputs APR Override'!U23) -> 0.5 | V23: =IF('Inputs APR Override'!V23="",'Inputs APR'!V23,'Inputs APR Override'!V23) -> 0.5 | W23: =IF('Inputs APR Override'!W23="",'Inputs APR'!W23,'Inputs APR Override'!W23) -> 0.5
A24: 20 | B24: SVE | C24: =IF('Inputs APR Override'!C24="",'Inputs APR'!C24,'Inputs APR Override'!C24) -> Demand Water efficiency | D24: =IF('Inputs APR Override'!D24="",'Inputs APR'!D24,'Inputs APR Override'!D24) -> Demand side | E24: =IF('Inputs APR Override'!E24="",'Inputs APR'!E24,'Inputs APR Override'!E24) -> 2020-2021 | F24: =IF('Inputs APR Override'!F24="",'Inputs APR'!F24,'Inputs APR Override'!F24) -> 0 | G24: =IF('Inputs APR Override'!G24="",'Inputs APR'!G24,'Inputs APR Override'!G24) -> 0 | H24: =IF('Inputs APR Override'!H24="",'Inputs APR'!H24,'Inputs APR Override'!H24) -> 0 | I24: =IF('Inputs APR Override'!I24="",'Inputs APR'!I24,'Inputs APR Override'!I24) -> 0 | J24: =IF('Inputs APR Override'!J24="",'Inputs APR'!J24,'Inputs APR Override'!J24) -> 0 | K24: =IF('Inputs APR Override'!K24="",'Inputs APR'!K24,'Inputs APR Override'!K24) -> 0 | L24: =IF('Inputs APR Override'!L24="",'Inputs APR'!L24,'Inputs APR Override'!L24) -> 0 | M24: =IF('Inputs APR Override'!M24="",'Inputs APR'!M24,'Inputs APR Override'!M24) -> 1.49 | N24: =IF('Inputs APR Override'!N24="",'Inputs APR'!N24,'Inputs APR Override'!N24) -> 3.152 | O24: =IF('Inputs APR Override'!O24="",'Inputs APR'!O24,'Inputs APR Override'!O24) -> 2.281 | P24: =IF('Inputs APR Override'!P24="",'Inputs APR'!P24,'Inputs APR Override'!P24) -> 2.285 | Q24: =IF('Inputs APR Override'!Q24="",'Inputs APR'!Q24,'Inputs APR Override'!Q24) -> 0 | R24: =IF('Inputs APR Override'!R24="",'Inputs APR'!R24,'Inputs APR Override'!R24) -> 2.98 | S24: =IF('Inputs APR Override'!S24="",'Inputs APR'!S24,'Inputs APR Override'!S24) -> 7.61 | T24: =IF('Inputs APR Override'!T24="",'Inputs APR'!T24,'Inputs APR Override'!T24) -> 14.34 | U24: =IF('Inputs APR Override'!U24="",'Inputs APR'!U24,'Inputs APR Override'!U24) -> 18.98 | V24: =IF('Inputs APR Override'!V24="",'Inputs APR'!V24,'Inputs APR Override'!V24) -> 23.68 | W24: =IF('Inputs APR Override'!W24="",'Inputs APR'!W24,'Inputs APR Override'!W24) -> 23.68
A25: 21 | B25: SVE | C25: =IF('Inputs APR Override'!C25="",'Inputs APR'!C25,'Inputs APR Override'!C25) -> Demand Water efficiency - NHH | D25: =IF('Inputs APR Override'!D25="",'Inputs APR'!D25,'Inputs APR Override'!D25) -> Supply demand balance from 2026 | E25: =IF('Inputs APR Override'!E25="",'Inputs APR'!E25,'Inputs APR Override'!E25) -> 2022-2023 | F25: =IF('Inputs APR Override'!F25="",'Inputs APR'!F25,'Inputs APR Override'!F25) -> 0 | G25: =IF('Inputs APR Override'!G25="",'Inputs APR'!G25,'Inputs APR Override'!G25) -> 0 | H25: =IF('Inputs APR Override'!H25="",'Inputs APR'!H25,'Inputs APR Override'!H25) -> 0 | I25: =IF('Inputs APR Override'!I25="",'Inputs APR'!I25,'Inputs APR Override'!I25) -> 0 | J25: =IF('Inputs APR Override'!J25="",'Inputs APR'!J25,'Inputs APR Override'!J25) -> 0 | K25: =IF('Inputs APR Override'!K25="",'Inputs APR'!K25,'Inputs APR Override'!K25) -> 0 | L25: =IF('Inputs APR Override'!L25="",'Inputs APR'!L25,'Inputs APR Override'!L25) -> 0 | M25: =IF('Inputs APR Override'!M25="",'Inputs APR'!M25,'Inputs APR Override'!M25) -> 0.06 | N25: =IF('Inputs APR Override'!N25="",'Inputs APR'!N25,'Inputs APR Override'!N25) -> 0.56 | O25: =IF('Inputs APR Override'!O25="",'Inputs APR'!O25,'Inputs APR Override'!O25) -> 0.697 | P25: =IF('Inputs APR Override'!P25="",'Inputs APR'!P25,'Inputs APR Override'!P25) -> 1.594 | Q25: =IF('Inputs APR Override'!Q25="",'Inputs APR'!Q25,'Inputs APR Override'!Q25) -> 0 | R25: =IF('Inputs APR Override'!R25="",'Inputs APR'!R25,'Inputs APR Override'!R25) -> 0 | S25: =IF('Inputs APR Override'!S25="",'Inputs APR'!S25,'Inputs APR Override'!S25) -> 0 | T25: =IF('Inputs APR Override'!T25="",'Inputs APR'!T25,'Inputs APR Override'!T25) -> 0.13 | U25: =IF('Inputs APR Override'!U25="",'Inputs APR'!U25,'Inputs APR Override'!U25) -> 0.49 | V25: =IF('Inputs APR Override'!V25="",'Inputs APR'!V25,'Inputs APR Override'!V25) -> 1 | W25: =IF('Inputs APR Override'!W25="",'Inputs APR'!W25,'Inputs APR Override'!W25) -> 1
A26: 22 | B26: SWB | C26: =IF('Inputs APR Override'!C26="",'Inputs APR'!C26,'Inputs APR Override'!C26) -> Water Efficiency | D26: =IF('Inputs APR Override'!D26="",'Inputs APR'!D26,'Inputs APR Override'!D26) -> Demand side | E26: =IF('Inputs APR Override'!E26="",'Inputs APR'!E26,'Inputs APR Override'!E26) -> 2020-21 | F26: =IF('Inputs APR Override'!F26="",'Inputs APR'!F26,'Inputs APR Override'!F26) -> 0 | G26: =IF('Inputs APR Override'!G26="",'Inputs APR'!G26,'Inputs APR Override'!G26) -> 0 | H26: =IF('Inputs APR Override'!H26="",'Inputs APR'!H26,'Inputs APR Override'!H26) -> 0.383 | I26: =IF('Inputs APR Override'!I26="",'Inputs APR'!I26,'Inputs APR Override'!I26) -> 0.229 | J26: =IF('Inputs APR Override'!J26="",'Inputs APR'!J26,'Inputs APR Override'!J26) -> 0.229 | K26: =IF('Inputs APR Override'!K26="",'Inputs APR'!K26,'Inputs APR Override'!K26) -> 0 | L26: =IF('Inputs APR Override'!L26="",'Inputs APR'!L26,'Inputs APR Override'!L26) -> 0 | M26: =IF('Inputs APR Override'!M26="",'Inputs APR'!M26,'Inputs APR Override'!M26) -> 0 | N26: =IF('Inputs APR Override'!N26="",'Inputs APR'!N26,'Inputs APR Override'!N26) -> 0.383 | O26: =IF('Inputs APR Override'!O26="",'Inputs APR'!O26,'Inputs APR Override'!O26) -> 0 | P26: =IF('Inputs APR Override'!P26="",'Inputs APR'!P26,'Inputs APR Override'!P26) -> 0 | Q26: =IF('Inputs APR Override'!Q26="",'Inputs APR'!Q26,'Inputs APR Override'!Q26) -> 0 | R26: =IF('Inputs APR Override'!R26="",'Inputs APR'!R26,'Inputs APR Override'!R26) -> 0 | S26: =IF('Inputs APR Override'!S26="",'Inputs APR'!S26,'Inputs APR Override'!S26) -> 1.27 | T26: =IF('Inputs APR Override'!T26="",'Inputs APR'!T26,'Inputs APR Override'!T26) -> 4.44 | U26: =IF('Inputs APR Override'!U26="",'Inputs APR'!U26,'Inputs APR Override'!U26) -> 4.88 | V26: =IF('Inputs APR Override'!V26="",'Inputs APR'!V26,'Inputs APR Override'!V26) -> 5.31 | W26: =IF('Inputs APR Override'!W26="",'Inputs APR'!W26,'Inputs APR Override'!W26) -> 5.31
A27: 23 | B27: SWB | C27: =IF('Inputs APR Override'!C27="",'Inputs APR'!C27,'Inputs APR Override'!C27) -> Drought Plan: demand schemes | D27: =IF('Inputs APR Override'!D27="",'Inputs APR'!D27,'Inputs APR Override'!D27) -> Demand side | E27: =IF('Inputs APR Override'!E27="",'Inputs APR'!E27,'Inputs APR Override'!E27) -> 2022-23 | F27: =IF('Inputs APR Override'!F27="",'Inputs APR'!F27,'Inputs APR Override'!F27) -> 0 | G27: =IF('Inputs APR Override'!G27="",'Inputs APR'!G27,'Inputs APR Override'!G27) -> 0 | H27: =IF('Inputs APR Override'!H27="",'Inputs APR'!H27,'Inputs APR Override'!H27) -> 0 | I27: =IF('Inputs APR Override'!I27="",'Inputs APR'!I27,'Inputs APR Override'!I27) -> 0 | J27: =IF('Inputs APR Override'!J27="",'Inputs APR'!J27,'Inputs APR Override'!J27) -> 0 | K27: =IF('Inputs APR Override'!K27="",'Inputs APR'!K27,'Inputs APR Override'!K27) -> 0 | L27: =IF('Inputs APR Override'!L27="",'Inputs APR'!L27,'Inputs APR Override'!L27) -> 0 | M27: =IF('Inputs APR Override'!M27="",'Inputs APR'!M27,'Inputs APR Override'!M27) -> 0 | N27: =IF('Inputs APR Override'!N27="",'Inputs APR'!N27,'Inputs APR Override'!N27) -> 0.798 | O27: =IF('Inputs APR Override'!O27="",'Inputs APR'!O27,'Inputs APR Override'!O27) -> 1.638 | P27: =IF('Inputs APR Override'!P27="",'Inputs APR'!P27,'Inputs APR Override'!P27) -> 1.638 | Q27: =IF('Inputs APR Override'!Q27="",'Inputs APR'!Q27,'Inputs APR Override'!Q27) -> 0 | R27: =IF('Inputs APR Override'!R27="",'Inputs APR'!R27,'Inputs APR Override'!R27) -> 0 | S27: =IF('Inputs APR Override'!S27="",'Inputs APR'!S27,'Inputs APR Override'!S27) -> 0 | T27: =IF('Inputs APR Override'!T27="",'Inputs APR'!T27,'Inputs APR Override'!T27) -> 4.32 | U27: =IF('Inputs APR Override'!U27="",'Inputs APR'!U27,'Inputs APR Override'!U27) -> 7.45 | V27: =IF('Inputs APR Override'!V27="",'Inputs APR'!V27,'Inputs APR Override'!V27) -> 17.57 | W27: =IF('Inputs APR Override'!W27="",'Inputs APR'!W27,'Inputs APR Override'!W27) -> 17.57
A28: 24 | B28: SWB | C28: =IF('Inputs APR Override'!C28="",'Inputs APR'!C28,'Inputs APR Override'!C28) -> WWTW consumption reduction | D28: =IF('Inputs APR Override'!D28="",'Inputs APR'!D28,'Inputs APR Override'!D28) -> Demand side | E28: =IF('Inputs APR Override'!E28="",'Inputs APR'!E28,'Inputs APR Override'!E28) -> 2020-21 | F28: =IF('Inputs APR Override'!F28="",'Inputs APR'!F28,'Inputs APR Override'!F28) -> 0 | G28: =IF('Inputs APR Override'!G28="",'Inputs APR'!G28,'Inputs APR Override'!G28) -> 0 | H28: =IF('Inputs APR Override'!H28="",'Inputs APR'!H28,'Inputs APR Override'!H28) -> 0 | I28: =IF('Inputs APR Override'!I28="",'Inputs APR'!I28,'Inputs APR Override'!I28) -> 0 | J28: =IF('Inputs APR Override'!J28="",'Inputs APR'!J28,'Inputs APR Override'!J28) -> 0 | K28: =IF('Inputs APR Override'!K28="",'Inputs APR'!K28,'Inputs APR Override'!K28) -> 0 | L28: =IF('Inputs APR Override'!L28="",'Inputs APR'!L28,'Inputs APR Override'!L28) -> 0 | M28: =IF('Inputs APR Override'!M28="",'Inputs APR'!M28,'Inputs APR Override'!M28) -> 0 | N28: =IF('Inputs APR Override'!N28="",'Inputs APR'!N28,'Inputs APR Override'!N28) -> 0 | O28: =IF('Inputs APR Override'!O28="",'Inputs APR'!O28,'Inputs APR Override'!O28) -> 0 | P28: =IF('Inputs APR Override'!P28="",'Inputs APR'!P28,'Inputs APR Override'!P28) -> 0 | Q28: =IF('Inputs APR Override'!Q28="",'Inputs APR'!Q28,'Inputs APR Override'!Q28) -> 0 | R28: =IF('Inputs APR Override'!R28="",'Inputs APR'!R28,'Inputs APR Override'!R28) -> 2.31 | S28: =IF('Inputs APR Override'!S28="",'Inputs APR'!S28,'Inputs APR Override'!S28) -> 2.65 | T28: =IF('Inputs APR Override'!T28="",'Inputs APR'!T28,'Inputs APR Override'!T28) -> 2.8 | U28: =IF('Inputs APR Override'!U28="",'Inputs APR'!U28,'Inputs APR Override'!U28) -> 2.8 | V28: =IF('Inputs APR Override'!V28="",'Inputs APR'!V28,'Inputs APR Override'!V28) -> 2.8 | W28: =IF('Inputs APR Override'!W28="",'Inputs APR'!W28,'Inputs APR Override'!W28) -> 2.8
A29: 25 | B29: TMS | C29: =IF('Inputs APR Override'!C29="",'Inputs APR'!C29,'Inputs APR Override'!C29) -> Smarter Home Visits (SHV) | D29: =IF('Inputs APR Override'!D29="",'Inputs APR'!D29,'Inputs APR Override'!D29) -> Demand side | E29: =IF('Inputs APR Override'!E29="",'Inputs APR'!E29,'Inputs APR Override'!E29) -> 2021 | F29: =IF('Inputs APR Override'!F29="",'Inputs APR'!F29,'Inputs APR Override'!F29) -> 0 | G29: =IF('Inputs APR Override'!G29="",'Inputs APR'!G29,'Inputs APR Override'!G29) -> 0 | H29: =IF('Inputs APR Override'!H29="",'Inputs APR'!H29,'Inputs APR Override'!H29) -> 0 | I29: =IF('Inputs APR Override'!I29="",'Inputs APR'!I29,'Inputs APR Override'!I29) -> 0 | J29: =IF('Inputs APR Override'!J29="",'Inputs APR'!J29,'Inputs APR Override'!J29) -> 0 | K29: =IF('Inputs APR Override'!K29="",'Inputs APR'!K29,'Inputs APR Override'!K29) -> 0 | L29: =IF('Inputs APR Override'!L29="",'Inputs APR'!L29,'Inputs APR Override'!L29) -> 0.83 | M29: =IF('Inputs APR Override'!M29="",'Inputs APR'!M29,'Inputs APR Override'!M29) -> 1.637 | N29: =IF('Inputs APR Override'!N29="",'Inputs APR'!N29,'Inputs APR Override'!N29) -> 0.242 | O29: =IF('Inputs APR Override'!O29="",'Inputs APR'!O29,'Inputs APR Override'!O29) -> 0.373 | P29: =IF('Inputs APR Override'!P29="",'Inputs APR'!P29,'Inputs APR Override'!P29) -> 0.291 | Q29: =IF('Inputs APR Override'!Q29="",'Inputs APR'!Q29,'Inputs APR Override'!Q29) -> 6.03 | R29: =IF('Inputs APR Override'!R29="",'Inputs APR'!R29,'Inputs APR Override'!R29) -> 0.8 | S29: =IF('Inputs APR Override'!S29="",'Inputs APR'!S29,'Inputs APR Override'!S29) -> 2.6 | T29: =IF('Inputs APR Override'!T29="",'Inputs APR'!T29,'Inputs APR Override'!T29) -> 2.77 | U29: =IF('Inputs APR Override'!U29="",'Inputs APR'!U29,'Inputs APR Override'!U29) -> 3.09 | V29: =IF('Inputs APR Override'!V29="",'Inputs APR'!V29,'Inputs APR Override'!V29) -> 3.46 | W29: =IF('Inputs APR Override'!W29="",'Inputs APR'!W29,'Inputs APR Override'!W29) -> 15.58
A30: 26 | B30: TMS | C30: =IF('Inputs APR Override'!C30="",'Inputs APR'!C30,'Inputs APR Override'!C30) -> Smarter Business Visits (SBV) incl. wastage fixes | D30: =IF('Inputs APR Override'!D30="",'Inputs APR'!D30,'Inputs APR Override'!D30) -> Demand side | E30: =IF('Inputs APR Override'!E30="",'Inputs APR'!E30,'Inputs APR Override'!E30) -> 2021 | F30: =IF('Inputs APR Override'!F30="",'Inputs APR'!F30,'Inputs APR Override'!F30) -> 0 | G30: =IF('Inputs APR Override'!G30="",'Inputs APR'!G30,'Inputs APR Override'!G30) -> 0 | H30: =IF('Inputs APR Override'!H30="",'Inputs APR'!H30,'Inputs APR Override'!H30) -> 0 | I30: =IF('Inputs APR Override'!I30="",'Inputs APR'!I30,'Inputs APR Override'!I30) -> 0 | J30: =IF('Inputs APR Override'!J30="",'Inputs APR'!J30,'Inputs APR Override'!J30) -> 0 | K30: =IF('Inputs APR Override'!K30="",'Inputs APR'!K30,'Inputs APR Override'!K30) -> 0 | L30: =IF('Inputs APR Override'!L30="",'Inputs APR'!L30,'Inputs APR Override'!L30) -> 1.226 | M30: =IF('Inputs APR Override'!M30="",'Inputs APR'!M30,'Inputs APR Override'!M30) -> 1.445 | N30: =IF('Inputs APR Override'!N30="",'Inputs APR'!N30,'Inputs APR Override'!N30) -> 0.265 | O30: =IF('Inputs APR Override'!O30="",'Inputs APR'!O30,'Inputs APR Override'!O30) -> 0.85 | P30: =IF('Inputs APR Override'!P30="",'Inputs APR'!P30,'Inputs APR Override'!P30) -> 0.946 | Q30: =IF('Inputs APR Override'!Q30="",'Inputs APR'!Q30,'Inputs APR Override'!Q30) -> 0.62 | R30: =IF('Inputs APR Override'!R30="",'Inputs APR'!R30,'Inputs APR Override'!R30) -> 7.15 | S30: =IF('Inputs APR Override'!S30="",'Inputs APR'!S30,'Inputs APR Override'!S30) -> 19.26 | T30: =IF('Inputs APR Override'!T30="",'Inputs APR'!T30,'Inputs APR Override'!T30) -> 21.49 | U30: =IF('Inputs APR Override'!U30="",'Inputs APR'!U30,'Inputs APR Override'!U30) -> 31.91 | V30: =IF('Inputs APR Override'!V30="",'Inputs APR'!V30,'Inputs APR Override'!V30) -> 41.91 | W30: =IF('Inputs APR Override'!W30="",'Inputs APR'!W30,'Inputs APR Override'!W30) -> 57.29
A31: 27 | B31: TMS | C31: =IF('Inputs APR Override'!C31="",'Inputs APR'!C31,'Inputs APR Override'!C31) -> Wastage Fixes - households | D31: =IF('Inputs APR Override'!D31="",'Inputs APR'!D31,'Inputs APR Override'!D31) -> Demand side | E31: =IF('Inputs APR Override'!E31="",'Inputs APR'!E31,'Inputs APR Override'!E31) -> 2021 | F31: =IF('Inputs APR Override'!F31="",'Inputs APR'!F31,'Inputs APR Override'!F31) -> 0 | G31: =IF('Inputs APR Override'!G31="",'Inputs APR'!G31,'Inputs APR Override'!G31) -> 0 | H31: =IF('Inputs APR Override'!H31="",'Inputs APR'!H31,'Inputs APR Override'!H31) -> 0 | I31: =IF('Inputs APR Override'!I31="",'Inputs APR'!I31,'Inputs APR Override'!I31) -> 0 | J31: =IF('Inputs APR Override'!J31="",'Inputs APR'!J31,'Inputs APR Override'!J31) -> 0 | K31: =IF('Inputs APR Override'!K31="",'Inputs APR'!K31,'Inputs APR Override'!K31) -> 0 | L31: =IF('Inputs APR Override'!L31="",'Inputs APR'!L31,'Inputs APR Override'!L31) -> 0.064 | M31: =IF('Inputs APR Override'!M31="",'Inputs APR'!M31,'Inputs APR Override'!M31) -> 0.334 | N31: =IF('Inputs APR Override'!N31="",'Inputs APR'!N31,'Inputs APR Override'!N31) -> 0 | O31: =IF('Inputs APR Override'!O31="",'Inputs APR'!O31,'Inputs APR Override'!O31) -> 0 | P31: =IF('Inputs APR Override'!P31="",'Inputs APR'!P31,'Inputs APR Override'!P31) -> 0 | Q31: =IF('Inputs APR Override'!Q31="",'Inputs APR'!Q31,'Inputs APR Override'!Q31) -> 1.359 | R31: =IF('Inputs APR Override'!R31="",'Inputs APR'!R31,'Inputs APR Override'!R31) -> 0.2 | S31: =IF('Inputs APR Override'!S31="",'Inputs APR'!S31,'Inputs APR Override'!S31) -> 1.37 | T31: =IF('Inputs APR Override'!T31="",'Inputs APR'!T31,'Inputs APR Override'!T31) -> 1.56 | U31: =IF('Inputs APR Override'!U31="",'Inputs APR'!U31,'Inputs APR Override'!U31) -> 1.99 | V31: =IF('Inputs APR Override'!V31="",'Inputs APR'!V31,'Inputs APR Override'!V31) -> 2.12 | W31: =IF('Inputs APR Override'!W31="",'Inputs APR'!W31,'Inputs APR Override'!W31) -> 18.95
A32: 28 | B32: TMS | C32: =IF('Inputs APR Override'!C32="",'Inputs APR'!C32,'Inputs APR Override'!C32) -> GreenRedeem / household incentive scheme | D32: =IF('Inputs APR Override'!D32="",'Inputs APR'!D32,'Inputs APR Override'!D32) -> Demand side | E32: =IF('Inputs APR Override'!E32="",'Inputs APR'!E32,'Inputs APR Override'!E32) -> 2021 | F32: =IF('Inputs APR Override'!F32="",'Inputs APR'!F32,'Inputs APR Override'!F32) -> 0 | G32: =IF('Inputs APR Override'!G32="",'Inputs APR'!G32,'Inputs APR Override'!G32) -> 0 | H32: =IF('Inputs APR Override'!H32="",'Inputs APR'!H32,'Inputs APR Override'!H32) -> 0 | I32: =IF('Inputs APR Override'!I32="",'Inputs APR'!I32,'Inputs APR Override'!I32) -> 0 | J32: =IF('Inputs APR Override'!J32="",'Inputs APR'!J32,'Inputs APR Override'!J32) -> 0 | K32: =IF('Inputs APR Override'!K32="",'Inputs APR'!K32,'Inputs APR Override'!K32) -> 0 | L32: =IF('Inputs APR Override'!L32="",'Inputs APR'!L32,'Inputs APR Override'!L32) -> 0.18 | M32: =IF('Inputs APR Override'!M32="",'Inputs APR'!M32,'Inputs APR Override'!M32) -> 0.18 | N32: =IF('Inputs APR Override'!N32="",'Inputs APR'!N32,'Inputs APR Override'!N32) -> 0.145 | O32: =IF('Inputs APR Override'!O32="",'Inputs APR'!O32,'Inputs APR Override'!O32) -> 0.145 | P32: =IF('Inputs APR Override'!P32="",'Inputs APR'!P32,'Inputs APR Override'!P32) -> 0.145 | Q32: =IF('Inputs APR Override'!Q32="",'Inputs APR'!Q32,'Inputs APR Override'!Q32) -> 0.005 | R32: =IF('Inputs APR Override'!R32="",'Inputs APR'!R32,'Inputs APR Override'!R32) -> 0.06 | S32: =IF('Inputs APR Override'!S32="",'Inputs APR'!S32,'Inputs APR Override'!S32) -> 0.14 | T32: =IF('Inputs APR Override'!T32="",'Inputs APR'!T32,'Inputs APR Override'!T32) -> 0.16 | U32: =IF('Inputs APR Override'!U32="",'Inputs APR'!U32,'Inputs APR Override'!U32) -> 0.18 | V32: =IF('Inputs APR Override'!V32="",'Inputs APR'!V32,'Inputs APR Override'!V32) -> 0.21 | W32: =IF('Inputs APR Override'!W32="",'Inputs APR'!W32,'Inputs APR Override'!W32) -> 1.4
A33: 29 | B33: TMS | C33: =IF('Inputs APR Override'!C33="",'Inputs APR'!C33,'Inputs APR Override'!C33) -> Non-potable | D33: =IF('Inputs APR Override'!D33="",'Inputs APR'!D33,'Inputs APR Override'!D33) -> Demand side | E33: =IF('Inputs APR Override'!E33="",'Inputs APR'!E33,'Inputs APR Override'!E33) -> 2021 | F33: =IF('Inputs APR Override'!F33="",'Inputs APR'!F33,'Inputs APR Override'!F33) -> 0 | G33: =IF('Inputs APR Override'!G33="",'Inputs APR'!G33,'Inputs APR Override'!G33) -> 0 | H33: =IF('Inputs APR Override'!H33="",'Inputs APR'!H33,'Inputs APR Override'!H33) -> 0 | I33: =IF('Inputs APR Override'!I33="",'Inputs APR'!I33,'Inputs APR Override'!I33) -> 0 | J33: =IF('Inputs APR Override'!J33="",'Inputs APR'!J33,'Inputs APR Override'!J33) -> 0 | K33: =IF('Inputs APR Override'!K33="",'Inputs APR'!K33,'Inputs APR Override'!K33) -> 0 | L33: =IF('Inputs APR Override'!L33="",'Inputs APR'!L33,'Inputs APR Override'!L33) -> 0 | M33: =IF('Inputs APR Override'!M33="",'Inputs APR'!M33,'Inputs APR Override'!M33) -> 0 | N33: =IF('Inputs APR Override'!N33="",'Inputs APR'!N33,'Inputs APR Override'!N33) -> 0 | O33: =IF('Inputs APR Override'!O33="",'Inputs APR'!O33,'Inputs APR Override'!O33) -> 0 | P33: =IF('Inputs APR Override'!P33="",'Inputs APR'!P33,'Inputs APR Override'!P33) -> 0 | Q33: =IF('Inputs APR Override'!Q33="",'Inputs APR'!Q33,'Inputs APR Override'!Q33) -> 0.436 | R33: =IF('Inputs APR Override'!R33="",'Inputs APR'!R33,'Inputs APR Override'!R33) -> 0 | S33: =IF('Inputs APR Override'!S33="",'Inputs APR'!S33,'Inputs APR Override'!S33) -> 0 | T33: =IF('Inputs APR Override'!T33="",'Inputs APR'!T33,'Inputs APR Override'!T33) -> 0 | U33: =IF('Inputs APR Override'!U33="",'Inputs APR'!U33,'Inputs APR Override'!U33) -> 0 | V33: =IF('Inputs APR Override'!V33="",'Inputs APR'!V33,'Inputs APR Override'!V33) -> 0 | W33: =IF('Inputs APR Override'!W33="",'Inputs APR'!W33,'Inputs APR Override'!W33) -> 2.12
A34: 30 | B34: TMS | C34: =IF('Inputs APR Override'!C34="",'Inputs APR'!C34,'Inputs APR Override'!C34) -> Housing Association | D34: =IF('Inputs APR Override'!D34="",'Inputs APR'!D34,'Inputs APR Override'!D34) -> Demand side | E34: =IF('Inputs APR Override'!E34="",'Inputs APR'!E34,'Inputs APR Override'!E34) -> 2021 | F34: =IF('Inputs APR Override'!F34="",'Inputs APR'!F34,'Inputs APR Override'!F34) -> 0 | G34: =IF('Inputs APR Override'!G34="",'Inputs APR'!G34,'Inputs APR Override'!G34) -> 0 | H34: =IF('Inputs APR Override'!H34="",'Inputs APR'!H34,'Inputs APR Override'!H34) -> 0 | I34: =IF('Inputs APR Override'!I34="",'Inputs APR'!I34,'Inputs APR Override'!I34) -> 0 | J34: =IF('Inputs APR Override'!J34="",'Inputs APR'!J34,'Inputs APR Override'!J34) -> 0 | K34: =IF('Inputs APR Override'!K34="",'Inputs APR'!K34,'Inputs APR Override'!K34) -> 0 | L34: =IF('Inputs APR Override'!L34="",'Inputs APR'!L34,'Inputs APR Override'!L34) -> 0.019 | M34: =IF('Inputs APR Override'!M34="",'Inputs APR'!M34,'Inputs APR Override'!M34) -> 0.003 | N34: =IF('Inputs APR Override'!N34="",'Inputs APR'!N34,'Inputs APR Override'!N34) -> 0 | O34: =IF('Inputs APR Override'!O34="",'Inputs APR'!O34,'Inputs APR Override'!O34) -> 0 | P34: =IF('Inputs APR Override'!P34="",'Inputs APR'!P34,'Inputs APR Override'!P34) -> 0 | Q34: =IF('Inputs APR Override'!Q34="",'Inputs APR'!Q34,'Inputs APR Override'!Q34) -> 0.197 | R34: =IF('Inputs APR Override'!R34="",'Inputs APR'!R34,'Inputs APR Override'!R34) -> 0.02 | S34: =IF('Inputs APR Override'!S34="",'Inputs APR'!S34,'Inputs APR Override'!S34) -> 0.02 | T34: =IF('Inputs APR Override'!T34="",'Inputs APR'!T34,'Inputs APR Override'!T34) -> 0.02 | U34: =IF('Inputs APR Override'!U34="",'Inputs APR'!U34,'Inputs APR Override'!U34) -> 0.02 | V34: =IF('Inputs APR Override'!V34="",'Inputs APR'!V34,'Inputs APR Override'!V34) -> 0.02 | W34: =IF('Inputs APR Override'!W34="",'Inputs APR'!W34,'Inputs APR Override'!W34) -> 0.69
A35: 31 | B35: TMS | C35: =IF('Inputs APR Override'!C35="",'Inputs APR'!C35,'Inputs APR Override'!C35) -> Innovation savings | D35: =IF('Inputs APR Override'!D35="",'Inputs APR'!D35,'Inputs APR Override'!D35) -> Demand side | E35: =IF('Inputs APR Override'!E35="",'Inputs APR'!E35,'Inputs APR Override'!E35) -> 2021 | F35: =IF('Inputs APR Override'!F35="",'Inputs APR'!F35,'Inputs APR Override'!F35) -> 0 | G35: =IF('Inputs APR Override'!G35="",'Inputs APR'!G35,'Inputs APR Override'!G35) -> 0 | H35: =IF('Inputs APR Override'!H35="",'Inputs APR'!H35,'Inputs APR Override'!H35) -> 0 | I35: =IF('Inputs APR Override'!I35="",'Inputs APR'!I35,'Inputs APR Override'!I35) -> 0 | J35: =IF('Inputs APR Override'!J35="",'Inputs APR'!J35,'Inputs APR Override'!J35) -> 0 | K35: =IF('Inputs APR Override'!K35="",'Inputs APR'!K35,'Inputs APR Override'!K35) -> 0 | L35: =IF('Inputs APR Override'!L35="",'Inputs APR'!L35,'Inputs APR Override'!L35) -> 0 | M35: =IF('Inputs APR Override'!M35="",'Inputs APR'!M35,'Inputs APR Override'!M35) -> 0 | N35: =IF('Inputs APR Override'!N35="",'Inputs APR'!N35,'Inputs APR Override'!N35) -> 0 | O35: =IF('Inputs APR Override'!O35="",'Inputs APR'!O35,'Inputs APR Override'!O35) -> 0 | P35: =IF('Inputs APR Override'!P35="",'Inputs APR'!P35,'Inputs APR Override'!P35) -> 0 | Q35: =IF('Inputs APR Override'!Q35="",'Inputs APR'!Q35,'Inputs APR Override'!Q35) -> 0.451 | R35: =IF('Inputs APR Override'!R35="",'Inputs APR'!R35,'Inputs APR Override'!R35) -> 0 | S35: =IF('Inputs APR Override'!S35="",'Inputs APR'!S35,'Inputs APR Override'!S35) -> 0 | T35: =IF('Inputs APR Override'!T35="",'Inputs APR'!T35,'Inputs APR Override'!T35) -> 0 | U35: =IF('Inputs APR Override'!U35="",'Inputs APR'!U35,'Inputs APR Override'!U35) -> 0 | V35: =IF('Inputs APR Override'!V35="",'Inputs APR'!V35,'Inputs APR Override'!V35) -> 0 | W35: =IF('Inputs APR Override'!W35="",'Inputs APR'!W35,'Inputs APR Override'!W35) -> 42.04
A36: 32 | B36: TMS | C36: =IF('Inputs APR Override'!C36="",'Inputs APR'!C36,'Inputs APR Override'!C36) -> Green Economic Recovery (WEF element only) | D36: =IF('Inputs APR Override'!D36="",'Inputs APR'!D36,'Inputs APR Override'!D36) -> Demand side | E36: =IF('Inputs APR Override'!E36="",'Inputs APR'!E36,'Inputs APR Override'!E36) -> 2023 | F36: =IF('Inputs APR Override'!F36="",'Inputs APR'!F36,'Inputs APR Override'!F36) -> 0 | G36: =IF('Inputs APR Override'!G36="",'Inputs APR'!G36,'Inputs APR Override'!G36) -> 0 | H36: =IF('Inputs APR Override'!H36="",'Inputs APR'!H36,'Inputs APR Override'!H36) -> 0 | I36: =IF('Inputs APR Override'!I36="",'Inputs APR'!I36,'Inputs APR Override'!I36) -> 0 | J36: =IF('Inputs APR Override'!J36="",'Inputs APR'!J36,'Inputs APR Override'!J36) -> 0 | K36: =IF('Inputs APR Override'!K36="",'Inputs APR'!K36,'Inputs APR Override'!K36) -> 0 | L36: =IF('Inputs APR Override'!L36="",'Inputs APR'!L36,'Inputs APR Override'!L36) -> 0 | M36: =IF('Inputs APR Override'!M36="",'Inputs APR'!M36,'Inputs APR Override'!M36) -> 0 | N36: =IF('Inputs APR Override'!N36="",'Inputs APR'!N36,'Inputs APR Override'!N36) -> 0 | O36: =IF('Inputs APR Override'!O36="",'Inputs APR'!O36,'Inputs APR Override'!O36) -> 0 | P36: =IF('Inputs APR Override'!P36="",'Inputs APR'!P36,'Inputs APR Override'!P36) -> 0 | Q36: =IF('Inputs APR Override'!Q36="",'Inputs APR'!Q36,'Inputs APR Override'!Q36) -> 6.557 | R36: =IF('Inputs APR Override'!R36="",'Inputs APR'!R36,'Inputs APR Override'!R36) -> 0 | S36: =IF('Inputs APR Override'!S36="",'Inputs APR'!S36,'Inputs APR Override'!S36) -> 0 | T36: =IF('Inputs APR Override'!T36="",'Inputs APR'!T36,'Inputs APR Override'!T36) -> 0 | U36: =IF('Inputs APR Override'!U36="",'Inputs APR'!U36,'Inputs APR Override'!U36) -> 0 | V36: =IF('Inputs APR Override'!V36="",'Inputs APR'!V36,'Inputs APR Override'!V36) -> 0 | W36: =IF('Inputs APR Override'!W36="",'Inputs APR'!W36,'Inputs APR Override'!W36) -> 3
A37: 33 | B37: NWT | C37: =IF('Inputs APR Override'!C37="",'Inputs APR'!C37,'Inputs APR Override'!C37) -> West Cumbria Future Strategy | D37: =IF('Inputs APR Override'!D37="",'Inputs APR'!D37,'Inputs APR Override'!D37) -> Demand side | E37: =IF('Inputs APR Override'!E37="",'Inputs APR'!E37,'Inputs APR Override'!E37) -> 2022-23 | F37: =IF('Inputs APR Override'!F37="",'Inputs APR'!F37,'Inputs APR Override'!F37) -> 13.972 | G37: =IF('Inputs APR Override'!G37="",'Inputs APR'!G37,'Inputs APR Override'!G37) -> 31.09 | H37: =IF('Inputs APR Override'!H37="",'Inputs APR'!H37,'Inputs APR Override'!H37) -> 26.522 | I37: =IF('Inputs APR Override'!I37="",'Inputs APR'!I37,'Inputs APR Override'!I37) -> 0.62 | J37: =IF('Inputs APR Override'!J37="",'Inputs APR'!J37,'Inputs APR Override'!J37) -> 5.639 | K37: =IF('Inputs APR Override'!K37="",'Inputs APR'!K37,'Inputs APR Override'!K37) -> 0.266 | L37: =IF('Inputs APR Override'!L37="",'Inputs APR'!L37,'Inputs APR Override'!L37) -> 0 | M37: =IF('Inputs APR Override'!M37="",'Inputs APR'!M37,'Inputs APR Override'!M37) -> 0 | N37: =IF('Inputs APR Override'!N37="",'Inputs APR'!N37,'Inputs APR Override'!N37) -> 0 | O37: =IF('Inputs APR Override'!O37="",'Inputs APR'!O37,'Inputs APR Override'!O37) -> 0 | P37: =IF('Inputs APR Override'!P37="",'Inputs APR'!P37,'Inputs APR Override'!P37) -> 0 | Q37: =IF('Inputs APR Override'!Q37="",'Inputs APR'!Q37,'Inputs APR Override'!Q37) -> 0 | R37: =IF('Inputs APR Override'!R37="",'Inputs APR'!R37,'Inputs APR Override'!R37) -> 0 | S37: =IF('Inputs APR Override'!S37="",'Inputs APR'!S37,'Inputs APR Override'!S37) -> 0 | T37: =IF('Inputs APR Override'!T37="",'Inputs APR'!T37,'Inputs APR Override'!T37) -> 0 | U37: =IF('Inputs APR Override'!U37="",'Inputs APR'!U37,'Inputs APR Override'!U37) -> 0 | V37: =IF('Inputs APR Override'!V37="",'Inputs APR'!V37,'Inputs APR Override'!V37) -> 0 | W37: =IF('Inputs APR Override'!W37="",'Inputs APR'!W37,'Inputs APR Override'!W37) -> 0
A38: 34 | B38: NWT | C38: =IF('Inputs APR Override'!C38="",'Inputs APR'!C38,'Inputs APR Override'!C38) -> Southport DMZ | D38: =IF('Inputs APR Override'!D38="",'Inputs APR'!D38,'Inputs APR Override'!D38) -> Demand side | E38: =IF('Inputs APR Override'!E38="",'Inputs APR'!E38,'Inputs APR Override'!E38) -> 2020-21 | F38: =IF('Inputs APR Override'!F38="",'Inputs APR'!F38,'Inputs APR Override'!F38) -> 2.531 | G38: =IF('Inputs APR Override'!G38="",'Inputs APR'!G38,'Inputs APR Override'!G38) -> 1.472 | H38: =IF('Inputs APR Override'!H38="",'Inputs APR'!H38,'Inputs APR Override'!H38) -> 0.108 | I38: =IF('Inputs APR Override'!I38="",'Inputs APR'!I38,'Inputs APR Override'!I38) -> 0.006 | J38: =IF('Inputs APR Override'!J38="",'Inputs APR'!J38,'Inputs APR Override'!J38) -> -0.02 | K38: =IF('Inputs APR Override'!K38="",'Inputs APR'!K38,'Inputs APR Override'!K38) -> 0 | L38: =IF('Inputs APR Override'!L38="",'Inputs APR'!L38,'Inputs APR Override'!L38) -> 0 | M38: =IF('Inputs APR Override'!M38="",'Inputs APR'!M38,'Inputs APR Override'!M38) -> 0 | N38: =IF('Inputs APR Override'!N38="",'Inputs APR'!N38,'Inputs APR Override'!N38) -> 0 | O38: =IF('Inputs APR Override'!O38="",'Inputs APR'!O38,'Inputs APR Override'!O38) -> 0 | P38: =IF('Inputs APR Override'!P38="",'Inputs APR'!P38,'Inputs APR Override'!P38) -> 0 | Q38: =IF('Inputs APR Override'!Q38="",'Inputs APR'!Q38,'Inputs APR Override'!Q38) -> 0 | R38: =IF('Inputs APR Override'!R38="",'Inputs APR'!R38,'Inputs APR Override'!R38) -> 0 | S38: =IF('Inputs APR Override'!S38="",'Inputs APR'!S38,'Inputs APR Override'!S38) -> 0 | T38: =IF('Inputs APR Override'!T38="",'Inputs APR'!T38,'Inputs APR Override'!T38) -> 0 | U38: =IF('Inputs APR Override'!U38="",'Inputs APR'!U38,'Inputs APR Override'!U38) -> 0 | V38: =IF('Inputs APR Override'!V38="",'Inputs APR'!V38,'Inputs APR Override'!V38) -> 0 | W38: =IF('Inputs APR Override'!W38="",'Inputs APR'!W38,'Inputs APR Override'!W38) -> 0
A39: 35 | B39: NWT | C39: =IF('Inputs APR Override'!C39="",'Inputs APR'!C39,'Inputs APR Override'!C39) -> Springfield Bickerstaffe AMP7 works | D39: =IF('Inputs APR Override'!D39="",'Inputs APR'!D39,'Inputs APR Override'!D39) -> Demand side | E39: =IF('Inputs APR Override'!E39="",'Inputs APR'!E39,'Inputs APR Override'!E39) -> N/A | F39: =IF('Inputs APR Override'!F39="",'Inputs APR'!F39,'Inputs APR Override'!F39) -> 0 | G39: =IF('Inputs APR Override'!G39="",'Inputs APR'!G39,'Inputs APR Override'!G39) -> 0 | H39: =IF('Inputs APR Override'!H39="",'Inputs APR'!H39,'Inputs APR Override'!H39) -> 0 | I39: =IF('Inputs APR Override'!I39="",'Inputs APR'!I39,'Inputs APR Override'!I39) -> 0 | J39: =IF('Inputs APR Override'!J39="",'Inputs APR'!J39,'Inputs APR Override'!J39) -> 0 | K39: =IF('Inputs APR Override'!K39="",'Inputs APR'!K39,'Inputs APR Override'!K39) -> 0 | L39: =IF('Inputs APR Override'!L39="",'Inputs APR'!L39,'Inputs APR Override'!L39) -> 0 | M39: =IF('Inputs APR Override'!M39="",'Inputs APR'!M39,'Inputs APR Override'!M39) -> 0 | N39: =IF('Inputs APR Override'!N39="",'Inputs APR'!N39,'Inputs APR Override'!N39) -> 0 | O39: =IF('Inputs APR Override'!O39="",'Inputs APR'!O39,'Inputs APR Override'!O39) -> 0 | P39: =IF('Inputs APR Override'!P39="",'Inputs APR'!P39,'Inputs APR Override'!P39) -> 0 | Q39: =IF('Inputs APR Override'!Q39="",'Inputs APR'!Q39,'Inputs APR Override'!Q39) -> 0 | R39: =IF('Inputs APR Override'!R39="",'Inputs APR'!R39,'Inputs APR Override'!R39) -> 0 | S39: =IF('Inputs APR Override'!S39="",'Inputs APR'!S39,'Inputs APR Override'!S39) -> 0 | T39: =IF('Inputs APR Override'!T39="",'Inputs APR'!T39,'Inputs APR Override'!T39) -> 0 | U39: =IF('Inputs APR Override'!U39="",'Inputs APR'!U39,'Inputs APR Override'!U39) -> 0 | V39: =IF('Inputs APR Override'!V39="",'Inputs APR'!V39,'Inputs APR Override'!V39) -> 0 | W39: =IF('Inputs APR Override'!W39="",'Inputs APR'!W39,'Inputs APR Override'!W39) -> 0
A40: 36 | B40: NWT | C40: =IF('Inputs APR Override'!C40="",'Inputs APR'!C40,'Inputs APR Override'!C40) -> Water Efficiency Opex | D40: =IF('Inputs APR Override'!D40="",'Inputs APR'!D40,'Inputs APR Override'!D40) -> Demand side | E40: =IF('Inputs APR Override'!E40="",'Inputs APR'!E40,'Inputs APR Override'!E40) -> N/A | F40: =IF('Inputs APR Override'!F40="",'Inputs APR'!F40,'Inputs APR Override'!F40) -> 0 | G40: =IF('Inputs APR Override'!G40="",'Inputs APR'!G40,'Inputs APR Override'!G40) -> 0 | H40: =IF('Inputs APR Override'!H40="",'Inputs APR'!H40,'Inputs APR Override'!H40) -> 0 | I40: =IF('Inputs APR Override'!I40="",'Inputs APR'!I40,'Inputs APR Override'!I40) -> 0 | J40: =IF('Inputs APR Override'!J40="",'Inputs APR'!J40,'Inputs APR Override'!J40) -> 0 | K40: =IF('Inputs APR Override'!K40="",'Inputs APR'!K40,'Inputs APR Override'!K40) -> 0 | L40: =IF('Inputs APR Override'!L40="",'Inputs APR'!L40,'Inputs APR Override'!L40) -> 0.228 | M40: =IF('Inputs APR Override'!M40="",'Inputs APR'!M40,'Inputs APR Override'!M40) -> 0.204 | N40: =IF('Inputs APR Override'!N40="",'Inputs APR'!N40,'Inputs APR Override'!N40) -> 0.133 | O40: =IF('Inputs APR Override'!O40="",'Inputs APR'!O40,'Inputs APR Override'!O40) -> 0 | P40: =IF('Inputs APR Override'!P40="",'Inputs APR'!P40,'Inputs APR Override'!P40) -> 0 | Q40: =IF('Inputs APR Override'!Q40="",'Inputs APR'!Q40,'Inputs APR Override'!Q40) -> 0 | R40: =IF('Inputs APR Override'!R40="",'Inputs APR'!R40,'Inputs APR Override'!R40) -> 0.49 | S40: =IF('Inputs APR Override'!S40="",'Inputs APR'!S40,'Inputs APR Override'!S40) -> 0.63 | T40: =IF('Inputs APR Override'!T40="",'Inputs APR'!T40,'Inputs APR Override'!T40) -> 0.73 | U40: =IF('Inputs APR Override'!U40="",'Inputs APR'!U40,'Inputs APR Override'!U40) -> 0.73 | V40: =IF('Inputs APR Override'!V40="",'Inputs APR'!V40,'Inputs APR Override'!V40) -> 0.73 | W40: =IF('Inputs APR Override'!W40="",'Inputs APR'!W40,'Inputs APR Override'!W40) -> 0.73
A41: 37 | B41: WSH | C41: =IF('Inputs APR Override'!C41="",'Inputs APR'!C41,'Inputs APR Override'!C41) -> Cartref | D41: =IF('Inputs APR Override'!D41="",'Inputs APR'!D41,'Inputs APR Override'!D41) -> Demand side | E41: =IF('Inputs APR Override'!E41="",'Inputs APR'!E41,'Inputs APR Override'!E41) -> 2020-21 | F41: =IF('Inputs APR Override'!F41="",'Inputs APR'!F41,'Inputs APR Override'!F41) -> 2.131 | G41: =IF('Inputs APR Override'!G41="",'Inputs APR'!G41,'Inputs APR Override'!G41) -> 1.591 | H41: =IF('Inputs APR Override'!H41="",'Inputs APR'!H41,'Inputs APR Override'!H41) -> 1.641 | I41: =IF('Inputs APR Override'!I41="",'Inputs APR'!I41,'Inputs APR Override'!I41) -> 1.437 | J41: =IF('Inputs APR Override'!J41="",'Inputs APR'!J41,'Inputs APR Override'!J41) -> 0.035 | K41: =IF('Inputs APR Override'!K41="",'Inputs APR'!K41,'Inputs APR Override'!K41) -> 0 | L41: =IF('Inputs APR Override'!L41="",'Inputs APR'!L41,'Inputs APR Override'!L41) -> 0 | M41: =IF('Inputs APR Override'!M41="",'Inputs APR'!M41,'Inputs APR Override'!M41) -> 0 | N41: =IF('Inputs APR Override'!N41="",'Inputs APR'!N41,'Inputs APR Override'!N41) -> 0 | O41: =IF('Inputs APR Override'!O41="",'Inputs APR'!O41,'Inputs APR Override'!O41) -> 0 | P41: =IF('Inputs APR Override'!P41="",'Inputs APR'!P41,'Inputs APR Override'!P41) -> 0 | Q41: =IF('Inputs APR Override'!Q41="",'Inputs APR'!Q41,'Inputs APR Override'!Q41) -> 0 | R41: =IF('Inputs APR Override'!R41="",'Inputs APR'!R41,'Inputs APR Override'!R41) -> 0.01 | S41: =IF('Inputs APR Override'!S41="",'Inputs APR'!S41,'Inputs APR Override'!S41) -> 0.44 | T41: =IF('Inputs APR Override'!T41="",'Inputs APR'!T41,'Inputs APR Override'!T41) -> 1.22 | U41: =IF('Inputs APR Override'!U41="",'Inputs APR'!U41,'Inputs APR Override'!U41) -> 1.86 | V41: =IF('Inputs APR Override'!V41="",'Inputs APR'!V41,'Inputs APR Override'!V41) -> 2.56 | W41: =IF('Inputs APR Override'!W41="",'Inputs APR'!W41,'Inputs APR Override'!W41) -> 2.56
A42: 38 | B42: WSX | C42: =IF('Inputs APR Override'!C42="",'Inputs APR'!C42,'Inputs APR Override'!C42) -> Digital Engagement | D42: =IF('Inputs APR Override'!D42="",'Inputs APR'!D42,'Inputs APR Override'!D42) -> Demand side | E42: =IF('Inputs APR Override'!E42="",'Inputs APR'!E42,'Inputs APR Override'!E42) -> 2020 | F42: =IF('Inputs APR Override'!F42="",'Inputs APR'!F42,'Inputs APR Override'!F42) -> 0.03 | G42: =IF('Inputs APR Override'!G42="",'Inputs APR'!G42,'Inputs APR Override'!G42) -> 0.028 | H42: =IF('Inputs APR Override'!H42="",'Inputs APR'!H42,'Inputs APR Override'!H42) -> 0 | I42: =IF('Inputs APR Override'!I42="",'Inputs APR'!I42,'Inputs APR Override'!I42) -> 0 | J42: =IF('Inputs APR Override'!J42="",'Inputs APR'!J42,'Inputs APR Override'!J42) -> 0 | K42: =IF('Inputs APR Override'!K42="",'Inputs APR'!K42,'Inputs APR Override'!K42) -> 0 | L42: =IF('Inputs APR Override'!L42="",'Inputs APR'!L42,'Inputs APR Override'!L42) -> 0 | M42: =IF('Inputs APR Override'!M42="",'Inputs APR'!M42,'Inputs APR Override'!M42) -> 0 | N42: =IF('Inputs APR Override'!N42="",'Inputs APR'!N42,'Inputs APR Override'!N42) -> 0.017 | O42: =IF('Inputs APR Override'!O42="",'Inputs APR'!O42,'Inputs APR Override'!O42) -> 0.013 | P42: =IF('Inputs APR Override'!P42="",'Inputs APR'!P42,'Inputs APR Override'!P42) -> 0.04 | Q42: =IF('Inputs APR Override'!Q42="",'Inputs APR'!Q42,'Inputs APR Override'!Q42) -> 0 | R42: =IF('Inputs APR Override'!R42="",'Inputs APR'!R42,'Inputs APR Override'!R42) -> 0.07 | S42: =IF('Inputs APR Override'!S42="",'Inputs APR'!S42,'Inputs APR Override'!S42) -> 0.23 | T42: =IF('Inputs APR Override'!T42="",'Inputs APR'!T42,'Inputs APR Override'!T42) -> 0.45 | U42: =IF('Inputs APR Override'!U42="",'Inputs APR'!U42,'Inputs APR Override'!U42) -> 0.52 | V42: =IF('Inputs APR Override'!V42="",'Inputs APR'!V42,'Inputs APR Override'!V42) -> 0.59 | W42: =IF('Inputs APR Override'!W42="",'Inputs APR'!W42,'Inputs APR Override'!W42) -> 0.59
A43: 39 | B43: WSX | C43: =IF('Inputs APR Override'!C43="",'Inputs APR'!C43,'Inputs APR Override'!C43) -> Home Check | D43: =IF('Inputs APR Override'!D43="",'Inputs APR'!D43,'Inputs APR Override'!D43) -> Demand side | E43: =IF('Inputs APR Override'!E43="",'Inputs APR'!E43,'Inputs APR Override'!E43) -> 2020 | F43: =IF('Inputs APR Override'!F43="",'Inputs APR'!F43,'Inputs APR Override'!F43) -> 0.003 | G43: =IF('Inputs APR Override'!G43="",'Inputs APR'!G43,'Inputs APR Override'!G43) -> 0.023 | H43: =IF('Inputs APR Override'!H43="",'Inputs APR'!H43,'Inputs APR Override'!H43) -> 0 | I43: =IF('Inputs APR Override'!I43="",'Inputs APR'!I43,'Inputs APR Override'!I43) -> 0 | J43: =IF('Inputs APR Override'!J43="",'Inputs APR'!J43,'Inputs APR Override'!J43) -> 0 | K43: =IF('Inputs APR Override'!K43="",'Inputs APR'!K43,'Inputs APR Override'!K43) -> 0 | L43: =IF('Inputs APR Override'!L43="",'Inputs APR'!L43,'Inputs APR Override'!L43) -> 0 | M43: =IF('Inputs APR Override'!M43="",'Inputs APR'!M43,'Inputs APR Override'!M43) -> 0 | N43: =IF('Inputs APR Override'!N43="",'Inputs APR'!N43,'Inputs APR Override'!N43) -> 0.454 | O43: =IF('Inputs APR Override'!O43="",'Inputs APR'!O43,'Inputs APR Override'!O43) -> 0.387 | P43: =IF('Inputs APR Override'!P43="",'Inputs APR'!P43,'Inputs APR Override'!P43) -> 0.575 | Q43: =IF('Inputs APR Override'!Q43="",'Inputs APR'!Q43,'Inputs APR Override'!Q43) -> 7.5 | R43: =IF('Inputs APR Override'!R43="",'Inputs APR'!R43,'Inputs APR Override'!R43) -> 0 | S43: =IF('Inputs APR Override'!S43="",'Inputs APR'!S43,'Inputs APR Override'!S43) -> 0.04 | T43: =IF('Inputs APR Override'!T43="",'Inputs APR'!T43,'Inputs APR Override'!T43) -> 1.16 | U43: =IF('Inputs APR Override'!U43="",'Inputs APR'!U43,'Inputs APR Override'!U43) -> 1.93 | V43: =IF('Inputs APR Override'!V43="",'Inputs APR'!V43,'Inputs APR Override'!V43) -> 2.71 | W43: =IF('Inputs APR Override'!W43="",'Inputs APR'!W43,'Inputs APR Override'!W43) -> 11.31

Sheet F_Inputs WRMP
A1: =RIGHT(CELL("filename", $A$1), LEN(CELL("filename", $A$1)) - SEARCH("]", CELL("filename", $A$1))) -> F_Inputs WRMP
C3: WEFF WRMP | E3: Run on 18 Sep 2024 15:16
A5: Company Acronym | B5: Item Code | C5: Item Description | D5: Item Unit | E5: Item Table Suite | F5: 2025-26 | G5: 2026-27 | H5: 2027-28 | I5: 2028-29 | J5: 2029-30
A6: Company Acronym | B6: Item Code | C6: Item Description | D6: Item Unit | E6: Item Table Suite | F6: Price Review 2024 | G6: Price Review 2024 | H6: Price Review 2024 | I6: Price Review 2024 | J6: Price Review 2024
A7: Company Acronym | B7: Item Code | C7: Item Description | D7: Item Unit | E7: Item Table Suite | F7: PR24 WRMP24 | G7: PR24 WRMP24 | H7: PR24 WRMP24 | I7: PR24 WRMP24 | J7: PR24 WRMP24
A8: Company Acronym | B8: Item Code | C8: Item Description | D8: Item Unit | E8: Item Table Suite | F8: Latest | G8: Latest | H8: Latest | I8: Latest | J8: Latest | K8: Total
A9: ANH | B9: RWRMP24_8E002 | C9: Demand-side improvements (excluding leakage and metering)_Benefit_rWRMP24_Table 8e: preferred programme_E2 | D9: Ml/d | E9: Price Review 2024 | F9: 4.815765499 | G9: 3.683989076 | H9: 3.737472344 | I9: 5.508198072 | J9: 5.545129723 | K9: =SUM(F9:J9) -> 23.29055472
A10: ANH | B10: RWRMP24_8B006 | C10: Demand-side improvements (excl. leakage and metering)_Totex_rWRMP24_Table 8b: preferred programme_B6 | D10: 000's | E10: Price Review 2024 | F10: 4.246756704 | G10: 4.111133709 | H10: 4.277333896 | I10: 4.431553152 | J10: 4.58414564 | K10: =SUM(F10:J10) -> 21.6509231
A11: WSH | B11: RWRMP24_8E002 | C11: Demand-side improvements (excluding leakage and metering)_Benefit_rWRMP24_Table 8e: preferred programme_E2 | D11: Ml/d | E11: Price Review 2024 | F11: 0.5549571229 | G11: 0.7603793856 | H11: 0.9655114154 | I11: 1.776704758 | J11: 0.7520002903 | K11: 4.809552972
A12: WSH | B12: RWRMP24_8B006 | C12: Demand-side improvements (excl. leakage and metering)_Totex_rWRMP24_Table 8b: preferred programme_B6 | D12: 000's | E12: Price Review 2024 | F12: 2.74129058 | G12: 2.700577972 | H12: 2.696836024 | I12: 2.710169982 | J12: 2.744344401 | K12: 13.59321896
A13: HDD | B13: RWRMP24_8E002 | C13: Demand-side improvements (excluding leakage and metering)_Benefit_rWRMP24_Table 8e: preferred programme_E2 | D13: Ml/d | E13: Price Review 2024 | F13: 0.1553533264 | G13: 0.1551976209 | H13: 0.1450457472 | I13: 0.1548975799 | J13: 0.1547529908 | K13: 0.7652472651
A14: HDD | B14: RWRMP24_8B006 | C14: Demand-side improvements (excl. leakage and metering)_Totex_rWRMP24_Table 8b: preferred programme_B6 | D14: 000's | E14: Price Review 2024 | F14: 147.343424 | G14: 147.343424 | H14: 72.213128 | I14: 72.213128 | J14: 72.213128 | K14: 511.326232
A15: NES | B15: RWRMP24_8E002 | C15: Demand-side improvements (excluding leakage and metering)_Benefit_rWRMP24_Table 8e: preferred programme_E2 | D15: Ml/d | E15: Price Review 2024 | F15: 3.988535144 | G15: 8.148811645 | H15: 12.31357669 | I15: 16.45904331 | J15: 20.58537021 | K15: 61.495337
A16: NES | B16: RWRMP24_8B006 | C16: Demand-side improvements (excl. leakage and metering)_Totex_rWRMP24_Table 8b: preferred programme_B6 | D16: 000's | E16: Price Review 2024 | F16: 3.147021073 | G16: 3.314621601 | H16: 3.314621601 | I16: 3.326152035 | J16: 3.327678813 | K16: 16.43009512
A17: SVE | B17: RWRMP24_8E002 | C17: Demand-side improvements (excluding leakage and metering)_Benefit_rWRMP24_Table 8e: preferred programme_E2 | D17: Ml/d | E17: Price Review 2024 | F17: 0.7897692696 | G17: 0.8928278494 | H17: 1.02135478 | I17: 0.9362288894 | J17: 0.9825109273 | K17: 4.622691716
A18: SVE | B18: RWRMP24_8B006 | C18: Demand-side improvements (excl. leakage and metering)_Totex_rWRMP24_Table 8b: preferred programme_B6 | D18: 000's | E18: Price Review 2024 | F18: 1.152675788 | G18: 1.154735759 | H18: 1.157304801 | I18: 1.155603275 | J18: 1.156528377 | K18: 5.776848
A19: SWB | B19: RWRMP24_8E002 | C19: Demand-side improvements (excluding leakage and metering)_Benefit_rWRMP24_Table 8e: preferred programme_E2 | D19: Ml/d | E19: Price Review 2024 | F19: 2.46 | G19: 2.7 | H19: 2.8 | I19: 2.53 | J19: 2.41 | K19: 12.9
A20: SWB | B20: RWRMP24_8B006 | C20: Demand-side improvements (excl. leakage and metering)_Totex_rWRMP24_Table 8b: preferred programme_B6 | D20: 000's | E20: Price Review 2024 | F20: 2.086 | G20: 1.751 | H20: 2.702 | I20: 1.581 | J20: 1.329 | K20: 9.449
A21: SRN | B21: RWRMP24_8E002 | C21: Demand-side improvements (excluding leakage and metering)_Benefit_rWRMP24_Table 8e: preferred programme_E2 | D21: Ml/d | E21: Price Review 2024 | F21: 1.5976 | G21: 1.6318 | H21: 1.6351 | I21: 1.6419 | J21: 1.6346 | K21: 8.141
A22: SRN | B22: RWRMP24_8B006 | C22: Demand-side improvements (excl. leakage and metering)_Totex_rWRMP24_Table 8b: preferred programme_B6 | D22: 000's | E22: Price Review 2024 | F22: 2.098400006 | G22: 2.348400004 | H22: 2.348399992 | I22: 2.34840001 | J22: 3.348399987 | K22: 12.492
A23: TMS | B23: RWRMP24_8E002 | C23: Demand-side improvements (excluding leakage and metering)_Benefit_rWRMP24_Table 8e: preferred programme_E2 | D23: Ml/d | E23: Price Review 2024 | F23: 10.2419 | G23: 10.2442 | H23: 10.2445 | I23: 10.2444 | J23: 10.2441 | K23: 51.2191
A24: TMS | B24: RWRMP24_8B006 | C24: Demand-side improvements (excl. leakage and metering)_Totex_rWRMP24_Table 8b: preferred programme_B6 | D24: 000's | E24: Price Review 2024 | F24: 9.301702586 | G24: 9.301702586 | H24: 9.301702586 | I24: 9.301702586 | J24: 9.301702586 | K24: 46.50851293
A25: NWT | B25: RWRMP24_8E002 | C25: Demand-side improvements (excluding leakage and metering)_Benefit_rWRMP24_Table 8e: preferred programme_E2 | D25: Ml/d | E25: Price Review 2024 | F25: 3.771752154 | G25: 5.277581241 | H25: 5.315247362 | I25: 5.136743109 | J25: 5.016019893 | K25: 24.51734376
A26: NWT | B26: RWRMP24_8B006 | C26: Demand-side improvements (excl. leakage and metering)_Totex_rWRMP24_Table 8b: preferred programme_B6 | D26: 000's | E26: Price Review 2024 | F26: 3.85444371 | G26: 4.042215975 | H26: 4.201054991 | I26: 4.127493747 | J26: 4.068604438 | K26: 20.29381286
A27: WSX | B27: RWRMP24_8E002 | C27: Demand-side improvements (excluding leakage and metering)_Benefit_rWRMP24_Table 8e: preferred programme_E2 | D27: Ml/d | E27: Price Review 2024 | F27: 2.813221374 | G27: 5.452449526 | H27: 7.930229205 | I27: 10.25819832 | J27: 12.44708213 | K27: 38.90118055
A28: WSX | B28: RWRMP24_8B006 | C28: Demand-side improvements (excl. leakage and metering)_Totex_rWRMP24_Table 8b: preferred programme_B6 | D28: 000's | E28: Price Review 2024 | F28: 1.603161528 | G28: 1.603161528 | H28: 1.603161528 | I28: 1.603161528 | J28: 1.603161528 | K28: 8.015807638
A29: YKY | B29: RWRMP24_8E002 | C29: Demand-side improvements (excluding leakage and metering)_Benefit_rWRMP24_Table 8e: preferred programme_E2 | D29: Ml/d | E29: Price Review 2024 | F29: 1.87 | G29: 3.93 | H29: 4.66 | I29: 5.4 | J29: 6.02 | K29: 21.88
A30: YKY | B30: RWRMP24_8B006 | C30: Demand-side improvements (excl. leakage and metering)_Totex_rWRMP24_Table 8b: preferred programme_B6 | D30: 000's | E30: Price Review 2024 | F30: 4.140942794 | G30: 5.48226787 | H30: 6.033467519 | I30: 6.994103828 | J30: 6.119695875 | K30: 28.77047789
A31: AFW | B31: RWRMP24_8E002 | C31: Demand-side improvements (excluding leakage and metering)_Benefit_rWRMP24_Table 8e: preferred programme_E2 | D31: Ml/d | E31: Price Review 2024 | F31: 2.502 | G31: 2.6084 | H31: 2.6673 | I31: 2.8155 | J31: 2.8951 | K31: 13.4883
A32: AFW | B32: RWRMP24_8B006 | C32: Demand-side improvements (excl. leakage and metering)_Totex_rWRMP24_Table 8b: preferred programme_B6 | D32: 000's | E32: Price Review 2024 | F32: 1.833582083 | G32: 1.833582083 | H32: 1.833582083 | I32: 1.833582083 | J32: 1.833582083 | K32: 9.167910414
A33: BRL | B33: RWRMP24_8E002 | C33: Demand-side improvements (excluding leakage and metering)_Benefit_rWRMP24_Table 8e: preferred programme_E2 | D33: Ml/d | E33: Price Review 2024 | F33: 0.05253173645 | G33: 0.9290572698 | H33: 1.813627111 | I33: 2.708709793 | J33: 3.615033056 | K33: 9.118958967
A34: BRL | B34: RWRMP24_8B006 | C34: Demand-side improvements (excl. leakage and metering)_Totex_rWRMP24_Table 8b: preferred programme_B6 | D34: 000's | E34: Price Review 2024 | F34: 234.3995622 | G34: 233.1613667 | H34: 234.5087156 | I34: 235.8560644 | J34: 236.5297389 | K34: 1174.455448
A35: PRT | B35: RWRMP24_8E002 | C35: Demand-side improvements (excluding leakage and metering)_Benefit_rWRMP24_Table 8e: preferred programme_E2 | D35: Ml/d | E35: Price Review 2024 | F35: 0.8154 | G35: 0.8752 | H35: 1.2262 | I35: 1.5014 | J35: 1.7681 | K35: 6.1863
A36: PRT | B36: RWRMP24_8B006 | C36: Demand-side improvements (excl. leakage and metering)_Totex_rWRMP24_Table 8b: preferred programme_B6 | D36: 000's | E36: Price Review 2024 | F36: 0 | G36: 0 | H36: 0 | I36: 0 | J36: 0 | K36: 0
A37: SEW | B37: RWRMP24_8E002 | C37: Demand-side improvements (excluding leakage and metering)_Benefit_rWRMP24_Table 8e: preferred programme_E2 | D37: Ml/d | E37: Price Review 2024 | F37: 2.3542 | G37: 3.7895 | H37: 3.8296 | I37: 3.8638 | J37: 3.8921 | K37: 17.7292
A38: SEW | B38: RWRMP24_8B006 | C38: Demand-side improvements (excl. leakage and metering)_Totex_rWRMP24_Table 8b: preferred programme_B6 | D38: 000's | E38: Price Review 2024 | F38: 8.880453542 | G38: 9.133343447 | H38: 9.382645406 | I38: 9.629749775 | J38: 9.873972741 | K38: 46.90016491
A39: SES | B39: RWRMP24_8E002 | C39: Demand-side improvements (excluding leakage and metering)_Benefit_rWRMP24_Table 8e: preferred programme_E2 | D39: Ml/d | E39: Price Review 2024 | F39: 0.9698 | G39: 0.9129 | H39: 0.8863 | I39: 0.857 | J39: 0.8285 | K39: 4.4545
A40: SES | B40: RWRMP24_8B006 | C40: Demand-side improvements (excl. leakage and metering)_Totex_rWRMP24_Table 8b: preferred programme_B6 | D40: 000's | E40: Price Review 2024 | F40: 0.5451806886 | G40: 0.5365880451 | H40: 0.5280697736 | I40: 0.5196295912 | J40: 0.5112714037 | K40: 2.640739502
A41: SSC | B41: RWRMP24_8E002 | C41: Demand-side improvements (excluding leakage and metering)_Benefit_rWRMP24_Table 8e: preferred programme_E2 | D41: Ml/d | E41: Price Review 2024 | F41: 0.9 | G41: 0.9 | H41: 0.9 | I41: 0.9 | J41: 0.9 | K41: 4.5
A42: SSC | B42: RWRMP24_8B006 | C42: Demand-side improvements (excl. leakage and metering)_Totex_rWRMP24_Table 8b: preferred programme_B6 | D42: 000's | E42: Price Review 2024 | F42: 1.57 | G42: 1.57 | H42: 1.57 | I42: 1.57 | J42: 1.57 | K42: 7.85
A43: CAM | B43: RWRMP24_8E002 | C43: Demand-side improvements (excluding leakage and metering)_Benefit_rWRMP24_Table 8e: preferred programme_E2 | D43: Ml/d | E43: Price Review 2024 | F43: 0.26 | G43: 0.26 | H43: 0.26 | I43: 0.26 | J43: 0.26 | K43: 1.3
A44: CAM | B44: RWRMP24_8B006 | C44: Demand-side improvements (excl. leakage and metering)_Totex_rWRMP24_Table 8b: preferred programme_B6 | D44: 000's | E44: Price Review 2024 | F44: 0.88 | G44: 0.88 | H44: 0.88 | I44: 0.88 | J44: 0.88 | K44: 4.4

Sheet F_Inputs WRMP Override
A1: =RIGHT(CELL("filename", $A$1), LEN(CELL("filename", $A$1)) - SEARCH("]", CELL("filename", $A$1))) -> F_Inputs WRMP Override
C2: Water Efficiency WRMP
A3: Acronym | B3: Reference | C3: Item description | D3: Unit | E3: Model | F3: 2025-26 | G3: 2026-27 | H3: 2027-28 | I3: 2028-29 | J3: 2029-30 | K3: Total
A4: ANH | B4: RWRMP24_8E002 | C4: Demand-side improvements (excluding leakage and metering)_Benefit_rWRMP24_Table 8e: preferred programme_E2 | D4: Ml/d | E4: Price Review 2024
A5: ANH | B5: RWRMP24_8B006 | C5: Demand-side improvements (excl. leakage and metering)_Totex_rWRMP24_Table 8b: preferred programme_B6 | D5: £m | E5: Price Review 2024
A6: WSH | B6: RWRMP24_8E002 | C6: Demand-side improvements (excluding leakage and metering)_Benefit_rWRMP24_Table 8e: preferred programme_E2 | D6: Ml/d | E6: Price Review 2024
A7: WSH | B7: RWRMP24_8B006 | C7: Demand-side improvements (excl. leakage and metering)_Totex_rWRMP24_Table 8b: preferred programme_B6 | D7: £m | E7: Price Review 2024
A8: HDD | B8: RWRMP24_8E002 | C8: Demand-side improvements (excluding leakage and metering)_Benefit_rWRMP24_Table 8e: preferred programme_E2 | D8: Ml/d | E8: Price Review 2024
A9: HDD | B9: RWRMP24_8B006 | C9: Demand-side improvements (excl. leakage and metering)_Totex_rWRMP24_Table 8b: preferred programme_B6 | D9: £m | E9: Price Review 2024 | F9: 0.147343424 | G9: 0.147343424 | H9: 0.072213128 | I9: 0.072213128 | J9: 0.072213128 | K9: =SUM(F9:J9) -> 0.511326232
A10: NES | B10: RWRMP24_8E002 | C10: Demand-side improvements (excluding leakage and metering)_Benefit_rWRMP24_Table 8e: preferred programme_E2 | D10: Ml/d | E10: Price Review 2024
A11: NES | B11: RWRMP24_8B006 | C11: Demand-side improvements (excl. leakage and metering)_Totex_rWRMP24_Table 8b: preferred programme_B6 | D11: £m | E11: Price Review 2024
A12: SVE | B12: RWRMP24_8E002 | C12: Demand-side improvements (excluding leakage and metering)_Benefit_rWRMP24_Table 8e: preferred programme_E2 | D12: Ml/d | E12: Price Review 2024
A13: SVE | B13: RWRMP24_8B006 | C13: Demand-side improvements (excl. leakage and metering)_Totex_rWRMP24_Table 8b: preferred programme_B6 | D13: £m | E13: Price Review 2024
A14: SWB | B14: RWRMP24_8E002 | C14: Demand-side improvements (excluding leakage and metering)_Benefit_rWRMP24_Table 8e: preferred programme_E2 | D14: Ml/d | E14: Price Review 2024
A15: SWB | B15: RWRMP24_8B006 | C15: Demand-side improvements (excl. leakage and metering)_Totex_rWRMP24_Table 8b: preferred programme_B6 | D15: £m | E15: Price Review 2024
A16: SRN | B16: RWRMP24_8E002 | C16: Demand-side improvements (excluding leakage and metering)_Benefit_rWRMP24_Table 8e: preferred programme_E2 | D16: Ml/d | E16: Price Review 2024
A17: SRN | B17: RWRMP24_8B006 | C17: Demand-side improvements (excl. leakage and metering)_Totex_rWRMP24_Table 8b: preferred programme_B6 | D17: £m | E17: Price Review 2024
A18: TMS | B18: RWRMP24_8E002 | C18: Demand-side improvements (excluding leakage and metering)_Benefit_rWRMP24_Table 8e: preferred programme_E2 | D18: Ml/d | E18: Price Review 2024
A19: TMS | B19: RWRMP24_8B006 | C19: Demand-side improvements (excl. leakage and metering)_Totex_rWRMP24_Table 8b: preferred programme_B6 | D19: £m | E19: Price Review 2024
A20: NWT | B20: RWRMP24_8E002 | C20: Demand-side improvements (excluding leakage and metering)_Benefit_rWRMP24_Table 8e: preferred programme_E2 | D20: Ml/d | E20: Price Review 2024
A21: NWT | B21: RWRMP24_8B006 | C21: Demand-side improvements (excl. leakage and metering)_Totex_rWRMP24_Table 8b: preferred programme_B6 | D21: £m | E21: Price Review 2024
A22: WSX | B22: RWRMP24_8E002 | C22: Demand-side improvements (excluding leakage and metering)_Benefit_rWRMP24_Table 8e: preferred programme_E2 | D22: Ml/d | E22: Price Review 2024
A23: WSX | B23: RWRMP24_8B006 | C23: Demand-side improvements (excl. leakage and metering)_Totex_rWRMP24_Table 8b: preferred programme_B6 | D23: £m | E23: Price Review 2024
A24: YKY | B24: RWRMP24_8E002 | C24: Demand-side improvements (excluding leakage and metering)_Benefit_rWRMP24_Table 8e: preferred programme_E2 | D24: Ml/d | E24: Price Review 2024
A25: YKY | B25: RWRMP24_8B006 | C25: Demand-side improvements (excl. leakage and metering)_Totex_rWRMP24_Table 8b: preferred programme_B6 | D25: £m | E25: Price Review 2024
A26: AFW | B26: RWRMP24_8E002 | C26: Demand-side improvements (excluding leakage and metering)_Benefit_rWRMP24_Table 8e: preferred programme_E2 | D26: Ml/d | E26: Price Review 2024
A27: AFW | B27: RWRMP24_8B006 | C27: Demand-side improvements (excl. leakage and metering)_Totex_rWRMP24_Table 8b: preferred programme_B6 | D27: £m | E27: Price Review 2024
A28: BRL | B28: RWRMP24_8E002 | C28: Demand-side improvements (excluding leakage and metering)_Benefit_rWRMP24_Table 8e: preferred programme_E2 | D28: Ml/d | E28: Price Review 2024
A29: BRL | B29: RWRMP24_8B006 | C29: Demand-side improvements (excl. leakage and metering)_Totex_rWRMP24_Table 8b: preferred programme_B6 | D29: £m | E29: Price Review 2024 | F29: 0.2343995622 | G29: 0.2331613667 | H29: 0.2345087156 | I29: 0.2358560644 | J29: 0.2365297389 | K29: 1.174455448
A30: PRT | B30: RWRMP24_8E002 | C30: Demand-side improvements (excluding leakage and metering)_Benefit_rWRMP24_Table 8e: preferred programme_E2 | D30: Ml/d | E30: Price Review 2024
A31: PRT | B31: RWRMP24_8B006 | C31: Demand-side improvements (excl. leakage and metering)_Totex_rWRMP24_Table 8b: preferred programme_B6 | D31: £m | E31: Price Review 2024
A32: SEW | B32: RWRMP24_8E002 | C32: Demand-side improvements (excluding leakage and metering)_Benefit_rWRMP24_Table 8e: preferred programme_E2 | D32: Ml/d | E32: Price Review 2024
A33: SEW | B33: RWRMP24_8B006 | C33: Demand-side improvements (excl. leakage and metering)_Totex_rWRMP24_Table 8b: preferred programme_B6 | D33: £m | E33: Price Review 2024
A34: SES | B34: RWRMP24_8E002 | C34: Demand-side improvements (excluding leakage and metering)_Benefit_rWRMP24_Table 8e: preferred programme_E2 | D34: Ml/d | E34: Price Review 2024
A35: SES | B35: RWRMP24_8B006 | C35: Demand-side improvements (excl. leakage and metering)_Totex_rWRMP24_Table 8b: preferred programme_B6 | D35: £m | E35: Price Review 2024
A36: SSC | B36: RWRMP24_8E002 | C36: Demand-side improvements (excluding leakage and metering)_Benefit_rWRMP24_Table 8e: preferred programme_E2 | D36: Ml/d | E36: Price Review 2024
A37: SSC | B37: RWRMP24_8B006 | C37: Demand-side improvements (excl. leakage and metering)_Totex_rWRMP24_Table 8b: preferred programme_B6 | D37: £m | E37: Price Review 2024
A38: CAM | B38: RWRMP24_8E002 | C38: Demand-side improvements (excluding leakage and metering)_Benefit_rWRMP24_Table 8e: preferred programme_E2 | D38: Ml/d | E38: Price Review 2024
A39: CAM | B39: RWRMP24_8B006 | C39: Demand-side improvements (excl. leakage and metering)_Totex_rWRMP24_Table 8b: preferred programme_B6 | D39: £m | E39: Price Review 2024

Sheet WRMP Override explanations
A1: =RIGHT(CELL("filename", $A$1), LEN(CELL("filename", $A$1)) - SEARCH("]", CELL("filename", $A$1))) -> WRMP Override explanations
C2: Water Efficiency WRMP
A3: Acronym | B3: Reference | C3: Item description | D3: Unit | E3: Model | F3: 2025-26 | G3: 2026-27 | H3: 2027-28 | I3: 2028-29 | J3: 2029-30
A4: ANH | B4: RWRMP24_8E002 | C4: Demand-side improvements (excluding leakage and metering)_Benefit_rWRMP24_Table 8e: preferred programme_E2 | D4: Ml/d | E4: Price Review 2024
A5: ANH | B5: RWRMP24_8B006 | C5: Demand-side improvements (excl. leakage and metering)_Totex_rWRMP24_Table 8b: preferred programme_B6 | D5: £m | E5: Price Review 2024
A6: WSH | B6: RWRMP24_8E002 | C6: Demand-side improvements (excluding leakage and metering)_Benefit_rWRMP24_Table 8e: preferred programme_E2 | D6: Ml/d | E6: Price Review 2024
A7: WSH | B7: RWRMP24_8B006 | C7: Demand-side improvements (excl. leakage and metering)_Totex_rWRMP24_Table 8b: preferred programme_B6 | D7: £m | E7: Price Review 2024
A8: HDD | B8: RWRMP24_8E002 | C8: Demand-side improvements (excluding leakage and metering)_Benefit_rWRMP24_Table 8e: preferred programme_E2 | D8: Ml/d | E8: Price Review 2024
A9: HDD | B9: RWRMP24_8B006 | C9: Demand-side improvements (excl. leakage and metering)_Totex_rWRMP24_Table 8b: preferred programme_B6 | D9: £m | E9: Price Review 2024 | F9: Units converted from £000's to £m's
A10: NES | B10: RWRMP24_8E002 | C10: Demand-side improvements (excluding leakage and metering)_Benefit_rWRMP24_Table 8e: preferred programme_E2 | D10: Ml/d | E10: Price Review 2024
A11: NES | B11: RWRMP24_8B006 | C11: Demand-side improvements (excl. leakage and metering)_Totex_rWRMP24_Table 8b: preferred programme_B6 | D11: £m | E11: Price Review 2024
A12: SVE | B12: RWRMP24_8E002 | C12: Demand-side improvements (excluding leakage and metering)_Benefit_rWRMP24_Table 8e: preferred programme_E2 | D12: Ml/d | E12: Price Review 2024
A13: SVE | B13: RWRMP24_8B006 | C13: Demand-side improvements (excl. leakage and metering)_Totex_rWRMP24_Table 8b: preferred programme_B6 | D13: £m | E13: Price Review 2024
A14: SWB | B14: RWRMP24_8E002 | C14: Demand-side improvements (excluding leakage and metering)_Benefit_rWRMP24_Table 8e: preferred programme_E2 | D14: Ml/d | E14: Price Review 2024
A15: SWB | B15: RWRMP24_8B006 | C15: Demand-side improvements (excl. leakage and metering)_Totex_rWRMP24_Table 8b: preferred programme_B6 | D15: £m | E15: Price Review 2024
A16: SRN | B16: RWRMP24_8E002 | C16: Demand-side improvements (excluding leakage and metering)_Benefit_rWRMP24_Table 8e: preferred programme_E2 | D16: Ml/d | E16: Price Review 2024
A17: SRN | B17: RWRMP24_8B006 | C17: Demand-side improvements (excl. leakage and metering)_Totex_rWRMP24_Table 8b: preferred programme_B6 | D17: £m | E17: Price Review 2024
A18: TMS | B18: RWRMP24_8E002 | C18: Demand-side improvements (excluding leakage and metering)_Benefit_rWRMP24_Table 8e: preferred programme_E2 | D18: Ml/d | E18: Price Review 2024
A19: TMS | B19: RWRMP24_8B006 | C19: Demand-side improvements (excl. leakage and metering)_Totex_rWRMP24_Table 8b: preferred programme_B6 | D19: £m | E19: Price Review 2024
A20: NWT | B20: RWRMP24_8E002 | C20: Demand-side improvements (excluding leakage and metering)_Benefit_rWRMP24_Table 8e: preferred programme_E2 | D20: Ml/d | E20: Price Review 2024
A21: NWT | B21: RWRMP24_8B006 | C21: Demand-side improvements (excl. leakage and metering)_Totex_rWRMP24_Table 8b: preferred programme_B6 | D21: £m | E21: Price Review 2024
A22: WSX | B22: RWRMP24_8E002 | C22: Demand-side improvements (excluding leakage and metering)_Benefit_rWRMP24_Table 8e: preferred programme_E2 | D22: Ml/d | E22: Price Review 2024
A23: WSX | B23: RWRMP24_8B006 | C23: Demand-side improvements (excl. leakage and metering)_Totex_rWRMP24_Table 8b: preferred programme_B6 | D23: £m | E23: Price Review 2024
A24: YKY | B24: RWRMP24_8E002 | C24: Demand-side improvements (excluding leakage and metering)_Benefit_rWRMP24_Table 8e: preferred programme_E2 | D24: Ml/d | E24: Price Review 2024
A25: YKY | B25: RWRMP24_8B006 | C25: Demand-side improvements (excl. leakage and metering)_Totex_rWRMP24_Table 8b: preferred programme_B6 | D25: £m | E25: Price Review 2024
A26: AFW | B26: RWRMP24_8E002 | C26: Demand-side improvements (excluding leakage and metering)_Benefit_rWRMP24_Table 8e: preferred programme_E2 | D26: Ml/d | E26: Price Review 2024
A27: AFW | B27: RWRMP24_8B006 | C27: Demand-side improvements (excl. leakage and metering)_Totex_rWRMP24_Table 8b: preferred programme_B6 | D27: £m | E27: Price Review 2024
A28: BRL | B28: RWRMP24_8E002 | C28: Demand-side improvements (excluding leakage and metering)_Benefit_rWRMP24_Table 8e: preferred programme_E2 | D28: Ml/d | E28: Price Review 2024
A29: BRL | B29: RWRMP24_8B006 | C29: Demand-side improvements (excl. leakage and metering)_Totex_rWRMP24_Table 8b: preferred programme_B6 | D29: £m | E29: Price Review 2024 | F29: Units converted from £000's to £m's
A30: PRT | B30: RWRMP24_8E002 | C30: Demand-side improvements (excluding leakage and metering)_Benefit_rWRMP24_Table 8e: preferred programme_E2 | D30: Ml/d | E30: Price Review 2024
A31: PRT | B31: RWRMP24_8B006 | C31: Demand-side improvements (excl. leakage and metering)_Totex_rWRMP24_Table 8b: preferred programme_B6 | D31: £m | E31: Price Review 2024
A32: SEW | B32: RWRMP24_8E002 | C32: Demand-side improvements (excluding leakage and metering)_Benefit_rWRMP24_Table 8e: preferred programme_E2 | D32: Ml/d | E32: Price Review 2024
A33: SEW | B33: RWRMP24_8B006 | C33: Demand-side improvements (excl. leakage and metering)_Totex_rWRMP24_Table 8b: preferred programme_B6 | D33: £m | E33: Price Review 2024
A34: SES | B34: RWRMP24_8E002 | C34: Demand-side improvements (excluding leakage and metering)_Benefit_rWRMP24_Table 8e: preferred programme_E2 | D34: Ml/d | E34: Price Review 2024
A35: SES | B35: RWRMP24_8B006 | C35: Demand-side improvements (excl. leakage and metering)_Totex_rWRMP24_Table 8b: preferred programme_B6 | D35: £m | E35: Price Review 2024
A36: SSC | B36: RWRMP24_8E002 | C36: Demand-side improvements (excluding leakage and metering)_Benefit_rWRMP24_Table 8e: preferred programme_E2 | D36: Ml/d | E36: Price Review 2024
A37: SSC | B37: RWRMP24_8B006 | C37: Demand-side improvements (excl. leakage and metering)_Totex_rWRMP24_Table 8b: preferred programme_B6 | D37: £m | E37: Price Review 2024
A38: CAM | B38: RWRMP24_8E002 | C38: Demand-side improvements (excluding leakage and metering)_Benefit_rWRMP24_Table 8e: preferred programme_E2 | D38: Ml/d | E38: Price Review 2024
A39: CAM | B39: RWRMP24_8B006 | C39: Demand-side improvements (excl. leakage and metering)_Totex_rWRMP24_Table 8b: preferred programme_B6 | D39: £m | E39: Price Review 2024

Sheet F_Inputs WRMP Final
A1: =RIGHT(CELL("filename", $A$1), LEN(CELL("filename", $A$1)) - SEARCH("]", CELL("filename", $A$1))) -> F_Inputs WRMP Final
C2: Water Efficiency WRMP
A3: Acronym | B3: Reference | C3: Item description | D3: Unit | E3: Model | F3: 2025-26 | G3: 2026-27 | H3: 2027-28 | I3: 2028-29 | J3: 2029-30 | K3: Total
A4: ANH | B4: RWRMP24_8E002 | C4: Demand-side improvements (excluding leakage and metering)_Benefit_rWRMP24_Table 8e: preferred programme_E2 | D4: Ml/d | E4: Price Review 2024 | F4: =IF('F_Inputs WRMP Override'!F4="",'F_Inputs WRMP'!F9,'F_Inputs WRMP Override'!F4) -> 4.815765499 | G4: =IF('F_Inputs WRMP Override'!G4="",'F_Inputs WRMP'!G9,'F_Inputs WRMP Override'!G4) -> 3.683989076 | H4: =IF('F_Inputs WRMP Override'!H4="",'F_Inputs WRMP'!H9,'F_Inputs WRMP Override'!H4) -> 3.737472344 | I4: =IF('F_Inputs WRMP Override'!I4="",'F_Inputs WRMP'!I9,'F_Inputs WRMP Override'!I4) -> 5.508198072 | J4: =IF('F_Inputs WRMP Override'!J4="",'F_Inputs WRMP'!J9,'F_Inputs WRMP Override'!J4) -> 5.545129723 | K4: =IF('F_Inputs WRMP Override'!K4="",'F_Inputs WRMP'!K9,'F_Inputs WRMP Override'!K4) -> 23.29055472
A5: ANH | B5: RWRMP24_8B006 | C5: Demand-side improvements (excl. leakage and metering)_Totex_rWRMP24_Table 8b: preferred programme_B6 | D5: £m | E5: Price Review 2024 | F5: =IF('F_Inputs WRMP Override'!F5="",'F_Inputs WRMP'!F10,'F_Inputs WRMP Override'!F5) -> 4.246756704 | G5: =IF('F_Inputs WRMP Override'!G5="",'F_Inputs WRMP'!G10,'F_Inputs WRMP Override'!G5) -> 4.111133709 | H5: =IF('F_Inputs WRMP Override'!H5="",'F_Inputs WRMP'!H10,'F_Inputs WRMP Override'!H5) -> 4.277333896 | I5: =IF('F_Inputs WRMP Override'!I5="",'F_Inputs WRMP'!I10,'F_Inputs WRMP Override'!I5) -> 4.431553152 | J5: =IF('F_Inputs WRMP Override'!J5="",'F_Inputs WRMP'!J10,'F_Inputs WRMP Override'!J5) -> 4.58414564 | K5: =IF('F_Inputs WRMP Override'!K5="",'F_Inputs WRMP'!K10,'F_Inputs WRMP Override'!K5) -> 21.6509231
A6: WSH | B6: RWRMP24_8E002 | C6: Demand-side improvements (excluding leakage and metering)_Benefit_rWRMP24_Table 8e: preferred programme_E2 | D6: Ml/d | E6: Price Review 2024 | F6: =IF('F_Inputs WRMP Override'!F6="",'F_Inputs WRMP'!F11,'F_Inputs WRMP Override'!F6) -> 0.5549571229 | G6: =IF('F_Inputs WRMP Override'!G6="",'F_Inputs WRMP'!G11,'F_Inputs WRMP Override'!G6) -> 0.7603793856 | H6: =IF('F_Inputs WRMP Override'!H6="",'F_Inputs WRMP'!H11,'F_Inputs WRMP Override'!H6) -> 0.9655114154 | I6: =IF('F_Inputs WRMP Override'!I6="",'F_Inputs WRMP'!I11,'F_Inputs WRMP Override'!I6) -> 1.776704758 | J6: =IF('F_Inputs WRMP Override'!J6="",'F_Inputs WRMP'!J11,'F_Inputs WRMP Override'!J6) -> 0.7520002903 | K6: =IF('F_Inputs WRMP Override'!K6="",'F_Inputs WRMP'!K11,'F_Inputs WRMP Override'!K6) -> 4.809552972
A7: WSH | B7: RWRMP24_8B006 | C7: Demand-side improvements (excl. leakage and metering)_Totex_rWRMP24_Table 8b: preferred programme_B6 | D7: £m | E7: Price Review 2024 | F7: =IF('F_Inputs WRMP Override'!F7="",'F_Inputs WRMP'!F12,'F_Inputs WRMP Override'!F7) -> 2.74129058 | G7: =IF('F_Inputs WRMP Override'!G7="",'F_Inputs WRMP'!G12,'F_Inputs WRMP Override'!G7) -> 2.700577972 | H7: =IF('F_Inputs WRMP Override'!H7="",'F_Inputs WRMP'!H12,'F_Inputs WRMP Override'!H7) -> 2.696836024 | I7: =IF('F_Inputs WRMP Override'!I7="",'F_Inputs WRMP'!I12,'F_Inputs WRMP Override'!I7) -> 2.710169982 | J7: =IF('F_Inputs WRMP Override'!J7="",'F_Inputs WRMP'!J12,'F_Inputs WRMP Override'!J7) -> 2.744344401 | K7: =IF('F_Inputs WRMP Override'!K7="",'F_Inputs WRMP'!K12,'F_Inputs WRMP Override'!K7) -> 13.59321896
A8: HDD | B8: RWRMP24_8E002 | C8: Demand-side improvements (excluding leakage and metering)_Benefit_rWRMP24_Table 8e: preferred programme_E2 | D8: Ml/d | E8: Price Review 2024 | F8: =IF('F_Inputs WRMP Override'!F8="",'F_Inputs WRMP'!F13,'F_Inputs WRMP Override'!F8) -> 0.1553533264 | G8: =IF('F_Inputs WRMP Override'!G8="",'F_Inputs WRMP'!G13,'F_Inputs WRMP Override'!G8) -> 0.1551976209 | H8: =IF('F_Inputs WRMP Override'!H8="",'F_Inputs WRMP'!H13,'F_Inputs WRMP Override'!H8) -> 0.1450457472 | I8: =IF('F_Inputs WRMP Override'!I8="",'F_Inputs WRMP'!I13,'F_Inputs WRMP Override'!I8) -> 0.1548975799 | J8: =IF('F_Inputs WRMP Override'!J8="",'F_Inputs WRMP'!J13,'F_Inputs WRMP Override'!J8) -> 0.1547529908 | K8: =IF('F_Inputs WRMP Override'!K8="",'F_Inputs WRMP'!K13,'F_Inputs WRMP Override'!K8) -> 0.7652472651
A9: HDD | B9: RWRMP24_8B006 | C9: Demand-side improvements (excl. leakage and metering)_Totex_rWRMP24_Table 8b: preferred programme_B6 | D9: £m | E9: Price Review 2024 | F9: =IF('F_Inputs WRMP Override'!F9="",'F_Inputs WRMP'!F14,'F_Inputs WRMP Override'!F9) -> 0.147343424 | G9: =IF('F_Inputs WRMP Override'!G9="",'F_Inputs WRMP'!G14,'F_Inputs WRMP Override'!G9) -> 0.147343424 | H9: =IF('F_Inputs WRMP Override'!H9="",'F_Inputs WRMP'!H14,'F_Inputs WRMP Override'!H9) -> 0.072213128 | I9: =IF('F_Inputs WRMP Override'!I9="",'F_Inputs WRMP'!I14,'F_Inputs WRMP Override'!I9) -> 0.072213128 | J9: =IF('F_Inputs WRMP Override'!J9="",'F_Inputs WRMP'!J14,'F_Inputs WRMP Override'!J9) -> 0.072213128 | K9: =IF('F_Inputs WRMP Override'!K9="",'F_Inputs WRMP'!K14,'F_Inputs WRMP Override'!K9) -> 0.511326232
A10: NES | B10: RWRMP24_8E002 | C10: Demand-side improvements (excluding leakage and metering)_Benefit_rWRMP24_Table 8e: preferred programme_E2 | D10: Ml/d | E10: Price Review 2024 | F10: =IF('F_Inputs WRMP Override'!F10="",'F_Inputs WRMP'!F15,'F_Inputs WRMP Override'!F10) -> 3.988535144 | G10: =IF('F_Inputs WRMP Override'!G10="",'F_Inputs WRMP'!G15,'F_Inputs WRMP Override'!G10) -> 8.148811645 | H10: =IF('F_Inputs WRMP Override'!H10="",'F_Inputs WRMP'!H15,'F_Inputs WRMP Override'!H10) -> 12.31357669 | I10: =IF('F_Inputs WRMP Override'!I10="",'F_Inputs WRMP'!I15,'F_Inputs WRMP Override'!I10) -> 16.45904331 | J10: =IF('F_Inputs WRMP Override'!J10="",'F_Inputs WRMP'!J15,'F_Inputs WRMP Override'!J10) -> 20.58537021 | K10: =IF('F_Inputs WRMP Override'!K10="",'F_Inputs WRMP'!K15,'F_Inputs WRMP Override'!K10) -> 61.495337
A11: NES | B11: RWRMP24_8B006 | C11: Demand-side improvements (excl. leakage and metering)_Totex_rWRMP24_Table 8b: preferred programme_B6 | D11: £m | E11: Price Review 2024 | F11: =IF('F_Inputs WRMP Override'!F11="",'F_Inputs WRMP'!F16,'F_Inputs WRMP Override'!F11) -> 3.147021073 | G11: =IF('F_Inputs WRMP Override'!G11="",'F_Inputs WRMP'!G16,'F_Inputs WRMP Override'!G11) -> 3.314621601 | H11: =IF('F_Inputs WRMP Override'!H11="",'F_Inputs WRMP'!H16,'F_Inputs WRMP Override'!H11) -> 3.314621601 | I11: =IF('F_Inputs WRMP Override'!I11="",'F_Inputs WRMP'!I16,'F_Inputs WRMP Override'!I11) -> 3.326152035 | J11: =IF('F_Inputs WRMP Override'!J11="",'F_Inputs WRMP'!J16,'F_Inputs WRMP Override'!J11) -> 3.327678813 | K11: =IF('F_Inputs WRMP Override'!K11="",'F_Inputs WRMP'!K16,'F_Inputs WRMP Override'!K11) -> 16.43009512
A12: SVE | B12: RWRMP24_8E002 | C12: Demand-side improvements (excluding leakage and metering)_Benefit_rWRMP24_Table 8e: preferred programme_E2 | D12: Ml/d | E12: Price Review 2024 | F12: =IF('F_Inputs WRMP Override'!F12="",'F_Inputs WRMP'!F17,'F_Inputs WRMP Override'!F12) -> 0.7897692696 | G12: =IF('F_Inputs WRMP Override'!G12="",'F_Inputs WRMP'!G17,'F_Inputs WRMP Override'!G12) -> 0.8928278494 | H12: =IF('F_Inputs WRMP Override'!H12="",'F_Inputs WRMP'!H17,'F_Inputs WRMP Override'!H12) -> 1.02135478 | I12: =IF('F_Inputs WRMP Override'!I12="",'F_Inputs WRMP'!I17,'F_Inputs WRMP Override'!I12) -> 0.9362288894 | J12: =IF('F_Inputs WRMP Override'!J12="",'F_Inputs WRMP'!J17,'F_Inputs WRMP Override'!J12) -> 0.9825109273 | K12: =IF('F_Inputs WRMP Override'!K12="",'F_Inputs WRMP'!K17,'F_Inputs WRMP Override'!K12) -> 4.622691716
A13: SVE | B13: RWRMP24_8B006 | C13: Demand-side improvements (excl. leakage and metering)_Totex_rWRMP24_Table 8b: preferred programme_B6 | D13: £m | E13: Price Review 2024 | F13: =IF('F_Inputs WRMP Override'!F13="",'F_Inputs WRMP'!F18,'F_Inputs WRMP Override'!F13) -> 1.152675788 | G13: =IF('F_Inputs WRMP Override'!G13="",'F_Inputs WRMP'!G18,'F_Inputs WRMP Override'!G13) -> 1.154735759 | H13: =IF('F_Inputs WRMP Override'!H13="",'F_Inputs WRMP'!H18,'F_Inputs WRMP Override'!H13) -> 1.157304801 | I13: =IF('F_Inputs WRMP Override'!I13="",'F_Inputs WRMP'!I18,'F_Inputs WRMP Override'!I13) -> 1.155603275 | J13: =IF('F_Inputs WRMP Override'!J13="",'F_Inputs WRMP'!J18,'F_Inputs WRMP Override'!J13) -> 1.156528377 | K13: =IF('F_Inputs WRMP Override'!K13="",'F_Inputs WRMP'!K18,'F_Inputs WRMP Override'!K13) -> 5.776848
A14: SWB | B14: RWRMP24_8E002 | C14: Demand-side improvements (excluding leakage and metering)_Benefit_rWRMP24_Table 8e: preferred programme_E2 | D14: Ml/d | E14: Price Review 2024 | F14: =IF('F_Inputs WRMP Override'!F14="",'F_Inputs WRMP'!F19,'F_Inputs WRMP Override'!F14) -> 2.46 | G14: =IF('F_Inputs WRMP Override'!G14="",'F_Inputs WRMP'!G19,'F_Inputs WRMP Override'!G14) -> 2.7 | H14: =IF('F_Inputs WRMP Override'!H14="",'F_Inputs WRMP'!H19,'F_Inputs WRMP Override'!H14) -> 2.8 | I14: =IF('F_Inputs WRMP Override'!I14="",'F_Inputs WRMP'!I19,'F_Inputs WRMP Override'!I14) -> 2.53 | J14: =IF('F_Inputs WRMP Override'!J14="",'F_Inputs WRMP'!J19,'F_Inputs WRMP Override'!J14) -> 2.41 | K14: =IF('F_Inputs WRMP Override'!K14="",'F_Inputs WRMP'!K19,'F_Inputs WRMP Override'!K14) -> 12.9
A15: SWB | B15: RWRMP24_8B006 | C15: Demand-side improvements (excl. leakage and metering)_Totex_rWRMP24_Table 8b: preferred programme_B6 | D15: £m | E15: Price Review 2024 | F15: =IF('F_Inputs WRMP Override'!F15="",'F_Inputs WRMP'!F20,'F_Inputs WRMP Override'!F15) -> 2.086 | G15: =IF('F_Inputs WRMP Override'!G15="",'F_Inputs WRMP'!G20,'F_Inputs WRMP Override'!G15) -> 1.751 | H15: =IF('F_Inputs WRMP Override'!H15="",'F_Inputs WRMP'!H20,'F_Inputs WRMP Override'!H15) -> 2.702 | I15: =IF('F_Inputs WRMP Override'!I15="",'F_Inputs WRMP'!I20,'F_Inputs WRMP Override'!I15) -> 1.581 | J15: =IF('F_Inputs WRMP Override'!J15="",'F_Inputs WRMP'!J20,'F_Inputs WRMP Override'!J15) -> 1.329 | K15: =IF('F_Inputs WRMP Override'!K15="",'F_Inputs WRMP'!K20,'F_Inputs WRMP Override'!K15) -> 9.449
A16: SRN | B16: RWRMP24_8E002 | C16: Demand-side improvements (excluding leakage and metering)_Benefit_rWRMP24_Table 8e: preferred programme_E2 | D16: Ml/d | E16: Price Review 2024 | F16: =IF('F_Inputs WRMP Override'!F16="",'F_Inputs WRMP'!F21,'F_Inputs WRMP Override'!F16) -> 1.5976 | G16: =IF('F_Inputs WRMP Override'!G16="",'F_Inputs WRMP'!G21,'F_Inputs WRMP Override'!G16) -> 1.6318 | H16: =IF('F_Inputs WRMP Override'!H16="",'F_Inputs WRMP'!H21,'F_Inputs WRMP Override'!H16) -> 1.6351 | I16: =IF('F_Inputs WRMP Override'!I16="",'F_Inputs WRMP'!I21,'F_Inputs WRMP Override'!I16) -> 1.6419 | J16: =IF('F_Inputs WRMP Override'!J16="",'F_Inputs WRMP'!J21,'F_Inputs WRMP Override'!J16) -> 1.6346 | K16: =IF('F_Inputs WRMP Override'!K16="",'F_Inputs WRMP'!K21,'F_Inputs WRMP Override'!K16) -> 8.141
A17: SRN | B17: RWRMP24_8B006 | C17: Demand-side improvements (excl. leakage and metering)_Totex_rWRMP24_Table 8b: preferred programme_B6 | D17: £m | E17: Price Review 2024 | F17: =IF('F_Inputs WRMP Override'!F17="",'F_Inputs WRMP'!F22,'F_Inputs WRMP Override'!F17) -> 2.098400006 | G17: =IF('F_Inputs WRMP Override'!G17="",'F_Inputs WRMP'!G22,'F_Inputs WRMP Override'!G17) -> 2.348400004 | H17: =IF('F_Inputs WRMP Override'!H17="",'F_Inputs WRMP'!H22,'F_Inputs WRMP Override'!H17) -> 2.348399992 | I17: =IF('F_Inputs WRMP Override'!I17="",'F_Inputs WRMP'!I22,'F_Inputs WRMP Override'!I17) -> 2.34840001 | J17: =IF('F_Inputs WRMP Override'!J17="",'F_Inputs WRMP'!J22,'F_Inputs WRMP Override'!J17) -> 3.348399987 | K17: =IF('F_Inputs WRMP Override'!K17="",'F_Inputs WRMP'!K22,'F_Inputs WRMP Override'!K17) -> 12.492
A18: TMS | B18: RWRMP24_8E002 | C18: Demand-side improvements (excluding leakage and metering)_Benefit_rWRMP24_Table 8e: preferred programme_E2 | D18: Ml/d | E18: Price Review 2024 | F18: =IF('F_Inputs WRMP Override'!F18="",'F_Inputs WRMP'!F23,'F_Inputs WRMP Override'!F18) -> 10.2419 | G18: =IF('F_Inputs WRMP Override'!G18="",'F_Inputs WRMP'!G23,'F_Inputs WRMP Override'!G18) -> 10.2442 | H18: =IF('F_Inputs WRMP Override'!H18="",'F_Inputs WRMP'!H23,'F_Inputs WRMP Override'!H18) -> 10.2445 | I18: =IF('F_Inputs WRMP Override'!I18="",'F_Inputs WRMP'!I23,'F_Inputs WRMP Override'!I18) -> 10.2444 | J18: =IF('F_Inputs WRMP Override'!J18="",'F_Inputs WRMP'!J23,'F_Inputs WRMP Override'!J18) -> 10.2441 | K18: =IF('F_Inputs WRMP Override'!K18="",'F_Inputs WRMP'!K23,'F_Inputs WRMP Override'!K18) -> 51.2191
A19: TMS | B19: RWRMP24_8B006 | C19: Demand-side improvements (excl. leakage and metering)_Totex_rWRMP24_Table 8b: preferred programme_B6 | D19: £m | E19: Price Review 2024 | F19: =IF('F_Inputs WRMP Override'!F19="",'F_Inputs WRMP'!F24,'F_Inputs WRMP Override'!F19) -> 9.301702586 | G19: =IF('F_Inputs WRMP Override'!G19="",'F_Inputs WRMP'!G24,'F_Inputs WRMP Override'!G19) -> 9.301702586 | H19: =IF('F_Inputs WRMP Override'!H19="",'F_Inputs WRMP'!H24,'F_Inputs WRMP Override'!H19) -> 9.301702586 | I19: =IF('F_Inputs WRMP Override'!I19="",'F_Inputs WRMP'!I24,'F_Inputs WRMP Override'!I19) -> 9.301702586 | J19: =IF('F_Inputs WRMP Override'!J19="",'F_Inputs WRMP'!J24,'F_Inputs WRMP Override'!J19) -> 9.301702586 | K19: =IF('F_Inputs WRMP Override'!K19="",'F_Inputs WRMP'!K24,'F_Inputs WRMP Override'!K19) -> 46.50851293
A20: NWT | B20: RWRMP24_8E002 | C20: Demand-side improvements (excluding leakage and metering)_Benefit_rWRMP24_Table 8e: preferred programme_E2 | D20: Ml/d | E20: Price Review 2024 | F20: =IF('F_Inputs WRMP Override'!F20="",'F_Inputs WRMP'!F25,'F_Inputs WRMP Override'!F20) -> 3.771752154 | G20: =IF('F_Inputs WRMP Override'!G20="",'F_Inputs WRMP'!G25,'F_Inputs WRMP Override'!G20) -> 5.277581241 | H20: =IF('F_Inputs WRMP Override'!H20="",'F_Inputs WRMP'!H25,'F_Inputs WRMP Override'!H20) -> 5.315247362 | I20: =IF('F_Inputs WRMP Override'!I20="",'F_Inputs WRMP'!I25,'F_Inputs WRMP Override'!I20) -> 5.136743109 | J20: =IF('F_Inputs WRMP Override'!J20="",'F_Inputs WRMP'!J25,'F_Inputs WRMP Override'!J20) -> 5.016019893 | K20: =IF('F_Inputs WRMP Override'!K20="",'F_Inputs WRMP'!K25,'F_Inputs WRMP Override'!K20) -> 24.51734376
A21: NWT | B21: RWRMP24_8B006 | C21: Demand-side improvements (excl. leakage and metering)_Totex_rWRMP24_Table 8b: preferred programme_B6 | D21: £m | E21: Price Review 2024 | F21: =IF('F_Inputs WRMP Override'!F21="",'F_Inputs WRMP'!F26,'F_Inputs WRMP Override'!F21) -> 3.85444371 | G21: =IF('F_Inputs WRMP Override'!G21="",'F_Inputs WRMP'!G26,'F_Inputs WRMP Override'!G21) -> 4.042215975 | H21: =IF('F_Inputs WRMP Override'!H21="",'F_Inputs WRMP'!H26,'F_Inputs WRMP Override'!H21) -> 4.201054991 | I21: =IF('F_Inputs WRMP Override'!I21="",'F_Inputs WRMP'!I26,'F_Inputs WRMP Override'!I21) -> 4.127493747 | J21: =IF('F_Inputs WRMP Override'!J21="",'F_Inputs WRMP'!J26,'F_Inputs WRMP Override'!J21) -> 4.068604438 | K21: =IF('F_Inputs WRMP Override'!K21="",'F_Inputs WRMP'!K26,'F_Inputs WRMP Override'!K21) -> 20.29381286
A22: WSX | B22: RWRMP24_8E002 | C22: Demand-side improvements (excluding leakage and metering)_Benefit_rWRMP24_Table 8e: preferred programme_E2 | D22: Ml/d | E22: Price Review 2024 | F22: =IF('F_Inputs WRMP Override'!F22="",'F_Inputs WRMP'!F27,'F_Inputs WRMP Override'!F22) -> 2.813221374 | G22: =IF('F_Inputs WRMP Override'!G22="",'F_Inputs WRMP'!G27,'F_Inputs WRMP Override'!G22) -> 5.452449526 | H22: =IF('F_Inputs WRMP Override'!H22="",'F_Inputs WRMP'!H27,'F_Inputs WRMP Override'!H22) -> 7.930229205 | I22: =IF('F_Inputs WRMP Override'!I22="",'F_Inputs WRMP'!I27,'F_Inputs WRMP Override'!I22) -> 10.25819832 | J22: =IF('F_Inputs WRMP Override'!J22="",'F_Inputs WRMP'!J27,'F_Inputs WRMP Override'!J22) -> 12.44708213 | K22: =IF('F_Inputs WRMP Override'!K22="",'F_Inputs WRMP'!K27,'F_Inputs WRMP Override'!K22) -> 38.90118055
A23: WSX | B23: RWRMP24_8B006 | C23: Demand-side improvements (excl. leakage and metering)_Totex_rWRMP24_Table 8b: preferred programme_B6 | D23: £m | E23: Price Review 2024 | F23: =IF('F_Inputs WRMP Override'!F23="",'F_Inputs WRMP'!F28,'F_Inputs WRMP Override'!F23) -> 1.603161528 | G23: =IF('F_Inputs WRMP Override'!G23="",'F_Inputs WRMP'!G28,'F_Inputs WRMP Override'!G23) -> 1.603161528 | H23: =IF('F_Inputs WRMP Override'!H23="",'F_Inputs WRMP'!H28,'F_Inputs WRMP Override'!H23) -> 1.603161528 | I23: =IF('F_Inputs WRMP Override'!I23="",'F_Inputs WRMP'!I28,'F_Inputs WRMP Override'!I23) -> 1.603161528 | J23: =IF('F_Inputs WRMP Override'!J23="",'F_Inputs WRMP'!J28,'F_Inputs WRMP Override'!J23) -> 1.603161528 | K23: =IF('F_Inputs WRMP Override'!K23="",'F_Inputs WRMP'!K28,'F_Inputs WRMP Override'!K23) -> 8.015807638
A24: YKY | B24: RWRMP24_8E002 | C24: Demand-side improvements (excluding leakage and metering)_Benefit_rWRMP24_Table 8e: preferred programme_E2 | D24: Ml/d | E24: Price Review 2024 | F24: =IF('F_Inputs WRMP Override'!F24="",'F_Inputs WRMP'!F29,'F_Inputs WRMP Override'!F24) -> 1.87 | G24: =IF('F_Inputs WRMP Override'!G24="",'F_Inputs WRMP'!G29,'F_Inputs WRMP Override'!G24) -> 3.93 | H24: =IF('F_Inputs WRMP Override'!H24="",'F_Inputs WRMP'!H29,'F_Inputs WRMP Override'!H24) -> 4.66 | I24: =IF('F_Inputs WRMP Override'!I24="",'F_Inputs WRMP'!I29,'F_Inputs WRMP Override'!I24) -> 5.4 | J24: =IF('F_Inputs WRMP Override'!J24="",'F_Inputs WRMP'!J29,'F_Inputs WRMP Override'!J24) -> 6.02 | K24: =IF('F_Inputs WRMP Override'!K24="",'F_Inputs WRMP'!K29,'F_Inputs WRMP Override'!K24) -> 21.88
A25: YKY | B25: RWRMP24_8B006 | C25: Demand-side improvements (excl. leakage and metering)_Totex_rWRMP24_Table 8b: preferred programme_B6 | D25: £m | E25: Price Review 2024 | F25: =IF('F_Inputs WRMP Override'!F25="",'F_Inputs WRMP'!F30,'F_Inputs WRMP Override'!F25) -> 4.140942794 | G25: =IF('F_Inputs WRMP Override'!G25="",'F_Inputs WRMP'!G30,'F_Inputs WRMP Override'!G25) -> 5.48226787 | H25: =IF('F_Inputs WRMP Override'!H25="",'F_Inputs WRMP'!H30,'F_Inputs WRMP Override'!H25) -> 6.033467519 | I25: =IF('F_Inputs WRMP Override'!I25="",'F_Inputs WRMP'!I30,'F_Inputs WRMP Override'!I25) -> 6.994103828 | J25: =IF('F_Inputs WRMP Override'!J25="",'F_Inputs WRMP'!J30,'F_Inputs WRMP Override'!J25) -> 6.119695875 | K25: =IF('F_Inputs WRMP Override'!K25="",'F_Inputs WRMP'!K30,'F_Inputs WRMP Override'!K25) -> 28.77047789
A26: AFW | B26: RWRMP24_8E002 | C26: Demand-side improvements (excluding leakage and metering)_Benefit_rWRMP24_Table 8e: preferred programme_E2 | D26: Ml/d | E26: Price Review 2024 | F26: =IF('F_Inputs WRMP Override'!F26="",'F_Inputs WRMP'!F31,'F_Inputs WRMP Override'!F26) -> 2.502 | G26: =IF('F_Inputs WRMP Override'!G26="",'F_Inputs WRMP'!G31,'F_Inputs WRMP Override'!G26) -> 2.6084 | H26: =IF('F_Inputs WRMP Override'!H26="",'F_Inputs WRMP'!H31,'F_Inputs WRMP Override'!H26) -> 2.6673 | I26: =IF('F_Inputs WRMP Override'!I26="",'F_Inputs WRMP'!I31,'F_Inputs WRMP Override'!I26) -> 2.8155 | J26: =IF('F_Inputs WRMP Override'!J26="",'F_Inputs WRMP'!J31,'F_Inputs WRMP Override'!J26) -> 2.8951 | K26: =IF('F_Inputs WRMP Override'!K26="",'F_Inputs WRMP'!K31,'F_Inputs WRMP Override'!K26) -> 13.4883
A27: AFW | B27: RWRMP24_8B006 | C27: Demand-side improvements (excl. leakage and metering)_Totex_rWRMP24_Table 8b: preferred programme_B6 | D27: £m | E27: Price Review 2024 | F27: =IF('F_Inputs WRMP Override'!F27="",'F_Inputs WRMP'!F32,'F_Inputs WRMP Override'!F27) -> 1.833582083 | G27: =IF('F_Inputs WRMP Override'!G27="",'F_Inputs WRMP'!G32,'F_Inputs WRMP Override'!G27) -> 1.833582083 | H27: =IF('F_Inputs WRMP Override'!H27="",'F_Inputs WRMP'!H32,'F_Inputs WRMP Override'!H27) -> 1.833582083 | I27: =IF('F_Inputs WRMP Override'!I27="",'F_Inputs WRMP'!I32,'F_Inputs WRMP Override'!I27) -> 1.833582083 | J27: =IF('F_Inputs WRMP Override'!J27="",'F_Inputs WRMP'!J32,'F_Inputs WRMP Override'!J27) -> 1.833582083 | K27: =IF('F_Inputs WRMP Override'!K27="",'F_Inputs WRMP'!K32,'F_Inputs WRMP Override'!K27) -> 9.167910414
A28: BRL | B28: RWRMP24_8E002 | C28: Demand-side improvements (excluding leakage and metering)_Benefit_rWRMP24_Table 8e: preferred programme_E2 | D28: Ml/d | E28: Price Review 2024 | F28: =IF('F_Inputs WRMP Override'!F28="",'F_Inputs WRMP'!F33,'F_Inputs WRMP Override'!F28) -> 0.05253173645 | G28: =IF('F_Inputs WRMP Override'!G28="",'F_Inputs WRMP'!G33,'F_Inputs WRMP Override'!G28) -> 0.9290572698 | H28: =IF('F_Inputs WRMP Override'!H28="",'F_Inputs WRMP'!H33,'F_Inputs WRMP Override'!H28) -> 1.813627111 | I28: =IF('F_Inputs WRMP Override'!I28="",'F_Inputs WRMP'!I33,'F_Inputs WRMP Override'!I28) -> 2.708709793 | J28: =IF('F_Inputs WRMP Override'!J28="",'F_Inputs WRMP'!J33,'F_Inputs WRMP Override'!J28) -> 3.615033056 | K28: =IF('F_Inputs WRMP Override'!K28="",'F_Inputs WRMP'!K33,'F_Inputs WRMP Override'!K28) -> 9.118958967
A29: BRL | B29: RWRMP24_8B006 | C29: Demand-side improvements (excl. leakage and metering)_Totex_rWRMP24_Table 8b: preferred programme_B6 | D29: £m | E29: Price Review 2024 | F29: =IF('F_Inputs WRMP Override'!F29="",'F_Inputs WRMP'!F34,'F_Inputs WRMP Override'!F29) -> 0.2343995622 | G29: =IF('F_Inputs WRMP Override'!G29="",'F_Inputs WRMP'!G34,'F_Inputs WRMP Override'!G29) -> 0.2331613667 | H29: =IF('F_Inputs WRMP Override'!H29="",'F_Inputs WRMP'!H34,'F_Inputs WRMP Override'!H29) -> 0.2345087156 | I29: =IF('F_Inputs WRMP Override'!I29="",'F_Inputs WRMP'!I34,'F_Inputs WRMP Override'!I29) -> 0.2358560644 | J29: =IF('F_Inputs WRMP Override'!J29="",'F_Inputs WRMP'!J34,'F_Inputs WRMP Override'!J29) -> 0.2365297389 | K29: =IF('F_Inputs WRMP Override'!K29="",'F_Inputs WRMP'!K34,'F_Inputs WRMP Override'!K29) -> 1.174455448
A30: PRT | B30: RWRMP24_8E002 | C30: Demand-side improvements (excluding leakage and metering)_Benefit_rWRMP24_Table 8e: preferred programme_E2 | D30: Ml/d | E30: Price Review 2024 | F30: =IF('F_Inputs WRMP Override'!F30="",'F_Inputs WRMP'!F35,'F_Inputs WRMP Override'!F30) -> 0.8154 | G30: =IF('F_Inputs WRMP Override'!G30="",'F_Inputs WRMP'!G35,'F_Inputs WRMP Override'!G30) -> 0.8752 | H30: =IF('F_Inputs WRMP Override'!H30="",'F_Inputs WRMP'!H35,'F_Inputs WRMP Override'!H30) -> 1.2262 | I30: =IF('F_Inputs WRMP Override'!I30="",'F_Inputs WRMP'!I35,'F_Inputs WRMP Override'!I30) -> 1.5014 | J30: =IF('F_Inputs WRMP Override'!J30="",'F_Inputs WRMP'!J35,'F_Inputs WRMP Override'!J30) -> 1.7681 | K30: =IF('F_Inputs WRMP Override'!K30="",'F_Inputs WRMP'!K35,'F_Inputs WRMP Override'!K30) -> 6.1863
A31: PRT | B31: RWRMP24_8B006 | C31: Demand-side improvements (excl. leakage and metering)_Totex_rWRMP24_Table 8b: preferred programme_B6 | D31: £m | E31: Price Review 2024 | F31: =IF('F_Inputs WRMP Override'!F31="",'F_Inputs WRMP'!F36,'F_Inputs WRMP Override'!F31) -> 0 | G31: =IF('F_Inputs WRMP Override'!G31="",'F_Inputs WRMP'!G36,'F_Inputs WRMP Override'!G31) -> 0 | H31: =IF('F_Inputs WRMP Override'!H31="",'F_Inputs WRMP'!H36,'F_Inputs WRMP Override'!H31) -> 0 | I31: =IF('F_Inputs WRMP Override'!I31="",'F_Inputs WRMP'!I36,'F_Inputs WRMP Override'!I31) -> 0 | J31: =IF('F_Inputs WRMP Override'!J31="",'F_Inputs WRMP'!J36,'F_Inputs WRMP Override'!J31) -> 0 | K31: =IF('F_Inputs WRMP Override'!K31="",'F_Inputs WRMP'!K36,'F_Inputs WRMP Override'!K31) -> 0
A32: SEW | B32: RWRMP24_8E002 | C32: Demand-side improvements (excluding leakage and metering)_Benefit_rWRMP24_Table 8e: preferred programme_E2 | D32: Ml/d | E32: Price Review 2024 | F32: =IF('F_Inputs WRMP Override'!F32="",'F_Inputs WRMP'!F37,'F_Inputs WRMP Override'!F32) -> 2.3542 | G32: =IF('F_Inputs WRMP Override'!G32="",'F_Inputs WRMP'!G37,'F_Inputs WRMP Override'!G32) -> 3.7895 | H32: =IF('F_Inputs WRMP Override'!H32="",'F_Inputs WRMP'!H37,'F_Inputs WRMP Override'!H32) -> 3.8296 | I32: =IF('F_Inputs WRMP Override'!I32="",'F_Inputs WRMP'!I37,'F_Inputs WRMP Override'!I32) -> 3.8638 | J32: =IF('F_Inputs WRMP Override'!J32="",'F_Inputs WRMP'!J37,'F_Inputs WRMP Override'!J32) -> 3.8921 | K32: =IF('F_Inputs WRMP Override'!K32="",'F_Inputs WRMP'!K37,'F_Inputs WRMP Override'!K32) -> 17.7292
A33: SEW | B33: RWRMP24_8B006 | C33: Demand-side improvements (excl. leakage and metering)_Totex_rWRMP24_Table 8b: preferred programme_B6 | D33: £m | E33: Price Review 2024 | F33: =IF('F_Inputs WRMP Override'!F33="",'F_Inputs WRMP'!F38,'F_Inputs WRMP Override'!F33) -> 8.880453542 | G33: =IF('F_Inputs WRMP Override'!G33="",'F_Inputs WRMP'!G38,'F_Inputs WRMP Override'!G33) -> 9.133343447 | H33: =IF('F_Inputs WRMP Override'!H33="",'F_Inputs WRMP'!H38,'F_Inputs WRMP Override'!H33) -> 9.382645406 | I33: =IF('F_Inputs WRMP Override'!I33="",'F_Inputs WRMP'!I38,'F_Inputs WRMP Override'!I33) -> 9.629749775 | J33: =IF('F_Inputs WRMP Override'!J33="",'F_Inputs WRMP'!J38,'F_Inputs WRMP Override'!J33) -> 9.873972741 | K33: =IF('F_Inputs WRMP Override'!K33="",'F_Inputs WRMP'!K38,'F_Inputs WRMP Override'!K33) -> 46.90016491
A34: SES | B34: RWRMP24_8E002 | C34: Demand-side improvements (excluding leakage and metering)_Benefit_rWRMP24_Table 8e: preferred programme_E2 | D34: Ml/d | E34: Price Review 2024 | F34: =IF('F_Inputs WRMP Override'!F34="",'F_Inputs WRMP'!F39,'F_Inputs WRMP Override'!F34) -> 0.9698 | G34: =IF('F_Inputs WRMP Override'!G34="",'F_Inputs WRMP'!G39,'F_Inputs WRMP Override'!G34) -> 0.9129 | H34: =IF('F_Inputs WRMP Override'!H34="",'F_Inputs WRMP'!H39,'F_Inputs WRMP Override'!H34) -> 0.8863 | I34: =IF('F_Inputs WRMP Override'!I34="",'F_Inputs WRMP'!I39,'F_Inputs WRMP Override'!I34) -> 0.857 | J34: =IF('F_Inputs WRMP Override'!J34="",'F_Inputs WRMP'!J39,'F_Inputs WRMP Override'!J34) -> 0.8285 | K34: =IF('F_Inputs WRMP Override'!K34="",'F_Inputs WRMP'!K39,'F_Inputs WRMP Override'!K34) -> 4.4545
A35: SES | B35: RWRMP24_8B006 | C35: Demand-side improvements (excl. leakage and metering)_Totex_rWRMP24_Table 8b: preferred programme_B6 | D35: £m | E35: Price Review 2024 | F35: =IF('F_Inputs WRMP Override'!F35="",'F_Inputs WRMP'!F40,'F_Inputs WRMP Override'!F35) -> 0.5451806886 | G35: =IF('F_Inputs WRMP Override'!G35="",'F_Inputs WRMP'!G40,'F_Inputs WRMP Override'!G35) -> 0.5365880451 | H35: =IF('F_Inputs WRMP Override'!H35="",'F_Inputs WRMP'!H40,'F_Inputs WRMP Override'!H35) -> 0.5280697736 | I35: =IF('F_Inputs WRMP Override'!I35="",'F_Inputs WRMP'!I40,'F_Inputs WRMP Override'!I35) -> 0.5196295912 | J35: =IF('F_Inputs WRMP Override'!J35="",'F_Inputs WRMP'!J40,'F_Inputs WRMP Override'!J35) -> 0.5112714037 | K35: =IF('F_Inputs WRMP Override'!K35="",'F_Inputs WRMP'!K40,'F_Inputs WRMP Override'!K35) -> 2.640739502
A36: SSC | B36: RWRMP24_8E002 | C36: Demand-side improvements (excluding leakage and metering)_Benefit_rWRMP24_Table 8e: preferred programme_E2 | D36: Ml/d | E36: Price Review 2024 | F36: =IF('F_Inputs WRMP Override'!F36="",'F_Inputs WRMP'!F41,'F_Inputs WRMP Override'!F36) -> 0.9 | G36: =IF('F_Inputs WRMP Override'!G36="",'F_Inputs WRMP'!G41,'F_Inputs WRMP Override'!G36) -> 0.9 | H36: =IF('F_Inputs WRMP Override'!H36="",'F_Inputs WRMP'!H41,'F_Inputs WRMP Override'!H36) -> 0.9 | I36: =IF('F_Inputs WRMP Override'!I36="",'F_Inputs WRMP'!I41,'F_Inputs WRMP Override'!I36) -> 0.9 | J36: =IF('F_Inputs WRMP Override'!J36="",'F_Inputs WRMP'!J41,'F_Inputs WRMP Override'!J36) -> 0.9 | K36: =IF('F_Inputs WRMP Override'!K36="",'F_Inputs WRMP'!K41,'F_Inputs WRMP Override'!K36) -> 4.5
A37: SSC | B37: RWRMP24_8B006 | C37: Demand-side improvements (excl. leakage and metering)_Totex_rWRMP24_Table 8b: preferred programme_B6 | D37: £m | E37: Price Review 2024 | F37: =IF('F_Inputs WRMP Override'!F37="",'F_Inputs WRMP'!F42,'F_Inputs WRMP Override'!F37) -> 1.57 | G37: =IF('F_Inputs WRMP Override'!G37="",'F_Inputs WRMP'!G42,'F_Inputs WRMP Override'!G37) -> 1.57 | H37: =IF('F_Inputs WRMP Override'!H37="",'F_Inputs WRMP'!H42,'F_Inputs WRMP Override'!H37) -> 1.57 | I37: =IF('F_Inputs WRMP Override'!I37="",'F_Inputs WRMP'!I42,'F_Inputs WRMP Override'!I37) -> 1.57 | J37: =IF('F_Inputs WRMP Override'!J37="",'F_Inputs WRMP'!J42,'F_Inputs WRMP Override'!J37) -> 1.57 | K37: =IF('F_Inputs WRMP Override'!K37="",'F_Inputs WRMP'!K42,'F_Inputs WRMP Override'!K37) -> 7.85
A38: CAM | B38: RWRMP24_8E002 | C38: Demand-side improvements (excluding leakage and metering)_Benefit_rWRMP24_Table 8e: preferred programme_E2 | D38: Ml/d | E38: Price Review 2024 | F38: =IF('F_Inputs WRMP Override'!F38="",'F_Inputs WRMP'!F43,'F_Inputs WRMP Override'!F38) -> 0.26 | G38: =IF('F_Inputs WRMP Override'!G38="",'F_Inputs WRMP'!G43,'F_Inputs WRMP Override'!G38) -> 0.26 | H38: =IF('F_Inputs WRMP Override'!H38="",'F_Inputs WRMP'!H43,'F_Inputs WRMP Override'!H38) -> 0.26 | I38: =IF('F_Inputs WRMP Override'!I38="",'F_Inputs WRMP'!I43,'F_Inputs WRMP Override'!I38) -> 0.26 | J38: =IF('F_Inputs WRMP Override'!J38="",'F_Inputs WRMP'!J43,'F_Inputs WRMP Override'!J38) -> 0.26 | K38: =IF('F_Inputs WRMP Override'!K38="",'F_Inputs WRMP'!K43,'F_Inputs WRMP Override'!K38) -> 1.3
A39: CAM | B39: RWRMP24_8B006 | C39: Demand-side improvements (excl. leakage and metering)_Totex_rWRMP24_Table 8b: preferred programme_B6 | D39: £m | E39: Price Review 2024 | F39: =IF('F_Inputs WRMP Override'!F39="",'F_Inputs WRMP'!F44,'F_Inputs WRMP Override'!F39) -> 0.88 | G39: =IF('F_Inputs WRMP Override'!G39="",'F_Inputs WRMP'!G44,'F_Inputs WRMP Override'!G39) -> 0.88 | H39: =IF('F_Inputs WRMP Override'!H39="",'F_Inputs WRMP'!H44,'F_Inputs WRMP Override'!H39) -> 0.88 | I39: =IF('F_Inputs WRMP Override'!I39="",'F_Inputs WRMP'!I44,'F_Inputs WRMP Override'!I39) -> 0.88 | J39: =IF('F_Inputs WRMP Override'!J39="",'F_Inputs WRMP'!J44,'F_Inputs WRMP Override'!J39) -> 0.88 | K39: =IF('F_Inputs WRMP Override'!K39="",'F_Inputs WRMP'!K44,'F_Inputs WRMP Override'!K39) -> 4.4

Sheet F_Inputs
A1: =RIGHT(CELL("filename", $A$1), LEN(CELL("filename", $A$1)) - SEARCH("]", CELL("filename", $A$1))) -> F_Inputs
C3: Water Efficiency Run 11 | E3: Run on 03 Oct 2024 9:37
A4: Acronym | B4: Reference | C4: Item description | D4: Unit | E4: Model | F4: 2023-24 | G4: 2024-25 | H4: 2025-26 | I4: 2026-27 | J4: 2027-28 | K4: 2028-29 | L4: 2029-30
F6: Price Review 2024 | G6: Price Review 2024 | H6: Price Review 2024 | I6: Price Review 2024 | J6: Price Review 2024 | K6: Price Review 2024 | L6: Price Review 2024
F7: Run 11 - PR24 FD Data | G7: Run 11 - PR24 FD Data | H7: Run 11 - PR24 FD Data | I7: Run 11 - PR24 FD Data | J7: Run 11 - PR24 FD Data | K7: Run 11 - PR24 FD Data | L7: Run 11 - PR24 FD Data
F8: Latest | G8: Latest | H8: Latest | I8: Latest | J8: Latest | K8: Latest | L8: Latest
A9: ANH | B9: CW3_046TOT_PR24 | C9: Supply-demand balance - Demand-side improvements delivering benefits in 2025-2030 (excl leakage and metering); SDB totex - Total | D9: £m | E9: Price Review 2024 | F9: 0.9961890758 | G9: 0.996 | H9: 5.985 | I9: 5.556 | J9: 3.216 | K9: 3.382 | L9: 3.58
A10: ANH | B10: CW12_046TOT_PR24 | C10: Supply-demand balance - Demand-side improvements delivering benefits in 2025-2030 (excl leakage and metering); SDB totex - Total | D10: £m | E10: Price Review 2024 | F10: 0 | G10: 0
A11: ANH | B11: CW17_046TOT_PR24 | C11: Supply-demand balance - Demand-side improvements delivering benefits in 2025-2030 (excl leakage and metering); SDB totex - Total | D11: £m | E11: Price Review 2024 | F11: 0 | G11: 0 | H11: 0 | I11: 0 | J11: 0 | K11: 0 | L11: 0
A12: WSH | B12: CW3_046TOT_PR24 | C12: Supply-demand balance - Demand-side improvements delivering benefits in 2025-2030 (excl leakage and metering); SDB totex - Total | D12: £m | E12: Price Review 2024 | F12: 1.361467503 | G12: 4.975 | H12: 3.085 | I12: 3.033 | J12: 3.036 | K12: 3.053 | L12: 3.094
A13: WSH | B13: CW12_046TOT_PR24 | C13: Supply-demand balance - Demand-side improvements delivering benefits in 2025-2030 (excl leakage and metering); SDB totex - Total | D13: £m | E13: Price Review 2024 | F13: 0 | G13: 0
A14: WSH | B14: CW17_046TOT_PR24 | C14: Supply-demand balance - Demand-side improvements delivering benefits in 2025-2030 (excl leakage and metering); SDB totex - Total | D14: £m | E14: Price Review 2024 | F14: 0 | G14: 0 | H14: 0 | I14: 0 | J14: 0 | K14: 0 | L14: 0
A15: HDD | B15: CW3_046TOT_PR24 | C15: Supply-demand balance - Demand-side improvements delivering benefits in 2025-2030 (excl leakage and metering); SDB totex - Total | D15: £m | E15: Price Review 2024 | F15: 0 | G15: 0 | H15: 0.15 | I15: 0.165 | J15: 0.089 | K15: 0.085 | L15: 0.086
A16: HDD | B16: CW12_046TOT_PR24 | C16: Supply-demand balance - Demand-side improvements delivering benefits in 2025-2030 (excl leakage and metering); SDB totex - Total | D16: £m | E16: Price Review 2024 | F16: 0 | G16: 0
A17: HDD | B17: CW17_046TOT_PR24 | C17: Supply-demand balance - Demand-side improvements delivering benefits in 2025-2030 (excl leakage and metering); SDB totex - Total | D17: £m | E17: Price Review 2024 | F17: 0 | G17: 0 | H17: 0 | I17: 0 | J17: 0 | K17: 0 | L17: 0
A18: NES | B18: CW3_046TOT_PR24 | C18: Supply-demand balance - Demand-side improvements delivering benefits in 2025-2030 (excl leakage and metering); SDB totex - Total | D18: £m | E18: Price Review 2024 | F18: 1.479 | G18: 1.644 | H18: 2.761 | I18: 2.936 | J18: 2.949 | K18: 2.984 | L18: 2.896
A19: NES | B19: CW12_046TOT_PR24 | C19: Supply-demand balance - Demand-side improvements delivering benefits in 2025-2030 (excl leakage and metering); SDB totex - Total | D19: £m | E19: Price Review 2024 | F19: 0 | G19: 0
A20: NES | B20: CW17_046TOT_PR24 | C20: Supply-demand balance - Demand-side improvements delivering benefits in 2025-2030 (excl leakage and metering); SDB totex - Total | D20: £m | E20: Price Review 2024 | F20: 0 | G20: 0 | H20: 0 | I20: 0 | J20: 0 | K20: 0 | L20: 0
A21: SVE | B21: CW3_046TOT_PR24 | C21: Supply-demand balance - Demand-side improvements delivering benefits in 2025-2030 (excl leakage and metering); SDB totex - Total | D21: £m | E21: Price Review 2024 | F21: 2.052 | G21: 9.405210157 | H21: 10.00353081 | I21: 9.04746 | J21: 5.094678821 | K21: 4.662 | L21: 4.641
A22: SVE | B22: CW12_046TOT_PR24 | C22: Supply-demand balance - Demand-side improvements delivering benefits in 2025-2030 (excl leakage and metering); SDB totex - Total | D22: £m | E22: Price Review 2024 | F22: 0 | G22: 45.26682138
A23: SVE | B23: CW17_046TOT_PR24 | C23: Supply-demand balance - Demand-side improvements delivering benefits in 2025-2030 (excl leakage and metering); SDB totex - Total | D23: £m | E23: Price Review 2024 | F23: 0 | G23: 0 | H23: 0 | I23: 0 | J23: 0 | K23: 0 | L23: 0
A24: SWB | B24: CW3_046TOT_PR24 | C24: Supply-demand balance - Demand-side improvements delivering benefits in 2025-2030 (excl leakage and metering); SDB totex - Total | D24: £m | E24: Price Review 2024 | F24: 1.552 | G24: 0 | H24: 2.640811 | I24: 2.671282 | J24: 2.71191 | K24: 2.749152 | L24: 2.783009
A25: SWB | B25: CW12_046TOT_PR24 | C25: Supply-demand balance - Demand-side improvements delivering benefits in 2025-2030 (excl leakage and metering); SDB totex - Total | D25: £m | E25: Price Review 2024 | F25: 0 | G25: 0
A26: SWB | B26: CW17_046TOT_PR24 | C26: Supply-demand balance - Demand-side improvements delivering benefits in 2025-2030 (excl leakage and metering); SDB totex - Total | D26: £m | E26: Price Review 2024 | F26: 0 | G26: 0 | H26: 0 | I26: 0 | J26: 0 | K26: 0 | L26: 0
A27: SRN | B27: CW3_046TOT_PR24 | C27: Supply-demand balance - Demand-side improvements delivering benefits in 2025-2030 (excl leakage and metering); SDB totex - Total | D27: £m | E27: Price Review 2024 | F27: 2.77 | G27: 2.514 | H27: 1.495 | I27: 1.505 | J27: 1.515 | K27: 1.525 | L27: 1.534
A28: SRN | B28: CW12_046TOT_PR24 | C28: Supply-demand balance - Demand-side improvements delivering benefits in 2025-2030 (excl leakage and metering); SDB totex - Total | D28: £m | E28: Price Review 2024 | F28: 0 | G28: 0
A29: SRN | B29: CW17_046TOT_PR24 | C29: Supply-demand balance - Demand-side improvements delivering benefits in 2025-2030 (excl leakage and metering); SDB totex - Total | D29: £m | E29: Price Review 2024 | F29: 0 | G29: 0 | H29: 0 | I29: 0 | J29: 0 | K29: 0 | L29: 0
A30: TMS | B30: CW3_046TOT_PR24 | C30: Supply-demand balance - Demand-side improvements delivering benefits in 2025-2030 (excl leakage and metering); SDB totex - Total | D30: £m | E30: Price Review 2024 | F30: 5.106 | G30: 17.519 | H30: 8.301 | I30: 8.339 | J30: 8.376 | K30: 8.414 | L30: 8.452
A31: TMS | B31: CW12_046TOT_PR24 | C31: Supply-demand balance - Demand-side improvements delivering benefits in 2025-2030 (excl leakage and metering); SDB totex - Total | D31: £m | E31: Price Review 2024 | F31: 0 | G31: 0
A32: TMS | B32: CW17_046TOT_PR24 | C32: Supply-demand balance - Demand-side improvements delivering benefits in 2025-2030 (excl leakage and metering); SDB totex - Total | D32: £m | E32: Price Review 2024 | F32: 0 | G32: 0 | H32: 0 | I32: 0 | J32: 0 | K32: 0 | L32: 0
A33: NWT | B33: CW3_046TOT_PR24 | C33: Supply-demand balance - Demand-side improvements delivering benefits in 2025-2030 (excl leakage and metering); SDB totex - Total | D33: £m | E33: Price Review 2024 | F33: 1.22595137 | G33: 5.210757862 | H33: 3.893818239 | I33: 4.074597854 | J33: 4.197003413 | K33: 4.190404403 | L33: 4.146622789
A34: NWT | B34: CW12_046TOT_PR24 | C34: Supply-demand balance - Demand-side improvements delivering benefits in 2025-2030 (excl leakage and metering); SDB totex - Total | D34: £m | E34: Price Review 2024 | F34: 0 | G34: 0
A35: NWT | B35: CW17_046TOT_PR24 | C35: Supply-demand balance - Demand-side improvements delivering benefits in 2025-2030 (excl leakage and metering); SDB totex - Total | D35: £m | E35: Price Review 2024 | F35: 0 | G35: 0 | H35: 0 | I35: 0 | J35: 0 | K35: 0 | L35: 0
A36: WSX | B36: CW3_046TOT_PR24 | C36: Supply-demand balance - Demand-side improvements delivering benefits in 2025-2030 (excl leakage and metering); SDB totex - Total | D36: £m | E36: Price Review 2024 | F36: 0 | G36: 0 | H36: 2.374616 | I36: 2.374615 | J36: 2.374615 | K36: 2.374608 | L36: 2.374614
A37: WSX | B37: CW12_046TOT_PR24 | C37: Supply-demand balance - Demand-side improvements delivering benefits in 2025-2030 (excl leakage and metering); SDB totex - Total | D37: £m | E37: Price Review 2024 | F37: 0 | G37: 0
A38: WSX | B38: CW17_046TOT_PR24 | C38: Supply-demand balance - Demand-side improvements delivering benefits in 2025-2030 (excl leakage and metering); SDB totex - Total | D38: £m | E38: Price Review 2024 | F38: 0 | G38: 0 | H38: 0 | I38: 0 | J38: 0 | K38: 0 | L38: 0
A39: YKY | B39: CW3_046TOT_PR24 | C39: Supply-demand balance - Demand-side improvements delivering benefits in 2025-2030 (excl leakage and metering); SDB totex - Total | D39: £m | E39: Price Review 2024 | F39: 0 | G39: 0 | H39: 4.668 | I39: 6.18 | J39: 6.802 | K39: 7.885 | L39: 6.9
A40: YKY | B40: CW12_046TOT_PR24 | C40: Supply-demand balance - Demand-side improvements delivering benefits in 2025-2030 (excl leakage and metering); SDB totex - Total | D40: £m | E40: Price Review 2024 | F40: 0 | G40: 0
A41: YKY | B41: CW17_046TOT_PR24 | C41: Supply-demand balance - Demand-side improvements delivering benefits in 2025-2030 (excl leakage and metering); SDB totex - Total | D41: £m | E41: Price Review 2024 | F41: 0 | G41: 0 | H41: 0 | I41: 0 | J41: 0 | K41: 0 | L41: 0
A42: AFW | B42: CW3_046TOT_PR24 | C42: Supply-demand balance - Demand-side improvements delivering benefits in 2025-2030 (excl leakage and metering); SDB totex - Total | D42: £m | E42: Price Review 2024 | F42: 7.061 | G42: 4.47 | H42: 6.965 | I42: 5.99 | J42: 5.103 | K42: 4.218 | L42: 4.218
A43: AFW | B43: CW12_046TOT_PR24 | C43: Supply-demand balance - Demand-side improvements delivering benefits in 2025-2030 (excl leakage and metering); SDB totex - Total | D43: £m | E43: Price Review 2024 | F43: 0 | G43: 0
A44: AFW | B44: CW17_046TOT_PR24 | C44: Supply-demand balance - Demand-side improvements delivering benefits in 2025-2030 (excl leakage and metering); SDB totex - Total | D44: £m | E44: Price Review 2024 | F44: 0 | G44: 0 | H44: 0 | I44: 0 | J44: 0 | K44: 0 | L44: 0
A45: BRL | B45: CW3_046TOT_PR24 | C45: Supply-demand balance - Demand-side improvements delivering benefits in 2025-2030 (excl leakage and metering); SDB totex - Total | D45: £m | E45: Price Review 2024 | F45: 0.043 | G45: 0.02253425206 | H45: 0.104141 | I45: 0.103746 | J45: 0.104141 | K45: 0.10493 | L45: 0.105324
A46: BRL | B46: CW12_046TOT_PR24 | C46: Supply-demand balance - Demand-side improvements delivering benefits in 2025-2030 (excl leakage and metering); SDB totex - Total | D46: £m | E46: Price Review 2024 | F46: 0 | G46: 0
A47: BRL | B47: CW17_046TOT_PR24 | C47: Supply-demand balance - Demand-side improvements delivering benefits in 2025-2030 (excl leakage and metering); SDB totex - Total | D47: £m | E47: Price Review 2024 | F47: 0 | G47: 0 | H47: 0 | I47: 0 | J47: 0 | K47: 0 | L47: 0
A48: PRT | B48: CW3_046TOT_PR24 | C48: Supply-demand balance - Demand-side improvements delivering benefits in 2025-2030 (excl leakage and metering); SDB totex - Total | D48: £m | E48: Price Review 2024 | F48: 0 | G48: 0 | H48: 0.95249 | I48: 1.06714 | J48: 1.16129 | K48: 1.16148 | L48: 1.10275
A49: PRT | B49: CW12_046TOT_PR24 | C49: Supply-demand balance - Demand-side improvements delivering benefits in 2025-2030 (excl leakage and metering); SDB totex - Total | D49: £m | E49: Price Review 2024 | F49: 0 | G49: 0
A50: PRT | B50: CW17_046TOT_PR24 | C50: Supply-demand balance - Demand-side improvements delivering benefits in 2025-2030 (excl leakage and metering); SDB totex - Total | D50: £m | E50: Price Review 2024 | F50: 0 | G50: 0 | H50: 0 | I50: 0 | J50: 0 | K50: 0 | L50: 0
A51: SEW | B51: CW3_046TOT_PR24 | C51: Supply-demand balance - Demand-side improvements delivering benefits in 2025-2030 (excl leakage and metering); SDB totex - Total | D51: £m | E51: Price Review 2024 | F51: 0.5217074044 | G51: 1.207108858 | H51: 10.169 | I51: 10.454 | J51: 10.735 | K51: 11.014 | L51: 11.289
A52: SEW | B52: CW12_046TOT_PR24 | C52: Supply-demand balance - Demand-side improvements delivering benefits in 2025-2030 (excl leakage and metering); SDB totex - Total | D52: £m | E52: Price Review 2024 | F52: 0 | G52: 0
A53: SEW | B53: CW17_046TOT_PR24 | C53: Supply-demand balance - Demand-side improvements delivering benefits in 2025-2030 (excl leakage and metering); SDB totex - Total | D53: £m | E53: Price Review 2024 | F53: 0 | G53: 0 | H53: 0 | I53: 0 | J53: 0 | K53: 0 | L53: 0
A54: SSC | B54: CW3_046TOT_PR24 | C54: Supply-demand balance - Demand-side improvements delivering benefits in 2025-2030 (excl leakage and metering); SDB totex - Total | D54: £m | E54: Price Review 2024 | F54: 0.5 | G54: 0.334 | H54: 1.44 | I54: 1.44 | J54: 1.44 | K54: 1.44 | L54: 1.44
A55: SSC | B55: CW12_046TOT_PR24 | C55: Supply-demand balance - Demand-side improvements delivering benefits in 2025-2030 (excl leakage and metering); SDB totex - Total | D55: £m | E55: Price Review 2024 | F55: 0 | G55: 0
A56: SSC | B56: CW17_046TOT_PR24 | C56: Supply-demand balance - Demand-side improvements delivering benefits in 2025-2030 (excl leakage and metering); SDB totex - Total | D56: £m | E56: Price Review 2024 | F56: 0 | G56: 0 | H56: 0 | I56: 0 | J56: 0 | K56: 0 | L56: 0
A57: SES | B57: CW3_046TOT_PR24 | C57: Supply-demand balance - Demand-side improvements delivering benefits in 2025-2030 (excl leakage and metering); SDB totex - Total | D57: £m | E57: Price Review 2024 | F57: 0 | G57: 0 | H57: 0 | I57: 0 | J57: 0 | K57: 0 | L57: 0
A58: SES | B58: CW12_046TOT_PR24 | C58: Supply-demand balance - Demand-side improvements delivering benefits in 2025-2030 (excl leakage and metering); SDB totex - Total | D58: £m | E58: Price Review 2024 | F58: 0 | G58: 0
A59: SES | B59: CW17_046TOT_PR24 | C59: Supply-demand balance - Demand-side improvements delivering benefits in 2025-2030 (excl leakage and metering); SDB totex - Total | D59: £m | E59: Price Review 2024 | F59: 0 | G59: 0 | H59: 0 | I59: 0 | J59: 0 | K59: 0 | L59: 0

Sheet Inputs CW8
A1: =RIGHT(CELL("filename", $A$1), LEN(CELL("filename", $A$1)) - SEARCH("]", CELL("filename", $A$1))) -> Inputs CW8
A4: Scheme ID | B4: Company | C4: Scheme name | D4: WRMP scheme reference | E4: DPs | F4: Classification | G4: Delivery year (in use) | I4: Capital expenditure (£m) | Q4: Opex costs (£m) | X4: Benefits (Ml/d) | AE4: Complete for interconnectors only | AL4: PR24 BP reference | AN4: RAG 4 reference
I5: pre-2025-26 | J5: 2025-26 | K5: 2026-27 | L5: 2027-28 | M5: 2028-29 | N5: 2029-30 | O5: After 2029-30 | Q5: 2025-26 | R5: 2026-27 | S5: 2027-28 | T5: 2028-29 | U5: 2029-30 | V5: After 2029-30 | X5: 2025-26 | Y5: 2026-27 | Z5: 2027-28 | AA5: 2028-29 | AB5: 2029-30 | AC5: After 2029-30 | AE5: Length (km) | AF5: Diameter (mm) | AG5: Pipe material (text-freeform) | AH5: Pumping capacity installed (kW) | AI5: Storage capacity installed (m3) | AJ5: Transfer capacity (Ml/d)
A6: 1 | B6: AFW | C6: GUC option 3 100 Ml/d LB | D6: AFW_AZ3_HI-IMP_AZ3_ALL_guc3 100 lb_v2 | E6: 3 | F6: Supply-demand balance improvements delivering benefits starting from 2031 | G6: 2030-31 | I6: 3.329 | J6: 3.25 | K6: 3.25 | L6: 3.25 | M6: 0 | N6: 0 | O6: 0 | Q6: 0 | R6: 0 | S6: 0 | T6: 0 | U6: 0 | V6: 23.963 | X6: 0 | Y6: 0 | Z6: 0 | AA6: 0 | AB6: 0 | AC6: 100 | AL6: CW8.1 | AN6: 6F.1
A7: =A6+1 -> 2 | B7: AFW | C7: SESRO 150mm3 | D7: AFW_STR_HI-RSR_RE1_CNO_abingdon150(lon) | E7: 3 | F7: Supply-demand balance improvements delivering benefits starting from 2031 | G7: 2039-40 | I7: 0.911 | J7: 5.737 | K7: 5.737 | L7: 11.453 | M7: 6.281 | N7: 0 | O7: 0 | Q7: 0 | R7: 0 | S7: 0 | T7: 0 | U7: 0 | V7: 0.787 | X7: 0 | Y7: 0 | Z7: 0 | AA7: 0 | AB7: 0 | AL7: CW8.2 | AN7: 6F.2
A8: =A7+1 -> 3 | B8: AFW | C8: Thames to Affinity Transfer Stage 1 | D8: AFW_RA4_HI-TFR_UTC_CNO_ltr_2a_conv100_p1 | E8: 3 | F8: Supply-demand balance improvements delivering benefits starting from 2031 | G8: 2044-45 | I8: 2.083 | J8: 0 | K8: 0 | L8: 1.336 | M8: 2.671 | N8: 2.671 | O8: 0 | Q8: 0 | R8: 0 | S8: 0 | T8: 0 | U8: 0 | V8: 2.318 | X8: 0 | Y8: 0 | Z8: 0 | AA8: 0 | AB8: 0 | AC8: 50 | AL8: CW8.3 | AN8: 6F.3
A9: 4 | B9: AFW | C9: Customer side demand mangement | D9: n/a | E9: 3 | F9: Demand-side improvements delivering benefits in 2025-30 (excl leakage and metering) | G9: 2025-26 | J9: 0 | K9: 0 | L9: 0 | M9: 0 | N9: 0 | O9: 0 | Q9: 2.06 | R9: 2.06 | S9: 2.06 | T9: 2.06 | U9: 2.06 | V9: 6.163 | X9: 2.502 | Y9: 5.11 | Z9: 7.778 | AA9: 10.593 | AB9: 13.488 | AC9: 138.076 | AL9: CW8.4 | AN9: 6F.4
A10: 5 | B10: AFW | C10: Tappington South | D10: AFW_AZ7_HI-GRW_ALL_ALL_tappingtonsouth | E10: 3 | F10: Supply-side improvements delivering benefits in 2025-30 | G10: 2029-30 | I10: 0 | J10: 0.136 | K10: 0.171 | L10: 0.205 | M10: 0.171 | N10: 0 | O10: 0 | Q10: 0 | R10: 0 | S10: 0 | T10: 0 | U10: 0.029 | V10: 0.034 | X10: 0 | Y10: 0 | Z10: 0 | AA10: 0 | AB10: 0.6 | AC10: 0.6 | AL10: CW8.5 | AN10: 6F.5
A11: 6 | B11: AFW | C11: Cockfosters | D11: AFW_tra-cockfoscon | E11: 3 | F11: Supply-side improvements delivering benefits in 2025-30 | G11: 2029-30 | I11: 0 | J11: 0 | K11: 0 | L11: 0 | M11: 1.194 | N11: 0 | O11: 0 | Q11: 0 | R11: 0 | S11: 0 | T11: 0 | U11: 0.396 | V11: 0 | X11: 0 | Y11: 0 | Z11: 0 | AA11: 0 | AB11: 5 | AC11: 0 | AL11: CW8.6 | AN11: 6F.6
A12: 7 | B12: AFW | C12: Perivale | D12: AFW_tra-pericon | E12: 3 | F12: Supply-side improvements delivering benefits in 2025-30 | G12: 2025-26 | I12: 0 | J12: 2.215 | K12: 0 | L12: 0 | M12: 0 | N12: 0 | O12: 0 | Q12: 0.594 | R12: 0.594 | S12: 0.594 | T12: 0.594 | U12: 0.594 | V12: 0 | X12: 10 | Y12: 10 | Z12: 10 | AA12: 10 | AB12: 10 | AC12: 0 | AL12: CW8.7 | AN12: 6F.7
A13: 8 | B13: AFW | C13: The Grove valve -Licence Re-Location BPS transfer | D13: AFW_AZ2_HI-ROC_NET_ALL_grovevalve | E13: 3 | F13: Internal interconnectors delivering benefits in 2025-30 | G13: 2029-30 | I13: 0 | J13: 0 | K13: 0 | L13: 0 | M13: 2.882 | N13: 0 | O13: 0 | Q13: 0 | R13: 0 | S13: 0 | T13: 0 | U13: 0.235 | V13: 0.235 | X13: 0 | Y13: 0 | Z13: 0 | AA13: 0 | AB13: 25 | AC13: 25 | AH13: 385 | AJ13: 25 | AL13: CW8.8 | AN13: 6F.8
A14: 9 | B14: AFW | C14: Midway North BPS upgrade | D14: AFW_midwaynorthbps | E14: 3 | F14: Internal interconnectors delivering benefits in 2025-30 | G14: 2029-30 | I14: 0 | J14: 0 | K14: 0 | L14: 0 | M14: 1.124 | N14: 0 | O14: 0 | Q14: 0 | R14: 0 | S14: 0 | T14: 0 | U14: 0.235 | V14: 0.235 | X14: 0 | Y14: 0 | Z14: 0 | AA14: 0 | AB14: 8 | AC14: 8 | AH14: 151 | AJ14: 8 | AL14: CW8.9 | AN14: 6F.9
A15: 10 | B15: AFW | C15: Egham to Iver 22MLD | D15: AFW_AZ4_HI-TFR_AZ6_ALL_egham2iver22 | E15: 3 | F15: Internal interconnectors delivering benefits in 2025-30 | G15: 2029-30 | I15: 0 | J15: 10.34 | K15: 17.233 | L15: 24.126 | M15: 17.233 | N15: 0 | O15: 0 | Q15: 0 | R15: 0 | S15: 0 | T15: 0 | U15: 0.217 | V15: 0.217 | X15: 0 | Y15: 0 | Z15: 0 | AA15: 0 | AB15: 20 | AC15: 20 | AE15: 10.6 | AF15: 700 | AG15: HPPE/DI | AH15: 310 | AJ15: 20 | AL15: CW8.10 | AN15: 6F.10
A16: 11 | B16: AFW | C16: Save our Streams (SoS) | E16: 3 | F16: Demand-side improvements delivering benefits in 2025-30 (excl leakage and metering) | G16: 2025-26 | I16: 0 | J16: 0 | K16: 0 | L16: 0 | M16: 0 | N16: 0 | O16: 0 | Q16: 3.540 | R16: 2.756 | S16: 2.043 | T16: 1.331 | U16: 1.331 | V16: 0 | X16: 7.4 | Y16: 11.1 | Z16: 13.5 | AA16: 15.9 | AB16: 17.9 | AC16: 17.9 | AL16: CW8.12 | AN16: 6F.12
A17: 12 | B17: ANH | C17: Essex Central to Essex South potable transfer | D17: EXC3 | E17: 3 | F17: Internal interconnectors delivering benefits in 2025-30 | G17: 2030-31 | I17: 0 | J17: 0.29 | K17: 0.677 | L17: 1.934 | M17: 3.867 | N17: 2.901 | O17: 0 | Q17: 0 | R17: 0 | S17: 0 | T17: 0 | U17: 0.026 | V17: 0.051 | X17: 0 | Y17: 0 | Z17: 0 | AA17: 0 | AB17: 0 | AC17: 10 | AE17: 7.831 | AF17: 409 | AG17: Polyethelene (PE) | AH17: 60 | AI17: 0 | AJ17: 10 | AL17: CW8.1 | AN17: 6F.1
A18: 13 | B18: ANH | C18: Lincolnshire East to Lincolnshire Central potable transfer | D18: LNC25 | E18: 3 | F18: Internal interconnectors delivering benefits in 2025-30 | G18: 2030-31 | I18: 0 | J18: 2.083 | K18: 4.86 | L18: 13.887 | M18: 27.774 | N18: 20.83 | O18: 0 | Q18: 0 | R18: 0 | S18: 0 | T18: 0 | U18: 0.35 | V18: 0.7 | X18: 0 | Y18: 0 | Z18: 0 | AA18: 0 | AB18: 0 | AC18: 29 | AE18: 19.671 | AF18: 800 | AG18: Steel | AH18: 1490 | AI18: 0 | AJ18: 29 | AL18: CW8.2 | AN18: 6F.2
A19: 14 | B19: ANH | C19: Norfolk Bradenham to Norwich and the Broads potable transfer | D19: NTB10 | E19: 3 | F19: Internal interconnectors delivering benefits in 2025-30 | G19: 2030-31 | I19: 0 | J19: 2.471 | K19: 5.765 | L19: 16.472 | M19: 32.944 | N19: 24.708 | O19: 0 | Q19: 0 | R19: 0 | S19: 0 | T19: 0 | U19: 0.075 | V19: 0.15 | X19: 0 | Y19: 0 | Z19: 0 | AA19: 0 | AB19: 0 | AC19: 20 | AE19: 47.601 | AF19: 603 | AG19: Ductile Iron (DI) | AH19: 0 | AI19: 1500 | AJ19: 20 | AL19: CW8.3 | AN19: 6F.3
A20: 15 | B20: ANH | C20: Norfolk East Harling to Norfolk Harleston potable transfer | D20: NHL4 | E20: 3 | F20: Internal interconnectors delivering benefits in 2025-30 | G20: 2030-31 | I20: 0 | J20: 0.753 | K20: 1.758 | L20: 5.023 | M20: 10.045 | N20: 7.534 | O20: 0 | Q20: 0 | R20: 0 | S20: 0 | T20: 0 | U20: 0.062 | V20: 0.123 | X20: 0 | Y20: 0 | Z20: 0 | AA20: 0 | AB20: 0 | AC20: 5 | AE20: 25.885 | AF20: 311 | AG20: Polyethelene (PE) | AH20: 110 | AI20: 2000 | AJ20: 5 | AL20: CW8.4 | AN20: 6F.4
A21: 16 | B21: ANH | C21: Norwich and the Broads to Aylsham potable transfer | D21: NAY1 | E21: 3 | F21: Internal interconnectors delivering benefits in 2025-30 | G21: 2030-31 | I21: 0 | J21: 0.442 | K21: 1.031 | L21: 2.945 | M21: 5.889 | N21: 4.417 | O21: 0 | Q21: 0 | R21: 0 | S21: 0 | T21: 0 | U21: 0.064 | V21: 0.128 | X21: 0 | Y21: 0 | Z21: 0 | AA21: 0 | AB21: 0 | AC21: 3 | AE21: 13.719 | AF21: 246 | AG21: Polyethelene (PE) | AH21: 157 | AI21: 1500 | AJ21: 3 | AL21: CW8.5 | AN21: 6F.5
A22: 17 | B22: ANH | C22: Ruthamford South to Cambridge Water potable transfer | D22: CAM4 | E22: 3 | F22: Internal interconnectors delivering benefits in 2025-30 | G22: After 2029-30 | I22: 2.62 | J22: 2.597 | K22: 5.195 | L22: 7.792 | M22: 10.39 | N22: 25.974 | O22: 23.386 | Q22: 0 | R22: 0 | S22: 0 | T22: 0 | U22: 0 | V22: 0.529 | X22: 0 | Y22: 0 | Z22: 0 | AA22: 0 | AB22: 0 | AC22: 50 | AE22: 20.87 | AF22: 900 | AG22: Steel | AH22: 660 | AI22: 12500 | AJ22: 50 | AL22: CW8.6 | AN22: 6F.6
A23: 18 | B23: ANH | C23: Cambridge Water to Cambs and West Suffolk | D23: SWC8 | E23: 3 | F23: Internal interconnectors delivering benefits in 2025-30 | G23: After 2029-30 | I23: 3.91 | J23: 6.604 | K23: 13.209 | L23: 19.813 | M23: 26.418 | N23: 66.044 | O23: 58.285 | Q23: 0 | R23: 0 | S23: 0 | T23: 0 | U23: 0 | V23: 2.004 | X23: 0 | Y23: 0 | Z23: 0 | AA23: 0 | AB23: 0 | AC23: 50 | AE23: 54.44 | AF23: 900 | AG23: Steel | AH23: 2519.3 | AI23: 12500 | AJ23: 50 | AL23: CW8.7 | AN23: 6F.7
A24: 19 | B24: ANH | C24: Fenland to Norfolk Bradenham potable transfer | D24: NBR6 | E24: 3 | F24: Internal interconnectors delivering benefits in 2025-30 | G24: 2030-31 | I24: 0 | J24: 3.109 | K24: 7.255 | L24: 20.729 | M24: 41.459 | N24: 31.094 | O24: 0 | Q24: 0 | R24: 0 | S24: 0 | T24: 0 | U24: 0.68 | V24: 1.36 | X24: 0 | Y24: 0 | Z24: 0 | AA24: 0 | AB24: 0 | AC24: 45 | AE24: 35.849 | AF24: 900 | AG24: Steel | AH24: 1730 | AI24: 9000 | AJ24: 45 | AL24: CW8.8 | AN24: 6F.8
A25: 20 | B25: ANH | C25: Suffolk Sudbury to East Suffolk potable transfer | D25: SUE24 | E25: 3 | F25: Internal interconnectors delivering benefits in 2025-30 | G25: 2030-31 | I25: 0 | J25: 0.774 | K25: 2.092 | L25: 3.11 | M25: 1.544 | N25: 0 | O25: 0 | Q25: 0 | R25: 0 | S25: 0.016 | T25: 0.081 | U25: 0.129 | V25: 0.129 | X25: 0 | Y25: 0 | Z25: 0 | AA25: 0 | AB25: 0 | AC25: 10 | AE25: 6.084 | AF25: 352 | AG25: Polyethelene (PE) | AH25: 162 | AI25: 0 | AJ25: 10 | AL25: CW8.9 | AN25: 6F.9
A26: 21 | B26: ANH | C26: Suffolk Thetford to Norfolk East Harling potable transfer) | D26: NEH3 | E26: 3 | F26: Internal interconnectors delivering benefits in 2025-30 | G26: 2030-31 | I26: 0 | J26: 0.606 | K26: 1.414 | L26: 4.039 | M26: 8.079 | N26: 6.059 | O26: 0 | Q26: 0 | R26: 0 | S26: 0 | T26: 0 | U26: 0.06 | V26: 0.12 | X26: 0 | Y26: 0 | Z26: 0 | AA26: 0 | AB26: 0 | AC26: 5 | AE26: 19.673 | AF26: 311 | AG26: Polyethelene (PE) | AH26: 146 | AI26: 2000 | AJ26: 5 | AL26: CW8.10 | AN26: 6F.10
A27: 22 | B27: ANH | C27: Colchester reuse transfer | D27: EXS19b | E27: 3 | F27: Supply-demand balance improvements delivering benefits starting from 2031 | G27: 2030-31 | I27: 3.8 | J27: 4.362 | K27: 5.816 | L27: 4.362 | M27: 0 | N27: 0 | O27: 0 | Q27: 0 | R27: 0 | S27: 0.121 | T27: 0.242 | U27: 0.242 | V27: 0.242 | X27: 0 | Y27: 0 | Z27: 0 | AA27: 0 | AB27: 0 | AC27: 11.4 | AL27: CW8.11 | AN27: 6F.11
A28: 23 | B28: ANH | C28: Hall WTW surface water enhancement | D28: LNC30 | E28: 3 | F28: Supply-side improvements delivering benefits in 2025-30 | G28: 2030-31 | I28: 0 | J28: 0.831 | K28: 1.94 | L28: 5.541 | M28: 11.083 | N28: 8.312 | O28: 0 | Q28: 0 | R28: 0 | S28: 0 | T28: 0 | U28: 0.426 | V28: 0.852 | X28: 0 | Y28: 0 | Z28: 0 | AA28: 0 | AB28: 0 | AC28: 3.2 | AL28: CW8.12 | AN28: 6F.12
A29: 24 | B29: ANH | C29: Lincolnshire East Groundwater enhancement | D29: LNE11 | E29: 3 | F29: Supply-side improvements delivering benefits in 2025-30 | G29: 2030-31 | I29: 2.89 | J29: 4.39 | K29: 7.317 | L29: 2.927 | M29: 0 | N29: 0 | O29: 0 | Q29: 0 | R29: 0 | S29: 0.197 | T29: 0.395 | U29: 0.395 | V29: 0.395 | X29: 0 | Y29: 0 | Z29: 0 | AA29: 0 | AB29: 0 | AC29: 7.5 | AL29: CW8.13 | AN29: 6F.13
A30: 25 | B30: ANH | C30: Lincolnshire East Surface Water enhancement | D30: LNE12 | E30: 3 | F30: Supply-side improvements delivering benefits in 2025-30 | G30: 2030-31 | I30: 0 | J30: 1.691 | K30: 3.946 | L30: 11.275 | M30: 22.55 | N30: 16.913 | O30: 0 | Q30: 0 | R30: 0 | S30: 0 | T30: 0 | U30: 0.21 | V30: 0.421 | X30: 0 | Y30: 0 | Z30: 0 | AA30: 0 | AB30: 0 | AC30: 13 | AL30: CW8.14 | AN30: 6F.14
A31: 26 | B31: ANH | C31: Lincolnshire Retford and Gainsborough resource optimisation | D31: LNN3 | E31: 3 | F31: Supply-side improvements delivering benefits in 2025-30 | G31: 2030-31 | I31: 0 | J31: 0.578 | K31: 1.558 | L31: 2.21 | M31: 1.049 | N31: 0 | O31: 0 | Q31: 0 | R31: 0 | S31: 0.016 | T31: 0.078 | U31: 0.124 | V31: 0.124 | X31: 0 | Y31: 0 | Z31: 0 | AA31: 0 | AB31: 0 | AC31: 0.72 | AL31: CW8.15 | AN31: 6F.15
A32: 27 | B32: ANH | C32: Marham surface water abstraction relocation | D32: FND22 | E32: 3 | F32: Supply-side improvements delivering benefits in 2025-30 | G32: 2030-31 | I32: 0.88 | J32: 2.078 | K32: 3.634 | L32: 7.782 | M32: 19.166 | N32: 14.375 | O32: 0 | Q32: 0 | R32: 0 | S32: 0 | T32: 0 | U32: 0.193 | V32: 0.386 | X32: 0 | Y32: 0 | Z32: 0 | AA32: 0 | AB32: 0 | AC32: 7.9 | AL32: CW8.16 | AN32: 6F.16
A33: 28 | B33: ANH | C33: Ruthamford South surface water enhancement | D33: RTS21 | E33: 3 | F33: Supply-side improvements delivering benefits in 2025-30 | G33: 2030-31 | I33: 0 | J33: 0.986 | K33: 2.301 | L33: 6.574 | M33: 13.148 | N33: 9.861 | O33: 0 | Q33: 0 | R33: 0 | S33: 0 | T33: 0 | U33: 0.221 | V33: 0.443 | X33: 0 | Y33: 0 | Z33: 0 | AA33: 0 | AB33: 0 | AC33: 9.5 | AL33: CW8.17 | AN33: 6F.17
A34: 29 | B34: ANH | C34: Suffolk East groundwater enhancement | D34: SUE23 | E34: 3 | F34: Supply-side improvements delivering benefits in 2025-30 | G34: 2030-31 | I34: 0.97 | J34: 3.9 | K34: 0 | L34: 0 | M34: 0 | N34: 0 | O34: 0 | Q34: 0.095 | R34: 0.191 | S34: 0.191 | T34: 0.191 | U34: 0.191 | V34: 0.191 | X34: 0 | Y34: 0 | Z34: 0 | AA34: 0 | AB34: 0 | AC34: 1.7 | AL34: CW8.18 | AN34: 6F.18
A35: 30 | B35: ANH | C35: Suffolk West & Cambs groundwater relocation | D35: SWC13 | E35: 3 | F35: Supply-side improvements delivering benefits in 2025-30 | G35: 2030-31 | I35: 0 | J35: 0.807 | K35: 2.223 | L35: 3.589 | M35: 2.062 | N35: 0 | O35: 0 | Q35: 0 | R35: 0 | S35: 0.004 | T35: 0.027 | U35: 0.046 | V35: 0.046 | X35: 0 | Y35: 0 | Z35: 0 | AA35: 0 | AB35: 0 | AC35: 2.6 | AL35: CW8.19 | AN35: 6F.19
A36: 31 | B36: ANH | C36: WRMP24 Supply Side Options - Recirculation Schemes | D36: multiple | E36: 3 | F36: Supply-side improvements delivering benefits in 2025-30 | G36: 2030-31 | I36: 0 | J36: 1.4 | K36: 1.4 | L36: 1.4 | M36: 1.4 | N36: 1.4 | O36: 0 | Q36: 0 | R36: 0 | S36: 0 | T36: 0 | U36: 0 | V36: 0 | X36: 0 | Y36: 0 | Z36: 0 | AA36: 0 | AB36: 0 | AC36: 4.09 | AL36: CW8.20 | AN36: 6F.20
A37: 32 | B37: ANH | C37: Adaptive Planning | E37: 3 | F37: Supply-demand balance improvements delivering benefits starting from 2031 | G37: After 2029-30 | I37: 0 | J37: 2.421 | K37: 2.421 | L37: 2.421 | M37: 2.421 | N37: 2.421 | O37: 0 | Q37: 0 | R37: 0 | S37: 0 | T37: 0 | U37: 0 | V37: 0 | AL37: CW8.21 | AN37: 6F.21
A38: 33 | B38: ANH | C38: Colchester Reuse - Pilot Plant | E38: 3 | F38: Supply-demand balance improvements delivering benefits starting from 2031 | I38: 0.6 | J38: 2.251 | K38: 2.2 | L38: 0 | M38: 0 | N38: 0 | O38: 0 | Q38: 0 | R38: 0 | S38: 0 | T38: 0 | U38: 0 | V38: 0 | AL38: CW8.22 | AN38: 6F.22
A39: 34 | B39: ANH | C39: Strategic Interconnector Hydraulic model | E39: 3 | F39: Internal interconnectors delivering benefits in 2025-30 | G39: 2029-30 | I39: 0 | J39: 0.376 | K39: 0.747 | L39: 0.618 | M39: 0.064 | N39: 0 | O39: 0 | Q39: 0 | R39: 0 | S39: 0 | T39: 0 | U39: 0 | V39: 0 | AL39: CW8.23 | AN39: 6F.23
A40: 35 | B40: ANH | C40: East Suffolk WRZ IPZ | E40: 3 | F40: Internal interconnectors delivering benefits in 2025-30 | G40: 2030-31 | I40: 0 | J40: 0.778 | K40: 2.101 | L40: 3.125 | M40: 1.551 | N40: 0 | O40: 0 | Q40: 0 | R40: 0 | S40: 0 | T40: 0.001 | U40: 0.002 | V40: 0.002 | X40: 0 | Y40: 0 | Z40: 0 | AA40: 0 | AB40: 0 | AC40: 7.81 | AE40: 7.5 | AF40: 395 | AG40: Polyethelene (PE) | AH40: 0 | AI40: 0 | AJ40: 0 | AL40: CW8.24 | AN40: 6F.24
A41: 36 | B41: ANH | C41: Colchester Reuse DPC allowance | D41: EXS19a | E41: 3 | F41: Supply-demand balance improvements delivering benefits starting from 2031 | G41: After 2029-30 | I41: 0 | J41: 4.189 | K41: 4.189 | L41: 0.175 | M41: 0.087 | N41: 0.087 | O41: 0 | Q41: 0 | R41: 0 | S41: 0 | T41: 0 | U41: 0 | V41: 0 | X41: 0 | Y41: 0 | Z41: 0 | AA41: 0 | AB41: 0 | AC41: 11.4 | AL41: CW8.25 | AN41: 6F.25
A42: 37 | B42: ANH | C42: Demand Side Measures - non household (NHH) | E42: 3 | F42: Demand-side improvements delivering benefits in 2025-30 (excl leakage and metering) | G42: 2025-26 | I42: 0 | J42: 0 | K42: 0 | L42: 0 | M42: 0 | N42: 0 | O42: 0 | Q42: 0.896 | R42: 0.896 | S42: 0.896 | T42: 0.896 | U42: 0.896 | V42: 0 | X42: 2.02 | Y42: 4.03 | Z42: 6.049 | AA42: 8.059 | AB42: 10.079 | AC42: 10.079 | AL42: CW8.26 | AN42: 6F.26
A43: 38 | B43: ANH | C43: Demand Side Measures - domestic | E43: 3 | F43: Demand-side improvements delivering benefits in 2025-30 (excl leakage and metering) | G43: 2025-26 | I43: 0 | J43: 0 | K43: 0 | L43: 0 | M43: 0 | N43: 0 | O43: 0 | Q43: 5.089 | R43: 4.66 | S43: 2.32 | T43: 2.486 | U43: 2.684 | V43: 0 | X43: 2.732 | Y43: 4.354 | Z43: 6.029 | AA43: 7.693 | AB43: 9.369 | AC43: 9.369 | AL43: CW8.27 | AN43: 6F.27
A44: 39 | B44: HDD | C44: Household water effciency | D44: HDD024, HDD025,HDD035,HDD026,HDD032,HDD029 | E44: 3 | F44: Demand-side improvements delivering benefits in 2025- 2030 (excl leakage and metering) | G44: 2025-26 | I44: 0 | J44: 0.076 | K44: 0.077 | L44: 0 | M44: 0 | N44: 0 | O44: 0 | Q44: 0.041 | R44: 0.041 | S44: 0.041 | T44: 0.042 | U44: 0.042 | V44: 0.7 | X44: 0.111 | Y44: 0.111 | Z44: 0.111 | AA44: 0.111 | AB44: 0.111 | AC44: 2.297 | AE44: 0 | AF44: 0 | AG44: 0 | AH44: 0 | AI44: 0 | AJ44: 0 | AL44: CW8.1 | AN44: 6F.1
A45: 40 | B45: HDD | C45: Non household water effieicency | D45: HDD028 | E45: 3 | F45: Demand-side improvements delivering benefits in 2025- 2030 (excl leakage and metering) | G45: 2025-26 | I45: 0 | J45: 0 | K45: 0 | L45: 0 | M45: 0 | N45: 0 | O45: 0 | Q45: 0.033 | R45: 0.033 | S45: 0.033 | T45: 0.033 | U45: 0.033 | V45: 0.962 | X45: 0.05 | Y45: 0.05 | Z45: 0.04 | AA45: 0.05 | AB45: 0.05 | AC45: 1.525 | AE45: 0 | AF45: 0 | AG45: 0 | AH45: 0 | AI45: 0 | AJ45: 0 | AL45: CW8.2 | AN45: 6F.2
A46: 41 | B46: NES | C46: Linford TW | D46: ESW-ABS-003 | E46: 3 | F46: Supply-side improvements delivering benefits in 2025-30 | G46: 2027 | I46: 1.632 | J46: 17.784 | K46: 17.784 | L46: 0 | M46: 0 | N46: 0 | O46: 0 | Q46: 0 | R46: 0 | S46: 1.566 | T46: 1.566 | U46: 1.566 | V46: 1.566 | X46: 0 | Y46: 0 | Z46: 10 | AA46: 10 | AB46: 10 | AC46: 10 | AL46: CW8.1 | AN46: 6F.1
A47: 42 | B47: NES | C47: Langham Nitrates | D47: ESW-NIT-006 | E47: 3 | F47: Supply-side improvements delivering benefits in 2025-30 | G47: 2030 | I47: 3 | J47: 8.02 | K47: 8.02 | L47: 8.02 | M47: 8.02 | N47: 5.02 | O47: 0 | Q47: 0 | R47: 0 | S47: 0 | T47: 0 | U47: 0 | V47: 1.426 | X47: 0 | Y47: 0 | Z47: 0 | AA47: 0 | AB47: 0 | AC47: 0.9 | AL47: CW8.2 | AN47: 6F.2
A48: 43 | B48: NES | C48: Langford Nitrates | D48: ESW-NIT-005 | E48: 3 | F48: Supply-side improvements delivering benefits in 2025-30 | G48: 2030 | I48: 3 | J48: 6.148 | K48: 6.148 | L48: 6.148 | M48: 6.148 | N48: 3.148 | O48: 0 | Q48: 0 | R48: 0 | S48: 0 | T48: 0 | U48: 0 | V48: 1.188 | X48: 0 | Y48: 0 | Z48: 0 | AA48: 0 | AB48: 0 | AC48: 2.75 | AL48: CW8.3 | AN48: 6F.3
A49: 44 | B49: NES | C49: Langford UV | D49: ESW-UVC-001 | E49: 3 | F49: Supply-side improvements delivering benefits in 2025-30 | G49: 2030 | I49: 1 | J49: 1.431 | K49: 1.431 | L49: 1.431 | M49: 1.431 | N49: 0.431 | O49: 0 | Q49: 0 | R49: 0 | S49: 0 | T49: 0 | U49: 0 | V49: 0.201 | X49: 0 | Y49: 0 | Z49: 0 | AA49: 0 | AB49: 0 | AC49: 0.185 | AL49: CW8.4 | AN49: 6F.4
A50: 45 | B50: NES | C50: Langford Clarifiers | D50: NW00331-1-1 | E50: 3 | F50: Supply-side improvements delivering benefits in 2025-30 | G50: 2030 | I50: 0 | J50: 1.753 | K50: 1.753 | L50: 1.753 | M50: 1.753 | N50: 1.753 | O50: 0 | Q50: 0 | R50: 0 | S50: 0 | T50: 0 | U50: 0 | V50: 0.486 | X50: 0 | Y50: 0 | Z50: 0 | AA50: 0 | AB50: 0 | AC50: 8 | AL50: CW8.5 | AN50: 6F.5
A51: 46 | B51: NES | C51: Abberton Raw Water PS | D51: ESW-PMP-001 | E51: 3 | F51: Supply-side improvements delivering benefits in 2025-30 | G51: 2030 | I51: 0 | J51: 0 | K51: 0 | L51: 0 | M51: 0.324 | N51: 0.324 | O51: 0 | Q51: 0 | R51: 0 | S51: 0 | T51: 0 | U51: 0 | V51: 1.391 | X51: 0 | Y51: 0 | Z51: 0 | AA51: 0 | AB51: 0 | AC51: 8 | AL51: CW8.6 | AN51: 6F.6
A52: 47 | B52: NES | C52: Barsham to Saxmundham TM | D52: ESW-TRA-001 | E52: 3 | F52: Internal interconnectors delivering benefits in 2025-30 | G52: 2028 | I52: 3.811 | J52: 17.086 | K52: 17.086 | L52: 17.086 | M52: 0 | N52: 0 | O52: 0 | Q52: 0 | R52: 0 | S52: 0 | T52: 0.12 | U52: 0.12 | V52: 0.12 | X52: 0 | Y52: 0 | Z52: 0 | AA52: 15 | AB52: 15 | AC52: 15 | AE52: 34.5 | AF52: 630 | AG52: PE SDR11 | AH52: 630 | AI52: 13000 | AJ52: 15 | AL52: CW8.7 | AN52: 6F.7
A53: 48 | B53: NES | C53: Holton to Eye TM | D53: ESW-TRA-019 | E53: 3 | F53: Internal interconnectors delivering benefits in 2025-30 | G53: 2028 | I53: 4.336 | J53: 19.441 | K53: 19.441 | L53: 19.441 | M53: 0 | N53: 0 | O53: 0 | Q53: 0 | R53: 0 | S53: 0 | T53: 0.504 | U53: 0.504 | V53: 0.504 | X53: 0 | Y53: 0 | Z53: 0 | AA53: 8.5 | AB53: 8.5 | AC53: 8.5 | AE53: 41.7 | AF53: 450 | AG53: PE SDR11 | AH53: 370 | AI53: 12000 | AJ53: 8 | AL53: CW8.8 | AN53: 6F.8
A54: 49 | B54: NES | C54: Bungay to Barsham Pipeline | D54: ESW-TRA-023 | E54: 3 | F54: Internal interconnectors delivering benefits in 2025-30 | G54: 2030 | I54: 1 | J54: 1.787 | K54: 1.787 | L54: 1.787 | M54: 1.787 | N54: 0.787 | O54: 0 | Q54: 0 | R54: 0 | S54: 0 | T54: 0 | U54: 0 | V54: 0.08 | X54: 0 | Y54: 0 | Z54: 0 | AA54: 0 | AB54: 1 | AC54: 1 | AE54: 9.8 | AF54: 280 | AG54: PE SDR11 | AH54: 40 | AI54: 0 | AJ54: 3.91 | AL54: CW8.9 | AN54: 6F.9
A55: 50 | B55: NES | C55: Lowestoft Reuse | D55: ESW-EFR-002 | E55: 3 | F55: Supply-side improvements delivering benefits in 2025-30 | G55: 2030 | I55: 5.091 | J55: 11.659 | K55: 14.922 | L55: 14.922 | M55: 14.922 | N55: 14.922 | O55: 3.263 | Q55: 0 | R55: 0 | S55: 0 | T55: 0 | U55: 0 | V55: 3.578 | X55: 0 | Y55: 0 | Z55: 0 | AA55: 0 | AB55: 0 | AC55: 11 | AL55: CW8.10 | AN55: 6F.10
A56: 51 | B56: NES | C56: North Suffolk Reservoir - Largest | D56: ESW-RES-002C | E56: 3 | F56: Supply-demand balance improvements delivering benefits starting from 2031 | G56: 2040 | I56: 9.844 | J56: 24.987 | K56: 0 | L56: 0 | M56: 0 | N56: 0 | O56: 174.908 | Q56: 0 | R56: 0 | S56: 0 | T56: 0 | U56: 0 | V56: 0.216 | X56: 0 | Y56: 0 | Z56: 0 | AA56: 0 | AB56: 0 | AC56: 19.9 | AL56: CW8.11 | AN56: 6F.11
A57: 52 | B57: NES | C57: Barsham River Works Upgrade | D57: ESW-UPG-001 | E57: 3 | F57: Supply-demand balance improvements delivering benefits starting from 2031 | G57: 2040 | I57: 0 | J57: 0 | K57: 0 | L57: 0 | M57: 0 | N57: 0 | O57: 31.643 | Q57: 0 | R57: 0 | S57: 0 | T57: 0 | U57: 0 | V57: 0.779 | X57: 0 | Y57: 0 | Z57: 0 | AA57: 0 | AB57: 0 | AC57: 19.9 | AL57: CW8.12 | AN57: 6F.12
A58: 53 | B58: NES | C58: Barsham Nitrates | D58: ESW-NIT-001 | E58: 3 | F58: Supply-side improvements delivering benefits in 2025-30 | G58: 2030 | I58: 2 | J58: 3.203 | K58: 3.203 | L58: 3.203 | M58: 3.203 | N58: 1.203 | O58: 0 | Q58: 0 | R58: 0 | S58: 0 | T58: 0 | U58: 0 | V58: 1.052 | X58: 0 | Y58: 0 | Z58: 0 | AA58: 0 | AB58: 0 | AC58: 5.3 | AL58: CW8.13 | AN58: 6F.13
A59: 54 | B59: NES | C59: Household Demand Reduction (ESW) | D59: Water efficiency -Medium Smart scenario | E59: 3 | F59: Demand-side improvements delivering benefits in 2025-30 (excl leakage and metering) | G59: 2030 | I59: 0 | J59: 0 | K59: 0 | L59: 0 | M59: 0 | N59: 0 | O59: 0 | Q59: 0.7340618202 | R59: 0.7805887374 | S59: 0.7840450227 | T59: 0.7933504062 | U59: 0.7699540135 | V59: 0 | X59: 0.659 | Y59: 0.577 | Z59: 1.099 | AA59: 0.97 | AB59: 0.792 | AC59: 0 | AL59: CW8.14 | AN59: 6F.14
A60: 55 | B60: NES | C60: Non-Household Demand Reduction (ESW) | D60: NHH water efficiency - all activity- High 9% | E60: 3 | F60: Demand-side improvements delivering benefits in 2025-30 (excl leakage and metering) | G60: 2030 | I60: 0 | J60: 0 | K60: 0 | L60: 0 | M60: 0 | N60: 0 | O60: 0 | Q60: 0.326355294 | R60: 0.3470406168 | S60: 0.3485772408 | T60: 0.3527143054 | U60: 0.342312543 | V60: 0 | X60: 0.3 | Y60: 0.3 | Z60: 0.3 | AA60: 0.3 | AB60: 0.3 | AC60: 0 | AL60: CW8.15 | AN60: 6F.15
A61: 56 | B61: NES | C61: Household Demand Reduction (NW) | D61: Water efficiency -Medium Smart scenario | E61: 3 | F61: Demand-side improvements delivering benefits in 2025-30 (excl leakage and metering) | G61: 2030 | I61: 0 | J61: 0 | K61: 0 | L61: 0 | M61: 0 | N61: 0 | O61: 0 | Q61: 0.7093523337 | R61: 0.7543130938 | S61: 0.7576530359 | T61: 0.7666451879 | U61: 0.7440363486 | V61: 0 | X61: 0.59 | Y61: 0.777 | Z61: 0.797 | AA61: 0.793 | AB61: 0.79 | AC61: 0 | AL61: CW8.16 | AN61: 6F.16
A62: 57 | B62: NES | C62: Non-Household Demand Reduction (NW) | D62: NHH water efficiency - all activity- High 9% | E62: 3 | F62: Demand-side improvements delivering benefits in 2025-30 (excl leakage and metering) | G62: 2030 | I62: 0 | J62: 0 | K62: 0 | L62: 0 | M62: 0 | N62: 0 | O62: 0 | Q62: 0.9912305521 | R62: 1.054057552 | S62: 1.058724701 | T62: 1.071290101 | U62: 1.039697095 | V62: 0 | X62: 0.758 | Y62: 0.758 | Z62: 0.758 | AA62: 0.758 | AB62: 0.758 | AC62: 0 | AL62: CW8.17 | AN62: 6F.17
A63: 58 | B63: PRT | C63: Resilience change from 1 in 500 to 1 in 200 for PWSPRT | D63: PRT_PRT_200_los resilience | E63: 3 | F63: Supply-side improvements delivering benefits in 2025-30 | G63: 2025-26 | I63: 0 | J63: 0 | K63: 0 | L63: 0 | M63: 0 | N63: 0 | O63: 0 | Q63: 0 | R63: 0 | S63: 0 | T63: 0 | U63: 0 | V63: 0 | X63: 8.6625 | Y63: 8.64537 | Z63: 8.62825 | AA63: 8.61113 | AB63: 8.594 | AC63: 8.508 | AL63: CW8.1 | AN63: 6F.1
A64: 59 | B64: PRT | C64: Pressure control device - Company - High+ | D64: PRT_PRT_EF-CRE_ALL_ALL_hh_pressure high+ | E64: 3 | F64: Demand-side improvements delivering benefits in 2025-30 (excl leakage and metering) | G64: 2025-26 | X64: 0.0015 | Y64: 0.0031 | Z64: 0.0047 | AA64: 0.0063 | AB64: 0.008 | AC64: 0.344 | AL64: CW8.2 | AN64: 6F.2
A65: 60 | B65: PRT | C65: Government-led Demand Reduction - Profile C+ (Portsmouth Water) | D65: PRT_PRT_EF-LKR_ALL_ALL_dmp prt gov c+2 | E65: 3 | F65: Demand-side improvements delivering benefits in 2025-30 (excl leakage and metering) | G65: 2025-26 | I65: 0 | J65: 0 | K65: 0 | L65: 0 | M65: 0 | N65: 0 | O65: 0 | Q65: 0 | R65: 0 | S65: 0 | T65: 0 | U65: 0 | V65: 0 | X65: 0.3042215005 | Y65: 0.6153263757 | Z65: 0.9344003314 | AA65: 1.260923031 | AB65: 1.595326262 | AC65: 22.62941111 | AL65: CW8.3 | AN65: 6F.3
A66: 61 | B66: PRT | C66: Household audit - Company - High+ | D66: PRT_PRT_EF-WEF_ALL_ALL_audit_hh high+ | E66: 3 | F66: Demand-side improvements delivering benefits in 2025-30 (excl leakage and metering) | G66: 2025-26 | Q66: 0.10152 | R66: 0.10152 | S66: 0.10152 | T66: 0.10152 | U66: 0.10152 | V66: 0.27336 | X66: 0.085 | Y66: 0.17 | Z66: 0.255 | AA66: 0.3314 | AB66: 0.3994 | AC66: 0.6561 | AL66: CW8.4 | AN66: 6F.4
A67: 62 | B67: PRT | C67: Non-household audit - Company - High+ | D67: PRT_PRT_EF-WEF_ALL_ALL_audit_nhh high+ | E67: 3 | F67: Demand-side improvements delivering benefits in 2025-30 (excl leakage and metering) | G67: 2025-26 | Q67: 0.04068 | R67: 0.04068 | S67: 0.04068 | T67: 0.04068 | U67: 0.04068 | V67: 0.8362 | X67: 0.0027 | Y67: 0.0054 | Z67: 0.0082 | AA67: 0.0109 | AB67: 0.0137 | AC67: 0.0301 | AL67: CW8.5 | AN67: 6F.5
A68: 63 | B68: PRT | C68: Awareness campaign: community - Company - High+ | D68: PRT_PRT_EF-WEF_ALL_ALL_awareness high+ | E68: 3 | F68: Demand-side improvements delivering benefits in 2025-30 (excl leakage and metering) | G68: 2025-26 | Q68: 0.027 | R68: 0.027 | S68: 0.027 | T68: 0.027 | U68: 0.027 | V68: 0.18 | X68: 0.2887 | Y68: 0.5775 | Z68: 0.8663 | AA68: 1.1551 | AB68: 1.444 | AC68: 3.465 | AL68: CW8.6 | AN68: 6F.6
A69: 64 | B69: PRT | C69: Multi- channel proactive coms - Company - High+ | D69: PRT_PRT_EF-WEF_ALL_ALL_comms high+ | E69: 3 | F69: Demand-side improvements delivering benefits in 2025-30 (excl leakage and metering) | G69: 2025-26 | Q69: 0.04536 | R69: 0.04536 | S69: 0.04536 | T69: 0.04536 | U69: 0.04536 | V69: 0.9324 | X69: 0.0604 | Y69: 0.1208 | Z69: 0.1813 | AA69: 0.2418 | AB69: 0.3023 | AC69: 0.7256 | AL69: CW8.7 | AN69: 6F.7
A70: 65 | B70: PRT | C70: Education programme - Company - High+ | D70: PRT_PRT_EF-WEF_ALL_ALL_education high+ | E70: 3 | F70: Demand-side improvements delivering benefits in 2025-30 (excl leakage and metering) | G70: 2025-26 | Q70: 0.0045 | R70: 0.0045 | S70: 0.0045 | T70: 0.0045 | U70: 0.0045 | V70: 0.0925 | X70: 0.0113 | Y70: 0.0226 | Z70: 0.034 | AA70: 0.0453 | AB70: 0.0566 | AC70: 0.2834 | AL70: CW8.8 | AN70: 6F.8
A71: 66 | B71: PRT | C71: Retrofit Gadgets - Company - High+ | D71: PRT_PRT_EF-WEF_ALL_ALL_gadgets high+ | E71: 3 | F71: Demand-side improvements delivering benefits in 2025-30 (excl leakage and metering) | G71: 2025-26 | Q71: 0.0324 | R71: 0.0324 | S71: 0.0324 | T71: 0.0324 | U71: 0.0324 | V71: 0.666 | X71: 0.0025 | Y71: 0.0052 | Z71: 0.0078 | AA71: 0.0105 | AB71: 0.0131 | AC71: 0.1161 | AL71: CW8.9 | AN71: 6F.9
A72: =A71+1 -> 67 | B72: PRT | C72: Introduce innovative tariffs - Company - High+ | D72: PRT_PRT_EF-WEF_ALL_ALL_innovative tariffs high+ | E72: 3 | F72: Supply-demand balance improvements delivering benefits starting from 2031 | G72: 2035-36 | O72: 0.5 | X72: 0 | Y72: 0 | Z72: 0 | AA72: 0 | AB72: 0 | AC72: 2.3949 | AL72: CW8.10 | AN72: 6F.10
A73: 68 | B73: PRT | C73: Leak Alarm - Company - High+ | D73: PRT_PRT_EF-WEF_ALL_ALL_leak_alarm high+ | E73: 3 | F73: Demand-side improvements delivering benefits in 2025-30 (excl leakage and metering) | G73: 2025-26 | X73: 0.015 | Y73: 0.03 | Z73: 0.045 | AA73: 0.06 | AB73: 0.075 | AC73: 0.075 | AL73: CW8.11 | AN73: 6F.11
A74: 69 | B74: PRT | C74: Community Reward (Waterfit platform) - Company - High+ | D74: PRT_PRT_EF-WEF_ALL_ALL_reduce_consump high+ | E74: 3 | F74: Demand-side improvements delivering benefits in 2025-30 (excl leakage and metering) | G74: 2025-26 | Q74: 0.1233 | R74: 0.1233 | S74: 0.1233 | T74: 0.1233 | U74: 0.1233 | V74: 2.5345 | X74: 0.044 | Y74: 0.088 | Z74: 0.132 | AA74: 0.176 | AB74: 0.22 | AC74: 1.1 | AL74: CW8.12 | AN74: 6F.12
A75: 70 | B75: PRT | C75: Vulnerability - Company - High+ | D75: PRT_PRT_EF-WEF_ALL_ALL_vulnerability high+ | E75: 3 | F75: Demand-side improvements delivering benefits in 2025-30 (excl leakage and metering) | G75: 2025-26 | V75: 0.0069 | X75: 0.0001 | Y75: 0.0003 | Z75: 0.0004 | AA75: 0.0006 | AB75: 0.0008 | AC75: 0.0044 | AL75: CW8.13 | AN75: 6F.13
A76: 71 | B76: PRT | C76: Upgrade Source O Booster to 25Mld | D76: PRT_PRT_HI-ROC_ALL_ALL_Source O booster | E76: 3 | F76: Supply-demand balance improvements delivering benefits starting from 2031 | G76: 2039/40 | O76: 0.747647 | X76: 0 | Y76: 0 | Z76: 0 | AA76: 0 | AB76: 0 | AC76: 4.1 | AL76: CW8.14 | AN76: 6F.14
A77: 72 | B77: PRT | C77: HT 20 Ml/d to Service Reservoir B via Works A: Phase 1 10Ml/d WTW | D77: PRT_PRT_HI-ROC_NET_ALL_Works A to Service Reservoir B 20_p1 | E77: 3 | F77: Supply-demand balance improvements delivering benefits starting from 2031 | G77: 2046/47 | O77: 10.629889 | V77: 6.34152 | X77: 0 | Y77: 0 | Z77: 0 | AA77: 0 | AB77: 0 | AC77: 10 | AL77: CW8.15 | AN77: 6F.15
A78: 73 | B78: PRT | C78: HT 20 Ml/d to Service Reservoir B via Works A: Phase 2 10Ml/d WTW | D78: PRT_PRT_HI-ROC_NET_ALL_Works A to Service Reservoir B 20_p2 | E78: 3 | F78: Supply-demand balance improvements delivering benefits starting from 2031 | G78: 2048/49 | O78: 8.28506 | V78: 3.804925 | X78: 0 | Y78: 0 | Z78: 0 | AA78: 0 | AB78: 0 | AC78: 10 | AL78: CW8.16 | AN78: 6F.16
A79: 74 | B79: PRT | C79: HT to SRN Otterbourne WSW spur to Service Reservoir C: 10Ml/d | D79: PRT_PRT_HI-TFR_HTE_ALL_ht to Service Reservoir C 10_p1 | E79: 3 | F79: Supply-demand balance improvements delivering benefits starting from 2031 | G79: 2051/52 | X79: 0 | Y79: 0 | Z79: 0 | AA79: 0 | AB79: 0 | AC79: 10 | AL79: CW8.17 | AN79: 6F.17
A80: 75 | B80: PRT | C80: Drought Permit: Source S (to 2041) | D80: PRT_PRT_RE-DRP_ALL_ALL_Source S drought | E80: 3 | F80: Supply-side improvements delivering benefits in 2025-30 | G80: 2025-26 | X80: 3.4 | Y80: 3.4 | Z80: 3.4 | AA80: 3.4 | AB80: 3.4 | AC80: 3.4 | AL80: CW8.18 | AN80: 6F.18
A81: 76 | B81: PRT | C81: Non-essential use bans | D81: PRT_PRT_RE-OTH_ALL_ALL_neubs | E81: 3 | F81: Supply-side improvements delivering benefits in 2025-30 | G81: 2025-26 | I81: 0 | J81: 0 | K81: 0 | L81: 0 | M81: 0 | N81: 0 | O81: 0 | Q81: 0 | R81: 0 | S81: 0 | T81: 0 | U81: 0 | V81: 0 | X81: 5.3 | Y81: 5.3 | Z81: 5.3 | AA81: 5.3 | AB81: 5.3 | AC81: 5.3 | AL81: CW8.19 | AN81: 6F.19
A82: 77 | B82: PRT | C82: Temporary use bans | D82: PRT_PRT_RE-OTH_ALL_ALL_tubs | E82: 3 | F82: Supply-side improvements delivering benefits in 2025-30 | G82: 2025-26 | I82: 0 | J82: 0 | K82: 0 | L82: 0 | M82: 0 | N82: 0 | O82: 0 | Q82: 0 | R82: 0 | S82: 0 | T82: 0 | U82: 0 | V82: 0 | X82: 13.5 | Y82: 13.5 | Z82: 13.5 | AA82: 13.5 | AB82: 13.5 | AC82: 13.5 | AL82: CW8.20 | AN82: 6F.20
A83: 78 | B83: PRT | C83: SRN Otterbourne WSW to Source A | D83: PRT_SRN Otterbourne WSW-Source A p | E83: 3 | F83: Supply-demand balance improvements delivering benefits starting from 2031 | G83: 2039/40 | O83: 31.652195 | V83: 3.700199 | X83: 0 | Y83: 0 | Z83: 0 | AA83: 0 | AB83: 0 | AC83: 45 | AL83: CW8.21 | AN83: 6F.21
A84: 79 | B84: PRT | C84: Metering CSL - Company - High+ | D84: PRT_PRT_EF-WEF_ALL_ALL_meter csl high+ | E84: 3 | F84: Demand-side improvements delivering benefits in 2025-30 (excl leakage and metering) | G84: 2026/27 | X84: 0 | Y84: 0.05253951442 | Z84: 0.4485317805 | AA84: 1.121815928 | AB84: 2.063635372 | AC84: 6.047228581 | AL84: CW8.22 | AN84: 6F.22
A85: 80 | B85: BRL | C85: Water saving devices - waterless urinals | D85: C016 | E85: 3 | F85: Demand-side improvements delivering benefits in 2025-30 (excl leakage and metering) | G85: 2025 | I85: 0 | J85: 0.041 | K85: 0.041 | L85: 0.041 | M85: 0.041 | N85: 0.041 | O85: 0.425 | Q85: 0.086 | R85: 0.086 | S85: 0.087 | T85: 0.087 | U85: 0.087 | V85: 0.897 | X85: 0.02 | Y85: 0.06 | Z85: 0.101 | AA85: 0.141 | AB85: 0.182 | AC85: 27.733 | AL85: CW8.1 | AN85: 6F.1
A86: 81 | B86: BRL | C86: Water labelling - with minimum standards | D86: HH_P_002 | E86: 3 | F86: Demand-side improvements delivering benefits in 2025-30 (excl leakage and metering) | G86: 2026 | I86: 0 | J86: 0 | K86: 0 | L86: 0 | M86: 0 | N86: 0 | O86: 0 | Q86: 0 | R86: 0 | S86: 0 | T86: 0 | U86: 0 | V86: 0 | X86: 0 | Y86: 0.775 | Z86: 1.56 | AA86: 2.356 | AB86: 3.163 | AC86: 358.629 | AL86: CW8.2 | AN86: 6F.2
A87: 82 | B87: BRL | C87: Change WC standards | D87: HH_P_001 | E87: 3 | F87: Demand-side improvements delivering benefits in 2025-30 (excl leakage and metering) | G87: 2030 | I87: 0 | J87: 0 | K87: 0 | L87: 0 | M87: 0 | N87: 0 | O87: 0 | Q87: 0 | R87: 0 | S87: 0 | T87: 0 | U87: 0 | V87: 0 | X87: 0 | Y87: 0 | Z87: 0 | AA87: 0 | AB87: 0 | AC87: 178.182 | AL87: CW8.3 | AN87: 6F.3
A88: 83 | B88: BRL | C88: Business Efficiency Visits (BEV) - water efficiency audit - in person audit, fix and retrofit, targeted at specific sectors/businesses | D88: NHH_A_001 | E88: 3 | F88: Demand-side improvements delivering benefits in 2025-30 (excl leakage and metering) | G88: 2030 | I88: 0 | J88: 0.042 | K88: 0.042 | L88: 0.043 | M88: 0.043 | N88: 0.043 | O88: 0.218 | Q88: 0.091 | R88: 0.092 | S88: 0.092 | T88: 0.093 | U88: 0.093 | V88: 0.471 | X88: 0.026 | Y88: 0.078 | Z88: 0.13 | AA88: 0.183 | AB88: 0.235 | AC88: 25.62 | AL88: CW8.4 | AN88: 6F.4
A89: 84 | B89: BRL | C89: Rainwater harvesting feasibility assessment and/or subsidised installation - target large water users | D89: NHH_N_002 | E89: 3 | F89: Demand-side improvements delivering benefits in 2025-30 (excl leakage and metering) | G89: 2025 | I89: 0 | J89: 0.004 | K89: 0.002 | L89: 0.002 | M89: 0.002 | N89: 0.002 | O89: 0.048 | Q89: 0 | R89: 0 | S89: 0 | T89: 0 | U89: 0 | V89: 0.002 | X89: 0.006 | Y89: 0.016 | Z89: 0.022 | AA89: 0.028 | AB89: 0.034 | AC89: 7.449 | AL89: CW8.5 | AN89: 6F.5
A90: 85 | B90: BRL | C90: New home standards - mandatory | D90: HH_P_005 | E90: 3 | F90: Demand-side improvements delivering benefits in 2025-30 (excl leakage and metering) | G90: 2025 | I90: 0 | J90: 0 | K90: 0 | L90: 0 | M90: 0 | N90: 0 | O90: 0 | Q90: 0 | R90: 0 | S90: 0 | T90: 0 | U90: 0 | V90: 0 | X90: 0 | Y90: 0 | Z90: 0 | AA90: 0 | AB90: 0 | AC90: 498.631 | AL90: CW8.6 | AN90: 6F.6
A91: 86 | B91: BRL | C91: Benchmarked rising block busines tariffs | D91: NHH_T_003 | E91: 3 | F91: Demand-side improvements delivering benefits in 2025-30 (excl leakage and metering) | G91: 2030 | I91: 0 | J91: 0 | K91: 0 | L91: 0 | M91: 0 | N91: 0 | O91: 0 | Q91: 0 | R91: 0 | S91: 0 | T91: 0 | U91: 0 | V91: 1.624 | X91: 0 | Y91: 0 | Z91: 0 | AA91: 0 | AB91: 0 | AC91: 3.041 | AL91: CW8.7 | AN91: 6F.7
A92: 87 | B92: BRL | C92: Media campaigns to influence water use | D92: HH_E_016 | E92: 3 | F92: Demand-side improvements delivering benefits in 2025-30 (excl leakage and metering) | G92: 2030 | I92: 0 | J92: 0 | K92: 0 | L92: 0 | M92: 0 | N92: 0 | O92: 22.554 | Q92: 0 | R92: 0 | S92: 0 | T92: 0 | U92: 0 | V92: 0.113 | X92: 0 | Y92: 0 | Z92: 0 | AA92: 0 | AB92: 0 | AC92: 114.752 | AL92: CW8.8 | AN92: 6F.8
A93: 88 | B93: SWB | C93: Ampress - Borehole remediation | D93: BNW1 | E93: 3 | F93: Supply-demand balance improvements delivering benefits starting from 2031 | G93: 2030-31 | I93: 0 | J93: 0 | K93: 0 | L93: 0.718 | M93: 1.167 | N93: 3.499 | O93: 0 | Q93: 0 | R93: 0 | S93: 0 | T93: 0 | U93: 0 | V93: 0.1852007228 | X93: 0 | Y93: 0 | Z93: 0 | AA93: 0 | AB93: 0 | AC93: 1 | AL93: CW8.1 | AN93: 6F.1
A94: 89 | B94: SWB | C94: Mendips Quarry - Raw water transfer and augmentation of River Stour | D94: BNW7 | E94: 3 | F94: Supply-demand balance improvements delivering benefits starting from 2031 | G94: 2042-43 | I94: 0 | J94: 2.745 | K94: 1.451 | L94: 4.932 | M94: 4.084 | N94: 0.558 | O94: 0 | Q94: 0 | R94: 0 | S94: 0 | T94: 0 | U94: 0 | V94: 9.876467572 | X94: 0 | Y94: 0 | Z94: 0 | AA94: 0 | AB94: 0 | AC94: 12.5 | AL94: CW8.2 | AN94: 6F.2
A95: 90 | B95: SWB | C95: Poole Harbour - FE reuse | D95: BNW8 | E95: 3 | F95: Supply-demand balance improvements delivering benefits starting from 2031 | G95: 2035-36 | I95: 0 | J95: 1.081 | K95: 1.081 | L95: 0.449 | M95: 3.714 | N95: 3.714 | O95: 0 | Q95: 0 | R95: 0 | S95: 0 | T95: 0 | U95: 0 | V95: 3.489579489 | X95: 0 | Y95: 0 | Z95: 0 | AA95: 0 | AB95: 0 | AC95: 6.25 | AL95: CW8.3 | AN95: 6F.3
A96: 91 | B96: SWB | C96: Restormel WTW - Increase treatment capacity to 110MLD | D96: COL15 | E96: 3 | F96: Supply-demand balance improvements delivering benefits starting from 2031 | G96: 2030-31 | I96: 0 | J96: 3.793 | K96: 2.866 | L96: 11.463 | M96: 11.463 | N96: 2.866 | O96: 0 | Q96: 0 | R96: 0 | S96: 0 | T96: 0 | U96: 0 | V96: 1.527411185 | X96: 0 | Y96: 0 | Z96: 0 | AA96: 0 | AB96: 0 | AC96: 2 | AL96: CW8.4 | AN96: 6F.4
A97: 92 | B97: SWB | C97: Whitecross distribution upgrade | D97: WIM14 | E97: 3 | F97: Supply-demand balance improvements delivering benefits starting from 2031 | G97: 2030-31 | I97: 0 | J97: 1.701 | K97: 1.248 | L97: 4.993 | M97: 6.241 | N97: 0.278 | O97: 0 | Q97: 0 | R97: 0 | S97: 0 | T97: 0 | U97: 0 | V97: 0.0004683443108 | X97: 0 | Y97: 0 | Z97: 0 | AA97: 0 | AB97: 0 | AC97: 3 | AL97: CW8.5 | AN97: 6F.5
A98: 93 | B98: SWB | C98: Cheddar 2 to Bickham Moor - New strategic regional reservoir, treatment, and transfer | D98: WIM18 | E98: 3 | F98: Supply-demand balance improvements delivering benefits starting from 2031 | G98: 2035-36 | I98: 0 | J98: 1.79 | K98: 0.356 | L98: 3.103 | M98: 12.921 | N98: 13.042 | O98: 0 | Q98: 0 | R98: 0 | S98: 0 | T98: 0 | U98: 0 | V98: 4.14346035 | X98: 0 | Y98: 0 | Z98: 0 | AA98: 0 | AB98: 0 | AC98: 13 | AL98: CW8.6 | AN98: 6F.6
A99: 94 | B99: SWB | C99: Littlehempston WTW - Dual supply main | D99: ROA17 | E99: 3 | F99: Supply-demand balance improvements delivering benefits starting from 2031 | G99: 2033-34 | I99: 0 | J99: 0 | K99: 0 | L99: 0 | M99: 3.477 | N99: 2.615 | O99: 30.18356405 | Q99: 0 | R99: 0 | S99: 0 | T99: 0 | U99: 0 | V99: 0.5135768027 | X99: 0 | Y99: 0 | Z99: 0 | AA99: 0 | AB99: 0 | AC99: 1 | AL99: CW8.7 | AN99: 6F.7
A100: 95 | B100: SWB | C100: Targeted incentives scheme - Individual customer/community reward (e.g. Greenredeem) - New metered customers | D100: HH_I_001 | E100: 3 | F100: Demand-side improvements delivering benefits in 2025-30 (excl leakage and metering) | G100: 2025-26 | I100: 0 | J100: 0 | K100: 0 | L100: 0 | M100: 0 | N100: 0 | O100: 0 | Q100: 0.045 | R100: 0.016 | S100: 0.006 | T100: 0.012 | U100: 0.018 | V100: 0 | X100: 0.036 | Y100: 0.058 | Z100: 0.078 | AA100: 0.095 | AB100: 0.111 | AC100: 0.111 | AL100: CW8.8 | AN100: 6F.8
A101: 96 | B101: SWB | C101: School visits water efficiency programme | D101: HH_E_013 | E101: 3 | F101: Demand-side improvements delivering benefits in 2025-30 (excl leakage and metering) | G101: 2025-26 | I101: 0 | J101: 0 | K101: 0 | L101: 0 | M101: 0 | N101: 0 | O101: 0 | Q101: 0.005 | R101: 0.006 | S101: 0.005 | T101: 0.006 | U101: 0.008 | V101: 0 | X101: 0.009 | Y101: 0.017 | Z101: 0.026 | AA101: 0.032 | AB101: 0.038 | AC101: 0.038 | AL101: CW8.9 | AN101: 6F.9
A102: 97 | B102: SWB | C102: Business Efficiency Visit (BEV) - process water efficiency audit/leakage detection. | D102: NHH_A_005BM | E102: 3 | F102: Demand-side improvements delivering benefits in 2025-30 (excl leakage and metering) | G102: 2025-26 | I102: 0 | J102: 0 | K102: 0 | L102: 0 | M102: 0 | N102: 0 | O102: 0 | Q102: 0.001 | R102: 0.001 | S102: 0.001 | T102: 0.002 | U102: 0.002 | V102: 0 | X102: 0 | Y102: 0.003 | Z102: 0.005 | AA102: 0.007 | AB102: 0.009 | AC102: 0.009 | AL102: CW8.10 | AN102: 6F.10
A103: 98 | B103: SWB | C103: Business Efficiency Visit (BEV) - process water efficiency audit/leakage detection. | D103: NHH_A_005FM | E103: 3 | F103: Demand-side improvements delivering benefits in 2025-30 (excl leakage and metering) | G103: 2025-26 | I103: 0 | J103: 0 | K103: 0 | L103: 0 | M103: 0 | N103: 0 | O103: 0 | Q103: 0.001 | R103: 0.001 | S103: 0.001 | T103: 0.002 | U103: 0.002 | V103: 0 | X103: 0 | Y103: 0.004 | Z103: 0.008 | AA103: 0.011 | AB103: 0.014 | AC103: 0.014 | AL103: CW8.11 | AN103: 6F.11
A104: 99 | B104: SWB | C104: Water efficiency programmes targeted at specific groups (e.g. community, religious groups) | D104: HH_E_017 | E104: 3 | F104: Demand-side improvements delivering benefits in 2025-30 (excl leakage and metering) | G104: 2025-26 | I104: 0 | J104: 0 | K104: 0 | L104: 0 | M104: 0 | N104: 0 | O104: 0 | Q104: 0 | R104: 0 | S104: 0 | T104: 0 | U104: 0.001 | V104: 0 | X104: 0.001 | Y104: 0.001 | Z104: 0.001 | AA104: 0.002 | AB104: 0.002 | AC104: 0.002 | AL104: CW8.12 | AN104: 6F.12
A105: 100 | B105: SWB | C105: Reuse treated wastewater effluent as an alternative supply. This reclaimed water could be used for industrial/commercial use rather than potable water (drinking water). Top 10 Best Users | D105: NHH_N_006 | E105: 3 | F105: Demand-side improvements delivering benefits in 2025-30 (excl leakage and metering) | G105: 2025-26 | I105: 0 | J105: 0 | K105: 0 | L105: 0 | M105: 0 | N105: 0 | O105: 0 | Q105: 0.139 | R105: 0.168 | S105: 0.111 | T105: 0.192 | U105: 0.232 | V105: 0 | X105: 0.085 | Y105: 0.17 | Z105: 0.254 | AA105: 0.337 | AB105: 0.419 | AC105: 0.419 | AL105: CW8.13 | AN105: 6F.13
A106: 101 | B106: SWB | C106: BEV in person, fix, retrofit – targeted at specific sectors | D106: NNH_A_001 | E106: 3 | F106: Demand-side improvements delivering benefits in 2025-30 (excl leakage and metering) | G106: 2025-26 | I106: 0 | J106: 0 | K106: 0 | L106: 0 | M106: 0 | N106: 0 | O106: 0 | Q106: 0.19 | R106: 0.229 | S106: 0.151 | T106: 0.261 | U106: 0.315 | V106: 0 | X106: 0.272 | Y106: 0.517 | Z106: 0.738 | AA106: 0.936 | AB106: 1.113 | AC106: 1.113 | AL106: CW8.14 | AN106: 6F.14
A107: 102 | B107: SWB | C107: Business Efficiency Visits (BEV) - process water efficiency audit/leakage detection to tackle on-site leakage | D107: NHH_A_003 | E107: 3 | F107: Demand-side improvements delivering benefits in 2025-30 (excl leakage and metering) | G107: 2025-26 | I107: 0 | J107: 0 | K107: 0 | L107: 0 | M107: 0 | N107: 0 | O107: 0 | Q107: 0.024 | R107: 0.029 | S107: 0.019 | T107: 0.033 | U107: 0.039 | V107: 0 | X107: 0.021 | Y107: 0.04 | Z107: 0.057 | AA107: 0.072 | AB107: 0.085 | AC107: 0.085 | AL107: CW8.15 | AN107: 6F.15
A108: 103 | B108: SWB | C108: Rainwater harvesting is included in new developments to meet planning conditions - commercial/public sector developments -single or multiple. SWW funds the investment in kit | D108: NHH_N_008 | E108: 3 | F108: Demand-side improvements delivering benefits in 2025-30 (excl leakage and metering) | G108: 2025-26 | I108: 0 | J108: 0 | K108: 0 | L108: 0 | M108: 0 | N108: 0 | O108: 0 | Q108: 0 | R108: 0 | S108: 0.295 | T108: 0 | U108: 0 | V108: 0 | X108: 0 | Y108: 0 | Z108: 0.161 | AA108: 0.145 | AB108: 0.131 | AC108: 0.131 | AL108: CW8.16 | AN108: 6F.16
A109: 104 | B109: SWB | C109: Home efficiency visits (HEV) - water efficiency audit with free water efficient device installation and additional comms and media - Unmeasured HH. | D109: HH_A_006 | E109: 3 | F109: Demand-side improvements delivering benefits in 2025-30 (excl leakage and metering) | G109: 2025-26 | I109: 0 | J109: 0 | K109: 0 | L109: 0 | M109: 0 | N109: 0 | O109: 0 | Q109: 0.197 | R109: 0.24 | S109: 0.14 | T109: 0.175 | U109: 0.027 | V109: 0 | X109: 0.131 | Y109: 0.283 | Z109: 0.401 | AA109: 0.463 | AB109: 0.425 | AC109: 0.425 | AL109: CW8.17 | AN109: 6F.17
A110: 105 | B110: SWB | C110: Home Efficiency Visits (HEVs) - water efficiency audit - local authorities, housing associations, corporate landlords) | D110: HH_E_009 | E110: 3 | F110: Demand-side improvements delivering benefits in 2025-30 (excl leakage and metering) | G110: 2025-26 | I110: 0 | J110: 0 | K110: 0 | L110: 0 | M110: 0 | N110: 0 | O110: 0 | Q110: 0 | R110: 0 | S110: 0.008 | T110: 0.013 | U110: 0.016 | V110: 0 | X110: 0 | Y110: 0 | Z110: 0.015 | AA110: 0.028 | AB110: 0.04 | AC110: 0.04 | AL110: CW8.18 | AN110: 6F.18
A111: 106 | B111: SWB | C111: Home efficiency visits (HEV) - water efficiency audit with free water efficient device installation - metered HH's | D111: HH_A_002 | E111: 3 | F111: Demand-side improvements delivering benefits in 2025-30 (excl leakage and metering) | G111: 2025-26 | I111: 0 | J111: 0 | K111: 0 | L111: 0 | M111: 0 | N111: 0 | O111: 0 | Q111: 0.162 | R111: 0.078 | S111: 0.052 | T111: 0.092 | U111: 0.135 | V111: 0 | X111: 0.125 | Y111: 0.163 | Z111: 0.198 | AA111: 0.231 | AB111: 0.27 | AC111: 0.27 | AL111: CW8.19 | AN111: 6F.19
A112: 107 | B112: SWB | C112: Home efficiency visits (HEV) - water efficiency audit with free water efficient device installation - Newly metered | D112: HH_A_003 | E112: 3 | F112: Demand-side improvements delivering benefits in 2025-30 (excl leakage and metering) | G112: 2025-26 | I112: 0 | J112: 0 | K112: 0 | L112: 0 | M112: 0 | N112: 0 | O112: 0 | Q112: 0.016 | R112: 0.02 | S112: 0.013 | T112: 0.023 | U112: 0.028 | V112: 0 | X112: 0.013 | Y112: 0.025 | Z112: 0.035 | AA112: 0.045 | AB112: 0.054 | AC112: 0.054 | AL112: CW8.20 | AN112: 6F.20
A113: =A112+1 -> 108 | B113: SWB | C113: Rainshare - Communities direct harvested rainwater into a centralised shared resource | D113: HH_N_003 | E113: 3 | F113: Demand-side improvements delivering benefits in 2025-30 (excl leakage and metering) | G113: 2025-26 | I113: 0 | J113: 0 | K113: 0 | L113: 0 | M113: 0 | N113: 0 | O113: 0 | Q113: 0 | R113: 0 | S113: 0.001 | T113: 0 | U113: 0 | V113: 0 | X113: 0 | Y113: 0.344 | Z113: 0.694 | AA113: 1.047 | AB113: 1.405 | AC113: 1.405 | AL113: CW8.22 | AN113: 6F.22
A114: 109 | B114: SWB | C114: Water labelling - with minimum standards | D114: HH_P_002 | E114: 3 | F114: Demand-side improvements delivering benefits in 2025-30 (excl leakage and metering) | G114: 2025-26 | I114: 0 | J114: 0 | K114: 0 | L114: 0 | M114: 0 | N114: 0 | O114: 0 | Q114: 0 | R114: 0 | S114: 0 | T114: 0 | U114: 0 | V114: 0 | X114: 1.775 | Y114: 3.543 | Z114: 5.306 | AA114: 7.063 | AB114: 8.815 | AC114: 8.815 | AL114: CW8.23 | AN114: 6F.23
A115: 110 | B115: SWB | C115: Flow regulators | D115: HH_E_022 | E115: 3 | F115: Demand-side improvements delivering benefits in 2025-30 (excl leakage and metering) | G115: 2025-26 | I115: 0 | J115: 0 | K115: 0 | L115: 0 | M115: 0 | N115: 0 | O115: 0 | Q115: 0 | R115: 0 | S115: 0 | T115: 0 | U115: 0 | V115: 0 | X115: 1.775 | Y115: 3.543 | Z115: 5.306 | AA115: 7.063 | AB115: 8.815 | AC115: 8.815 | AL115: CW8.24 | AN115: 6F.24
A116: 111 | B116: SEW | C116: HH Water Efficiency Interventions (Company-led) | D116: HH_weff_company_group | E116: 3 | F116: Demand-side improvements delivering benefits in 2025-30 (excl leakage and metering) | G116: 2026 | I116: 0 | J116: 9.388518241 | K116: 9.436087885 | L116: 9.479571799 | M116: 9.520540098 | N116: 9.558224683 | O116: 158.6065212 | Q116: 0.2442501975 | R116: 0.4818400577 | S116: 0.7194698677 | T116: 0.9571372835 | U116: 1.194839333 | V116: 0.1668439055 | X116: 2.0166 | Y116: 4.0481 | Z116: 6.0908 | AA116: 8.1432 | AB116: 10.2042 | AC116: 20.9857 | AL116: CW8.1 | AN116: 6F.1
A117: 112 | B117: SEW | C117: HH Water Efficiency Interventions (Goverment-led) | D117: HH_weff_gov_group | E117: 3 | F117: Demand-side improvements delivering benefits in 2025-30 (excl leakage and metering) | G117: 2027 | I117: 0 | J117: 0 | K117: 0 | L117: 0 | M117: 0 | N117: 0 | O117: 0 | Q117: 0 | R117: 0 | S117: 0 | T117: 0 | U117: 0 | V117: 0 | X117: 0 | Y117: 1.4194 | Z117: 2.8678 | AA117: 4.3408 | AB117: 5.8332 | AC117: 34.5255 | AL117: CW8.2 | AN117: 6F.2
A118: 113 | B118: SEW | C118: NHH Water Efficiency Interventions (Company-led) | D118: NHH_weff_group | E118: 3 | F118: Demand-side improvements delivering benefits in 2025-30 (excl leakage and metering) | G118: 2026 | I118: 0 | J118: 0 | K118: 0 | L118: 0 | M118: 0 | N118: 0 | O118: 0.01638497027 | Q118: 0.3808607275 | R118: 0.3808607275 | S118: 0.3808607275 | T118: 0.3808607275 | U118: 0.3808607275 | V118: 1.217497353 | X118: 0.3376 | Y118: 0.6762 | Z118: 1.0147 | AA118: 1.3531 | AB118: 1.6918 | AC118: 8.6792 | AL118: CW8.3 | AN118: 6F.3
A119: 114 | B119: SEW | C119: New Company Transfer: RZ1 to RZ7 Transfer - Blackhurst to Bewl (4Ml/d) | D119: SEW_RZ7_HI-TFR_RZ1_ALL_blackhurst_pipe | E119: 3 | F119: Supply-demand balance improvements delivering benefits starting from 2031 | G119: 2034 | I119: 0 | J119: 0 | K119: 0 | L119: 0 | M119: 0.2961443208 | N119: 1.480721531 | O119: 8.094611154 | Q119: 0 | R119: 0 | S119: 0 | T119: 0 | U119: 0 | V119: 0.02542306613 | X119: 0 | Y119: 0 | Z119: 0 | AA119: 0 | AB119: 0 | AC119: 4 | AE119: 11.06238 | AF119: 300 | AG119: PE | AH119: 16.41 | AI119: 0 | AJ119: 4 | AL119: CW8.4 | AN119: 6F.4
A120: 115 | B120: SEW | C120: New Arlington Reservoir | D120: SEW_RZ3_HI-RSR_ALL_CNO_arlington3900mlcon | E120: 3 | F120: Supply-demand balance improvements delivering benefits starting from 2031 | G120: 2057 | I120: 0 | J120: 0.5157395453 | K120: 0.5157395453 | L120: 0.5157395453 | M120: 0.5157395453 | N120: 0.5157395453 | O120: 255.2910779 | Q120: 0 | R120: 0 | S120: 0 | T120: 0 | U120: 0 | V120: 1.076233777 | X120: 0 | Y120: 0 | Z120: 0 | AA120: 0 | AB120: 0 | AC120: 18 | AL120: CW8.5 | AN120: 6F.5
A121: 116 | B121: SEW | C121: Desalination at Reculver (30Ml/d Option) | D121: SEW_RZ8_HI-DES_ALL_CNO_reculver-30mld-con | E121: 3 | F121: Supply-demand balance improvements delivering benefits starting from 2031 | G121: 2044 | I121: 0 | J121: 0.2192057385 | K121: 0.2192057385 | L121: 0.2192057385 | M121: 0.2192057385 | N121: 0.2192057385 | O121: 108.5068456 | Q121: 0 | R121: 0 | S121: 0 | T121: 0 | U121: 0 | V121: 3.633785828 | X121: 0 | Y121: 0 | Z121: 0 | AA121: 0 | AB121: 0 | AC121: 30 | AL121: CW8.6 | AN121: 6F.6
A122: 117 | B122: SEW | C122: Broad Oak Reservoir | D122: SEW_broadoak_5126ml | E122: 3 | F122: Supply-demand balance improvements delivering benefits starting from 2031 | G122: 2033 | I122: 0 | J122: 5.554042234 | K122: 22.21616894 | L122: 22.21616894 | M122: 13.88510611 | N122: 33.32425515 | O122: 180.5063797 | Q122: 0 | R122: 0 | S122: 0 | T122: 0 | U122: 0 | V122: 1.497096644 | X122: 0 | Y122: 0 | Z122: 0 | AA122: 0 | AB122: 0 | AC122: 22 | AL122: CW8.7 | AN122: 6F.7
A123: 118 | B123: SEW | C123: RZ8 Zonal Scheme - [RES-31] - Distribute water from Broad Oak to Blean SR | D123: SEW_RZ8_HI-ROC_NET_ALL_broadoakzonal_res-31 | E123: 3 | F123: Supply-demand balance improvements delivering benefits starting from 2031 | G123: 2033 | I123: 0 | J123: 0 | K123: 0 | L123: 0 | M123: 0 | N123: 1.040263775 | O123: 14.56369318 | Q123: 0 | R123: 0 | S123: 0 | T123: 0 | U123: 0 | V123: 0.07489621211 | X123: 0 | Y123: 0 | Z123: 0 | AA123: 0 | AB123: 0 | AC123: 0 | AL123: CW8.8 | AN123: 6F.8
A124: 119 | B124: SEW | C124: RZ1 Sub-Zonal Scheme - Bloodshots to Darnley | D124: SEW_RZ1_HI-ROC_NET_ALL_rz1 scheme 02 | E124: 3 | F124: Internal interconnectors delivering benefits in 2025-30 | G124: 2028 | I124: 0 | J124: 0.2069784045 | K124: 0.3679616073 | L124: 0.5749400146 | M124: 0 | N124: 0 | O124: 0 | Q124: 0 | R124: 0 | S124: 0 | T124: 0.008759400362 | U124: 0.008759400362 | V124: 0.008759400362 | X124: 0 | Y124: 0 | Z124: 0 | AA124: 0.5 | AB124: 0.5 | AC124: 0.5 | AE124: 0 | AF124: 200 | AG124: DI | AH124: 75 | AI124: 0 | AJ124: 0.5 | AL124: CW8.9 | AN124: 6F.9
A125: 120 | B125: SEW | C125: RZ2 Sub-Zonal Scheme - Poverty Bottom & Underhills Deficits | D125: SEW_RZ2_HI-ROC_NET_ALL_rz2 scheme 03 | E125: 3 | F125: Internal interconnectors delivering benefits in 2025-30 | G125: 2026 | I125: 0 | J125: 0.1263840103 | K125: 0 | L125: 0 | M125: 0 | N125: 0 | O125: 0 | Q125: 0 | R125: 0.0002415825638 | S125: 0.0002415825638 | T125: 0.0002415825638 | U125: 0.0002415825638 | V125: 0.0002415825638 | X125: 0 | Y125: 1.45 | Z125: 1.45 | AA125: 1.45 | AB125: 1.45 | AC125: 1.45 | AE125: 0 | AF125: 400 | AG125: DI | AH125: 0 | AI125: 0 | AJ125: 1.45 | AL125: CW8.10 | AN125: 6F.10
A126: 121 | B126: SEW | C126: RZ4 Sub-Zonal Scheme - Greywell to Swaineshill | D126: SEW_RZ4_HI-ROC_NET_ALL_rz4_scheme 10 | E126: 3 | F126: Internal interconnectors delivering benefits in 2025-30 | G126: 2030 | I126: 0 | J126: 0.3730031324 | K126: 1.865015659 | L126: 2.113684393 | M126: 4.227368822 | N126: 3.854365762 | O126: 0 | Q126: 0 | R126: 0 | S126: 0 | T126: 0 | U126: 0 | V126: 0.04523771511 | X126: 0 | Y126: 0 | Z126: 0 | AA126: 0 | AB126: 9.65 | AC126: 9.65 | AE126: 7.43 | AF126: 350 | AG126: PE | AH126: 160 | AI126: 8 | AJ126: 9.65 | AL126: CW8.11 | AN126: 6F.11
A127: 122 | B127: SEW | C127: RZ4 Sub-Zonal Scheme - Surrey Hills to Fleet | D127: SEW_RZ4_HI-ROC_NET_ALL_rz4_scheme 2 | E127: 3 | F127: Internal interconnectors delivering benefits in 2025-30 | G127: 2030 | I127: 0 | J127: 3.883948088 | K127: 8.253389583 | L127: 11.65184399 | M127: 14.56480554 | N127: 5.340428586 | O127: 0 | Q127: 0 | R127: 0 | S127: 0 | T127: 0 | U127: 0 | V127: 0.01223658341 | X127: 0 | Y127: 0 | Z127: 0 | AA127: 0 | AB127: 18 | AC127: 18 | AE127: 12.88 | AF127: 900 | AG127: PE | AH127: 0 | AI127: 0 | AJ127: 18 | AL127: CW8.12 | AN127: 6F.12
A128: 123 | B128: SEW | C128: RZ4 Sub-Zonal Scheme - Ewshot to Itchel | D128: SEW_RZ4_HI-ROC_NET_ALL_rz4_scheme 5 | E128: 3 | F128: Internal interconnectors delivering benefits in 2025-30 | G128: 2030 | I128: 0 | J128: 0.1551777393 | K128: 0.7758886788 | L128: 0.8793404869 | M128: 1.758680978 | N128: 1.603503286 | O128: 0 | Q128: 0 | R128: 0 | S128: 0 | T128: 0 | U128: 0 | V128: 0.02365987566 | X128: 0 | Y128: 0 | Z128: 0 | AA128: 0 | AB128: 9.95 | AC128: 9.95 | AE128: 3.59 | AF128: 350 | AG128: PE | AH128: 250 | AI128: 0 | AJ128: 9.95 | AL128: CW8.13 | AN128: 6F.13
A129: 124 | B129: SEW | C129: RZ4 Sub-Zonal Scheme - Greywell to Whitedown | D129: SEW_RZ4_HI-ROC_NET_ALL_rz4_scheme 6 | E129: 3 | F129: Supply-demand balance improvements delivering benefits starting from 2031 | G129: 2031 | I129: 0 | J129: 0.8469259724 | K129: 1.976160554 | L129: 2.258469288 | M129: 6.775407895 | N129: 10.44542035 | O129: 5.928481683 | Q129: 0 | R129: 0 | S129: 0 | T129: 0 | U129: 0 | V129: 0.02272281233 | X129: 0 | Y129: 0 | Z129: 0 | AA129: 0 | AB129: 0 | AC129: 5 | AE129: 15.3 | AF129: 450 | AG129: PE | AH129: 37 | AI129: 0 | AJ129: 5 | AL129: CW8.14 | AN129: 6F.14
A130: 125 | B130: SEW | C130: RZ4 Sub-Zonal Scheme - Oakhanger to Alton | D130: SEW_RZ4_HI-ROC_NET_ALL_rz4_scheme 7 | E130: 3 | F130: Internal interconnectors delivering benefits in 2025-30 | G130: 2030 | I130: 0 | J130: 0.1350754921 | K130: 0.3511962651 | L130: 1.107619021 | M130: 1.107619021 | N130: 0 | O130: 0 | Q130: 0 | R130: 0 | S130: 0 | T130: 0 | U130: 0.01168435598 | V130: 0.01168435598 | X130: 0 | Y130: 0 | Z130: 0 | AA130: 0 | AB130: 3.5 | AC130: 3.5 | AE130: 0.84 | AF130: 400 | AG130: PE | AH130: 5.5 | AI130: 0 | AJ130: 3.5 | AL130: CW8.15 | AN130: 6F.15
A131: 126 | B131: SRN | C131: Additional import from Portsmouth Water (Additional 21Ml/d) | D131: SWS_pwcgm1 | E131: 3 | F131: Supply-demand balance improvements delivering benefits starting from 2031 | G131: 2031-32 | I131: 2.457536855 | J131: 0 | K131: 17.275 | L131: 17.275 | M131: 4.73 | N131: 4.73 | O131: 6.442 | Q131: 0 | R131: 0 | S131: 0 | T131: 0 | U131: 0 | V131: 0.536 | X131: 0 | Y131: 0 | Z131: 0 | AA131: 0 | AB131: 0 | AC131: 21 | AL131: CW8.1 | AN131: 6F.1
A132: 127 | B132: SRN | C132: Groundwater: Eastern Yar replacement BH (1.5Ml.d) | D132: SWS_IOW_HI-GRW_ALL_ALL_br_less | E132: 3 | F132: Supply-demand balance improvements delivering benefits starting from 2031 | G132: 2034-35 | I132: 0 | J132: 0 | K132: 0.24 | L132: 0 | M132: 0.24 | N132: 0.24 | O132: 0 | Q132: 0 | R132: 0 | S132: 0 | T132: 0 | U132: 0 | V132: 0.018 | X132: 0 | Y132: 0 | Z132: 0 | AA132: 0 | AB132: 0 | AC132: 0 | AL132: CW8.2 | AN132: 6F.2
A133: 128 | B133: SRN | C133: Groundwater: Newchurch LGS (1.9Ml/d) | D133: SWS_IOW_HI-GRW_ALL_ALL_nw_gwa_kni_westi | E133: 3 | F133: Supply-demand balance improvements delivering benefits starting from 2031 | G133: 2034-35 | I133: 0 | J133: 0 | K133: 0.67 | L133: 0.67 | M133: 0.67 | N133: 0.67 | O133: 0 | Q133: 0 | R133: 0 | S133: 0 | T133: 0 | U133: 0 | V133: 0.068 | X133: 0 | Y133: 0 | Z133: 0 | AA133: 0 | AB133: 0 | AC133: 1.95 | AL133: CW8.3 | AN133: 6F.3
A134: 129 | B134: SRN | C134: Hampshire grid (reversible link HSE-HW) | D134: SWS_ott crab 1 | E134: 3 | F134: Internal interconnectors delivering benefits in 2025-30 | G134: 2027-28 | I134: 13.42 | J134: 25.04 | K134: 25.04 | L134: 0 | M134: 0 | N134: 0 | O134: 0 | Q134: 0 | R134: 0 | S134: 0.282 | T134: 0.282 | U134: 0.282 | V134: 0.45 | X134: 0 | Y134: 0 | Z134: 38 | AA134: 38 | AB134: 38 | AC134: 38 | AE134: 4.3 | AF134: 700 | AH134: 945 | AI134: 9000 | AJ134: 46 | AL134: CW8.4 | AN134: 6F.4
A135: 130 | B135: SRN | C135: Hampshire grid (reversible link HW-HA) | D135: SWS_ott crab 2_haz | E135: 3 | F135: Internal interconnectors delivering benefits in 2025-30 | G135: 2027-28 | I135: 11.118 | J135: 10.687 | K135: 10.679 | L135: 0 | M135: 0 | N135: 0 | O135: 0 | Q135: 0 | R135: 0 | S135: 0.258 | T135: 0.258 | U135: 0.258 | V135: 0.421 | X135: 0 | Y135: 0 | Z135: 15 | AA135: 15 | AB135: 15 | AC135: 15 | AE135: 22 | AF135: 500 | AJ135: 15 | AL135: CW8.5 | AN135: 6F.5
A136: 131 | B136: SRN | C136: Import: Havant Thicket - Otterbourne direct raw water transfer (90Ml/d) | D136: SWS_HTE_HI-TFR_PWE_CNO_ht-ott mm 90 | E136: 3 | F136: Supply-demand balance improvements delivering benefits starting from 2031 | G136: 2035-36 | I136: 36.443 | J136: 47.366 | K136: 14.209 | L136: 10.334 | M136: 5.327 | N136: 5.327 | O136: 2.606072926 | Q136: 0 | R136: 0 | S136: 0 | T136: 0 | U136: 0 | V136: 1.041 | X136: 0 | Y136: 0 | Z136: 0 | AA136: 0 | AB136: 0 | AC136: 90 | AL136: CW8.6 | AN136: 6F.6
A137: 132 | B137: SRN | C137: New Reservoir - SESRO 150Mm3 (SWS: 29%) | D137: SWS_STR_HI-RSR_RE1_CNO_abingdon150(lon) | E137: 3 | F137: Supply-demand balance improvements delivering benefits starting from 2031 | G137: 2039-40 | I137: 0 | J137: 12.597 | K137: 12.677 | L137: 12.757 | M137: 10.228 | N137: 5.171 | O137: 578.2209484 | Q137: 0 | R137: 0 | S137: 0 | T137: 0 | U137: 0 | V137: 0.947 | X137: 0 | Y137: 0 | Z137: 0 | AA137: 0 | AB137: 0 | AC137: 78.59 | AL137: CW8.7 | AN137: 6F.7
A138: 133 | B138: SRN | C138: Newbury Groundwater | D138: SWS_HKZ_HI-ROC_ALL_ALL_ewo | E138: 3 | F138: Supply-side improvements delivering benefits in 2025-30 | G138: 2027-28 | I138: 1.255823524 | J138: 0 | K138: 0 | L138: 0 | M138: 0 | N138: 0 | O138: 0 | Q138: 0 | R138: 0 | S138: 0.128 | T138: 0.128 | U138: 0.128 | V138: 0.128 | X138: 0 | Y138: 0 | Z138: 1.2 | AA138: 1.2 | AB138: 1.2 | AC138: 1.2 | AL138: CW8.8 | AN138: 6F.8
A139: 134 | B139: SRN | C139: Outwood To Turners Hill: 10Ml/d | D139: SWS_SNZ_HI-TFR_SES_ALL_outwood-turner p 10 | E139: 3 | F139: Supply-demand balance improvements delivering benefits starting from 2031 | G139: 2033-34 | I139: 0 | J139: 0 | K139: 1.812 | L139: 1.812 | M139: 1.812 | N139: 1.812 | O139: 0 | Q139: 0 | R139: 0 | S139: 0 | T139: 0 | U139: 0 | V139: 0.083 | X139: 0 | Y139: 0 | Z139: 0 | AA139: 0 | AB139: 0 | AC139: 10 | AL139: CW8.9 | AN139: 6F.9
A140: 135 | B140: SRN | C140: Romsey Groundwater | D140: SWS_HRZ_HI-GRW_ALL_ALL_nw_gwa_tim_westi | E140: 3 | F140: Supply-demand balance improvements delivering benefits starting from 2031 | G140: 2034-35 | I140: 0 | J140: 0.675 | K140: 0.675 | L140: 0.675 | M140: 0.675 | N140: 0.675 | O140: 0 | Q140: 0 | R140: 0 | S140: 0 | T140: 0 | U140: 0 | V140: 0.099 | X140: 0 | Y140: 0 | Z140: 0 | AA140: 0 | AB140: 0 | AC140: 4.8 | AL140: CW8.10 | AN140: 6F.10
A141: 136 | B141: SRN | C141: Southampton link main 45 Ml/d (reversible link HSW-HSE) | D141: SWS_HSE_HI-IMP_HSW_ALL_tot1 | E141: 3 | F141: Internal interconnectors delivering benefits in 2025-30 | G141: 2027-28 | I141: 0 | J141: 28.372 | K141: 28.411 | L141: 0 | M141: 0 | N141: 0 | O141: 0 | Q141: 0 | R141: 0 | S141: 0.352 | T141: 0.352 | U141: 0.352 | V141: 0.81 | X141: 0 | Y141: 0 | Z141: 45 | AA141: 45 | AB141: 45 | AC141: 45 | AE141: 14.6 | AF141: 800 | AJ141: 60 | AL141: CW8.11 | AN141: 6F.11
A142: 137 | B142: SRN | C142: Storage: River Adur offline Reservoir - Planning | D142: SWS_SNZ_HI-RSR_RE1_PLA_bla | E142: 3 | F142: Supply-demand balance improvements delivering benefits starting from 2031 | G142: 2033-34 | I142: 0 | J142: 0 | K142: 0 | L142: 0 | M142: 0 | N142: 0.668 | O142: 1.908 | Q142: 0 | R142: 0 | S142: 0 | T142: 0 | U142: 0 | V142: 0 | X142: 0 | Y142: 0 | Z142: 0 | AA142: 0 | AB142: 0 | AC142: 0 | AL142: CW8.12 | AN142: 6F.12
A143: 138 | B143: SRN | C143: T2ST Planning and Development | D143: SWS_t2st_plan_develop | E143: 3 | F143: Supply-demand balance improvements delivering benefits starting from 2031 | G143: 2034-35 | I143: 4.301 | J143: 19.709 | K143: 17.682 | L143: 11.594 | M143: 15.416 | N143: 15.416 | O143: 90.365 | Q143: 0 | R143: 0 | S143: 0 | T143: 0 | U143: 0 | V143: 0 | X143: 0 | Y143: 0 | Z143: 0 | AA143: 0 | AB143: 0 | AC143: 0 | AL143: CW8.13 | AN143: 6F.13
A144: 139 | B144: SRN | C144: Test MAR - Planning & Development | D144: SWS_HSW_HI-GRW_RE1_DEV_str_asr_tes_westi | E144: 3 | F144: Supply-demand balance improvements delivering benefits starting from 2031 | G144: 2031-32 | I144: 0 | J144: 0 | K144: 0.068 | L144: 0.068 | M144: 0.409 | N144: 0.341 | O144: 0.396 | Q144: 0 | R144: 0 | S144: 0 | T144: 0 | U144: 0 | V144: 0 | X144: 0 | Y144: 0 | Z144: 0 | AA144: 0 | AB144: 0 | AC144: 0 | AL144: CW8.14 | AN144: 6F.14
A145: =A144+1 -> 140 | B145: SRN | C145: Transfer: Romsey Town & Broadlands valve (HRZ-HSW) (3.1Ml//d) | D145: SWS_rob_hsw2hse_reverse | E145: 3 | F145: Internal interconnectors delivering benefits in 2025-30 | G145: 2025-26 | I145: 1.6056066 | J145: 0 | K145: 0 | L145: 0 | M145: 0 | N145: 0 | O145: 0 | Q145: 0 | R145: 0 | S145: 0 | T145: 0 | U145: 0 | V145: 0 | X145: 3.1 | Y145: 3.1 | Z145: 3.1 | AA145: 3.1 | AB145: 3.1 | AC145: 3.1 | AE145: 0.25 | AF145: 600 | AH145: 52 | AJ145: 10 | AL145: CW8.15 | AN145: 6F.15
A146: 141 | B146: SRN | C146: Home audits | D146: Multiple | E146: 3 | F146: Demand-side improvements delivering benefits in 2025-30 (excl leakage and metering) | G146: 2025-26 | I146: 0 | J146: 0 | K146: 0 | L146: 0 | M146: 0 | N146: 0 | O146: 0 | Q146: 0.833 | R146: 0.843 | S146: 0.853 | T146: 0.863 | U146: 0.872 | V146: 0.362 | X146: 0.242 | Y146: 0.494 | Z146: 0.733 | AA146: 0.961 | AB146: 1.175 | AC146: 2.567 | AL146: CW8.16 | AN146: 6F.16
A147: 142 | B147: SRN | C147: Tariffs | D147: Multiple | E147: 3 | F147: Demand-side improvements delivering benefits in 2025-30 (excl leakage and metering) | G147: 2025-26 | I147: 0 | J147: 0 | K147: 0 | L147: 0 | M147: 0 | N147: 0 | O147: 2.029 | Q147: 0 | R147: 0 | S147: 0 | T147: 0 | U147: 0 | V147: 0.216 | X147: 0 | Y147: 0 | Z147: 0 | AA147: 0 | AB147: 0 | AC147: 7.539 | AL147: CW8.17 | AN147: 6F.17
A148: 143 | B148: SRN | C148: Water efficiency enablers | D148: Multiple | E148: 3 | F148: Demand-side improvements delivering benefits in 2025-30 (excl leakage and metering) | G148: 2025-26 | I148: 0 | J148: 0 | K148: 0 | L148: 0 | M148: 0 | N148: 0 | O148: 0 | Q148: 2.141 | R148: 2.141 | S148: 2.141 | T148: 2.141 | U148: 3.269 | V148: 1.713 | X148: 0.035 | Y148: 0.072 | Z148: 0.11 | AA148: 0.148 | AB148: 0.187 | AC148: 2.253 | AL148: CW8.18 | AN148: 6F.18
A149: 144 | B149: SRN | C149: Water audits - Business | D149: Multiple | E149: 3 | F149: Demand-side improvements delivering benefits in 2025-30 (excl leakage and metering) | G149: 2025-26 | I149: 0 | J149: 0 | K149: 0 | L149: 0 | M149: 0 | N149: 0 | O149: 0 | Q149: 0.224 | R149: 0.224 | S149: 0.224 | T149: 0.224 | U149: 0.224 | V149: 0.449 | X149: 0.249 | Y149: 0.489 | Z149: 0.723 | AA149: 0.953 | AB149: 1.178 | AC149: 5.344 | AL149: CW8.19 | AN149: 6F.19
A150: 145 | B150: SRN | C150: Tariffs - business | D150: Multiple | E150: 3 | F150: Demand-side improvements delivering benefits in 2025-30 (excl leakage and metering) | G150: 2025-26 | I150: 0 | J150: 0 | K150: 0 | L150: 0 | M150: 0 | N150: 0 | O150: 0 | Q150: 0.056 | R150: 0.056 | S150: 0.056 | T150: 0.056 | U150: 0.056 | V150: 0.056 | X150: 0 | Y150: 0 | Z150: 0 | AA150: 0 | AB150: 0 | AC150: 2.116 | AL150: CW8.20 | AN150: 6F.20
A151: 146 | B151: SRN | C151: Partnership funds - business | D151: Multiple | E151: 3 | F151: Demand-side improvements delivering benefits in 2025-30 (excl leakage and metering) | G151: 2025-26 | I151: 0 | J151: 0 | K151: 0 | L151: 0 | M151: 0 | N151: 0 | O151: 0 | Q151: 0.338 | R151: 0.338 | S151: 0.338 | T151: 0.338 | U151: 0.338 | V151: 0.113 | X151: 0 | Y151: 0 | Z151: 0 | AA151: 0 | AB151: 0 | AC151: 0.197 | AL151: CW8.21 | AN151: 6F.21
A152: 147 | B152: SRN | C152: Comms - business | D152: Multiple | E152: 3 | F152: Demand-side improvements delivering benefits in 2025-30 (excl leakage and metering) | G152: 2025-26 | I152: 0 | J152: 0 | K152: 0 | L152: 0 | M152: 0 | N152: 0 | O152: 0 | Q152: 0 | R152: 0.282 | S152: 0.282 | T152: 0.282 | U152: 0.282 | V152: 0.225 | X152: 0 | Y152: 0.01 | Z152: 0.02 | AA152: 0.029 | AB152: 0.038 | AC152: 0.208 | AL152: CW8.22 | AN152: 6F.22
A153: 148 | B153: SRN | C153: Trials and innovation - business | D153: Multiple | E153: 3 | F153: Demand-side improvements delivering benefits in 2025-30 (excl leakage and metering) | G153: 2025-26 | I153: 0 | J153: 0 | K153: 0 | L153: 0 | M153: 0 | N153: 0 | O153: 0 | Q153: 0.225 | R153: 0.225 | S153: 0.225 | T153: 0.225 | U153: 0.225 | V153: 0.225 | X153: 0 | Y153: 0 | Z153: 0 | AA153: 0 | AB153: 0 | AC153: 0 | AL153: CW8.23 | AN153: 6F.23
A154: 149 | B154: SRN | C154: WRMP mitigation | D154: Multiple | E154: 3 | F154: Additional line - WRMP mitigation | G154: 2029 - 2030 | I154: 0 | J154: 9.14 | K154: 13.71 | L154: 18.28 | M154: 22.85 | N154: 27.42 | O154: 0 | Q154: 0 | R154: 0 | S154: 0 | T154: 0 | U154: 0 | V154: 0 | X154: 0 | Y154: 0 | Z154: 0 | AA154: 0 | AB154: 0 | AC154: 0 | AL154: CW8.24 | AN154: 6F.24
A155: 150 | B155: SRN | C155: Transfer: Winter transfer Stage 2: New main Shoreham/North Shoreham and Brighton A (4Ml/d) | D155: SWS_hardhamwinter | E155: 3 | F155: Internal interconnectors delivering benefits in 2025-30 | G155: 2027-28 | I155: 1.295550523 | J155: 10.028 | K155: 4.821 | L155: 0 | M155: 0 | N155: 0 | O155: 0 | Q155: 0 | R155: 0.087 | S155: 0.087 | T155: 0.087 | U155: 0.087 | V155: 0.094 | X155: 0 | Y155: 0 | Z155: 3 | AA155: 3 | AB155: 3 | AC155: 3 | AE155: 11.5 | AF155: 450 | AJ155: 7 | AL155: CW8.25 | AN155: 6F.25
A156: 151 | B156: SRN | C156: Groundwater: recomission Gravesend source (2.7Ml/d) | D156: SWS_KME_HI-GRW_ALL_ALL_nw_gwa_win_eastn | E156: 3 | F156: Supply-demand balance improvements delivering benefits starting from 2031 | G156: 2030-31 | I156: 0 | J156: 0 | K156: 0 | L156: 0 | M156: 0.294 | N156: 0.294 | O156: 0 | Q156: 0 | R156: 0 | S156: 0 | T156: 0 | U156: 0 | V156: 0.115 | X156: 0 | Y156: 0 | Z156: 0 | AA156: 0 | AB156: 0 | AC156: 2.65 | AL156: CW8.26 | AN156: 6F.26
A157: 152 | B157: SRN | C157: Transfer: Utilise full existing KME-KTZ transfer capacity (9Ml/d) | D157: SWS_kt2km | E157: 3 | F157: Internal interconnectors delivering benefits in 2025-30 | G157: 2027-28 | I157: 0 | J157: 8.873 | K157: 8.873 | L157: 0 | M157: 0 | N157: 0 | O157: 0 | Q157: 0 | R157: 0 | S157: 0.152 | T157: 0.152 | U157: 0.152 | V157: 0.156 | X157: 0 | Y157: 0 | Z157: 9 | AA157: 9 | AB157: 9 | AC157: 9 | AJ157: 22 | AL157: CW8.27 | AN157: 6F.27
A158: 153 | B158: SRN | C158: Recycling: Recharge of Havant Thicket reservoir from Budds Farm and new WRP (60Ml/d) | D158: SWS_PWE_HI-REU_RE1_CNO_60toht v0.1 | E158: 3 | F158: Supply-demand balance improvements delivering benefits starting from 2031 | G158: 2035-36 | I158: 21.605 | J158: 10.329 | K158: 3.098 | L158: 2.253 | M158: 1.162 | N158: 1.162 | O158: 2.761211635 | Q158: 0 | R158: 0 | S158: 0 | T158: 0 | U158: 0 | V158: 4.367 | X158: 0 | Y158: 0 | Z158: 0 | AA158: 0 | AB158: 0 | AC158: 60 | AL158: CW8.28 | AN158: 6F.28
A159: 154 | B159: SRN | C159: Groundwater: Lewes road (3.5Ml/d) | D159: SWS_SBZ_HI-ROC_ALL_ALL_lew | E159: 3 | F159: Supply-demand balance improvements delivering benefits starting from 2031 | G159: 2030-31 | I159: 0 | J159: 0 | K159: 0 | L159: 0 | M159: 6.673 | N159: 6.673 | O159: 10.715 | Q159: 0 | R159: 0 | S159: 0 | T159: 0 | U159: 0 | V159: 0.21 | X159: 0 | Y159: 0 | Z159: 0 | AA159: 0 | AB159: 0 | AC159: 3.5 | AL159: CW8.29 | AN159: 6F.29
A160: 155 | B160: SRN | C160: Import: SEW Kingston to KTZ Near Canterbury (2Ml/d) | D160: SWS_sewexp | E160: 3 | F160: Supply-side improvements delivering benefits in 2025-30 | G160: 2025-26 | I160: 1.72411994 | J160: 0 | K160: 0 | L160: 0 | M160: 0 | N160: 0 | O160: 0 | Q160: 0 | R160: 0 | S160: 0 | T160: 0 | U160: 0 | V160: 0 | X160: 2 | Y160: 2 | Z160: 2 | AA160: 2 | AB160: 2 | AC160: 2 | AL160: CW8.30 | AN160: 6F.30
A161: 156 | B161: SRN | C161: Transfer: Winter transfer stage 1 - Provision of a permanent sludge treatment facility at Pulborough WSW (2Ml/d) | D161: SWS_SWZ_HI-LRE_ALL_ALL_har1 | E161: 3 | F161: Supply-demand balance improvements delivering benefits starting from 2031 | G161: 2030-31 | I161: 0 | J161: 0 | K161: 0 | L161: 6.298 | M161: 6.298 | N161: 6.298 | O161: 0 | Q161: 0 | R161: 0 | S161: 0 | T161: 0 | U161: 0 | V161: 0.222 | X161: 0 | Y161: 0 | Z161: 0 | AA161: 0 | AB161: 0 | AC161: 2 | AL161: CW8.31 | AN161: 6F.31
A162: 157 | B162: SRN | C162: WRMP schemes spend AMP9 | D162: Multiple | E162: 3 | F162: Supply-demand balance improvements delivering benefits starting from 2031 | G162: 2031-2061 | I162: 0 | J162: 0 | K162: 0 | L162: 0 | M162: 0 | N162: 0 | O162: 2354.582127 | Q162: 0 | R162: 0 | S162: 0 | T162: 0 | U162: 0 | V162: 38.492 | X162: 36.1 | Y162: 51.1 | Z162: 158.1 | AA162: 158.1 | AB162: 173.1 | AC162: 837.933 | AE162: 24.9 | AH162: 0 | AI162: 0 | AJ162: 52 | AL162: CW8.32 | AN162: 6F.32
A163: 158 | B163: SSC | C163: Non-household water efficiency programme | D163: 2021-015 | E163: 3 | F163: Demand-side improvements delivering benefits in 2025-30 (excl leakage and metering) | G163: 2025 | I163: 0 | J163: 0 | K163: 0 | L163: 0 | M163: 0 | N163: 0 | O163: 0 | Q163: 0.192 | R163: 0.192 | S163: 0.192 | T163: 0.192 | U163: 0.192 | V163: 0.86 | X163: 0.23 | Y163: 0.46 | Z163: 0.69 | AA163: 0.92 | AB163: 1.15 | AC163: 2.3 | AL163: CW8.1 | AN163: 6F.1
A164: 159 | B164: SSC | C164: Household water efficiency programme (partnering approach, home visit) | D164: 2021-012 | E164: 3 | F164: Demand-side improvements delivering benefits in 2025-30 (excl leakage and metering) | G164: 2025 | I164: 0 | J164: 0.665 | K164: 0.665 | L164: 0.665 | M164: 0.665 | N164: 0.665 | O164: 1.25 | Q164: 1.058 | R164: 1.058 | S164: 1.058 | T164: 1.058 | U164: 1.058 | V164: 3.75 | X164: 0.304 | Y164: 0.608 | Z164: 0.912 | AA164: 1.216 | AB164: 1.52 | AC164: 2.85 | AL164: CW8.2 | AN164: 6F.2
A165: 160 | B165: SSC | C165: Housing associations - targeted programme - SST | D165: 2021-036 | E165: 3 | F165: Demand-side improvements delivering benefits in 2025-30 (excl leakage and metering) | G165: 2025 | I165: 0 | J165: 0.266 | K165: 0.266 | L165: 0.266 | M165: 0.266 | N165: 0.266 | O165: 0 | Q165: 0.422 | R165: 0.422 | S165: 0.422 | T165: 0.422 | U165: 0.422 | V165: 0 | X165: 0.142 | Y165: 0.284 | Z165: 0.426 | AA165: 0.568 | AB165: 0.71 | AC165: 0 | AL165: CW8.3 | AN165: 6F.3
A166: 161 | B166: SSC | C166: Third party potable water transfer: AWS grid main crossing West to East through CAM area of supply (26Ml/d) with AWS main cost included and WQ Risk mitigation Option 2 - Do something (Breakpoint chlorination). | D166: CW24-75Diii Op2 | E166: 3 | F166: Supply-demand balance improvements delivering benefits starting from 2031 | G166: 2032 | I166: 0 | J166: 0 | K166: 0.195 | L166: 1.775 | M166: 5.834 | N166: 4.624 | O166: 0 | Q166: 0 | R166: 0 | S166: 0 | T166: 0 | U166: 0 | V166: 57.953 | X166: 0 | Y166: 0 | Z166: 0 | AA166: 0 | AB166: 0 | AC166: 26 | AL166: CW8.4 | AN166: 6F.4
A167: 162 | B167: SVE | C167: Carsington to Tittesworth main (large) | D167: 128 | E167: 3 | F167: Internal interconnectors delivering benefits in 2025-30 | G167: 2030 | I167: 0 | J167: 0.950082 | K167: 0.950082 | L167: 0.950082 | M167: 0.950082 | N167: 0.950082 | O167: 0 | Q167: 0 | R167: 0 | S167: 0 | T167: 0 | U167: 0.5126202 | V167: 2.563101 | X167: 0 | Y167: 0 | Z167: 0 | AA167: 0 | AB167: 30 | AC167: 30 | AE167: 60 | AF167: 800 / 450 | AG167: Ductile Iron | AH167: 550 | AI167: n/a | AJ167: 30 | AL167: CW8.1 | AN167: 6F.1
A168: 163 | B168: SVE | C168: Heathy Lea to North Notts transfer (large) | D168: 305A | E168: 3 | F168: Internal interconnectors delivering benefits in 2025-30 | G168: 2030 | I168: 3 | J168: 15.3 | K168: 20.4 | L168: 30.6 | M168: 30.6 | N168: 5.1 | O168: 0 | Q168: 0 | R168: 0 | S168: 0 | T168: 0 | U168: 0.4255288 | V168: 2.127644 | X168: 0 | Y168: 0 | Z168: 0 | AA168: 0 | AB168: 30 | AC168: 30 | AE168: 38.9 | AF168: 800 | AG168: Ductile Iron | AH168: 1520 | AI168: n/a | AJ168: 30 | AL168: CW8.2 | AN168: 6F.2
A169: 164 | B169: SVE | C169: Shelton WTW Expansion (large) | D169: 33 | E169: 3 | F169: Supply-side improvements delivering benefits in 2025-30 | G169: 2030 | I169: 10.1 | J169: 4.94 | K169: 6.58 | L169: 9.87 | M169: 9.87 | N169: 1.65 | O169: 0 | Q169: 0 | R169: 0 | S169: 0 | T169: 0 | U169: 0.615912 | V169: 3.07956 | X169: 0 | Y169: 0 | Z169: 0 | AA169: 0 | AB169: 18 | AC169: 18 | AE169: 0 | AF169: 0 | AG169: 0 | AH169: 0 | AI169: 0 | AJ169: 0 | AL169: CW8.3 | AN169: 6F.3
A170: 165 | B170: SVE | C170: Draycote Reservoir WL increase (6%) | D170: 122A | E170: 3 | F170: Supply-side improvements delivering benefits in 2025-30 | G170: 2027 | I170: 1.3 | J170: 1.3 | K170: 0 | L170: 0 | M170: 0 | N170: 0 | O170: 0 | Q170: 0 | R170: 0.691476 | S170: 0.691476 | T170: 0.691476 | U170: 0.691476 | V170: 0.691476 | X170: 0 | Y170: 9.59 | Z170: 9.59 | AA170: 9.59 | AB170: 9.59 | AC170: 9.59 | AE170: 0 | AF170: 0 | AG170: 0 | AH170: 0 | AI170: 0 | AJ170: 0 | AL170: CW8.4 | AN170: 6F.4
A171: 166 | B171: SVE | C171: Draycote WTW DO Recovery | D171: 423 | E171: 3 | F171: Supply-side improvements delivering benefits in 2025-30 | G171: 2029 | I171: 1.2 | J171: 2.4 | K171: 3.6 | L171: 7.2 | M171: 9.6 | N171: 0 | O171: 0 | Q171: 0 | R171: 0 | S171: 0 | T171: 0 | U171: 0.288415 | V171: 0.288415 | X171: 0 | Y171: 0 | Z171: 0 | AA171: 0 | AB171: 4 | AC171: 4 | AE171: 0 | AF171: 0 | AG171: 0 | AH171: 0 | AI171: 0 | AJ171: 0 | AL171: CW8.5 | AN171: 6F.5
A172: 167 | B172: SVE | C172: Little Eaton WTW DO Recovery | D172: 426 | E172: 3 | F172: Supply-side improvements delivering benefits in 2025-30 | G172: 2030 | I172: 3 | J172: 2.1 | K172: 2.8 | L172: 4.2 | M172: 4.2 | N172: 0.7 | O172: 0 | Q172: 0 | R172: 0 | S172: 0 | T172: 0 | U172: 0.0658212 | V172: 0.329106 | X172: 0 | Y172: 0 | Z172: 0 | AA172: 0 | AB172: 5 | AC172: 5 | AE172: 0 | AF172: 0 | AG172: 0 | AH172: 0 | AI172: 0 | AJ172: 0 | AL172: CW8.6 | AN172: 6F.6
A173: 168 | B173: SVE | C173: Strensham WTW Expansion | D173: 66 | E173: 3 | F173: Supply-side improvements delivering benefits in 2025-30 | G173: 2030 | I173: 15 | J173: 14.1 | K173: 18.8 | L173: 28.2 | M173: 28.2 | N173: 4.7 | O173: 0 | Q173: 0 | R173: 0 | S173: 0 | T173: 0 | U173: 0.2915934 | V173: 1.457967 | X173: 0 | Y173: 0 | Z173: 0 | AA173: 0 | AB173: 15 | AC173: 15 | AE173: 0 | AF173: 0 | AG173: 0 | AH173: 0 | AI173: 0 | AJ173: 0 | AL173: CW8.7 | AN173: 6F.7
A174: 169 | B174: SVE | C174: Bishops Castle Transfer | D174: 559 | E174: 3 | F174: Supply-demand balance improvements delivering benefits starting from 2031 | G174: 2035 | I174: 0 | J174: 0 | K174: 0 | L174: 0 | M174: 0 | N174: 0 | O174: 13.850301 | Q174: 0 | R174: 0 | S174: 0 | T174: 0 | U174: 0 | V174: 0.042492 | X174: 0 | Y174: 0 | Z174: 0 | AA174: 0 | AB174: 0 | AC174: 1 | AE174: 22.756 | AF174: 150 | AG174: HPPE | AH174: 30 | AI174: n/a | AJ174: 1 | AL174: CW8.8 | AN174: 6F.8
A175: 170 | B175: SVE | C175: Rudyard Reservoir to Tittesworth | D175: 72 | E175: 3 | F175: Supply-demand balance improvements delivering benefits starting from 2031 | G175: 2035 | I175: 0 | J175: 0 | K175: 0 | L175: 0 | M175: 0 | N175: 0 | O175: 41.54375 | Q175: 0 | R175: 0 | S175: 0 | T175: 0 | U175: 0 | V175: 1.25 | X175: 0 | Y175: 0 | Z175: 0 | AA175: 0 | AB175: 0 | AC175: 6 | AE175: 0 | AF175: 0 | AG175: 0 | AH175: 0 | AI175: 0 | AJ175: 0 | AL175: CW8.9 | AN175: 6F.9
A176: 171 | B176: SVE | C176: Terminate raw water export to Yorkshire Water | D176: 169 | E176: 3 | F176: Supply-demand balance improvements delivering benefits starting from 2031 | G176: 2035 | I176: 0 | J176: 0 | K176: 0 | L176: 0 | M176: 0 | N176: 0 | O176: 0 | Q176: 0 | R176: 0 | S176: 0 | T176: 0 | U176: 0 | V176: 4.582152 | X176: 0 | Y176: 0 | Z176: 0 | AA176: 0 | AB176: 0 | AC176: 35 | AE176: 0 | AF176: 0 | AG176: 0 | AH176: 0 | AI176: 0 | AJ176: 0 | AL176: CW8.10 | AN176: 6F.10
A177: =A176+1 -> 172 | B177: SVE | C177: W.Midlands Raw Water Storage | D177: 143 | E177: 3 | F177: Supply-demand balance improvements delivering benefits starting from 2031 | G177: 2040 | I177: 0 | J177: 1.215155 | K177: 1.215155 | L177: 1.215155 | M177: 1.215155 | N177: 1.215155 | O177: 303.788811 | Q177: 0 | R177: 0 | S177: 0 | T177: 0 | U177: 0 | V177: 2.332726 | X177: 0 | Y177: 0 | Z177: 0 | AA177: 0 | AB177: 0 | AC177: 32.5 | AE177: 0 | AF177: 0 | AG177: 0 | AH177: 0 | AI177: 0 | AJ177: 0 | AL177: CW8.11 | AN177: 6F.11
A178: 173 | B178: SVE | C178: Enhanced household water efficiency (Customer Incentives, Flowvalve, Home water efficiecny checks, products) | D178: 173/175/184 | E178: 3 | F178: Demand-side improvements delivering benefits in 2025-30 (excl leakage and metering) | G178: 0 | I178: 0 | J178: 0 | K178: 0 | L178: 0 | M178: 0 | N178: 0 | O178: 0 | Q178: 1.247484619 | R178: 1.249714025 | S178: 1.252494374 | T178: 1.250652895 | U178: 1.251654087 | V178: 9.019407965 | X178: 0.7897692696 | Y178: 0.8928278494 | Z178: 1.02135478 | AA178: 0.9362288894 | AB178: 0.9825109273 | AC178: 7.079964803 | AE178: 0 | AF178: 0 | AG178: 0 | AH178: 0 | AI178: 0 | AJ178: 0 | AL178: CW8.12 | AN178: 6F.12
A179: 174 | B179: SVE | C179: Non household water efficiency (School and business audits) | D179: 181 | E179: 3 | F179: Demand-side improvements delivering benefits in 2025-30 (excl leakage and metering) | G179: 0 | I179: 0 | J179: 0 | K179: 0 | L179: 0 | M179: 0 | N179: 0 | O179: 0 | Q179: 0.7146289381 | R179: 1.908350964 | S179: 2.048467884 | T179: 2.186319032 | U179: 2.322233182 | V179: 75.27792543 | X179: 0.7146289381 | Y179: 1.908350964 | Z179: 2.048467884 | AA179: 2.186319032 | AB179: 2.322233182 | AC179: 75.27792543 | AE179: 0 | AF179: 0 | AG179: 0 | AH179: 0 | AI179: 0 | AJ179: 0 | AL179: CW8.13 | AN179: 6F.13
A180: 175 | B180: TMS | C180: New Reservoir - SESRO 150Mm3 (SIPR, TW 55%) | D180: TWU_abingdon150 | E180: 3 | F180: Supply-demand balance improvements delivering benefits starting from 2031 | G180: 2038-39 | I180: 40.374 | J180: 39.495 | K180: 39.814 | L180: 40.136 | M180: 35.821 | N180: 9.234 | O180: 82.915 | Q180: 0 | R180: 0 | S180: 0 | T180: 0 | U180: 0 | V180: 2.606 | X180: 0 | Y180: 0 | Z180: 0 | AA180: 0 | AB180: 0 | AC180: 149.1 | AL180: CW8.1 | AN180: 6F.1
A181: 176 | B181: TMS | C181: STT 500: 500Ml/d Pipe, Netheridge & Unsupported (DPC, 2049, up to AMP8, TW 80%) | D181: TWU_p5-500-neth_p35 | E181: 3 | F181: Supply-demand balance improvements delivering benefits starting from 2031 | G181: 2038-39 | I181: 16.96 | J181: 2.099 | K181: 2.109 | L181: 2.118 | M181: 2.128 | N181: 2.138 | O181: 0 | Q181: 0 | R181: 0 | S181: 0 | T181: 0 | U181: 0 | V181: 0 | X181: 0 | Y181: 0 | Z181: 0 | AA181: 0 | AB181: 0 | AC181: 0 | AL181: CW8.2 | AN181: 6F.2
A182: 177 | B182: TMS | C182: Teddington Direct River Abstraction (Indirect Effluent Reuse) 75 MLD - (75 Ml/d connection) and Direct River Abstraction - Teddington to Thames Lee Tunnel Shaft 75 MLD | D182: TWU_teddington dra 75 and TWU_teddingtondrated/tlt | E182: 3 | F182: Supply-demand balance improvements delivering benefits starting from 2031 | G182: 2032-33 | I182: 28.12 | J182: 11.548 | K182: 9.82 | L182: 14.149 | M182: 29.695 | N182: 53.408 | O182: 160.683 | Q182: 0 | R182: 0 | S182: 0 | T182: 0 | U182: 0 | V182: 3.37 | X182: 0 | Y182: 0 | Z182: 0 | AA182: 0 | AB182: 0 | AC182: 67 | AL182: CW8.3 | AN182: 6F.3
A183: 178 | B183: TMS | C183: Reuse Beckton 100Ml/d (to Lockwood Pumping Station) and Thames-Lee Tunnel extension from Lockwood PS to King George V Reservoir intake (DPC, extra-over to TED 75, up to AMP8 only) | D183: TWU_reuse beckton 100_lockwood and TWU_KGV_HI-TFR_KGV_ALL_lockwood ps-kgv res | E183: 3 | F183: Supply-demand balance improvements delivering benefits starting from 2031 | G183: 2033-34 | I183: 13.675 | J183: 11.65 | K183: 12.723 | L183: 6.099 | M183: 52.83 | N183: -25.033 | O183: 0 | Q183: 0 | R183: 0 | S183: 0 | T183: 0 | U183: 0 | V183: 0 | X183: 0 | Y183: 0 | Z183: 0 | AA183: 0 | AB183: 0 | AC183: 0 | AL183: CW8.4 | AN183: 6F.4
A184: 179 | B184: TMS | C184: Teddington to QM Reservoir (DPC) | D184: TWU_WLJ_HI-TFR_WLJ_ALL_teddingqmreservoir | E184: 3 | F184: Supply-demand balance improvements delivering benefits starting from 2031 | G184: 2034-35 | I184: 2.745 | J184: 4.137 | K184: 7.22 | L184: 7.252 | M184: 7.285 | N184: 10.805 | O184: 51.108 | Q184: 0 | R184: 0 | S184: 0 | T184: 0 | U184: 0 | V184: 4.043 | X184: 0 | Y184: 0 | Z184: 0 | AA184: 0 | AB184: 0 | AC184: 200 | AL184: CW8.5 | AN184: 6F.5
A185: 180 | B185: TMS | C185: Groundwater Development - Addington | D185: TWU_LON_HI-GRW_ALL_ALL_addington gw | E185: 3 | F185: Supply-side improvements delivering benefits in 2025-30 | G185: 2027-28 | I185: 0 | J185: 0.929 | K185: 2.196 | L185: 2.372 | M185: 0 | N185: 0 | O185: 0 | Q185: 0 | R185: 0 | S185: 0.042 | T185: 0.083 | U185: 0.083 | V185: 0.089 | X185: 0 | Y185: 0 | Z185: 2.7 | AA185: 2.7 | AB185: 2.7 | AC185: 2.7 | AL185: CW8.6 | AN185: 6F.6
A186: 181 | B186: TMS | C186: Didcot Power Station Licence Trading | D186: TWU_LON_HI-OTH_ALL_ALL_didcot purchase | E186: 3 | F186: Supply-side improvements delivering benefits in 2025-30 | G186: 2025-26 | I186: 0 | J186: 0 | K186: 0 | L186: 0 | M186: 0 | N186: 0 | O186: 0 | Q186: 3.118 | R186: 3.163 | S186: 3.21 | T186: 3.256 | U186: 3.304 | V186: 0 | X186: 22.6 | Y186: 22.6 | Z186: 22.6 | AA186: 22.6 | AB186: 22.6 | AC186: 0 | AL186: CW8.7 | AN186: 6F.7
A187: 182 | B187: TMS | C187: Groundwater Development - Moulsford Groundwater Source | D187: TWU_SWX_HI-GRW_ALL_ALL_moulsford gw | E187: 3 | F187: Supply-demand balance improvements delivering benefits starting from 2031 | G187: 2032-33 | I187: 0 | J187: 0 | K187: 0 | L187: 0 | M187: 0 | N187: 0 | O187: 6.018 | Q187: 0 | R187: 0 | S187: 0 | T187: 0 | U187: 0 | V187: 0.076 | X187: 0 | Y187: 0 | Z187: 0 | AA187: 0 | AB187: 0 | AC187: 2 | AL187: CW8.8 | AN187: 6F.8
A188: 183 | B188: TMS | C188: London Licence Trade with Affinity Water | D188: TWU_egham london group | E188: 3 | F188: Supply-demand balance improvements delivering benefits starting from 2031 | G188: 2032-33 | I188: 0 | J188: 0 | K188: 0 | L188: 0 | M188: 0 | N188: 0 | O188: 0 | Q188: 0 | R188: 0 | S188: 0 | T188: 0 | U188: 0 | V188: 0 | X188: 0 | Y188: 0 | Z188: 0 | AA188: 0 | AB188: 0 | AC188: 11.1 | AL188: CW8.9 | AN188: 6F.9
A189: 184 | B189: TMS | C189: Abingdon Reservoir to Farmoor Reservoir pipeline | D189: TWU_sesro to farmoor | E189: 3 | F189: Supply-demand balance improvements delivering benefits starting from 2031 | G189: 2039-40 | I189: 0 | J189: 0 | K189: 0 | L189: 0 | M189: 0 | N189: 0 | O189: 56.455 | Q189: 0 | R189: 0 | S189: 0 | T189: 0 | U189: 0 | V189: 0.787 | X189: 0 | Y189: 0 | Z189: 0 | AA189: 0 | AB189: 0 | AC189: 24 | AL189: CW8.10 | AN189: 6F.10
A190: 185 | B190: TMS | C190: Oxford Canal - Duke's Cut (SWOX) | D190: TWU_oxc-dukes cutswox TWU_SWX_HI-IMP_SWX_DEV_oxc-dukes cutswox | E190: 3 | F190: Supply-demand balance improvements delivering benefits starting from 2031 | G190: 2039-40 | I190: 0 | J190: 0 | K190: 0 | L190: 0 | M190: 0 | N190: 0 | O190: 61.874 | Q190: 0 | R190: 0 | S190: 0 | T190: 0 | U190: 0 | V190: 1.125 | X190: 0 | Y190: 0 | Z190: 0 | AA190: 0 | AB190: 0 | AC190: 12 | AL190: CW8.11 | AN190: 6F.11
A191: 186 | B191: TMS | C191: Henley to SWOX Transfer – 5 Ml/d | D191: TWU_henley-swox5 | E191: 3 | F191: Supply-demand balance improvements delivering benefits starting from 2031 | G191: 2039-40 | I191: 0 | J191: 0 | K191: 0 | L191: 0 | M191: 0 | N191: 0 | O191: 13.439 | Q191: 0 | R191: 0 | S191: 0 | T191: 0 | U191: 0 | V191: 0.249 | X191: 0 | Y191: 0 | Z191: 0 | AA191: 0 | AB191: 0 | AC191: 5 | AL191: CW8.12 | AN191: 6F.12
A192: 187 | B192: TMS | C192: Groundwater Development - Recomission Mortimer Disused Source | D192: TWU_KVZ_HI-GRW_ALL_ALL_mortimer recomm | E192: 3 | F192: Supply-demand balance improvements delivering benefits starting from 2031 | G192: 2041-42 | I192: 0 | J192: 0 | K192: 0 | L192: 0 | M192: 0 | N192: 0 | O192: 15.691 | Q192: 0 | R192: 0 | S192: 0 | T192: 0 | U192: 0 | V192: 0.41 | X192: 0 | Y192: 0 | Z192: 0 | AA192: 0 | AB192: 0 | AC192: 4.5 | AL192: CW8.13 | AN192: 6F.13
A193: 188 | B193: TMS | C193: New Medmenham Surface Water WTW Ph1 (53 Ml/d Intake) | D193: TWU_medmenhamwtw ph1_53 | E193: 3 | F193: Supply-demand balance improvements delivering benefits starting from 2031 | G193: 2049-50 | I193: 0 | J193: 0 | K193: 0 | L193: 0 | M193: 0 | N193: 0 | O193: 148.991 | Q193: 0 | R193: 0 | S193: 0 | T193: 0 | U193: 0 | V193: 2.001 | X193: 0 | Y193: 0 | Z193: 0 | AA193: 0 | AB193: 0 | AC193: 24 | AL193: CW8.14 | AN193: 6F.14
A194: 189 | B194: TMS | C194: Transfer - South East Water to Guildford | D194: TWU_sew to gui | E194: 3 | F194: Supply-demand balance improvements delivering benefits starting from 2031 | G194: 2049-50 | I194: 0 | J194: 0 | K194: 0 | L194: 0 | M194: 0 | N194: 0 | O194: 39.092 | Q194: 0 | R194: 0 | S194: 0 | T194: 0 | U194: 0 | V194: 0.33 | X194: 0 | Y194: 0 | Z194: 0 | AA194: 0 | AB194: 0 | AC194: 10 | AL194: CW8.15 | AN194: 6F.15
A195: 190 | B195: TMS | C195: T2ST (120 Ml/d T2ST) Spur to Kennet Valley - Speen | D195: TWU_t2st cul to speen 120 | E195: 3 | F195: Supply-demand balance improvements delivering benefits starting from 2031 | G195: 2049-50 | I195: 0 | J195: 0 | K195: 0 | L195: 0 | M195: 0 | N195: 0 | O195: 11.455 | Q195: 0 | R195: 0 | S195: 0 | T195: 0 | U195: 0 | V195: 1.297 | X195: 0 | Y195: 0 | Z195: 0 | AA195: 0 | AB195: 0 | AC195: 10 | AL195: CW8.16 | AN195: 6F.16
A196: 191 | B196: TMS | C196: New WTW at Kempton - 100Ml/d | D196: TWU_LON_HI-ROC_WT1_CNO_kemptonwtw100 p1 | E196: 3 | F196: Supply-demand balance improvements delivering benefits starting from 2031 | G196: 2049-50 | I196: 0 | J196: 0 | K196: 0 | L196: 0 | M196: 0 | N196: 0 | O196: 178.655 | Q196: 0 | R196: 0 | S196: 0 | T196: 0 | U196: 0 | V196: 6.049 | X196: 0 | Y196: 0 | Z196: 0 | AA196: 0 | AB196: 0 | AC196: 100 | AL196: CW8.17 | AN196: 6F.17
A197: 192 | B197: TMS | C197: New shaft on the TWRM at Kempton | D197: TWU_twrm shaft kempton | E197: 3 | F197: Supply-demand balance improvements delivering benefits starting from 2031 | G197: 2049-50 | I197: 0 | J197: 0 | K197: 0 | L197: 0 | M197: 0 | N197: 0 | O197: 2.804 | Q197: 0 | R197: 0 | S197: 0 | T197: 0 | U197: 0 | V197: 0.003 | X197: 0 | Y197: 0 | Z197: 0 | AA197: 0 | AB197: 0 | AC197: 800 | AL197: CW8.18 | AN197: 6F.18
A198: 193 | B198: TMS | C198: Replace New River Head Pump - TWRM | D198: TWU_LON_HI-TFR_LON_ALL_newriverhead pump 4 | E198: 3 | F198: Supply-demand balance improvements delivering benefits starting from 2031 | G198: 2049-50 | I198: 0 | J198: 0 | K198: 0 | L198: 0 | M198: 0 | N198: 0 | O198: 1.187 | Q198: 0 | R198: 0 | S198: 0 | T198: 0 | U198: 0 | V198: 1.939 | X198: 0 | Y198: 0 | Z198: 0 | AA198: 0 | AB198: 0 | AC198: 60 | AL198: CW8.19 | AN198: 6F.19
A199: 194 | B199: TMS | C199: Groundwater Development - Datchet Existing Source DO Increase | D199: TWU_SWA_HI-GRW_ALL_ALL_datchet do | E199: 3 | F199: Supply-demand balance improvements delivering benefits starting from 2031 | G199: 2073-74 | I199: 0 | J199: 0 | K199: 0 | L199: 0 | M199: 0 | N199: 0 | O199: 4.289 | Q199: 0 | R199: 0 | S199: 0 | T199: 0 | U199: 0 | V199: 0.084 | X199: 0 | Y199: 0 | Z199: 0 | AA199: 0 | AB199: 0 | AC199: 1.6 | AL199: CW8.20 | AN199: 6F.20
A200: 195 | B200: TMS | C200: Groundwater Development - Woods Farm Existing Source Increase DO | D200: TWU_SWX_HI-GRW_ALL_ALL_woods farm do | E200: 3 | F200: Supply-demand balance improvements delivering benefits starting from 2031 | G200: 2073-74 | I200: 0 | J200: 0 | K200: 0 | L200: 0 | M200: 0 | N200: 0 | O200: 4.818 | Q200: 0 | R200: 0 | S200: 0 | T200: 0 | U200: 0 | V200: 0.154 | X200: 0 | Y200: 0 | Z200: 0 | AA200: 0 | AB200: 0 | AC200: 2.4 | AL200: CW8.21 | AN200: 6F.21
A201: 196 | B201: TMS | C201: NHH Internal Continuous Flow Fixes High | D201: TWU_cont int flow high | E201: 3 | F201: Demand-side improvements delivering benefits in 2025-30 (excl leakage and metering) | G201: 2025-26 | I201: 0 | J201: 0 | K201: 0 | L201: 0 | M201: 0 | N201: 0 | O201: 0 | Q201: 0.141 | R201: 0.142 | S201: 0.143 | T201: 0.143 | U201: 0.144 | V201: 0.21 | X201: 0.9 | Y201: 1.8 | Z201: 2.7 | AA201: 3.6 | AB201: 4.5 | AC201: 23.5 | AL201: CW8.22 | AN201: 6F.22
A202: 197 | B202: TMS | C202: Digital Engagement Tool High | D202: TWU_det hh high | E202: 3 | F202: Demand-side improvements delivering benefits in 2025-30 (excl leakage and metering) | G202: 2025-26 | I202: 0 | J202: 0 | K202: 0 | L202: 0 | M202: 0 | N202: 0 | O202: 0 | Q202: 0.145 | R202: 0.146 | S202: 0.146 | T202: 0.147 | U202: 0.148 | V202: 0.097 | X202: 1.2 | Y202: 2.3 | Z202: 3.5 | AA202: 4.6 | AB202: 5.8 | AC202: 10.2 | AL202: CW8.23 | AN202: 6F.23
... 71 more rows

Sheet Inputs CW8 Demand Options
A1: =RIGHT(CELL("filename", $A$1), LEN(CELL("filename", $A$1)) - SEARCH("]", CELL("filename", $A$1))) -> Inputs CW8 Demand Options
A4: Company | B4: Scheme name | C4: WRMP scheme reference | D4: DPs | E4: Classification | F4: Delivery year (in use) | H4: Capital expenditure (£m) | P4: Opex costs (£m) | W4: Benefits (Ml/d) | AD4: Complete for interconnectors only | AK4: PR24 BP reference | AM4: RAG 4 reference
H5: pre-2025-26 | I5: 2025-26 | J5: 2026-27 | K5: 2027-28 | L5: 2028-29 | M5: 2029-30 | N5: After 2029-30 | P5: 2025-26 | Q5: 2026-27 | R5: 2027-28 | S5: 2028-29 | T5: 2029-30 | U5: After 2029-30 | W5: 2025-26 | X5: 2026-27 | Y5: 2027-28 | Z5: 2028-29 | AA5: 2029-30 | AB5: After 2029-30 | AD5: Length (km) | AE5: Diameter (mm) | AF5: Pipe material (text-freeform) | AG5: Pumping capacity installed (kW) | AH5: Storage capacity installed (m3) | AI5: Transfer capacity (Ml/d)
A6: AFW | B6: Non-Household Water Efficiency - BWECs | C6: n/a | D6: 3 | E6: Demand-side improvements delivering benefits in 2025-30 (excl leakage and metering) | F6: 2025-26 | H6: 0 | I6: 0 | J6: 0 | K6: 0 | L6: 0 | M6: 0 | N6: 0 | P6: 0.48 | Q6: 0.48 | R6: 0.48 | S6: 0.48 | T6: 0.48 | U6: 1.45 | W6: 0.4 | X6: 0.8 | Y6: 1.2 | Z6: 1.6 | AA6: 2 | AB6: 6.19 | AD6: 0 | AE6: 0 | AF6: 0 | AG6: 0 | AH6: 0 | AI6: 0 | AK6: CW8.5 | AM6: 6F.5
A7: AFW | B7: Household Water Efficiency - HWECs, Wastage, Tarifs, Gov | C7: n/a | D7: 3 | E7: Demand-side improvements delivering benefits in 2025-30 (excl leakage and metering) | F7: 2025-26 | H7: 0 | I7: 0 | J7: 0 | K7: 0 | L7: 0 | M7: 0 | N7: 0 | P7: 1.991 | Q7: 1.991 | R7: 1.991 | S7: 1.991 | T7: 1.991 | U7: 6.006 | W7: 2.103 | X7: 4.476 | Y7: 6.968 | Z7: 9.609 | AA7: 12.329 | AB7: 131.9 | AD7: 0 | AE7: 0 | AF7: 0 | AG7: 0 | AH7: 0 | AI7: 0 | AK7: CW8.6 | AM7: 6F.6
A8: AFW | B8: Save our Streams (SoS) | C8: 0 | D8: 3 | E8: Demand-side improvements delivering benefits in 2025-2030 (excl leakage and metering) | F8: 2025-26 | H8: 0 | I8: 0 | J8: 0 | K8: 0 | L8: 0 | M8: 0 | N8: 0 | P8: 4.248 | Q8: 3.307 | R8: 2.451 | S8: 1.597 | T8: 1.597 | U8: 0 | W8: 7.4 | X8: 11.1 | Y8: 13.5 | Z8: 15.9 | AA8: 17.9 | AB8: 17.9 | AD8: 0 | AE8: 0 | AF8: 0 | AG8: 0 | AH8: 0 | AI8: 0 | AK8: CW8.13 | AM8: 6F.13
A9: ANH | B9: Demand Side Measures - non household (NHH) | C9: 0 | D9: 3 | E9: Demand-side improvements delivering benefits in 2025-30 (excl leakage and metering) | F9: 2025-26 | H9: 0 | I9: 0 | J9: 0 | K9: 0 | L9: 0 | M9: 0 | N9: 0 | P9: 0.896 | Q9: 0.896 | R9: 0.896 | S9: 0.896 | T9: 0.896 | U9: 0 | W9: 2.02 | X9: 4.03 | Y9: 6.049 | Z9: 8.059 | AA9: 10.079 | AB9: 10.079 | AD9: 0 | AE9: 0 | AF9: 0 | AG9: 0 | AH9: 0 | AI9: 0 | AK9: CW8.26 | AM9: 6F.26
A10: ANH | B10: Demand Side Measures - domestic | C10: 0 | D10: 3 | E10: Demand-side improvements delivering benefits in 2025-30 (excl leakage and metering) | F10: 2025-26 | H10: 0 | I10: 0 | J10: 0 | K10: 0 | L10: 0 | M10: 0 | N10: 0 | P10: 5.089 | Q10: 4.66 | R10: 2.32 | S10: 2.486 | T10: 2.684 | U10: 0 | W10: 2.732 | X10: 4.354 | Y10: 6.029 | Z10: 7.693 | AA10: 9.369 | AB10: 9.369 | AD10: 0 | AE10: 0 | AF10: 0 | AG10: 0 | AH10: 0 | AI10: 0 | AK10: CW8.27 | AM10: 6F.27
A11: HDD | B11: Household water effciency | C11: HDD024, HDD025,HDD035,HDD026,HDD032,HDD029 | D11: 3 | E11: Demand-side improvements delivering benefits in 2025- 2030 (excl leakage and metering) | F11: 2025-26 | H11: 0 | I11: 0.076 | J11: 0.077 | K11: 0 | L11: 0 | M11: 0 | N11: 0 | P11: 0.041 | Q11: 0.041 | R11: 0.041 | S11: 0.042 | T11: 0.042 | U11: 0.7 | W11: 0.111 | X11: 0.111 | Y11: 0.111 | Z11: 0.111 | AA11: 0.111 | AB11: 2.297 | AD11: 0 | AE11: 0 | AF11: 0 | AG11: 0 | AH11: 0 | AI11: 0 | AK11: CW8.1 | AM11: 6F.1
A12: HDD | B12: Non household water effieicency | C12: HDD028 | D12: 3 | E12: Demand-side improvements delivering benefits in 2025- 2030 (excl leakage and metering) | F12: 2025-26 | H12: 0 | I12: 0 | J12: 0 | K12: 0 | L12: 0 | M12: 0 | N12: 0 | P12: 0.033 | Q12: 0.033 | R12: 0.033 | S12: 0.033 | T12: 0.033 | U12: 0.962 | W12: 0.05 | X12: 0.05 | Y12: 0.04 | Z12: 0.05 | AA12: 0.05 | AB12: 1.525 | AD12: 0 | AE12: 0 | AF12: 0 | AG12: 0 | AH12: 0 | AI12: 0 | AK12: CW8.2 | AM12: 6F.2
A13: NES | B13: Household Demand Reduction (ESW) | C13: Water efficiency -Medium Smart scenario | D13: 3 | E13: Demand-side improvements delivering benefits in 2025-30 (excl leakage and metering) | F13: 2030 | H13: 0 | I13: 0 | J13: 0 | K13: 0 | L13: 0 | M13: 0 | N13: 0 | P13: 0.734 | Q13: 0.781 | R13: 0.784 | S13: 0.793 | T13: 0.77 | U13: 0 | W13: 0.659 | X13: 0.577 | Y13: 1.099 | Z13: 0.97 | AA13: 0.792 | AB13: 0 | AD13: 0 | AE13: 0 | AF13: 0 | AG13: 0 | AH13: 0 | AI13: 0 | AK13: CW8.14 | AM13: 6F.14
A14: NES | B14: Non-Household Demand Reduction (ESW) | C14: NHH water efficiency - all activity- High 9% | D14: 3 | E14: Demand-side improvements delivering benefits in 2025-30 (excl leakage and metering) | F14: 2030 | H14: 0 | I14: 0 | J14: 0 | K14: 0 | L14: 0 | M14: 0 | N14: 0 | P14: 0.326 | Q14: 0.347 | R14: 0.349 | S14: 0.353 | T14: 0.342 | U14: 0 | W14: 0.3 | X14: 0.3 | Y14: 0.3 | Z14: 0.3 | AA14: 0.3 | AB14: 0 | AD14: 0 | AE14: 0 | AF14: 0 | AG14: 0 | AH14: 0 | AI14: 0 | AK14: CW8.15 | AM14: 6F.15
A15: NES | B15: Household Demand Reduction (NW) | C15: Water efficiency -Medium Smart scenario | D15: 3 | E15: Demand-side improvements delivering benefits in 2025-30 (excl leakage and metering) | F15: 2030 | H15: 0 | I15: 0 | J15: 0 | K15: 0 | L15: 0 | M15: 0 | N15: 0 | P15: 0.709 | Q15: 0.754 | R15: 0.758 | S15: 0.767 | T15: 0.744 | U15: 0 | W15: 0.59 | X15: 0.777 | Y15: 0.797 | Z15: 0.793 | AA15: 0.79 | AB15: 0 | AD15: 0 | AE15: 0 | AF15: 0 | AG15: 0 | AH15: 0 | AI15: 0 | AK15: CW8.16 | AM15: 6F.16
A16: NES | B16: Non-Household Demand Reduction (NW) | C16: NHH water efficiency - all activity- High 9% | D16: 3 | E16: Demand-side improvements delivering benefits in 2025-30 (excl leakage and metering) | F16: 2030 | H16: 0 | I16: 0 | J16: 0 | K16: 0 | L16: 0 | M16: 0 | N16: 0 | P16: 0.991 | Q16: 1.054 | R16: 1.059 | S16: 1.071 | T16: 1.04 | U16: 0 | W16: 0.758 | X16: 0.758 | Y16: 0.758 | Z16: 0.758 | AA16: 0.758 | AB16: 0 | AD16: 0 | AE16: 0 | AF16: 0 | AG16: 0 | AH16: 0 | AI16: 0 | AK16: CW8.17 | AM16: 6F.17
A17: PRT | B17: Pressure control device - Company - High+ | C17: PRT_PRT_EF-CRE_ALL_ALL_hh_pressure high+ | D17: 3 | E17: Demand-side improvements delivering benefits in 2025-30 (excl leakage and metering) | F17: 2025-26 | H17: 0 | I17: 0 | J17: 0 | K17: 0 | L17: 0 | M17: 0 | N17: 0 | P17: 0 | Q17: 0 | R17: 0 | S17: 0 | T17: 0 | U17: 0 | W17: 0.002 | X17: 0.003 | Y17: 0.005 | Z17: 0.006 | AA17: 0.008 | AB17: 0.344 | AD17: 0 | AE17: 0 | AF17: 0 | AG17: 0 | AH17: 0 | AI17: 0 | AK17: CW8.2 | AM17: 6F.2
A18: PRT | B18: Government-led Demand Reduction - Profile C+ (Portsmouth Water) | C18: PRT_PRT_EF-LKR_ALL_ALL_dmp prt gov c+2 | D18: 3 | E18: Demand-side improvements delivering benefits in 2025-30 (excl leakage and metering) | F18: 2025-26 | H18: 0 | I18: 0 | J18: 0 | K18: 0 | L18: 0 | M18: 0 | N18: 0 | P18: 0 | Q18: 0 | R18: 0 | S18: 0 | T18: 0 | U18: 0 | W18: 0.304 | X18: 0.615 | Y18: 0.934 | Z18: 1.261 | AA18: 1.595 | AB18: 22.629 | AD18: 0 | AE18: 0 | AF18: 0 | AG18: 0 | AH18: 0 | AI18: 0 | AK18: CW8.3 | AM18: 6F.3
A19: PRT | B19: Household audit - Company - High+ | C19: PRT_PRT_EF-WEF_ALL_ALL_audit_hh high+ | D19: 3 | E19: Demand-side improvements delivering benefits in 2025-30 (excl leakage and metering) | F19: 2025-26 | H19: 0 | I19: 0 | J19: 0 | K19: 0 | L19: 0 | M19: 0 | N19: 0 | P19: 0.102 | Q19: 0.102 | R19: 0.102 | S19: 0.102 | T19: 0.102 | U19: 0.273 | W19: 0.085 | X19: 0.17 | Y19: 0.255 | Z19: 0.331 | AA19: 0.399 | AB19: 0.656 | AD19: 0 | AE19: 0 | AF19: 0 | AG19: 0 | AH19: 0 | AI19: 0 | AK19: CW8.4 | AM19: 6F.4
A20: PRT | B20: Non-household audit - Company - High+ | C20: PRT_PRT_EF-WEF_ALL_ALL_audit_nhh high+ | D20: 3 | E20: Demand-side improvements delivering benefits in 2025-30 (excl leakage and metering) | F20: 2025-26 | H20: 0 | I20: 0 | J20: 0 | K20: 0 | L20: 0 | M20: 0 | N20: 0 | P20: 0.041 | Q20: 0.041 | R20: 0.041 | S20: 0.041 | T20: 0.041 | U20: 0.836 | W20: 0.003 | X20: 0.005 | Y20: 0.008 | Z20: 0.011 | AA20: 0.014 | AB20: 0.03 | AD20: 0 | AE20: 0 | AF20: 0 | AG20: 0 | AH20: 0 | AI20: 0 | AK20: CW8.5 | AM20: 6F.5
A21: PRT | B21: Awareness campaign: community - Company - High+ | C21: PRT_PRT_EF-WEF_ALL_ALL_awareness high+ | D21: 3 | E21: Demand-side improvements delivering benefits in 2025-30 (excl leakage and metering) | F21: 2025-26 | H21: 0 | I21: 0 | J21: 0 | K21: 0 | L21: 0 | M21: 0 | N21: 0 | P21: 0.027 | Q21: 0.027 | R21: 0.027 | S21: 0.027 | T21: 0.027 | U21: 0.18 | W21: 0.289 | X21: 0.578 | Y21: 0.866 | Z21: 1.155 | AA21: 1.444 | AB21: 3.465 | AD21: 0 | AE21: 0 | AF21: 0 | AG21: 0 | AH21: 0 | AI21: 0 | AK21: CW8.6 | AM21: 6F.6
A22: PRT | B22: Multi- channel proactive coms - Company - High+ | C22: PRT_PRT_EF-WEF_ALL_ALL_comms high+ | D22: 3 | E22: Demand-side improvements delivering benefits in 2025-30 (excl leakage and metering) | F22: 2025-26 | H22: 0 | I22: 0 | J22: 0 | K22: 0 | L22: 0 | M22: 0 | N22: 0 | P22: 0.045 | Q22: 0.045 | R22: 0.045 | S22: 0.045 | T22: 0.045 | U22: 0.932 | W22: 0.06 | X22: 0.121 | Y22: 0.181 | Z22: 0.242 | AA22: 0.302 | AB22: 0.726 | AD22: 0 | AE22: 0 | AF22: 0 | AG22: 0 | AH22: 0 | AI22: 0 | AK22: CW8.7 | AM22: 6F.7
A23: PRT | B23: Education programme - Company - High+ | C23: PRT_PRT_EF-WEF_ALL_ALL_education high+ | D23: 3 | E23: Demand-side improvements delivering benefits in 2025-30 (excl leakage and metering) | F23: 2025-26 | H23: 0 | I23: 0 | J23: 0 | K23: 0 | L23: 0 | M23: 0 | N23: 0 | P23: 0.005 | Q23: 0.005 | R23: 0.005 | S23: 0.005 | T23: 0.005 | U23: 0.093 | W23: 0.011 | X23: 0.023 | Y23: 0.034 | Z23: 0.045 | AA23: 0.057 | AB23: 0.283 | AD23: 0 | AE23: 0 | AF23: 0 | AG23: 0 | AH23: 0 | AI23: 0 | AK23: CW8.8 | AM23: 6F.8
A24: PRT | B24: Retrofit Gadgets - Company - High+ | C24: PRT_PRT_EF-WEF_ALL_ALL_gadgets high+ | D24: 3 | E24: Demand-side improvements delivering benefits in 2025-30 (excl leakage and metering) | F24: 2025-26 | H24: 0 | I24: 0 | J24: 0 | K24: 0 | L24: 0 | M24: 0 | N24: 0 | P24: 0.032 | Q24: 0.032 | R24: 0.032 | S24: 0.032 | T24: 0.032 | U24: 0.666 | W24: 0.003 | X24: 0.005 | Y24: 0.008 | Z24: 0.011 | AA24: 0.013 | AB24: 0.116 | AD24: 0 | AE24: 0 | AF24: 0 | AG24: 0 | AH24: 0 | AI24: 0 | AK24: CW8.9 | AM24: 6F.9
A25: PRT | B25: Leak Alarm - Company - High+ | C25: PRT_PRT_EF-WEF_ALL_ALL_leak_alarm high+ | D25: 3 | E25: Demand-side improvements delivering benefits in 2025-30 (excl leakage and metering) | F25: 2025-26 | H25: 0 | I25: 0 | J25: 0 | K25: 0 | L25: 0 | M25: 0 | N25: 0 | P25: 0 | Q25: 0 | R25: 0 | S25: 0 | T25: 0 | U25: 0 | W25: 0.015 | X25: 0.03 | Y25: 0.045 | Z25: 0.06 | AA25: 0.075 | AB25: 0.075 | AD25: 0 | AE25: 0 | AF25: 0 | AG25: 0 | AH25: 0 | AI25: 0 | AK25: CW8.11 | AM25: 6F.11
A26: PRT | B26: Community Reward (Waterfit platform) - Company - High+ | C26: PRT_PRT_EF-WEF_ALL_ALL_reduce_consump high+ | D26: 3 | E26: Demand-side improvements delivering benefits in 2025-30 (excl leakage and metering) | F26: 2025-26 | H26: 0 | I26: 0 | J26: 0 | K26: 0 | L26: 0 | M26: 0 | N26: 0 | P26: 0.123 | Q26: 0.123 | R26: 0.123 | S26: 0.123 | T26: 0.123 | U26: 2.535 | W26: 0.044 | X26: 0.088 | Y26: 0.132 | Z26: 0.176 | AA26: 0.22 | AB26: 1.1 | AD26: 0 | AE26: 0 | AF26: 0 | AG26: 0 | AH26: 0 | AI26: 0 | AK26: CW8.12 | AM26: 6F.12
A27: PRT | B27: Vulnerability - Company - High+ | C27: PRT_PRT_EF-WEF_ALL_ALL_vulnerability high+ | D27: 3 | E27: Demand-side improvements delivering benefits in 2025-30 (excl leakage and metering) | F27: 2025-26 | H27: 0 | I27: 0 | J27: 0 | K27: 0 | L27: 0 | M27: 0 | N27: 0 | P27: 0 | Q27: 0 | R27: 0 | S27: 0 | T27: 0 | U27: 0.007 | W27: 0 | X27: 0 | Y27: 0 | Z27: 0.001 | AA27: 0.001 | AB27: 0.004 | AD27: 0 | AE27: 0 | AF27: 0 | AG27: 0 | AH27: 0 | AI27: 0 | AK27: CW8.13 | AM27: 6F.13
A28: PRT | B28: Metering CSL - Company - High+ | C28: PRT_PRT_EF-WEF_ALL_ALL_meter csl high+ | D28: 3 | E28: Demand-side improvements delivering benefits in 2025-30 (excl leakage and metering) | F28: 2026/27 | H28: 0 | I28: 0.276 | J28: 0.276 | K28: 0.276 | L28: 0.276 | M28: 0.276 | N28: 1.175 | P28: 0.146 | Q28: 0.146 | R28: 0.146 | S28: 0.146 | T28: 0.146 | U28: 2.163 | W28: 0 | X28: 0.053 | Y28: 0.449 | Z28: 1.122 | AA28: 2.064 | AB28: 6.047 | AD28: 0 | AE28: 0 | AF28: 0 | AG28: 0 | AH28: 0 | AI28: 0 | AK28: CW8.22 | AM28: 6F.22
A29: BRL | B29: Water saving devices - waterless urinals | C29: C016 | D29: 3 | E29: Demand-side improvements delivering benefits in 2025-30 (excl leakage and metering) | F29: 2025 | H29: 0 | I29: 0.041 | J29: 0.041 | K29: 0.041 | L29: 0.041 | M29: 0.041 | N29: 0.425 | P29: 0.086 | Q29: 0.086 | R29: 0.087 | S29: 0.087 | T29: 0.087 | U29: 0.897 | W29: 0.02 | X29: 0.06 | Y29: 0.101 | Z29: 0.141 | AA29: 0.182 | AB29: 27.733 | AD29: 0 | AE29: 0 | AF29: 0 | AG29: 0 | AH29: 0 | AI29: 0 | AK29: CW8.1 | AM29: 6F.1
A30: BRL | B30: Water labelling - with minimum standards | C30: HH_P_002 | D30: 3 | E30: Demand-side improvements delivering benefits in 2025-30 (excl leakage and metering) | F30: 2026 | H30: 0 | I30: 0 | J30: 0 | K30: 0 | L30: 0 | M30: 0 | N30: 0 | P30: 0 | Q30: 0 | R30: 0 | S30: 0 | T30: 0 | U30: 0 | W30: 0 | X30: 0.775 | Y30: 1.56 | Z30: 2.356 | AA30: 3.163 | AB30: 358.629 | AD30: 0 | AE30: 0 | AF30: 0 | AG30: 0 | AH30: 0 | AI30: 0 | AK30: CW8.2 | AM30: 6F.2
A31: BRL | B31: Change WC standards | C31: HH_P_001 | D31: 3 | E31: Demand-side improvements delivering benefits in 2025-30 (excl leakage and metering) | F31: 2030 | H31: 0 | I31: 0 | J31: 0 | K31: 0 | L31: 0 | M31: 0 | N31: 0 | P31: 0 | Q31: 0 | R31: 0 | S31: 0 | T31: 0 | U31: 0 | W31: 0 | X31: 0 | Y31: 0 | Z31: 0 | AA31: 0 | AB31: 178.182 | AD31: 0 | AE31: 0 | AF31: 0 | AG31: 0 | AH31: 0 | AI31: 0 | AK31: CW8.3 | AM31: 6F.3
A32: BRL | B32: Business Efficiency Visits (BEV) - water efficiency audit - in person audit, fix and retrofit, targeted at specific sectors/businesses | C32: NHH_A_001 | D32: 3 | E32: Demand-side improvements delivering benefits in 2025-30 (excl leakage and metering) | F32: 2030 | H32: 0 | I32: 0.042 | J32: 0.042 | K32: 0.043 | L32: 0.043 | M32: 0.043 | N32: 0.218 | P32: 0.091 | Q32: 0.092 | R32: 0.092 | S32: 0.093 | T32: 0.093 | U32: 0.471 | W32: 0.026 | X32: 0.078 | Y32: 0.13 | Z32: 0.183 | AA32: 0.235 | AB32: 25.62 | AD32: 0 | AE32: 0 | AF32: 0 | AG32: 0 | AH32: 0 | AI32: 0 | AK32: CW8.4 | AM32: 6F.4
A33: BRL | B33: Rainwater harvesting feasibility assessment and/or subsidised installation - target large water users | C33: NHH_N_002 | D33: 3 | E33: Demand-side improvements delivering benefits in 2025-30 (excl leakage and metering) | F33: 2025 | H33: 0 | I33: 0.004 | J33: 0.002 | K33: 0.002 | L33: 0.002 | M33: 0.002 | N33: 0.048 | P33: 0 | Q33: 0 | R33: 0 | S33: 0 | T33: 0 | U33: 0.002 | W33: 0.006 | X33: 0.016 | Y33: 0.022 | Z33: 0.028 | AA33: 0.034 | AB33: 7.449 | AD33: 0 | AE33: 0 | AF33: 0 | AG33: 0 | AH33: 0 | AI33: 0 | AK33: CW8.5 | AM33: 6F.5
A34: BRL | B34: New home standards - mandatory | C34: HH_P_005 | D34: 3 | E34: Demand-side improvements delivering benefits in 2025-30 (excl leakage and metering) | F34: 2025 | H34: 0 | I34: 0 | J34: 0 | K34: 0 | L34: 0 | M34: 0 | N34: 0 | P34: 0 | Q34: 0 | R34: 0 | S34: 0 | T34: 0 | U34: 0 | W34: 0 | X34: 0 | Y34: 0 | Z34: 0 | AA34: 0 | AB34: 498.631 | AD34: 0 | AE34: 0 | AF34: 0 | AG34: 0 | AH34: 0 | AI34: 0 | AK34: CW8.6 | AM34: 6F.6
A35: BRL | B35: Benchmarked rising block busines tariffs | C35: NHH_T_003 | D35: 3 | E35: Demand-side improvements delivering benefits in 2025-30 (excl leakage and metering) | F35: 2030 | H35: 0 | I35: 0 | J35: 0 | K35: 0 | L35: 0 | M35: 0 | N35: 0 | P35: 0 | Q35: 0 | R35: 0 | S35: 0 | T35: 0 | U35: 1.624 | W35: 0 | X35: 0 | Y35: 0 | Z35: 0 | AA35: 0 | AB35: 3.041 | AD35: 0 | AE35: 0 | AF35: 0 | AG35: 0 | AH35: 0 | AI35: 0 | AK35: CW8.7 | AM35: 6F.7
A36: BRL | B36: Media campaigns to influence water use | C36: HH_E_016 | D36: 3 | E36: Demand-side improvements delivering benefits in 2025-30 (excl leakage and metering) | F36: 2030 | H36: 0 | I36: 0 | J36: 0 | K36: 0 | L36: 0 | M36: 0 | N36: 22.554 | P36: 0 | Q36: 0 | R36: 0 | S36: 0 | T36: 0 | U36: 0.113 | W36: 0 | X36: 0 | Y36: 0 | Z36: 0 | AA36: 0 | AB36: 114.752 | AD36: 0 | AE36: 0 | AF36: 0 | AG36: 0 | AH36: 0 | AI36: 0 | AK36: CW8.8 | AM36: 6F.8
A37: SWB | B37: Targeted incentives scheme - Individual customer/community reward (e.g. Greenredeem) - New metered customers | C37: HH_I_001 | D37: 3 | E37: Demand-side improvements delivering benefits in 2025-30 (excl leakage and metering) | F37: 2025-26 | H37: 0 | I37: 0 | J37: 0 | K37: 0 | L37: 0 | M37: 0 | N37: 0 | P37: 0.045 | Q37: 0.016 | R37: 0.006 | S37: 0.012 | T37: 0.018 | U37: 0 | W37: 0.036 | X37: 0.058 | Y37: 0.078 | Z37: 0.095 | AA37: 0.111 | AB37: 0.111 | AD37: 0 | AE37: 0 | AF37: 0 | AG37: 0 | AH37: 0 | AI37: 0 | AK37: CW8.8 | AM37: 6F.8
A38: SWB | B38: School visits water efficiency programme | C38: HH_E_013 | D38: 3 | E38: Demand-side improvements delivering benefits in 2025-30 (excl leakage and metering) | F38: 2025-26 | H38: 0 | I38: 0 | J38: 0 | K38: 0 | L38: 0 | M38: 0 | N38: 0 | P38: 0.005 | Q38: 0.006 | R38: 0.005 | S38: 0.006 | T38: 0.008 | U38: 0 | W38: 0.009 | X38: 0.017 | Y38: 0.026 | Z38: 0.032 | AA38: 0.038 | AB38: 0.038 | AD38: 0 | AE38: 0 | AF38: 0 | AG38: 0 | AH38: 0 | AI38: 0 | AK38: CW8.9 | AM38: 6F.9
A39: SWB | B39: Business Efficiency Visit (BEV) - process water efficiency audit/leakage detection. | C39: NHH_A_005BM | D39: 3 | E39: Demand-side improvements delivering benefits in 2025-30 (excl leakage and metering) | F39: 2025-26 | H39: 0 | I39: 0 | J39: 0 | K39: 0 | L39: 0 | M39: 0 | N39: 0 | P39: 0.001 | Q39: 0.001 | R39: 0.001 | S39: 0.002 | T39: 0.002 | U39: 0 | W39: 0 | X39: 0.003 | Y39: 0.005 | Z39: 0.007 | AA39: 0.009 | AB39: 0.009 | AD39: 0 | AE39: 0 | AF39: 0 | AG39: 0 | AH39: 0 | AI39: 0 | AK39: CW8.10 | AM39: 6F.10
A40: SWB | B40: Business Efficiency Visit (BEV) - process water efficiency audit/leakage detection. | C40: NHH_A_005FM | D40: 3 | E40: Demand-side improvements delivering benefits in 2025-30 (excl leakage and metering) | F40: 2025-26 | H40: 0 | I40: 0 | J40: 0 | K40: 0 | L40: 0 | M40: 0 | N40: 0 | P40: 0.001 | Q40: 0.001 | R40: 0.001 | S40: 0.002 | T40: 0.002 | U40: 0 | W40: 0 | X40: 0.004 | Y40: 0.008 | Z40: 0.011 | AA40: 0.014 | AB40: 0.014 | AD40: 0 | AE40: 0 | AF40: 0 | AG40: 0 | AH40: 0 | AI40: 0 | AK40: CW8.11 | AM40: 6F.11
A41: SWB | B41: Water efficiency programmes targeted at specific groups (e.g. community, religious groups) | C41: HH_E_017 | D41: 3 | E41: Demand-side improvements delivering benefits in 2025-30 (excl leakage and metering) | F41: 2025-26 | H41: 0 | I41: 0 | J41: 0 | K41: 0 | L41: 0 | M41: 0 | N41: 0 | P41: 0 | Q41: 0 | R41: 0 | S41: 0 | T41: 0.001 | U41: 0 | W41: 0.001 | X41: 0.001 | Y41: 0.001 | Z41: 0.002 | AA41: 0.002 | AB41: 0.002 | AD41: 0 | AE41: 0 | AF41: 0 | AG41: 0 | AH41: 0 | AI41: 0 | AK41: CW8.12 | AM41: 6F.12
A42: SWB | B42: Reuse treated wastewater effluent as an alternative supply. This reclaimed water could be used for industrial/commercial use rather than potable water (drinking water). Top 10 Best Users | C42: NHH_N_006 | D42: 3 | E42: Demand-side improvements delivering benefits in 2025-30 (excl leakage and metering) | F42: 2025-26 | H42: 0 | I42: 0 | J42: 0 | K42: 0 | L42: 0 | M42: 0 | N42: 0 | P42: 0.139 | Q42: 0.168 | R42: 0.111 | S42: 0.192 | T42: 0.232 | U42: 0 | W42: 0.085 | X42: 0.17 | Y42: 0.254 | Z42: 0.337 | AA42: 0.419 | AB42: 0.419 | AD42: 0 | AE42: 0 | AF42: 0 | AG42: 0 | AH42: 0 | AI42: 0 | AK42: CW8.13 | AM42: 6F.13
A43: SWB | B43: BEV in person, fix, retrofit – targeted at specific sectors | C43: NNH_A_001 | D43: 3 | E43: Demand-side improvements delivering benefits in 2025-30 (excl leakage and metering) | F43: 2025-26 | H43: 0 | I43: 0 | J43: 0 | K43: 0 | L43: 0 | M43: 0 | N43: 0 | P43: 0.19 | Q43: 0.229 | R43: 0.151 | S43: 0.261 | T43: 0.315 | U43: 0 | W43: 0.272 | X43: 0.517 | Y43: 0.738 | Z43: 0.936 | AA43: 1.113 | AB43: 1.113 | AD43: 0 | AE43: 0 | AF43: 0 | AG43: 0 | AH43: 0 | AI43: 0 | AK43: CW8.14 | AM43: 6F.14
A44: SWB | B44: Business Efficiency Visits (BEV) - process water efficiency audit/leakage detection to tackle on-site leakage | C44: NHH_A_003 | D44: 3 | E44: Demand-side improvements delivering benefits in 2025-30 (excl leakage and metering) | F44: 2025-26 | H44: 0 | I44: 0 | J44: 0 | K44: 0 | L44: 0 | M44: 0 | N44: 0 | P44: 0.024 | Q44: 0.029 | R44: 0.019 | S44: 0.033 | T44: 0.039 | U44: 0 | W44: 0.021 | X44: 0.04 | Y44: 0.057 | Z44: 0.072 | AA44: 0.085 | AB44: 0.085 | AD44: 0 | AE44: 0 | AF44: 0 | AG44: 0 | AH44: 0 | AI44: 0 | AK44: CW8.15 | AM44: 6F.15
A45: SWB | B45: Rainwater harvesting is included in new developments to meet planning conditions - commercial/public sector developments -single or multiple. SWW funds the investment in kit | C45: NHH_N_008 | D45: 3 | E45: Demand-side improvements delivering benefits in 2025-30 (excl leakage and metering) | F45: 2025-26 | H45: 0 | I45: 0 | J45: 0 | K45: 0 | L45: 0 | M45: 0 | N45: 0 | P45: 0 | Q45: 0 | R45: 0.295 | S45: 0 | T45: 0 | U45: 0 | W45: 0 | X45: 0 | Y45: 0.161 | Z45: 0.145 | AA45: 0.131 | AB45: 0.131 | AD45: 0 | AE45: 0 | AF45: 0 | AG45: 0 | AH45: 0 | AI45: 0 | AK45: CW8.16 | AM45: 6F.16
A46: SWB | B46: Home efficiency visits (HEV) - water efficiency audit with free water efficient device installation and additional comms and media - Unmeasured HH. | C46: HH_A_006 | D46: 3 | E46: Demand-side improvements delivering benefits in 2025-30 (excl leakage and metering) | F46: 2025-26 | H46: 0 | I46: 0 | J46: 0 | K46: 0 | L46: 0 | M46: 0 | N46: 0 | P46: 0.197 | Q46: 0.24 | R46: 0.14 | S46: 0.175 | T46: 0.027 | U46: 0 | W46: 0.131 | X46: 0.283 | Y46: 0.401 | Z46: 0.463 | AA46: 0.425 | AB46: 0.425 | AD46: 0 | AE46: 0 | AF46: 0 | AG46: 0 | AH46: 0 | AI46: 0 | AK46: CW8.17 | AM46: 6F.17
A47: SWB | B47: Home Efficiency Visits (HEVs) - water efficiency audit - local authorities, housing associations, corporate landlords) | C47: HH_E_009 | D47: 3 | E47: Demand-side improvements delivering benefits in 2025-30 (excl leakage and metering) | F47: 2025-26 | H47: 0 | I47: 0 | J47: 0 | K47: 0 | L47: 0 | M47: 0 | N47: 0 | P47: 0 | Q47: 0 | R47: 0.008 | S47: 0.013 | T47: 0.016 | U47: 0 | W47: 0 | X47: 0 | Y47: 0.015 | Z47: 0.028 | AA47: 0.04 | AB47: 0.04 | AD47: 0 | AE47: 0 | AF47: 0 | AG47: 0 | AH47: 0 | AI47: 0 | AK47: CW8.18 | AM47: 6F.18
A48: SWB | B48: Home efficiency visits (HEV) - water efficiency audit with free water efficient device installation - metered HH's | C48: HH_A_002 | D48: 3 | E48: Demand-side improvements delivering benefits in 2025-30 (excl leakage and metering) | F48: 2025-26 | H48: 0 | I48: 0 | J48: 0 | K48: 0 | L48: 0 | M48: 0 | N48: 0 | P48: 0.162 | Q48: 0.078 | R48: 0.052 | S48: 0.092 | T48: 0.135 | U48: 0 | W48: 0.125 | X48: 0.163 | Y48: 0.198 | Z48: 0.231 | AA48: 0.27 | AB48: 0.27 | AD48: 0 | AE48: 0 | AF48: 0 | AG48: 0 | AH48: 0 | AI48: 0 | AK48: CW8.19 | AM48: 6F.19
A49: SWB | B49: Home efficiency visits (HEV) - water efficiency audit with free water efficient device installation - Newly metered | C49: HH_A_003 | D49: 3 | E49: Demand-side improvements delivering benefits in 2025-30 (excl leakage and metering) | F49: 2025-26 | H49: 0 | I49: 0 | J49: 0 | K49: 0 | L49: 0 | M49: 0 | N49: 0 | P49: 0.016 | Q49: 0.02 | R49: 0.013 | S49: 0.023 | T49: 0.028 | U49: 0 | W49: 0.013 | X49: 0.025 | Y49: 0.035 | Z49: 0.045 | AA49: 0.054 | AB49: 0.054 | AD49: 0 | AE49: 0 | AF49: 0 | AG49: 0 | AH49: 0 | AI49: 0 | AK49: CW8.20 | AM49: 6F.20
A50: SWB | B50: Rainshare - Communities direct harvested rainwater into a centralised shared resource | C50: HH_N_003 | D50: 3 | E50: Demand-side improvements delivering benefits in 2025-30 (excl leakage and metering) | F50: 2025-26 | H50: 0 | I50: 0 | J50: 0 | K50: 0 | L50: 0 | M50: 0 | N50: 0 | P50: 0 | Q50: 0 | R50: 0.001 | S50: 0 | T50: 0 | U50: 0 | W50: 0 | X50: 0 | Y50: 0 | Z50: 0 | AA50: 0 | AB50: 0 | AD50: 0 | AE50: 0 | AF50: 0 | AG50: 0 | AH50: 0 | AI50: 0 | AK50: CW8.21 | AM50: 6F.21
A51: SWB | B51: Water labelling - with minimum standards | C51: HH_P_002 | D51: 3 | E51: Demand-side improvements delivering benefits in 2025-30 (excl leakage and metering) | F51: 2025-26 | H51: 0 | I51: 0 | J51: 0 | K51: 0 | L51: 0 | M51: 0 | N51: 0 | P51: 0 | Q51: 0 | R51: 0 | S51: 0 | T51: 0 | U51: 0 | W51: 0 | X51: 0.344 | Y51: 0.694 | Z51: 1.047 | AA51: 1.405 | AB51: 1.405 | AD51: 0 | AE51: 0 | AF51: 0 | AG51: 0 | AH51: 0 | AI51: 0 | AK51: CW8.22 | AM51: 6F.22
A52: SWB | B52: Flow regulators | C52: HH_E_022 | D52: 3 | E52: Demand-side improvements delivering benefits in 2025-30 (excl leakage and metering) | F52: 2025-26 | H52: 0 | I52: 0 | J52: 0 | K52: 0 | L52: 0 | M52: 0 | N52: 0 | P52: 0 | Q52: 0 | R52: 0 | S52: 0 | T52: 0 | U52: 0 | W52: 1.775 | X52: 3.543 | Y52: 5.306 | Z52: 7.063 | AA52: 8.815 | AB52: 8.815 | AD52: 0 | AE52: 0 | AF52: 0 | AG52: 0 | AH52: 0 | AI52: 0 | AK52: CW8.23 | AM52: 6F.23
A53: SEW | B53: HH Water Efficiency Interventions (Company-led) | C53: HH_weff_company_group | D53: 3 | E53: Demand-side improvements delivering benefits in 2025-30 (excl leakage and metering) | F53: 2026 | H53: 0 | I53: 9.389 | J53: 9.436 | K53: 9.48 | L53: 9.521 | M53: 9.558 | N53: 158.607 | P53: 0.244 | Q53: 0.482 | R53: 0.719 | S53: 0.957 | T53: 1.195 | U53: 0.167 | W53: 2.017 | X53: 4.048 | Y53: 6.091 | Z53: 8.143 | AA53: 10.204 | AB53: 20.986 | AD53: 0 | AE53: 0 | AF53: 0 | AG53: 0 | AH53: 0 | AI53: 0 | AK53: CW8.1 | AM53: 6F.1
A54: SEW | B54: HH Water Efficiency Interventions (Goverment-led) | C54: HH_weff_gov_group | D54: 3 | E54: Demand-side improvements delivering benefits in 2025-30 (excl leakage and metering) | F54: 2027 | H54: 0 | I54: 0 | J54: 0 | K54: 0 | L54: 0 | M54: 0 | N54: 0 | P54: 0 | Q54: 0 | R54: 0 | S54: 0 | T54: 0 | U54: 0 | W54: 0 | X54: 1.419 | Y54: 2.868 | Z54: 4.341 | AA54: 5.833 | AB54: 34.526 | AD54: 0 | AE54: 0 | AF54: 0 | AG54: 0 | AH54: 0 | AI54: 0 | AK54: CW8.2 | AM54: 6F.2
A55: SEW | B55: NHH Water Efficiency Interventions (Company-led) | C55: NHH_weff_group | D55: 3 | E55: Demand-side improvements delivering benefits in 2025-30 (excl leakage and metering) | F55: 2026 | H55: 0 | I55: 0 | J55: 0 | K55: 0 | L55: 0 | M55: 0 | N55: 0.016 | P55: 0.381 | Q55: 0.381 | R55: 0.381 | S55: 0.381 | T55: 0.381 | U55: 1.217 | W55: 0.338 | X55: 0.676 | Y55: 1.015 | Z55: 1.353 | AA55: 1.692 | AB55: 8.679 | AD55: 0 | AE55: 0 | AF55: 0 | AG55: 0 | AH55: 0 | AI55: 0 | AK55: CW8.3 | AM55: 6F.3
A56: SRN | B56: Home audits | C56: Multiple | D56: 3 | E56: Demand-side improvements delivering benefits in 2025-30 (excl leakage and metering) | F56: 2025-26 | H56: 0 | I56: 0 | J56: 0 | K56: 0 | L56: 0 | M56: 0 | N56: 0 | P56: 0.833 | Q56: 0.843 | R56: 0.853 | S56: 0.863 | T56: 0.872 | U56: 0.362 | W56: 0.281 | X56: 0.573 | Y56: 0.85 | Z56: 1.114 | AA56: 1.362 | AB56: 2.567 | AD56: 0 | AE56: 0 | AF56: 0 | AG56: 0 | AH56: 0 | AI56: 0 | AK56: CW8.34 | AM56: 6F.34
A57: SRN | B57: Water audits - Business | C57: Multiple | D57: 3 | E57: Demand-side improvements delivering benefits in 2025-30 (excl leakage and metering) | F57: 2025-26 | H57: 0 | I57: 0 | J57: 0 | K57: 0 | L57: 0 | M57: 0 | N57: 0 | P57: 0.224 | Q57: 0.224 | R57: 0.224 | S57: 0.224 | T57: 0.224 | U57: 0.449 | W57: 0.249 | X57: 0.489 | Y57: 0.723 | Z57: 0.953 | AA57: 1.029 | AB57: 5.344 | AD57: 0 | AE57: 0 | AF57: 0 | AG57: 0 | AH57: 0 | AI57: 0 | AK57: CW8.35 | AM57: 6F.35
A58: SRN | B58: Partnership funds - business | C58: Multiple | D58: 3 | E58: Demand-side improvements delivering benefits in 2025-30 (excl leakage and metering) | F58: 2025-26 | H58: 0 | I58: 0 | J58: 0 | K58: 0 | L58: 0 | M58: 0 | N58: 0 | P58: 0.338 | Q58: 0.338 | R58: 0.338 | S58: 0.338 | T58: 0.338 | U58: 0.113 | W58: 0.08 | X58: 0.16 | Y58: 0.241 | Z58: 0.321 | AA58: 0.401 | AB58: 0.197 | AD58: 0 | AE58: 0 | AF58: 0 | AG58: 0 | AH58: 0 | AI58: 0 | AK58: CW8.36 | AM58: 6F.36
A59: SRN | B59: Water efficiency education | C59: Multiple | D59: 3 | E59: Demand-side improvements delivering benefits in 2025-30 (excl leakage and metering) | F59: 2030-31 | H59: 0 | I59: 0 | J59: 0 | K59: 0 | L59: 0 | M59: 0 | N59: 0 | P59: 0.1 | Q59: 0.1 | R59: 0.1 | S59: 0.1 | T59: 0.1 | U59: 0.5 | W59: 0 | X59: 0 | Y59: 0 | Z59: 0 | AA59: 0 | AB59: 0 | AD59: 0 | AE59: 0 | AF59: 0 | AG59: 0 | AH59: 0 | AI59: 0 | AK59: CW8.37 | AM59: 6F.37
A60: SSC | B60: Non-household water efficiency programme | C60: 2021-015 | D60: 3 | E60: Demand-side improvements delivering benefits in 2025-30 (excl leakage and metering) | F60: 2025 | H60: 0 | I60: 0 | J60: 0 | K60: 0 | L60: 0 | M60: 0 | N60: 0 | P60: 0.16 | Q60: 0.16 | R60: 0.16 | S60: 0.16 | T60: 0.16 | U60: 0.86 | W60: 0.23 | X60: 0.46 | Y60: 0.69 | Z60: 0.92 | AA60: 1.15 | AB60: 2.3 | AD60: 0 | AE60: 0 | AF60: 0 | AG60: 0 | AH60: 0 | AI60: 0 | AK60: CW8.1 | AM60: 6F.1
A61: SSC | B61: Household water efficiency programme (partnering approach, home visit) | C61: 2021-012 | D61: 3 | E61: Demand-side improvements delivering benefits in 2025-30 (excl leakage and metering) | F61: 2025 | H61: 0 | I61: 0.295 | J61: 0.295 | K61: 0.295 | L61: 0.295 | M61: 0.295 | N61: 1.475 | P61: 0.521 | Q61: 0.521 | R61: 0.521 | S61: 0.521 | T61: 0.521 | U61: 2.307 | W61: 0.304 | X61: 0.608 | Y61: 0.912 | Z61: 1.216 | AA61: 1.52 | AB61: 2.85 | AD61: 0 | AE61: 0 | AF61: 0 | AG61: 0 | AH61: 0 | AI61: 0 | AK61: CW8.2 | AM61: 6F.2
A62: SSC | B62: Housing associations - targeted programme - SST | C62: 2021-036 | D62: 3 | E62: Demand-side improvements delivering benefits in 2025-30 (excl leakage and metering) | F62: 2025 | H62: 0 | I62: 0.144 | J62: 0.144 | K62: 0.144 | L62: 0.144 | M62: 0.144 | N62: 0 | P62: 0.226 | Q62: 0.226 | R62: 0.226 | S62: 0.226 | T62: 0.226 | U62: 0 | W62: 0.142 | X62: 0.284 | Y62: 0.426 | Z62: 0.568 | AA62: 0.71 | AB62: 0 | AD62: 0 | AE62: 0 | AF62: 0 | AG62: 0 | AH62: 0 | AI62: 0 | AK62: CW8.3 | AM62: 6F.3
A63: SSC | B63: Housing associations - targeted programme - CAM | C63: 2021-036 | D63: 3 | E63: Demand-side improvements delivering benefits in 2025-30 (excl leakage and metering) | F63: 2025 | H63: 0 | I63: 0.037 | J63: 0.037 | K63: 0.037 | L63: 0.037 | M63: 0.037 | N63: 0 | P63: 0.057 | Q63: 0.057 | R63: 0.057 | S63: 0.057 | T63: 0.057 | U63: 0 | W63: 0.036 | X63: 0.072 | Y63: 0.108 | Z63: 0.144 | AA63: 0.18 | AB63: 0 | AD63: 0 | AE63: 0 | AF63: 0 | AG63: 0 | AH63: 0 | AI63: 0 | AK63: CW8.5 | AM63: 6F.5
A64: SSC | B64: Non-household moratorium | C64: 2021-130 | D64: 3 | E64: Demand-side improvements delivering benefits in 2025-30 (excl leakage and metering) | F64: 2025 | AD64: 0 | AE64: 0 | AF64: 0 | AG64: 0 | AH64: 0 | AI64: 0 | AK64: CW8.6 | AM64: 6F.6
A65: SVE | B65: Enhanced household water efficiency (Customer Incentives, Flowvalve, Home water efficiecny checks, products) | C65: 173/175/184 | D65: 3 | E65: Demand-side improvements delivering benefits in 2025-30 (excl leakage and metering) | F65: 0 | H65: 0 | I65: 0 | J65: 0 | K65: 0 | L65: 0 | M65: 0 | N65: 0 | P65: 1.247 | Q65: 1.25 | R65: 1.252 | S65: 1.251 | T65: 1.252 | U65: 9.019 | W65: 0.79 | X65: 0.893 | Y65: 1.021 | Z65: 0.936 | AA65: 0.983 | AB65: 7.08 | AD65: 0 | AE65: 0 | AF65: 0 | AG65: 0 | AH65: 0 | AI65: 0 | AK65: CW8.12 | AM65: 6F.12
A66: SVE | B66: Non household water efficiency (School and business audits) | C66: 181 | D66: 3 | E66: Demand-side improvements delivering benefits in 2025-30 (excl leakage and metering) | F66: 0 | H66: 0 | I66: 0 | J66: 0 | K66: 0 | L66: 0 | M66: 0 | N66: 0 | P66: 0.715 | Q66: 1.908 | R66: 2.048 | S66: 2.186 | T66: 2.322 | U66: 75.278 | W66: 0.715 | X66: 1.908 | Y66: 2.048 | Z66: 2.186 | AA66: 2.322 | AB66: 75.278 | AD66: 0 | AE66: 0 | AF66: 0 | AG66: 0 | AH66: 0 | AI66: 0 | AK66: CW8.13 | AM66: 6F.13
A67: TMS | B67: NHH Internal Continuous Flow Fixes High | C67: TWU_cont int flow high | D67: 3 | E67: Demand-side improvements delivering benefits in 2025-30 (excl leakage and metering) | F67: 2025-26 | H67: 0 | I67: 0 | J67: 0 | K67: 0 | L67: 0 | M67: 0 | N67: 0 | P67: 0.164 | Q67: 0.164 | R67: 0.165 | S67: 0.166 | T67: 0.167 | U67: 0.236 | W67: 0.9 | X67: 1.8 | Y67: 2.7 | Z67: 3.6 | AA67: 4.5 | AB67: 23.5 | AD67: 0 | AE67: 0 | AF67: 0 | AG67: 0 | AH67: 0 | AI67: 0 | AK67: CW8.22 | AM67: 6F.22
A68: TMS | B68: Digital Engagement Tool High | C68: TWU_det hh high | D68: 3 | E68: Demand-side improvements delivering benefits in 2025-30 (excl leakage and metering) | F68: 2025-26 | H68: 0 | I68: 0 | J68: 0 | K68: 0 | L68: 0 | M68: 0 | N68: 0 | P68: 0.149 | Q68: 0.149 | R68: 0.15 | S68: 0.151 | T68: 0.151 | U68: 0.674 | W68: 1.779 | X68: 3.558 | Y68: 5.337 | Z68: 7.116 | AA68: 8.896 | AB68: 29.887 | AD68: 0 | AE68: 0 | AF68: 0 | AG68: 0 | AH68: 0 | AI68: 0 | AK68: CW8.23 | AM68: 6F.23
A69: TMS | B69: Green Redeem High | C69: TWU_gree rede hh high | D69: 3 | E69: Demand-side improvements delivering benefits in 2025-30 (excl leakage and metering) | F69: 2025-26 | H69: 0 | I69: 0 | J69: 0 | K69: 0 | L69: 0 | M69: 0 | N69: 0 | P69: 0.007 | Q69: 0.007 | R69: 0.007 | S69: 0.007 | T69: 0.007 | U69: 0.002 | W69: 0.017 | X69: 0.033 | Y69: 0.05 | Z69: 0.066 | AA69: 0.083 | AB69: 0.102 | AD69: 0 | AE69: 0 | AF69: 0 | AG69: 0 | AH69: 0 | AI69: 0 | AK69: CW8.24 | AM69: 6F.24
A70: TMS | B70: Household Innovation and Tariffs High | C70: TWU_hi&t hh high | D70: 3 | E70: Demand-side improvements delivering benefits in 2025-30 (excl leakage and metering) | F70: 2025-26 | H70: 0 | I70: 0 | J70: 0 | K70: 0 | L70: 0 | M70: 0 | N70: 0 | P70: 5.876 | Q70: 5.902 | R70: 5.929 | S70: 5.956 | T70: 5.982 | U70: 21.304 | W70: 1.042 | X70: 2.083 | Y70: 3.125 | Z70: 4.167 | AA70: 5.208 | AB70: 61.258 | AD70: 0 | AE70: 0 | AF70: 0 | AG70: 0 | AH70: 0 | AI70: 0 | AK70: CW8.25 | AM70: 6F.25
A71: TMS | B71: NHH Retailer Activity High | C71: TWU_retailer nhh high | D71: 3 | E71: Demand-side improvements delivering benefits in 2025-30 (excl leakage and metering) | F71: 2025-26 | H71: 0 | I71: 0 | J71: 0 | K71: 0 | L71: 0 | M71: 0 | N71: 0 | P71: 0.018 | Q71: 0.018 | R71: 0.018 | S71: 0.018 | T71: 0.019 | U71: 0.197 | W71: 0.1 | X71: 0.2 | Y71: 0.3 | Z71: 0.4 | AA71: 0.5 | AB71: 7 | AD71: 0 | AE71: 0 | AF71: 0 | AG71: 0 | AH71: 0 | AI71: 0 | AK71: CW8.26 | AM71: 6F.26
A72: TMS | B72: Smarter Business Visits High | C72: TWU_sbv nhh high | D72: 3 | E72: Demand-side improvements delivering benefits in 2025-30 (excl leakage and metering) | F72: 2025-26 | H72: 0 | I72: 0 | J72: 0 | K72: 0 | L72: 0 | M72: 0 | N72: 0 | P72: 0.784 | Q72: 0.787 | R72: 0.791 | S72: 0.795 | T72: 0.798 | U72: 0.292 | W72: 4.68 | X72: 9.36 | Y72: 14.04 | Z72: 18.72 | AA72: 23.4 | AB72: 56.4 | AD72: 0 | AE72: 0 | AF72: 0 | AG72: 0 | AH72: 0 | AI72: 0 | AK72: CW8.27 | AM72: 6F.27
A73: TMS | B73: Smarter Home Visit (Optants) High | C73: TWU_shv opt hh high | D73: 3 | E73: Demand-side improvements delivering benefits in 2025-30 (excl leakage and metering) | F73: 2025-26 | H73: 0 | I73: 0 | J73: 0 | K73: 0 | L73: 0 | M73: 0 | N73: 0 | P73: 0.03 | Q73: 0.03 | R73: 0.03 | S73: 0.03 | T73: 0.03 | U73: 0 | W73: 0.021 | X73: 0.043 | Y73: 0.064 | Z73: 0.085 | AA73: 0.107 | AB73: 0.107 | AD73: 0 | AE73: 0 | AF73: 0 | AG73: 0 | AH73: 0 | AI73: 0 | AK73: CW8.28 | AM73: 6F.28
A74: TMS | B74: Smarter Home Visit (PMP) High | C74: TWU_shv pmp hh high | D74: 3 | E74: Demand-side improvements delivering benefits in 2025-30 (excl leakage and metering) | F74: 2025-26 | H74: 0 | I74: 0 | J74: 0 | K74: 0 | L74: 0 | M74: 0 | N74: 0 | P74: 0.353 | Q74: 0.355 | R74: 0.356 | S74: 0.358 | T74: 0.359 | U74: 0 | W74: 0.255 | X74: 0.51 | Y74: 0.765 | Z74: 1.02 | AA74: 1.275 | AB74: 1.275 | AD74: 0 | AE74: 0 | AF74: 0 | AG74: 0 | AH74: 0 | AI74: 0 | AK74: CW8.29 | AM74: 6F.29
A75: TMS | B75: Smarter Home Visit (PSUP) High | C75: TWU_shv psup hh high | D75: 3 | E75: Demand-side improvements delivering benefits in 2025-30 (excl leakage and metering) | F75: 2025-26 | H75: 0 | I75: 0 | J75: 0 | K75: 0 | L75: 0 | M75: 0 | N75: 0 | P75: 0.557 | Q75: 0.559 | R75: 0.562 | S75: 0.564 | T75: 0.567 | U75: 0.222 | W75: 0.402 | X75: 0.805 | Y75: 1.207 | Z75: 1.609 | AA75: 2.012 | AB75: 2.79 | AD75: 0 | AE75: 0 | AF75: 0 | AG75: 0 | AH75: 0 | AI75: 0 | AK75: CW8.30 | AM75: 6F.30
A76: TMS | B76: NHH New Tariff Structure High | C76: TWU_tariff nhh high | D76: 3 | E76: Demand-side improvements delivering benefits in 2025-30 (excl leakage and metering) | F76: 2035-36 | H76: 0 | I76: 0 | J76: 0 | K76: 0 | L76: 0 | M76: 0 | N76: 0 | P76: 0 | Q76: 0 | R76: 0 | S76: 0 | T76: 0 | U76: 0 | W76: 0 | X76: 0 | Y76: 0 | Z76: 0 | AA76: 0 | AB76: 6 | AD76: 0 | AE76: 0 | AF76: 0 | AG76: 0 | AH76: 0 | AI76: 0 | AK76: CW8.31 | AM76: 6F.31
A77: TMS | B77: Household Wastage Fix High | C77: TWU_wastage hh high | D77: 3 | E77: Demand-side improvements delivering benefits in 2025-30 (excl leakage and metering) | F77: 2025-26 | H77: 0 | I77: 0 | J77: 0 | K77: 0 | L77: 0 | M77: 0 | N77: 0 | P77: 0.086 | Q77: 0.086 | R77: 0.087 | S77: 0.087 | T77: 0.087 | U77: 0.024 | W77: 0.176 | X77: 0.353 | Y77: 0.529 | Z77: 0.705 | AA77: 0.882 | AB77: 1.084 | AD77: 0 | AE77: 0 | AF77: 0 | AG77: 0 | AH77: 0 | AI77: 0 | AK77: CW8.32 | AM77: 6F.32
A78: TMS | B78: Progressive Metering Programme (PMP) High | C78: TWU_pmp high | D78: 3 | E78: Demand-side improvements delivering benefits in 2025-30 (excl leakage and metering) | F78: 2025 -30 | H78: 0 | I78: 1.145 | J78: 1.15 | K78: 1.155 | L78: 1.161 | M78: 1.166 | N78: 0 | P78: 0 | Q78: 0 | R78: 0 | S78: 0 | T78: 0 | U78: 0 | W78: 0 | X78: 0.5 | Y78: 1 | Z78: 1.5 | AA78: 2 | AB78: 2 | AD78: 0 | AE78: 0 | AF78: 0 | AG78: 0 | AH78: 0 | AI78: 0 | AK78: CW8.34 | AM78: 6F.34
A79: NWT | B79: WSD-SRZ10_Free water efficiency devices (inside/internal) | C79: WR658c | D79: 3 | E79: Demand-side improvements delivering benefits in 2025-2030 (excl leakage and metering) | F79: 2026 | H79: 0 | I79: 0 | J79: 0 | K79: 0 | L79: 0 | M79: 0 | N79: 0 | P79: 0.252 | Q79: 0.273 | R79: 0.277 | S79: 0.28 | T79: 0.279 | U79: 0.264 | W79: 0.439 | X79: 0.878 | Y79: 1.298 | Z79: 1.688 | AA79: 2.052 | AB79: 3.985 | AD79: 0 | AE79: 0 | AF79: 0 | AG79: 0 | AH79: 0 | AI79: 0 | AK79: CW8.1 | AM79: 6F.1
